{"text_format":"1","workbook":"xlsx","n_sheets":9,"sheets":["Avantages perçus","Conventions signées","Rémunérations","AVANTAGES","CONVENTIONS","FIRMES","Conception","Déplacements","Tableaux de synthèse"],"not_rendered":{"charts":0,"images":321,"macros":1,"external_links":5,"defined_names":26,"comments":2,"pivot_tables":0},"unopened":[],"bounds":{"document_bytes":16777216,"sheet_cells":100000,"rows_first":2000,"rows_last":500,"rows_between":2000,"halvings":0,"cell_chars":16384,"cell_head_chars":4096},"cells_cut":0,"cells_raw":0,"read":"whole","date_system":"1900"}

{"sheet":"Avantages perçus","index":0,"n_rows":147,"n_cols":6,"rows_kept":147,"cut":false,"hidden":false,"merged":[]}
["Bénéficiaire","Type de bénéficiaire","Entreprise","Date","Nature","Montant"]
["DÉCISION & STRATÉGIE SANTÉ","Presse et média ","LABORATOIRE GLAXOSMITHKLINE","2013-09-12","REPAS ",29]
["DÉCISION & STRATÉGIE SANTÉ","Presse et média ","EDITION DE L'INTERLIGNE","2013-12-11","HOSPITALITE ",60]
["DÉCISION & STRATÉGIE SANTÉ","Presse et média ","EDITION DE L'INTERLIGNE","2013-12-11","HOSPITALITE ",60]
["DÉCISION & STRATÉGIE SANTÉ","Presse et média ","EDITION DE L'INTERLIGNE","2013-12-11","HOSPITALITE ",60]
["DÉCISION & STRATÉGIE SANTÉ","Presse et média ","EDITION DE L'INTERLIGNE","17/12/2013","HOSPITALITE ",60]
["DÉCISION & STRATÉGIE SANTÉ","Presse et média ","EDITION DE L'INTERLIGNE","17/12/2013","HOSPITALITE ",60]
["DÉCISION & STRATÉGIE SANTÉ","Presse et média ","EDITION DE L'INTERLIGNE","17/12/2013","HOSPITALITE ",60]
["DÉCISION & STRATÉGIE SANTÉ","Presse et média ","EDITION DE L'INTERLIGNE","2014-02-12","HOSPITALITE ",60]
["DÉCISION & STRATÉGIE SANTÉ","Presse et média ","EDITION DE L'INTERLIGNE","2014-02-12","HOSPITALITE ",60]
["DÉCISION & STRATÉGIE SANTÉ","Presse et média ","EDITION DE L'INTERLIGNE","2014-02-12","HOSPITALITE ",60]
["DÉCISION & STRATÉGIE SANTÉ","Presse et média ","EDITION DE L'INTERLIGNE","2014-02-12","HOSPITALITE ",60]
["DÉCISION & STRATÉGIE SANTÉ","Presse et média ","EDITION DE L'INTERLIGNE","2014-02-12","HOSPITALITE ",60]
["DÉCISION & STRATÉGIE SANTÉ","Presse et média ","EDITION DE L'INTERLIGNE","2014-02-12","HOSPITALITE ",60]
["DÉCISION & STRATÉGIE SANTÉ","Presse et média ","EDITION DE L'INTERLIGNE","2014-04-07","HOSPITALITE ",60]
["DÉCISION & STRATÉGIE SANTÉ","Presse et média ","EDITION DE L'INTERLIGNE","2014-04-07","HOSPITALITE ",60]
["DÉCISION & STRATÉGIE SANTÉ","Presse et média ","EDITION DE L'INTERLIGNE","2014-04-07","HOSPITALITE ",60]
["DÉCISION & STRATÉGIE SANTÉ","Presse et média ","EDITION DE L'INTERLIGNE","17/04/2014","HOSPITALITE ",60]
["DÉCISION & STRATÉGIE SANTÉ","Presse et média ","EDITION DE L'INTERLIGNE","17/04/2014","HOSPITALITE ",60]
["DÉCISION & STRATÉGIE SANTÉ","Presse et média ","EDITION DE L'INTERLIGNE","17/04/2014","HOSPITALITE ",60]
["DÉCISION & STRATÉGIE SANTÉ","Presse et média ","EDITION DE L'INTERLIGNE","2014-06-10","HOSPITALITE ",60]
["DÉCISION & STRATÉGIE SANTÉ","Presse et média ","EDITION DE L'INTERLIGNE","2014-06-10","HOSPITALITE ",60]
["DÉCISION & STRATÉGIE SANTÉ","Presse et média ","EDITION DE L'INTERLIGNE","2014-06-10","HOSPITALITE ",60]
["DÉCISION & STRATÉGIE SANTÉ","Presse et média ","EDITION DE L'INTERLIGNE","2014-06-10","HOSPITALITE ",60]
["DÉCISION & STRATÉGIE SANTÉ","Presse et média ","EDITION DE L'INTERLIGNE","2014-06-10","HOSPITALITE ",60]
["DÉCISION & STRATÉGIE SANTÉ","Presse et média ","EDITION DE L'INTERLIGNE","2014-06-10","HOSPITALITE ",60]
["DÉCISION & STRATÉGIE SANTÉ","Presse et média ","EDITION DE L'INTERLIGNE","2014-07-01","HOSPITALITE ",60]
["DÉCISION & STRATÉGIE SANTÉ","Presse et média ","EDITION DE L'INTERLIGNE","2014-07-01","HOSPITALITE ",60]
["DÉCISION & STRATÉGIE SANTÉ","Presse et média ","EDITION DE L'INTERLIGNE","2014-07-01","HOSPITALITE ",60]
["DÉCISION & STRATÉGIE SANTÉ","Presse et média ","Bayer HealthCare SAS","2014-09-02","Hospitalité ",471]
["DÉCISION & STRATÉGIE SANTÉ","Presse et média ","LABORATOIRE GLAXOSMITHKLINE","2014-09-09","REPAS ",17]
["DÉCISION & STRATÉGIE SANTÉ","Presse et média ","EDITION DE L'INTERLIGNE","2014-10-07","HOSPITALITE ",60]
["DÉCISION & STRATÉGIE SANTÉ","Presse et média ","EDITION DE L'INTERLIGNE","2014-10-07","HOSPITALITE ",60]
["DÉCISION & STRATÉGIE SANTÉ","Presse et média ","EDITION DE L'INTERLIGNE","2014-10-07","HOSPITALITE ",60]
["DÉCISION & STRATÉGIE SANTÉ","Presse et média ","EDITION DE L'INTERLIGNE","2014-10-07","HOSPITALITE ",60]
["DÉCISION & STRATÉGIE SANTÉ","Presse et média ","EDITION DE L'INTERLIGNE","2014-10-07","HOSPITALITE ",60]
["DÉCISION & STRATÉGIE SANTÉ","Presse et média ","EDITION DE L'INTERLIGNE","2014-10-07","HOSPITALITE ",60]
["DÉCISION & STRATÉGIE SANTÉ","Presse et média ","EDITION DE L'INTERLIGNE","2014-10-07","HOSPITALITE ",60]
["DÉCISION & STRATÉGIE SANTÉ","Presse et média ","EDITION DE L'INTERLIGNE","2014-10-07","HOSPITALITE ",60]
["DÉCISION & STRATÉGIE SANTÉ","Presse et média ","EDITION DE L'INTERLIGNE","2014-10-07","HOSPITALITE ",60]
["DÉCISION & STRATÉGIE SANTÉ","Presse et média ","EDITION DE L'INTERLIGNE","2014-10-07","HOSPITALITE ",60]
["DÉCISION & STRATÉGIE SANTÉ","Presse et média ","EDITION DE L'INTERLIGNE","2014-10-07","HOSPITALITE ",60]
["DÉCISION & STRATÉGIE SANTÉ","Presse et média ","EDITION DE L'INTERLIGNE","2014-10-07","HOSPITALITE ",60]
["DÉCISION & STRATÉGIE SANTÉ","Presse et média ","MSD France","28/10/2014","REPAS ",12]
["DÉCISION & STRATÉGIE SANTÉ","Presse et média ","EDITION DE L'INTERLIGNE","27/11/2014","HOSPITALITE ",66]
["DÉCISION & STRATÉGIE SANTÉ","Presse et média ","EDITION DE L'INTERLIGNE","27/11/2014","HOSPITALITE ",66]
["DÉCISION & STRATÉGIE SANTÉ","Presse et média ","EDITION DE L'INTERLIGNE","27/11/2014","HOSPITALITE ",66]
["DÉCISION & STRATÉGIE SANTÉ","Presse et média ","EDITION DE L'INTERLIGNE","27/11/2014","HOSPITALITE ",66]
["DÉCISION & STRATÉGIE SANTÉ","Presse et média ","EDITION DE L'INTERLIGNE","27/11/2014","HOSPITALITE ",66]
["DÉCISION & STRATÉGIE SANTÉ","Presse et média ","EDITION DE L'INTERLIGNE","27/11/2014","HOSPITALITE ",66]
["DÉCISION & STRATÉGIE SANTÉ","Personnes morales assurant la formation initiale ou continue des professionnels de santé ","ARCHIMEDES PHARMA France","2014-12-02","Dons de fonctionnement ",2400]
["DÉCISION & STRATÉGIE SANTÉ","Presse et média ","SESC","2015-05-11","HOSPITALITE ",60]
["DÉCISION & STRATÉGIE SANTÉ","Presse et média ","SESC","2015-05-11","HOSPITALITE ",60]
["DÉCISION & STRATÉGIE SANTÉ","Presse et média ","SESC","2015-05-11","HOSPITALITE ",60]
["DÉCISION & STRATÉGIE SANTÉ","Presse et média ","SESC","26/11/2015","HOSPITALITE ",60]
["DÉCISION & STRATÉGIE SANTÉ","Presse et média ","SESC","26/11/2015","HOSPITALITE ",60]
["DÉCISION & STRATÉGIE SANTÉ","Presse et média ","SESC","26/11/2015","HOSPITALITE ",60]
["DÉCISION & STRATÉGIE SANTÉ","Presse et média ","SESC","26/11/2015","HOSPITALITE ",60]
["DÉCISION & STRATÉGIE SANTÉ","Presse et média ","SESC","26/11/2015","HOSPITALITE ",60]
["DÉCISION & STRATÉGIE SANTÉ","Presse et média ","SESC","26/11/2015","HOSPITALITE ",60]
["DÉCISION & STRATÉGIE SANTÉ","Presse et média ","SESC","26/11/2015","HOSPITALITE ",60]
["DÉCISION & STRATÉGIE SANTÉ","Presse et média ","SESC","26/11/2015","HOSPITALITE ",60]
["DÉCISION & STRATÉGIE SANTÉ","Presse et média ","SESC","2016-03-08","HOSPITALITE ",60]
["DÉCISION & STRATÉGIE SANTÉ","Presse et média ","SESC","2016-03-08","HOSPITALITE ",60]
["DÉCISION & STRATÉGIE SANTÉ","Presse et média ","SESC","2016-03-08","HOSPITALITE ",60]
["DÉCISION & STRATÉGIE SANTÉ","Presse et média ","MSD France","24/03/2016","REPAS ",11]
["DÉCISION & STRATÉGIE SANTÉ","Presse et média ","MSD France","2016-04-11","REPAS ",19]
["DÉCISION & STRATÉGIE SANTÉ","Presse et média ","SESC","2016-10-04","HOSPITALITE ",60]
["DÉCISION & STRATÉGIE SANTÉ","Presse et média ","SESC","2016-10-04","HOSPITALITE ",60]
["DÉCISION & STRATÉGIE SANTÉ","Presse et média ","SESC","2016-10-04","HOSPITALITE ",60]
["DÉCISION & STRATÉGIE SANTÉ","Presse et média ","SESC","2016-10-04","HOSPITALITE ",60]
["DÉCISION & STRATÉGIE SANTÉ","Presse et média ","SESC","2016-10-04","HOSPITALITE ",60]
["DÉCISION & STRATÉGIE SANTÉ","Presse et média ","SESC","2016-10-04","HOSPITALITE ",60]
["DÉCISION & STRATÉGIE SANTÉ","Presse et média ","SESC","2016-10-04","HOSPITALITE ",60]
["DÉCISION & STRATÉGIE SANTÉ","Presse et média ","SESC","2016-10-04","HOSPITALITE ",60]
["DÉCISION & STRATÉGIE SANTÉ","Presse et média ","SESC","2016-10-04","HOSPITALITE ",60]
["DÉCISION & STRATÉGIE SANTÉ","Presse et média ","SESC","2016-10-04","HOSPITALITE ",60]
["DÉCISION & STRATÉGIE SANTÉ","Presse et média ","EDITION DE L'INTERLIGNE","30/06/2017","REPAS ",50]
["DÉCISION & STRATÉGIE SANTÉ","Presse et média ","EDITION DE L'INTERLIGNE","30/06/2017","REPAS ",12]
["DÉCISION & STRATÉGIE SANTÉ","Presse et média ","EDITION DE L'INTERLIGNE","30/06/2017","REPAS ",50]
["DÉCISION & STRATÉGIE SANTÉ","Presse et média ","EDITION DE L'INTERLIGNE","30/06/2017","REPAS ",12]
["DÉCISION & STRATÉGIE SANTÉ","Presse et média ","EDITION DE L'INTERLIGNE","30/06/2017","REPAS ",50]
["DÉCISION & STRATÉGIE SANTÉ","Presse et média ","EDITION DE L'INTERLIGNE","30/06/2017","REPAS ",12]
["DÉCISION & STRATÉGIE SANTÉ","Presse et média ","EDITION DE L'INTERLIGNE","30/06/2017","REPAS ",50]
["DÉCISION & STRATÉGIE SANTÉ","Presse et média ","EDITION DE L'INTERLIGNE","30/06/2017","REPAS ",12]
["DÉCISION & STRATÉGIE SANTÉ","Presse et média ","EDITION DE L'INTERLIGNE","30/06/2017","REPAS ",50]
["DÉCISION & STRATÉGIE SANTÉ","Presse et média ","EDITION DE L'INTERLIGNE","30/06/2017","REPAS ",12]
["QUOTIDIEN DU MÉDECIN","Presse et média ","MSD France","2013-02-05","REPAS ",60]
["QUOTIDIEN DU MÉDECIN","Presse et média ","MSD France","2013-02-05","REPAS ",60]
["QUOTIDIEN DU MÉDECIN","Presse et média ","MSD France","2013-04-06","REPAS ",67]
["QUOTIDIEN DU MÉDECIN","Presse et média ","MSD France","19/04/2013","REPAS ",35]
["QUOTIDIEN DU MÉDECIN","Presse et média ","Bayer HealthCare SAS","2013-09-09","Hospitalité ",478]
["QUOTIDIEN DU MÉDECIN","Presse et média ","MSD France","2014-04-11","AUTRE : REMUNERATION ",27870]
["QUOTIDIEN DU MÉDECIN","Presse et média ","Bayer HealthCare SAS","27/06/2014","Hospitalité ",924]
["QUOTIDIEN DU MÉDECIN","Presse et média ","MSD France","18/09/2014","REPAS ",32]
["QUOTIDIEN DU MÉDECIN","Presse et média ","MSD France","18/09/2014","TRANSPORT ",1485]
["QUOTIDIEN DU MÉDECIN","Presse et média ","MSD France","18/09/2014","TRANSPORT ",16]
["QUOTIDIEN DU MÉDECIN","Presse et média ","MSD France","18/09/2014","TRANSPORT ",78]
["QUOTIDIEN DU MÉDECIN","Presse et média ","MSD France","18/09/2014","HÉBERGEMENT ",207]
["QUOTIDIEN DU MÉDECIN","Presse et média ","MSD France","18/09/2014","TRANSPORT ",31]
["QUOTIDIEN DU MÉDECIN","Presse et média ","MSD France","18/11/2014","REPAS ",49]
["QUOTIDIEN DU MÉDECIN","Presse et média ","MSD France","18/11/2014","REPAS ",49]
["QUOTIDIEN DU MÉDECIN","Presse et média ","Cyberonics BVBA","2015-02-06","Repas ",20]
["QUOTIDIEN DU MÉDECIN","Presse et média ","Bayer HealthCare SAS","16/09/2015","Hospitalité ",526]
["QUOTIDIEN DU MÉDECIN","Presse et média ","MSD France","15/03/2016","REPAS ",28]
["QUOTIDIEN DU MÉDECIN","Presse et média ","MSD France","15/03/2016","REPAS ",28]
["QUOTIDIEN DU MÉDECIN","Presse et média ","MSD France","15/03/2016","REPAS ",28]
["QUOTIDIEN DU MÉDECIN","Presse et média ","MSD France","26/05/2016","REPAS ",61]
["QUOTIDIEN DU MÉDECIN","Presse et média ","SESC","31/05/2016","HOSPITALITE ",60]
["QUOTIDIEN DU MÉDECIN","Presse et média ","SESC","31/05/2016","HOSPITALITE ",60]
["QUOTIDIEN DU MÉDECIN","Presse et média ","SESC","31/05/2016","HOSPITALITE ",60]
["QUOTIDIEN DU MÉDECIN","Presse et média ","SESC","31/05/2016","HOSPITALITE ",60]
["QUOTIDIEN DU MÉDECIN","Presse et média ","SESC","31/05/2016","HOSPITALITE ",60]
["QUOTIDIEN DU MÉDECIN","Presse et média ","SESC","31/05/2016","HOSPITALITE ",60]
["QUOTIDIEN DU MÉDECIN","Presse et média ","SESC","17/11/2016","HOSPITALITE ",60]
["QUOTIDIEN DU MÉDECIN","Presse et média ","SESC","17/11/2016","HOSPITALITE ",60]
["QUOTIDIEN DU MÉDECIN","Presse et média ","SESC","17/11/2016","HOSPITALITE ",60]
["QUOTIDIEN DU MÉDECIN","Presse et média ","SESC","17/11/2016","HOSPITALITE ",60]
["SESC","Presse et média ","SESC","2015-12-01","HOSPITALITE ",60]
["SESC","Presse et média ","SESC","2015-12-01","HOSPITALITE ",60]
["SESC","Presse et média ","SESC","2015-12-01","HOSPITALITE ",60]
["SESC","Presse et média ","SESC","2015-12-01","HOSPITALITE ",60]
["SESC","Presse et média ","SESC","2015-12-01","HOSPITALITE ",60]
["SESC","Presse et média ","SESC","2015-12-01","HOSPITALITE ",60]
["SESC","Presse et média ","SESC","29/03/2016","HOSPITALITE ",60]
["SESC","Presse et média ","SESC","29/03/2016","HOSPITALITE ",60]
["SESC","Presse et média ","SESC","29/03/2016","HOSPITALITE ",60]
["SESC","Presse et média ","SESC","29/03/2016","HOSPITALITE ",60]
["SESC","Presse et média ","SESC","29/03/2016","HOSPITALITE ",60]
["SESC","Presse et média ","SESC","29/03/2016","HOSPITALITE ",60]
["SESC","Presse et média ","LUNDBECK SAS","2016-10-01","AUTRE :REMUNERATION ",150768]
[]
[null,null,null,null,"Total",{"$f":"SUM(F2:F131)","v":191665}]
[]
[null,null,"2ème semestre 2017",null,null,0]
[null,null,"1er semestre 2018",null,null,0]
[null,null,"12 derniers mois disponibles dans Transparence santé",null,null,0]
[]
[]
[]
[null,null,"MSD France",null,null,{"$f":"SUMIF(C$2:C$131,\"MSD France\",F$2:F$131)","v":30226}]
[null,null,"LUNDBECK SAS",null,null,{"$f":"SUMIF(C$2:C$131,\"LUNDBECK SAS\",F$2:F$131)","v":150768}]
[null,null,"Bayer HealthCare SAS",null,null,{"$f":"SUMIF(C$2:C$131,\"Bayer HealthCare SAS\",F$2:F$131)","v":2399}]
[null,null,"LABORATOIRE GLAXOSMITHKLINE",null,null,{"$f":"SUMIF(C$2:C$131,\"LABORATOIRE GLAXOSMITHKLINE\",F$2:F$131)","v":46}]
[]
[null,null,"SESC",null,null,{"$f":"SUMIF(C$2:C$131,\"SESC\",F$2:F$131)","v":2760}]
[null,null,"EDITION DE L'INTERLIGNE",null,null,{"$f":"SUMIF(C$2:C$131,\"EDITION DE L'INTERLIGNE\",F$2:F$131)","v":3046}]

{"sheet":"Conventions signées","index":1,"n_rows":725,"n_cols":8,"rows_kept":725,"cut":false,"hidden":false,"merged":[]}
["Bénéficiaire","Type de bénéficiaire","Entreprise","Date","Période","Objet","Montant","Lieu"]
["QUOTIDIEN DU MÉDECIN","Presse et média ","RB Pharmaceuticals France","01/01/2013","01/01/2013 - ","Edition "]
["QUOTIDIEN DU MÉDECIN","Presse et média ","SANDOZ","01/01/2013","01/01/2013 - 30/06/2013 ","Edition "]
["QUOTIDIEN DU PHARMACIEN","Presse et média ","SANDOZ","01/01/2013","01/01/2013 - 30/06/2013 ","Edition "]
["QUOTIDIEN DU PHARMACIEN","Presse et média ","RB Pharmaceuticals France","01/01/2013","01/01/2013 - ","Edition "]
["QUOTIDIEN DU MÉDECIN","Presse et média ","AbbVie","07/01/2013","07/01/2013 - ","Autre : AUTRE : [MANIFESTATION] "]
["QUOTIDIEN DU MÉDECIN","Presse et média ","AbbVie","10/01/2013","10/01/2013 - ","Autre : AUTRE : [MANIFESTATION] "]
["QUOTIDIEN DU MÉDECIN","Presse et média ","MYLAN SAS","17/01/2013","17/01/2013 - ","Edition ",209]
["QUOTIDIEN DU MÉDECIN","Presse et média ","MYLAN SAS","22/01/2013","22/01/2013 - ","Edition ",70]
["QUOTIDIEN DU MÉDECIN","Presse et média ","AbbVie","29/01/2013","29/01/2013 - ","Autre : AUTRE : [MANIFESTATION] "]
["QUOTIDIEN DU MÉDECIN","Presse et média ","MYLAN SAS","29/01/2013","29/01/2013 - ","Edition ",70]
["QUOTIDIEN DU MÉDECIN","Presse et média ","MYLAN SAS","29/01/2013","29/01/2013 - ","Edition ",70]
["QUOTIDIEN DU MÉDECIN","Presse et média ","MYLAN SAS","29/01/2013","29/01/2013 - ","Edition ",70]
["QUOTIDIEN DU MÉDECIN","Presse et média ","MYLAN SAS","29/01/2013","29/01/2013 - ","Edition ",70]
["QUOTIDIEN DU MÉDECIN","Presse et média ","AbbVie","30/01/2013","30/01/2013 - ","Autre : AUTRE : [MANIFESTATION] "]
["QUOTIDIEN DU MÉDECIN","Presse et média ","AbbVie","30/01/2013","30/01/2013 - ","Autre : AUTRE : [MANIFESTATION] "]
["SESC","Presse et média ","BIOGARAN","30/01/2013","01/01/2013 - ","Autre : PUBLICITE "]
["QUOTIDIEN DU MÉDECIN","Académies, Fondation, sociétés savantes, organismes de conseils ","Smith & Nephew S.A.S.","31/01/2013","31/01/2013 - 11/02/2013 ","Autre : CONVENTION D'ACHAT : MARKETING / PUBLICITE / MEDIA "]
["QUOTIDIEN DU MÉDECIN","Presse et média ","AbbVie","31/01/2013","31/01/2013 - ","Autre : AUTRE : [MANIFESTATION] "]
["QUOTIDIEN DU MÉDECIN","Presse et média ","AbbVie","31/01/2013","31/01/2013 - ","Autre : AUTRE : [MANIFESTATION] "]
["QUOTIDIEN DU MÉDECIN","Presse et média ","AbbVie","31/01/2013","31/01/2013 - ","Autre : AUTRE : [MANIFESTATION]"]
["QUOTIDIEN DU MÉDECIN","Presse et média ","MYLAN SAS","31/01/2013","31/01/2013 - ","Edition ",70]
["QUOTIDIEN DU MÉDECIN","Presse et média ","MYLAN SAS","31/01/2013","31/01/2013 - ","Edition ",209]
["QUOTIDIEN DU MÉDECIN","Presse et média ","MYLAN SAS","31/01/2013","31/01/2013 - ","Edition ",70]
["QUOTIDIEN DU MÉDECIN","Presse et média ","MYLAN SAS","05/02/2013","05/02/2013 - ","Edition ",139]
["QUOTIDIEN DU MÉDECIN","Presse et média ","AbbVie","07/02/2013","07/02/2013 - ","Autre : AUTRE : [MANIFESTATION] "]
["QUOTIDIEN DU MÉDECIN","Presse et média ","AbbVie","07/02/2013","07/02/2013 - ","Autre : AUTRE : [MANIFESTATION] "]
["QUOTIDIEN DU MÉDECIN","Presse et média ","AbbVie","07/02/2013","07/02/2013 - ","Autre : AUTRE : [MANIFESTATION] "]
["QUOTIDIEN DU MÉDECIN","Presse et média ","AbbVie","07/02/2013","07/02/2013 - ","Autre : AUTRE : [MANIFESTATION] "]
["QUOTIDIEN DU MÉDECIN","Presse et média ","AbbVie","07/02/2013","07/02/2013 - ","Autre : AUTRE : [MANIFESTATION] "]
["QUOTIDIEN DU MÉDECIN","Presse et média ","MYLAN SAS","11/02/2013","11/02/2013 - ","Edition ",70]
["QUOTIDIEN DU MÉDECIN","Presse et média ","MYLAN SAS","11/02/2013","11/02/2013 - ","Edition ",278]
["QUOTIDIEN DU MÉDECIN","Presse et média ","MYLAN SAS","11/02/2013","11/02/2013 - ","Edition ",70]
["QUOTIDIEN DU MÉDECIN","Presse et média ","AbbVie","12/02/2013","12/02/2013 - ","Autre : AUTRE : [MANIFESTATION] "]
["QUOTIDIEN DU MÉDECIN","Presse et média ","AbbVie","12/02/2013","12/02/2013 - ","Autre : AUTRE : [MANIFESTATION] "]
["QUOTIDIEN DU MÉDECIN","Presse et média ","AbbVie","13/02/2013","13/02/2013 - ","Autre : AUTRE : [MANIFESTATION] "]
["QUOTIDIEN DU MÉDECIN","Presse et média ","AbbVie","13/02/2013","13/02/2013 - ","Autre : AUTRE : [MANIFESTATION] "]
["QUOTIDIEN DU MÉDECIN","Presse et média ","AbbVie","19/02/2013","19/02/2013 - ","Autre : AUTRE : [MANIFESTATION] "]
["QUOTIDIEN DU MÉDECIN","Presse et média ","AbbVie","19/02/2013","19/02/2013 - ","Autre : AUTRE : [MANIFESTATION] "]
["QUOTIDIEN DU MÉDECIN","Presse et média ","AbbVie","19/02/2013","19/02/2013 - ","Autre : AUTRE : [MANIFESTATION] "]
["QUOTIDIEN DU MÉDECIN","Presse et média ","AbbVie","19/02/2013","19/02/2013 - ","Autre : AUTRE : [MANIFESTATION]"]
["QUOTIDIEN DU MÉDECIN","Presse et média ","AbbVie","20/02/2013","20/02/2013 - ","Autre : AUTRE : [MANIFESTATION] "]
["QUOTIDIEN DU MÉDECIN","Presse et média ","AbbVie","20/02/2013","20/02/2013 - ","Autre : AUTRE : [MANIFESTATION] "]
["QUOTIDIEN DU MÉDECIN","Presse et média ","AbbVie","21/02/2013","21/02/2013 - ","Autre : AUTRE : [MANIFESTATION] "]
["QUOTIDIEN DU MÉDECIN","Presse et média ","AbbVie","21/02/2013","21/02/2013 - ","Autre : AUTRE : [MANIFESTATION] "]
["QUOTIDIEN DU MÉDECIN","Presse et média ","MYLAN SAS","25/02/2013","25/02/2013 - ","Edition ",139]
["QUOTIDIEN DU MÉDECIN","Presse et média ","AbbVie","28/02/2013","28/02/2013 - ","Autre : AUTRE : [MANIFESTATION] "]
["QUOTIDIEN DU MÉDECIN","Presse et média ","AbbVie","28/02/2013","28/02/2013 - ","Autre : AUTRE : [MANIFESTATION] "]
["QUOTIDIEN DU MÉDECIN","Presse et média ","AbbVie","28/02/2013","28/02/2013 - ","Autre : AUTRE : [MANIFESTATION] "]
["QUOTIDIEN DU MÉDECIN","Presse et média ","MYLAN SAS","01/03/2013","01/03/2013 - ","Edition ",139]
["QUOTIDIEN DU MÉDECIN","Presse et média ","MYLAN SAS","04/03/2013","04/03/2013 - ","Edition ",487]
["QUOTIDIEN DU MÉDECIN","Presse et média ","AbbVie","05/03/2013","05/03/2013 - ","Autre : AUTRE : [MANIFESTATION] "]
["QUOTIDIEN DU MÉDECIN","Presse et média ","AbbVie","07/03/2013","07/03/2013 - ","Autre : AUTRE : [MANIFESTATION] "]
["QUOTIDIEN DU MÉDECIN","Presse et média ","AbbVie","07/03/2013","07/03/2013 - ","Autre : AUTRE : [MANIFESTATION] "]
["QUOTIDIEN DU MÉDECIN","Presse et média ","AbbVie","07/03/2013","07/03/2013 - ","Autre : AUTRE : [MANIFESTATION] "]
["QUOTIDIEN DU MÉDECIN","Presse et média ","AbbVie","07/03/2013","07/03/2013 - ","Autre : AUTRE : [MANIFESTATION] "]
["QUOTIDIEN DU MÉDECIN","Presse et média ","AbbVie","07/03/2013","07/03/2013 - ","Autre : AUTRE : [MANIFESTATION] "]
["QUOTIDIEN DU MÉDECIN","Presse et média ","AbbVie","12/03/2013","12/03/2013 - ","Autre : AUTRE : [MANIFESTATION] "]
["QUOTIDIEN DU MÉDECIN","Presse et média ","AbbVie","14/03/2013","14/03/2013 - ","Autre : AUTRE : [MANIFESTATION] "]
["QUOTIDIEN DU MÉDECIN","Presse et média ","AbbVie","14/03/2013","14/03/2013 - ","Autre : AUTRE : [MANIFESTATION] "]
["QUOTIDIEN DU MÉDECIN","Presse et média ","AbbVie","14/03/2013","14/03/2013 - ","Autre : AUTRE : [MANIFESTATION]"]
["QUOTIDIEN DU MÉDECIN","Presse et média ","AbbVie","19/03/2013","19/03/2013 - ","Autre : AUTRE : [MANIFESTATION] "]
["QUOTIDIEN DU MÉDECIN","Presse et média ","AbbVie","19/03/2013","19/03/2013 - ","Autre : AUTRE : [MANIFESTATION] "]
["QUOTIDIEN DU MÉDECIN","Presse et média ","AbbVie","19/03/2013","19/03/2013 - ","Autre : AUTRE : [MANIFESTATION] "]
["QUOTIDIEN DU MÉDECIN","Presse et média ","AbbVie","19/03/2013","19/03/2013 - ","Autre : AUTRE : [MANIFESTATION] "]
["QUOTIDIEN DU MÉDECIN","Presse et média ","AbbVie","20/03/2013","20/03/2013 - ","Autre : AUTRE : [MANIFESTATION] "]
["QUOTIDIEN DU MÉDECIN","Presse et média ","AbbVie","21/03/2013","21/03/2013 - ","Autre : AUTRE : [MANIFESTATION] "]
["QUOTIDIEN DU MÉDECIN","Presse et média ","AbbVie","21/03/2013","21/03/2013 - ","Autre : AUTRE : [MANIFESTATION] "]
["QUOTIDIEN DU MÉDECIN","Presse et média ","AbbVie","21/03/2013","21/03/2013 - ","Autre : AUTRE : [MANIFESTATION] "]
["QUOTIDIEN DU MÉDECIN","Presse et média ","MYLAN SAS","21/03/2013","21/03/2013 - ","Edition ",348]
["QUOTIDIEN DU MÉDECIN","Presse et média ","AbbVie","28/03/2013","28/03/2013 - ","Autre : AUTRE : [MANIFESTATION] "]
["QUOTIDIEN DU MÉDECIN","Presse et média ","AbbVie","28/03/2013","28/03/2013 - ","Autre : AUTRE : [MANIFESTATION] "]
["QUOTIDIEN DU MÉDECIN","Presse et média ","AbbVie","28/03/2013","28/03/2013 - ","Autre : AUTRE : [MANIFESTATION] "]
["QUOTIDIEN DU MÉDECIN","Presse et média ","MYLAN SAS","29/03/2013","29/03/2013 - ","Edition ",209]
["QUOTIDIEN DU MÉDECIN","Presse et média ","AbbVie","02/04/2013","02/04/2013 - ","Autre : AUTRE : [MANIFESTATION] "]
["QUOTIDIEN DU MÉDECIN","Presse et média ","AbbVie","02/04/2013","02/04/2013 - ","Autre : AUTRE : [MANIFESTATION] "]
["QUOTIDIEN DU MÉDECIN","Presse et média ","AbbVie","03/04/2013","03/04/2013 - ","Autre : AUTRE : [MANIFESTATION] "]
["QUOTIDIEN DU MÉDECIN","Presse et média ","AbbVie","03/04/2013","03/04/2013 - ","Autre : AUTRE : [MANIFESTATION] "]
["QUOTIDIEN DU MÉDECIN","Presse et média ","AbbVie","03/04/2013","03/04/2013 - ","Autre : AUTRE : [MANIFESTATION] "]
["QUOTIDIEN DU MÉDECIN","Presse et média ","AbbVie","04/04/2013","04/04/2013 - ","Autre : AUTRE : [MANIFESTATION] "]
["QUOTIDIEN DU MÉDECIN","Presse et média ","MYLAN SAS","08/04/2013","08/04/2013 - ","Edition",348]
["QUOTIDIEN DU MÉDECIN","Presse et média ","AbbVie","09/04/2013","09/04/2013 - ","Autre : AUTRE : [MANIFESTATION] "]
["QUOTIDIEN DU MÉDECIN","Presse et média ","AbbVie","09/04/2013","09/04/2013 - ","Autre : AUTRE : [MANIFESTATION] "]
["QUOTIDIEN DU MÉDECIN","Presse et média ","AbbVie","09/04/2013","09/04/2013 - ","Autre : AUTRE : [MANIFESTATION] "]
["QUOTIDIEN DU MÉDECIN","Presse et média ","AbbVie","09/04/2013","09/04/2013 - ","Autre : AUTRE : [MANIFESTATION] "]
["QUOTIDIEN DU MÉDECIN","Presse et média ","AbbVie","10/04/2013","10/04/2013 - ","Autre : AUTRE : [MANIFESTATION] "]
["QUOTIDIEN DU MÉDECIN","Presse et média ","AbbVie","11/04/2013","11/04/2013 - ","Autre : AUTRE : [MANIFESTATION] "]
["QUOTIDIEN DU MÉDECIN","Presse et média ","AbbVie","11/04/2013","11/04/2013 - ","Autre : AUTRE : [MANIFESTATION] "]
["QUOTIDIEN DU MÉDECIN","Presse et média ","AbbVie","11/04/2013","11/04/2013 - ","Autre : AUTRE : [MANIFESTATION] "]
["QUOTIDIEN DU MÉDECIN","Presse et média ","AbbVie","11/04/2013","11/04/2013 - ","Autre : AUTRE : [MANIFESTATION] "]
["QUOTIDIEN DU MÉDECIN","Presse et média ","AbbVie","11/04/2013","11/04/2013 - ","Autre : AUTRE : [MANIFESTATION] "]
["QUOTIDIEN DU MÉDECIN","Presse et média ","MYLAN SAS","15/04/2013","15/04/2013 - ","Edition ",417]
["QUOTIDIEN DU MÉDECIN","Presse et média ","AbbVie","16/04/2013","16/04/2013 - ","Autre : AUTRE : [MANIFESTATION] "]
["QUOTIDIEN DU MÉDECIN","Presse et média ","AbbVie","16/04/2013","16/04/2013 - ","Autre : AUTRE : [MANIFESTATION] "]
["QUOTIDIEN DU MÉDECIN","Presse et média ","AbbVie","16/04/2013","16/04/2013 - ","Autre : AUTRE : [MANIFESTATION] "]
["QUOTIDIEN DU MÉDECIN","Presse et média ","AbbVie","16/04/2013","16/04/2013 - ","Autre : AUTRE : [MANIFESTATION] "]
["QUOTIDIEN DU MÉDECIN","Presse et média ","AbbVie","17/04/2013","17/04/2013 - ","Autre : AUTRE : [MANIFESTATION] "]
["QUOTIDIEN DU MÉDECIN","Presse et média ","AbbVie","17/04/2013","17/04/2013 - ","Autre : AUTRE : [MANIFESTATION] "]
["QUOTIDIEN DU MÉDECIN","Presse et média ","AbbVie","18/04/2013","18/04/2013 - ","Autre : AUTRE : [MANIFESTATION] "]
["QUOTIDIEN DU MÉDECIN","Presse et média ","AbbVie","18/04/2013","18/04/2013 - ","Autre : AUTRE : [MANIFESTATION] "]
["QUOTIDIEN DU MÉDECIN","Presse et média ","AbbVie","18/04/2013","18/04/2013 - ","Autre : AUTRE : [MANIFESTATION]"]
["QUOTIDIEN DU MÉDECIN","Presse et média ","MYLAN SAS","22/04/2013","22/04/2013 - ","Edition ",70]
["QUOTIDIEN DU MÉDECIN","Presse et média ","MYLAN SAS","22/04/2013","22/04/2013 - ","Edition ",139]
["QUOTIDIEN DU MÉDECIN","Presse et média ","AbbVie","23/04/2013","23/04/2013 - ","Autre : AUTRE : [MANIFESTATION] "]
["QUOTIDIEN DU MÉDECIN","Presse et média ","AbbVie","25/04/2013","25/04/2013 - ","Autre : AUTRE : [MANIFESTATION] "]
["QUOTIDIEN DU MÉDECIN","Presse et média ","AbbVie","14/05/2013","14/05/2013 - ","Autre : AUTRE : [MANIFESTATION] "]
["QUOTIDIEN DU MÉDECIN","Presse et média ","AbbVie","14/05/2013","14/05/2013 - ","Autre : AUTRE : [MANIFESTATION] "]
["QUOTIDIEN DU MÉDECIN","Presse et média ","AbbVie","14/05/2013","14/05/2013 - ","Autre : AUTRE : [MANIFESTATION] "]
["QUOTIDIEN DU MÉDECIN","Presse et média ","AbbVie","14/05/2013","14/05/2013 - ","Autre : AUTRE : [MANIFESTATION] "]
["QUOTIDIEN DU PHARMACIEN","Presse et média ","MYLAN SAS","14/05/2013","14/05/2013 - ","Edition ",7176]
["QUOTIDIEN DU MÉDECIN","Presse et média ","AbbVie","15/05/2013","15/05/2013 - ","Autre : AUTRE : [MANIFESTATION] "]
["QUOTIDIEN DU MÉDECIN","Presse et média ","AbbVie","16/05/2013","16/05/2013 - ","Autre : AUTRE : [MANIFESTATION] "]
["QUOTIDIEN DU PHARMACIEN","Presse et média ","MYLAN SAS","27/05/2013","27/05/2013 - ","Edition ",48410]
["QUOTIDIEN DU MÉDECIN","Presse et média ","AbbVie","28/05/2013","28/05/2013 - ","Autre : AUTRE : [MANIFESTATION] "]
["QUOTIDIEN DU MÉDECIN","Presse et média ","AbbVie","28/05/2013","28/05/2013 - ","Autre : AUTRE : [MANIFESTATION] "]
["QUOTIDIEN DU MÉDECIN","Presse et média ","AbbVie","28/05/2013","28/05/2013 - ","Autre : AUTRE : [MANIFESTATION] "]
["QUOTIDIEN DU MÉDECIN","Presse et média ","MYLAN SAS","29/05/2013","29/05/2013 - ","Edition ",70]
["QUOTIDIEN DU MÉDECIN","Presse et média ","MYLAN SAS","29/05/2013","29/05/2013 - ","Edition ",70]
["QUOTIDIEN DU MÉDECIN","Presse et média ","MYLAN SAS","29/05/2013","29/05/2013 - ","Edition ",139]
["QUOTIDIEN DU MÉDECIN","Presse et média ","MYLAN SAS","29/05/2013","29/05/2013 - ","Edition ",70]
["QUOTIDIEN DU MÉDECIN","Presse et média ","MYLAN SAS","29/05/2013","29/05/2013 - ","Edition",139]
["QUOTIDIEN DU MÉDECIN","Presse et média ","AbbVie","30/05/2013","30/05/2013 - ","Autre : AUTRE : [MANIFESTATION] "]
["QUOTIDIEN DU MÉDECIN","Presse et média ","AbbVie","30/05/2013","30/05/2013 - ","Autre : AUTRE : [MANIFESTATION] "]
["QUOTIDIEN DU MÉDECIN","Presse et média ","AbbVie","30/05/2013","30/05/2013 - ","Autre : AUTRE : [MANIFESTATION] "]
["QUOTIDIEN DU MÉDECIN","Presse et média ","AbbVie","30/05/2013","30/05/2013 - ","Autre : AUTRE : [MANIFESTATION] "]
["QUOTIDIEN DU MÉDECIN","Presse et média ","MYLAN SAS","30/05/2013","30/05/2013 - ","Edition ",70]
["QUOTIDIEN DU MÉDECIN","Presse et média ","SANOFI PASTEUR MSD SNC","31/05/2013","31/05/2013 - ","Autre : Conseil "]
["QUOTIDIEN DU MÉDECIN","Presse et média ","AbbVie","04/06/2013","04/06/2013 - ","Autre : AUTRE : [MANIFESTATION] "]
["QUOTIDIEN DU MÉDECIN","Presse et média ","MYLAN SAS","04/06/2013","04/06/2013 - ","Edition ",139]
["QUOTIDIEN DU MÉDECIN","Presse et média ","AbbVie","05/06/2013","05/06/2013 - ","Autre : AUTRE : [MANIFESTATION] "]
["QUOTIDIEN DU MÉDECIN","Presse et média ","AbbVie","05/06/2013","05/06/2013 - ","Autre : AUTRE : [MANIFESTATION] "]
["QUOTIDIEN DU MÉDECIN","Presse et média ","AbbVie","05/06/2013","05/06/2013 - ","Autre : AUTRE : [MANIFESTATION] "]
["QUOTIDIEN DU MÉDECIN","Presse et média ","AbbVie","05/06/2013","05/06/2013 - ","Autre : AUTRE : [MANIFESTATION] "]
["QUOTIDIEN DU MÉDECIN","Presse et média ","AbbVie","06/06/2013","06/06/2013 - ","Autre : AUTRE : [MANIFESTATION] "]
["QUOTIDIEN DU MÉDECIN","Presse et média ","AbbVie","06/06/2013","06/06/2013 - ","Autre : AUTRE : [MANIFESTATION] "]
["QUOTIDIEN DU MÉDECIN","Presse et média ","AbbVie","06/06/2013","06/06/2013 - ","Autre : AUTRE : [MANIFESTATION] "]
["QUOTIDIEN DU MÉDECIN","Presse et média ","AbbVie","06/06/2013","06/06/2013 - ","Autre : AUTRE : [MANIFESTATION] "]
["QUOTIDIEN DU MÉDECIN","Presse et média ","AbbVie","06/06/2013","06/06/2013 - ","Autre : AUTRE : [MANIFESTATION] "]
["QUOTIDIEN DU MÉDECIN","Presse et média ","AbbVie","06/06/2013","06/06/2013 - ","Autre : AUTRE : [MANIFESTATION] "]
["QUOTIDIEN DU MÉDECIN","Presse et média ","AbbVie","06/06/2013","06/06/2013 - ","Autre : AUTRE : [MANIFESTATION] "]
["QUOTIDIEN DU MÉDECIN","Presse et média ","MYLAN SAS","07/06/2013","07/06/2013 - ","Edition",70]
["QUOTIDIEN DU MÉDECIN","Presse et média ","MYLAN SAS","07/06/2013","07/06/2013 - ","Edition ",139]
["QUOTIDIEN DU MÉDECIN","Presse et média ","AbbVie","11/06/2013","11/06/2013 - ","Autre : AUTRE : [MANIFESTATION] "]
["QUOTIDIEN DU MÉDECIN","Presse et média ","AbbVie","11/06/2013","11/06/2013 - ","Autre : AUTRE : [MANIFESTATION] "]
["QUOTIDIEN DU MÉDECIN","Presse et média ","AbbVie","11/06/2013","11/06/2013 - ","Autre : AUTRE : [MANIFESTATION] "]
["QUOTIDIEN DU MÉDECIN","Presse et média ","AbbVie","13/06/2013","13/06/2013 - ","Autre : AUTRE : [MANIFESTATION] "]
["QUOTIDIEN DU MÉDECIN","Presse et média ","AbbVie","13/06/2013","13/06/2013 - ","Autre : AUTRE : [MANIFESTATION] "]
["QUOTIDIEN DU MÉDECIN","Presse et média ","AbbVie","13/06/2013","13/06/2013 - ","Autre : AUTRE : [MANIFESTATION] "]
["QUOTIDIEN DU MÉDECIN","Presse et média ","MYLAN SAS","13/06/2013","13/06/2013 - ","Edition ",70]
["QUOTIDIEN DU MÉDECIN","Presse et média ","AbbVie","18/06/2013","18/06/2013 - ","Autre : AUTRE : [MANIFESTATION] "]
["QUOTIDIEN DU MÉDECIN","Presse et média ","AbbVie","18/06/2013","18/06/2013 - ","Autre : AUTRE : [MANIFESTATION] "]
["QUOTIDIEN DU MÉDECIN","Presse et média ","AbbVie","18/06/2013","18/06/2013 - ","Autre : AUTRE : [MANIFESTATION] "]
["QUOTIDIEN DU MÉDECIN","Presse et média ","AbbVie","18/06/2013","18/06/2013 - ","Autre : AUTRE : [MANIFESTATION] "]
["QUOTIDIEN DU MÉDECIN","Presse et média ","AbbVie","19/06/2013","19/06/2013 - ","Autre : AUTRE : [MANIFESTATION] "]
["QUOTIDIEN DU MÉDECIN","Presse et média ","AbbVie","19/06/2013","19/06/2013 - ","Autre : AUTRE : [MANIFESTATION] "]
["QUOTIDIEN DU MÉDECIN","Presse et média ","AbbVie","20/06/2013","20/06/2013 - ","Autre : AUTRE : [MANIFESTATION] "]
["QUOTIDIEN DU MÉDECIN","Presse et média ","AbbVie","20/06/2013","20/06/2013 - ","Autre : AUTRE : [MANIFESTATION] "]
["QUOTIDIEN DU MÉDECIN","Presse et média ","AbbVie","20/06/2013","20/06/2013 - ","Autre : AUTRE : [MANIFESTATION] "]
["QUOTIDIEN DU MÉDECIN","Presse et média ","AbbVie","20/06/2013","20/06/2013 - ","Autre : AUTRE : [MANIFESTATION] "]
["QUOTIDIEN DU MÉDECIN","Presse et média ","MYLAN SAS","24/06/2013","24/06/2013 - ","Edition ",70]
["QUOTIDIEN DU MÉDECIN","Presse et média ","AbbVie","25/06/2013","25/06/2013 - ","Autre : AUTRE : [MANIFESTATION]"]
["QUOTIDIEN DU MÉDECIN","Presse et média ","MYLAN SAS","26/06/2013","26/06/2013 - ","Edition ",626]
["QUOTIDIEN DU MÉDECIN","Presse et média ","MYLAN SAS","26/06/2013","26/06/2013 - ","Edition ",139]
["QUOTIDIEN DU MÉDECIN","Presse et média ","AbbVie","27/06/2013","27/06/2013 - ","Autre : AUTRE : [MANIFESTATION] "]
["QUOTIDIEN DU MÉDECIN","Presse et média ","AbbVie","27/06/2013","27/06/2013 - ","Autre : AUTRE : [MANIFESTATION] "]
["QUOTIDIEN DU MÉDECIN","Presse et média ","AbbVie","27/06/2013","27/06/2013 - ","Autre : AUTRE : [MANIFESTATION] "]
["QUOTIDIEN DU PHARMACIEN","Presse et média ","MYLAN SAS","27/06/2013","27/06/2013 - ","Edition ",79531]
["QUOTIDIEN DU PHARMACIEN","Presse et média ","MYLAN SAS","27/06/2013","27/06/2013 - ","Edition ",79531]
["QUOTIDIEN DU PHARMACIEN","Presse et média ","MYLAN SAS","27/06/2013","27/06/2013 - ","Edition ",77802]
["QUOTIDIEN DU PHARMACIEN","Presse et média ","MYLAN SAS","27/06/2013","27/06/2013 - ","Edition ",74344]
["QUOTIDIEN DU PHARMACIEN","Presse et média ","MYLAN SAS","27/06/2013","27/06/2013 - ","Edition ",5815]
["QUOTIDIEN DU PHARMACIEN","Presse et média ","MYLAN SAS","27/06/2013","27/06/2013 - ","Edition ",610]
["QUOTIDIEN DU PHARMACIEN","Presse et média ","MYLAN SAS","27/06/2013","27/06/2013 - ","Edition ",77802]
["QUOTIDIEN DU PHARMACIEN","Presse et média ","MYLAN SAS","27/06/2013","27/06/2013 - ","Edition ",10319]
["QUOTIDIEN DU PHARMACIEN","Presse et média ","SANDOZ","01/07/2013","01/07/2013 - 31/12/2013 ","Edition "]
["QUOTIDIEN DU MÉDECIN","Presse et média ","MYLAN SAS","02/07/2013","02/07/2013 - ","Edition ",70]
["SESC","Presse et média ","LABORATOIRES JUVISE PHARMACEUTICALS","04/07/2013","04/07/2013 - ","Autre : PUBLICITE "]
["DÉCISION & STRATÉGIE SANTÉ","Personnes morales assurant la formation initiale ou continue des professionnels de santé ","GILEAD SCIENCES","08/07/2013","15/07/2013 - ","Autre : Prestation de service "]
["QUOTIDIEN DU MÉDECIN","Presse et média ","MYLAN SAS","08/07/2013","08/07/2013 - ","Edition ",139]
["QUOTIDIEN DU MÉDECIN","Presse et média ","MYLAN SAS","09/07/2013","09/07/2013 - ","Edition ",209]
["SESC","Académies, Fondation, sociétés savantes, organismes de conseils ","AbbVie","10/07/2013","10/07/2013 - ","Autre : CONSEIL"]
["QUOTIDIEN DU PHARMACIEN","Presse et média ","MYLAN SAS","11/07/2013","11/07/2013 - ","Edition ",2580]
["QUOTIDIEN DU PHARMACIEN","Presse et média ","MYLAN SAS","11/07/2013","11/07/2013 - ","Edition ",12103]
["QUOTIDIEN DU MÉDECIN","Presse et média ","BIOCODEX","15/07/2013","15/07/2013 - 05/12/2013 ","Autre : PUBLICITE "]
["QUOTIDIEN DU PHARMACIEN","Presse et média ","MYLAN SAS","17/07/2013","17/07/2013 - ","Edition ",8905]
["SESC","Presse et média ","LABORATOIRES JUVISE PHARMACEUTICALS","18/07/2013","18/07/2013 - ","Autre : PUBLICITE "]
["QUOTIDIEN DU PHARMACIEN","Presse et média ","IPSEN PHARMA","19/07/2013","02/09/2013 - 02/09/2013 ","Edition "]
["SESC","Académies, Fondation, sociétés savantes, organismes de conseils ","AbbVie","25/07/2013","25/07/2013 - ","Autre : CONSEIL "]
["QUOTIDIEN DU MÉDECIN","Presse et média ","MYLAN SAS","01/08/2013","01/08/2013 - ","Edition ",70]
["QUOTIDIEN DU MÉDECIN","Presse et média ","MYLAN SAS","01/08/2013","01/08/2013 - ","Edition ",70]
["QUOTIDIEN DU PHARMACIEN","Presse et média ","MYLAN SAS","27/08/2013","27/08/2013 - ","Edition ",1601]
["QUOTIDIEN DU PHARMACIEN","Presse et média ","MYLAN SAS","30/08/2013","30/08/2013 - ","Edition ",1996]
["QUOTIDIEN DU PHARMACIEN","Presse et média ","RANBAXY PHARMACIE GENERIQUES","02/09/2013","02/09/2013 - 31/12/2013 ","Achat / location d'espace publicitaire "]
["SESC","Presse et média ","ROCHE DIAGNOSTICS FRANCE","16/09/2013","16/09/2013 - ","Autre : PUBLICITE "]
["DÉCISION & STRATÉGIE SANTÉ","Presse et média ","B.BRAUN MEDICAL SAS","19/09/2013","19/09/2013 - ","Autre : AUTRE : [PRESTATIONS DE SERVICES] "]
["QUOTIDIEN DU PHARMACIEN","Presse et média ","BIOCODEX","25/09/2013","25/09/2013 - 25/09/2013 ","Autre : PUBLICITE "]
["DÉCISION & STRATÉGIE SANTÉ","Presse et média ","ROCHE SAS","30/09/2013","30/09/2013 - ","Edition "]
["QUOTIDIEN DU PHARMACIEN","Presse et média ","MYLAN SAS","30/09/2013","30/09/2013 - ","Edition "]
["QUOTIDIEN DU PHARMACIEN","Presse et média ","MYLAN SAS","30/09/2013","30/09/2013 - ","Edition ",12103]
["QUOTIDIEN DU PHARMACIEN","Presse et média ","MYLAN SAS","30/09/2013","30/09/2013 - ","Edition",3444]
["QUOTIDIEN DU PHARMACIEN","Presse et média ","MYLAN SAS","30/09/2013","30/09/2013 - ","Edition ",5160]
["QUOTIDIEN DU PHARMACIEN","Presse et média ","MYLAN SAS","30/09/2013","30/09/2013 - ","Edition ",38037]
["QUOTIDIEN DU PHARMACIEN","Presse et média ","MYLAN SAS","30/09/2013","30/09/2013 - ","Edition ",12103]
["SESC","Presse et média ","ROCHE DIAGNOSTICS FRANCE","30/09/2013","30/09/2013 - ","Autre : PUBLICITE "]
["DÉCISION & STRATÉGIE SANTÉ","Personnes morales assurant la formation initiale ou continue des professionnels de santé ","EISAI SAS","01/10/2013","06/11/2013 - 08/11/2013 ","Autre : EDITION / INSERTION "]
["QUOTIDIEN DU PHARMACIEN","Presse et média ","MYLAN SAS","03/10/2013","03/10/2013 - ","Edition ",3458]
["QUOTIDIEN DU PHARMACIEN","Presse et média ","MYLAN SAS","04/10/2013","04/10/2013 - ","Edition ",456]
["QUOTIDIEN DU PHARMACIEN","Presse et média ","MYLAN SAS","04/10/2013","04/10/2013 - ","Edition ",120]
["QUOTIDIEN DU PHARMACIEN","Presse et média ","MYLAN SAS","04/10/2013","04/10/2013 - ","Edition ",376]
["QUOTIDIEN DU MÉDECIN","Presse et média ","MYLAN SAS","07/10/2013","07/10/2013 - ","Edition ",209]
["QUOTIDIEN DU MÉDECIN","Presse et média ","MYLAN SAS","07/10/2013","07/10/2013 - ","Edition ",70]
["QUOTIDIEN DU MÉDECIN","Presse et média ","MYLAN SAS","07/10/2013","07/10/2013 - ","Edition ",70]
["QUOTIDIEN DU MÉDECIN","Presse et média ","MYLAN SAS","07/10/2013","07/10/2013 - ","Edition ",70]
["QUOTIDIEN DU MÉDECIN","Presse et média ","MYLAN SAS","07/10/2013","07/10/2013 - ","Edition ",70]
["QUOTIDIEN DU MÉDECIN","Presse et média ","MYLAN SAS","07/10/2013","07/10/2013 - ","Edition ",70]
["QUOTIDIEN DU MÉDECIN","Presse et média ","LES LABORATOIRES SERVIER","10/10/2013","10/10/2013 - ","Edition "]
["QUOTIDIEN DU MÉDECIN","Presse et média ","MYLAN SAS","15/10/2013","15/10/2013 - ","Edition ",70]
["QUOTIDIEN DU MÉDECIN","Presse et média ","MYLAN SAS","16/10/2013","16/10/2013 - ","Edition ",209]
["QUOTIDIEN DU MÉDECIN","Presse et média ","MYLAN SAS","16/10/2013","16/10/2013 - ","Edition ",626]
["SESC","Presse et média ","ROCHE DIAGNOSTICS FRANCE","17/10/2013","17/10/2013 - ","Autre : PUBLICITE "]
["QUOTIDIEN DU PHARMACIEN","Presse et média ","MYLAN SAS","31/10/2013","31/10/2013 - ","Edition",4793]
["QUOTIDIEN DU PHARMACIEN","Presse et média ","MYLAN SAS","31/10/2013","31/10/2013 - ","Edition ",3064]
["QUOTIDIEN DU PHARMACIEN","Presse et média ","MYLAN SAS","31/10/2013","31/10/2013 - ","Edition ",9109]
["QUOTIDIEN DU PHARMACIEN","Presse et média ","MYLAN SAS","31/10/2013","31/10/2013 - ","Edition ",10374]
["QUOTIDIEN DU PHARMACIEN","Presse et média ","MYLAN SAS","31/10/2013","31/10/2013 - ","Edition ",1466]
["QUOTIDIEN DU PHARMACIEN","Presse et média ","MYLAN SAS","31/10/2013","31/10/2013 - ","Edition ",3458]
["QUOTIDIEN DU PHARMACIEN","Presse et média ","MYLAN SAS","31/10/2013","31/10/2013 - ","Edition ",1729]
["QUOTIDIEN DU PHARMACIEN","Presse et média ","MYLAN SAS","31/10/2013","31/10/2013 - ","Edition ",4793]
["QUOTIDIEN DU PHARMACIEN","Presse et média ","MYLAN SAS","31/10/2013","31/10/2013 - ","Edition ",12103]
["QUOTIDIEN DU PHARMACIEN","Presse et média ","MYLAN SAS","31/10/2013","31/10/2013 - ","Edition ",647]
["QUOTIDIEN DU PHARMACIEN","Presse et média ","MYLAN SAS","31/10/2013","31/10/2013 - ","Edition ",3444]
["QUOTIDIEN DU PHARMACIEN","Presse et média ","MYLAN SAS","31/10/2013","31/10/2013 - ","Edition ",1150]
["QUOTIDIEN DU MÉDECIN","Presse et média ","PHADIA SAS","01/11/2013","01/11/2013 - ","Edition "]
["QUOTIDIEN DU MÉDECIN","Presse et média ","MYLAN SAS","04/11/2013","04/11/2013 - ","Edition ",70]
["DÉCISION & STRATÉGIE SANTÉ","Académies, Fondation, sociétés savantes, organismes de conseils ","GE Medical Systems SCS","06/11/2013","06/11/2013 - ","Autre : Marketing et Parrainage "]
["DÉCISION & STRATÉGIE SANTÉ","Personnes morales assurant la formation initiale ou continue des professionnels de santé ","BOEHRINGER INGELHEIM FRANCE","06/11/2013","06/11/2013 - ","Autre : CONGRES / SYMPOSIUM "]
["QUOTIDIEN DU MÉDECIN","Presse et média ","MYLAN SAS","13/11/2013","13/11/2013 - ","Edition ",765]
["QUOTIDIEN DU PHARMACIEN","Etablissement de santé ","IPSEN PHARMA","15/11/2013","08/11/2013 - 18/11/2013 ","Autre : MARKETING "]
["QUOTIDIEN DU MÉDECIN","Presse et média ","IPSEN INNOVATION","18/11/2013","01/01/2014 - 31/12/2014 ","Edition "]
["QUOTIDIEN DU MÉDECIN","Presse et média ","MYLAN SAS","21/11/2013","21/11/2013 - ","Edition ",70]
["QUOTIDIEN DU MÉDECIN","Presse et média ","AbbVie","25/11/2013","25/11/2013 - ","Edition"]
["QUOTIDIEN DU MÉDECIN","Presse et média ","MYLAN SAS","27/11/2013","27/11/2013 - ","Edition ",139]
["QUOTIDIEN DU MÉDECIN","Presse et média ","MYLAN SAS","27/11/2013","27/11/2013 - ","Edition ",139]
["QUOTIDIEN DU MÉDECIN","Presse et média ","MYLAN SAS","27/11/2013","27/11/2013 - ","Edition ",70]
["QUOTIDIEN DU MÉDECIN","Presse et média ","MYLAN SAS","27/11/2013","27/11/2013 - ","Edition ",70]
["QUOTIDIEN DU MÉDECIN","Presse et média ","MYLAN SAS","27/11/2013","27/11/2013 - ","Edition ",139]
["QUOTIDIEN DU PHARMACIEN","Presse et média ","PIERRE FABRE MEDICAMENT","29/11/2013","29/11/2013 - ","Autre : Convention avec PDS ou prestataire intervenant dans domaine santé "]
["QUOTIDIEN DU MÉDECIN","Presse et média ","PHADIA SAS","01/12/2013","01/12/2013 - ","Edition "]
["QUOTIDIEN DU MÉDECIN","Presse et média ","BAYER SANTE FAMILIALE","06/12/2013","06/12/2013 - 30/11/2014 ","Edition "]
["DÉCISION & STRATÉGIE SANTÉ","Personnes morales assurant la formation initiale ou continue des professionnels de santé ","GILEAD SCIENCES","11/12/2013","12/12/2013 - ","Autre : Prestation de service "]
["DÉCISION & STRATÉGIE SANTÉ","Personnes morales assurant la formation initiale ou continue des professionnels de santé ","GILEAD SCIENCES","13/12/2013","13/12/2013 - ","Autre : Prestation de service "]
["QUOTIDIEN DU PHARMACIEN","Presse et média ","BAYER SANTE FAMILIALE","13/12/2013","13/12/2013 - 30/11/2014 ","Edition "]
["QUOTIDIEN DU PHARMACIEN","Presse et média ","Laboratoires Bailleul","16/12/2013","01/04/2014 - ","Autre : Publicité "]
["SESC","Presse et média ","LABORATOIRES JUVISE PHARMACEUTICALS","19/12/2013","19/12/2013 - ","Autre : PUBLICITE "]
["QUOTIDIEN DU PHARMACIEN","Etablissement de santé ","IPSEN PHARMA","31/12/2013","17/09/2013 - 31/10/2013 ","Autre : MARKETING "]
["QUOTIDIEN DU MÉDECIN","Presse et média ","LES LABORATOIRES SERVIER","01/01/2014","01/01/2014 - ","Autre : Publicité "]
["QUOTIDIEN DU PHARMACIEN","Presse et média ","RANBAXY PHARMACIE GENERIQUES","02/01/2014","02/01/2014 - 31/03/2014 ","Achat / location d'espace publicitaire "]
["QUOTIDIEN DU PHARMACIEN","Presse et média ","BIOCODEX","09/01/2014","09/01/2014 - 09/01/2014 ","Edition "]
["QUOTIDIEN DU PHARMACIEN","Presse et média ","MYLAN SAS","09/01/2014","09/01/2014 - ","Edition ",21840]
["QUOTIDIEN DU PHARMACIEN","Presse et média ","MYLAN SAS","09/01/2014","09/01/2014 - ","Edition ",21840]
["DÉCISION & STRATÉGIE SANTÉ","Académies, Fondation, sociétés savantes, organismes de conseils ","LEO Pharma","17/01/2014","01/01/2014 - 31/12/2014 ","Autre : PUBLICITE"]
["QUOTIDIEN DU MÉDECIN","Presse et média ","MYLAN SAS","22/01/2014","22/01/2014 - ","Edition ",70]
["QUOTIDIEN DU MÉDECIN","Presse et média ","ROCHE DIAGNOSTICS FRANCE","01/02/2014","01/04/2014 - ","Autre : PUBLICITE "]
["QUOTIDIEN DU MÉDECIN","Presse et média ","ROCHE DIAGNOSTICS FRANCE","01/02/2014","01/04/2014 - ","Autre : PUBLICITE "]
["QUOTIDIEN DU MÉDECIN","Presse et média ","ROCHE DIAGNOSTICS FRANCE","01/02/2014","01/04/2014 - ","Autre : PUBLICITE "]
["QUOTIDIEN DU PHARMACIEN","Presse et média ","LABORATOIRES GENEVRIER","06/02/2014","06/02/2014 - ","Autre : MARKETING "]
["QUOTIDIEN DU PHARMACIEN","Presse et média ","LABORATOIRE JALDES","07/02/2014","07/02/2014 - 07/02/2015 ","Autre : ABONNEMENT PRESSE PROFESSIONNELLE "]
["QUOTIDIEN DU MÉDECIN","Presse et média ","MSD France","12/02/2014","12/02/2014 - ","Autre : PRESTATION SERVICE "]
["QUOTIDIEN DU MÉDECIN","Presse et média ","MYLAN SAS","17/02/2014","17/02/2014 - ","Edition ",72]
["QUOTIDIEN DU MÉDECIN","Presse et média ","MYLAN SAS","17/02/2014","17/02/2014 - ","Edition ",144]
["QUOTIDIEN DU MÉDECIN","Presse et média ","MYLAN SAS","17/02/2014","17/02/2014 - ","Edition ",144]
["QUOTIDIEN DU MÉDECIN","Presse et média ","MYLAN SAS","17/02/2014","17/02/2014 - ","Edition ",216]
["QUOTIDIEN DU MÉDECIN","Presse et média ","BIOCODEX","19/02/2014","19/02/2014 - 19/02/2014 ","Edition "]
["DÉCISION & STRATÉGIE SANTÉ","Personnes morales assurant la formation initiale ou continue des professionnels de santé ","JANSSEN-CILAG","28/02/2014","01/03/2014 - 28/02/2014 ","Edition "]
["SESC","Presse et média ","ALK-Abelló","28/02/2014","28/02/2014 - 28/02/2014 ","Edition "]
["QUOTIDIEN DU PHARMACIEN","Presse et média ","IPSEN PHARMA","03/03/2014","28/02/2014 - 31/03/2014 ","Autre : MARKETING "]
["QUOTIDIEN DU MÉDECIN","Presse et média ","BIOCODEX","04/03/2014","04/03/2014 - 04/03/2014 ","Edition "]
["DÉCISION & STRATÉGIE SANTÉ","Presse et média ","JANSSEN-CILAG","23/03/2014","23/03/2014 - 31/03/2014 ","Autre : AUTRE : PRESTATION DE SERVICE "]
["DÉCISION & STRATÉGIE SANTÉ","Presse et média ","JANSSEN-CILAG","23/03/2014","23/03/2014 - 31/03/2014 ","Autre : AUTRE : PRESTATION DE SERVICE "]
["QUOTIDIEN DU MÉDECIN","Presse et média ","Fresenius Medical Care France S.A.S.","28/03/2014","10/04/2013 - 17/04/2014 ","Autre : AUTRE: INSERTION DANS JOURNAL QUOTIDIEN DU MEDECIN NUMERO SPECIAL NEPHROLOGUES "]
["SESC","Presse et média ","MYLAN SAS","31/03/2014","01/01/2013 - ","Autre : EDITION DE JOURNAUX ORGANISATION ET MEDIATISATION DE TABLES RONDES INTER PROFESSIONNELLES"]
["QUOTIDIEN DU MÉDECIN","Presse et média ","ROCHE SAS","01/04/2014","01/04/2014 - ","Autre : AUTRE : PRESTATION DE SERVICE POUR ROCHE "]
["QUOTIDIEN DU PHARMACIEN","Presse et média ","RANBAXY PHARMACIE GENERIQUES","01/04/2014","01/04/2014 - 30/06/2014 ","Achat / location d'espace publicitaire "]
["QUOTIDIEN DU MÉDECIN","Presse et média ","BIOCODEX","04/04/2014","04/04/2014 - 04/04/2014 ","Edition "]
["QUOTIDIEN DU MÉDECIN","Presse et média ","BIOCODEX","17/04/2014","17/04/2014 - 17/04/2014 ","Edition "]
["QUOTIDIEN DU MÉDECIN","Presse et média ","MSD France","30/04/2014","30/04/2014 - ","Autre : CONVENTION D’HOSPITALITÉ "]
["QUOTIDIEN DU PHARMACIEN","Presse et média ","PIERRE FABRE MEDICAMENT","30/04/2014","30/04/2014 - ","Autre : CONTRAT DE PRESTATION DE SERVICE "]
["SESC","Presse et média ","LEO Pharma","01/05/2014","01/05/2014 - 31/05/2015 ","Autre : Autre : [Presse Scientifique] "]
["QUOTIDIEN DU MÉDECIN","Presse et média ","LABORATOIRES GENEVRIER","05/05/2014","05/05/2014 - ","Autre : MARKETING "]
["DÉCISION & STRATÉGIE SANTÉ","Académies, Fondation, sociétés savantes, organismes de conseils ","AMGEN SAS","07/05/2014","15/05/2014 - 31/05/2014 ","Autre : AUTRE [CONTRAT DE PRESTATION DE SERVICE] "]
["QUOTIDIEN DU MÉDECIN","Presse et média ","MUNDIPHARMA","14/05/2014","14/05/2014 - ","Edition "]
["SESC","Presse et média ","LABORATOIRES JUVISE PHARMACEUTICALS","26/05/2014","26/05/2014 - ","Autre : PUBLICITE "]
["QUOTIDIEN DU MÉDECIN","Presse et média ","PHADIA SAS","26/06/2014","01/07/2014 - ","Autre : AUTRE: E-MAILING MG "]
["QUOTIDIEN DU PHARMACIEN","Presse et média ","RANBAXY PHARMACIE GENERIQUES","01/07/2014","01/07/2014 - 31/12/2014 ","Autre : Achats d'espaces publicitaires "]
["SESC","Presse et média ","LABORATOIRES JUVISE PHARMACEUTICALS","01/07/2014","01/07/2014 - ","Autre : PUBLICITE "]
["SESC","Presse et média ","AbbVie","01/07/2014","01/07/2014 - ","Autre : AUTRE : [PRESTATION DE SERVICE] "]
["QUOTIDIEN DU MÉDECIN","Presse et média ","MYLAN SAS","04/07/2014","04/07/2014 - ","Autre : AUTRE : [ABONNEMENT] ",72]
["QUOTIDIEN DU MÉDECIN","Presse et média ","MYLAN SAS","04/07/2014","04/07/2014 - ","Autre : AUTRE : [ABONNEMENT] ",72]
["QUOTIDIEN DU MÉDECIN","Presse et média ","MYLAN SAS","04/07/2014","04/07/2014 - ","Autre : AUTRE : [ABONNEMENT] ",72]
["QUOTIDIEN DU MÉDECIN","Presse et média ","MYLAN SAS","04/07/2014","04/07/2014 - ","Autre : AUTRE : [ABONNEMENT]",360]
["QUOTIDIEN DU MÉDECIN","Presse et média ","MYLAN SAS","04/07/2014","04/07/2014 - ","Autre : AUTRE : [ABONNEMENT] ",72]
["QUOTIDIEN DU MÉDECIN","Presse et média ","MYLAN SAS","04/07/2014","04/07/2014 - ","Autre : AUTRE : [ABONNEMENT] ",360]
["QUOTIDIEN DU MÉDECIN","Presse et média ","MYLAN SAS","04/07/2014","04/07/2014 - ","Autre : AUTRE : [ABONNEMENT] ",72]
["QUOTIDIEN DU MÉDECIN","Presse et média ","MYLAN SAS","04/07/2014","04/07/2014 - ","Autre : AUTRE : [ABONNEMENT] ",360]
["QUOTIDIEN DU MÉDECIN","Presse et média ","MYLAN SAS","04/07/2014","04/07/2014 - ","Autre : AUTRE : [ABONNEMENT] ",72]
["QUOTIDIEN DU MÉDECIN","Presse et média ","MYLAN SAS","04/07/2014","04/07/2014 - ","Autre : AUTRE : [ABONNEMENT] ",72]
["QUOTIDIEN DU MÉDECIN","Presse et média ","MYLAN SAS","04/07/2014","04/07/2014 - ","Autre : AUTRE : [ABONNEMENT] ",72]
["QUOTIDIEN DU MÉDECIN","Presse et média ","MYLAN SAS","04/07/2014","04/07/2014 - ","Autre : AUTRE : [ABONNEMENT] ",72]
["QUOTIDIEN DU MÉDECIN","Presse et média ","MYLAN SAS","04/07/2014","04/07/2014 - ","Autre : AUTRE : [ABONNEMENT] ",216]
["QUOTIDIEN DU MÉDECIN","Presse et média ","MYLAN SAS","04/07/2014","04/07/2014 - ","Autre : AUTRE : [ABONNEMENT] ",144]
["QUOTIDIEN DU MÉDECIN","Presse et média ","MYLAN SAS","04/07/2014","04/07/2014 - ","Autre : AUTRE : [ABONNEMENT] ",72]
["QUOTIDIEN DU MÉDECIN","Presse et média ","MYLAN SAS","04/07/2014","04/07/2014 - ","Autre : AUTRE : [ABONNEMENT] ",72]
["QUOTIDIEN DU MÉDECIN","Presse et média ","MYLAN SAS","04/07/2014","04/07/2014 - ","Autre : AUTRE : [ABONNEMENT] ",144]
["QUOTIDIEN DU MÉDECIN","Presse et média ","MYLAN SAS","04/07/2014","04/07/2014 - ","Autre : AUTRE : [ABONNEMENT] ",72]
["QUOTIDIEN DU MÉDECIN","Presse et média ","MYLAN SAS","04/07/2014","04/07/2014 - ","Autre : AUTRE : [ABONNEMENT] ",72]
["QUOTIDIEN DU MÉDECIN","Presse et média ","MYLAN SAS","04/07/2014","04/07/2014 - ","Autre : AUTRE : [ABONNEMENT] ",144]
["QUOTIDIEN DU PHARMACIEN","Presse et média ","LABORATOIRES GENEVRIER","04/07/2014","04/07/2014 - ","Edition "]
["QUOTIDIEN DU MÉDECIN","Presse et média ","BIOCODEX","22/07/2014","22/07/2014 - 13/11/2014 ","Edition "]
["QUOTIDIEN DU MÉDECIN","Presse et média ","JANSSEN-CILAG","24/07/2014","15/10/2014 - 31/12/2015 ","Edition "]
["QUOTIDIEN DU MÉDECIN","Presse et média ","JANSSEN-CILAG","24/07/2014","15/10/2014 - 31/12/2015 ","Edition"]
["QUOTIDIEN DU MÉDECIN","Presse et média ","JANSSEN-CILAG","24/07/2014","15/10/2014 - 31/12/2015 ","Partenariat "]
["QUOTIDIEN DU MÉDECIN","Presse et média ","MYLAN SAS","25/07/2014","25/07/2014 - ","Autre : AUTRE : [ABONNEMENT] ",216]
["DÉCISION & STRATÉGIE SANTÉ","Presse et média ","GILEAD SCIENCES","28/07/2014","18/12/2014 - ","Autre : Autres "]
["DÉCISION & STRATÉGIE SANTÉ","Presse et média ","GILEAD SCIENCES","28/07/2014","18/12/2014 - ","Autre : Autres "]
["DÉCISION & STRATÉGIE SANTÉ","Presse et média ","GILEAD SCIENCES","28/07/2014","18/12/2014 - ","Autre : Autres "]
["SESC","Presse et média ","LABORATOIRES JUVISE PHARMACEUTICALS","31/07/2014","31/07/2014 - ","Autre : PUBLICITE "]
["QUOTIDIEN DU MÉDECIN","Presse et média ","MYLAN SAS","12/08/2014","12/08/2014 - ","Autre : AUTRE : [ABONNEMENT] ",72]
["QUOTIDIEN DU MÉDECIN","Presse et média ","MYLAN SAS","12/08/2014","12/08/2014 - ","Autre : AUTRE : [ABONNEMENT] ",144]
["QUOTIDIEN DU MÉDECIN","Presse et média ","MYLAN SAS","12/08/2014","12/08/2014 - ","Autre : AUTRE : [ABONNEMENT] ",72]
["SESC","Personnes morales assurant la formation initiale ou continue des professionnels de santé ","EISAI SAS","01/09/2014","01/09/2014 - 01/09/2014 ","Autre : EDITION / INSERTION "]
["QUOTIDIEN DU MÉDECIN","Presse et média ","MENARINI FRANCE","11/09/2014","11/09/2014 - ","Autre : PUBLICITE "]
["QUOTIDIEN DU MÉDECIN","Presse et média ","BOEHRINGER INGELHEIM FRANCE","12/09/2014","01/10/2014 - 01/03/2015 ","Autre : AUTRE : PRESTATION DE SERVICE "]
["DÉCISION & STRATÉGIE SANTÉ","Académies, Fondation, sociétés savantes, organismes de conseils ","ROCHE SAS","15/09/2014","15/09/2014 - ","Autre : AUTRE : PRESTATION DE SERVICE POUR ROCHE "]
["QUOTIDIEN DU MÉDECIN","Académies, Fondation, sociétés savantes, organismes de conseils ","ROCHE SAS","15/09/2014","15/09/2014 - ","Autre : AUTRE : PRESTATION DE SERVICE POUR ROCHE "]
["QUOTIDIEN DU MÉDECIN","Presse et média ","MYLAN SAS","15/09/2014","15/09/2014 - ","Autre : AUTRE : [ABONNEMENT] ",72]
["QUOTIDIEN DU MÉDECIN","Presse et média ","MYLAN SAS","15/09/2014","15/09/2014 - ","Autre : AUTRE : [ABONNEMENT] ",72]
["QUOTIDIEN DU MÉDECIN","Presse et média ","MYLAN SAS","23/09/2014","23/09/2014 - ","Autre : AUTRE : [ABONNEMENT] ",216]
["QUOTIDIEN DU MÉDECIN","Presse et média ","JANSSEN-CILAG","23/09/2014","01/10/2014 - 30/09/2015 ","Partenariat "]
["QUOTIDIEN DU MÉDECIN","Presse et média ","MYLAN SAS","30/09/2014","30/09/2014 - ","Autre : AUTRE : [ABONNEMENT] ",72]
["QUOTIDIEN DU MÉDECIN","Presse et média ","MYLAN SAS","07/10/2014","07/10/2014 - ","Autre : AUTRE : [ABONNEMENT]",72]
["QUOTIDIEN DU MÉDECIN","Presse et média ","MENARINI FRANCE","16/10/2014","16/10/2014 - ","Autre : PUBLICITE "]
["SESC","Presse et média ","ROCHE DIAGNOSTICS FRANCE","16/10/2014","27/11/2014 - ","Autre : PUBLICITE "]
["SESC","Presse et média ","ROCHE DIAGNOSTICS FRANCE","16/10/2014","01/12/2014 - ","Autre : PUBLICITE "]
["SESC","Presse et média ","ROCHE DIAGNOSTICS FRANCE","16/10/2014","18/12/2014 - ","Autre : PUBLICITE "]
["QUOTIDIEN DU MÉDECIN","Presse et média ","MYLAN SAS","23/10/2014","23/10/2014 - ","Autre : AUTRE : [ABONNEMENT] "]
["QUOTIDIEN DU MÉDECIN","Presse et média ","MYLAN SAS","23/10/2014","23/10/2014 - ","Autre : AUTRE : [ABONNEMENT] ",936]
["QUOTIDIEN DU MÉDECIN","Presse et média ","MYLAN SAS","23/10/2014","23/10/2014 - ","Autre : AUTRE : [ABONNEMENT] ",648]
["QUOTIDIEN DU MÉDECIN","Presse et média ","ROCHE DIABETES CARE FRANCE","27/10/2014","01/11/2014 - ","Autre : PUBLICITE "]
["QUOTIDIEN DU MÉDECIN","Presse et média ","ROCHE DIABETES CARE FRANCE","27/10/2014","13/11/2014 - ","Autre : PUBLICITE "]
["QUOTIDIEN DU MÉDECIN","Presse et média ","MYLAN SAS","28/10/2014","28/10/2014 - ","Autre : AUTRE : [ABONNEMENT] ",72]
["QUOTIDIEN DU MÉDECIN","Presse et média ","MYLAN SAS","29/10/2014","29/10/2014 - ","Autre : AUTRE : [ABONNEMENT] ",72]
["QUOTIDIEN DU MÉDECIN","Presse et média ","MENARINI FRANCE","03/11/2014","03/11/2014 - ","Autre : PUBLICITE "]
["QUOTIDIEN DU MÉDECIN","Presse et média ","MYLAN SAS","04/11/2014","04/11/2014 - ","Autre : AUTRE : [ABONNEMENT] ",72]
["QUOTIDIEN DU MÉDECIN","Presse et média ","MYLAN SAS","04/11/2014","04/11/2014 - ","Autre : AUTRE : [ABONNEMENT] ",576]
["QUOTIDIEN DU MÉDECIN","Presse et média ","MYLAN SAS","06/11/2014","06/11/2014 - ","Autre : AUTRE : [ABONNEMENT] ",144]
["QUOTIDIEN DU MÉDECIN","Presse et média ","IPSEN PHARMA","10/11/2014","12/09/2014 - 31/10/2014 ","Autre : MARKETING "]
["QUOTIDIEN DU MÉDECIN","Presse et média ","MENARINI FRANCE","17/11/2014","17/11/2014 - ","Autre : PUBLICITE "]
["DÉCISION & STRATÉGIE SANTÉ","Personnes morales assurant la formation initiale ou continue des professionnels de santé ","EISAI SAS","21/11/2014","21/11/2014 - 02/12/2014 ","Autre : AUTRE / STAND "]
["QUOTIDIEN DU MÉDECIN","Presse et média ","MYLAN SAS","21/11/2014","21/11/2014 - ","Autre : AUTRE : [ABONNEMENT] ",72]
["QUOTIDIEN DU MÉDECIN","Presse et média ","MYLAN SAS","21/11/2014","21/11/2014 - ","Autre : AUTRE : [ABONNEMENT]",216]
["QUOTIDIEN DU MÉDECIN","Presse et média ","MYLAN SAS","21/11/2014","21/11/2014 - ","Autre : AUTRE : [ABONNEMENT] ",72]
["DÉCISION & STRATÉGIE SANTÉ","Presse et média ","GILEAD SCIENCES","23/11/2014","23/11/2014 - ","Autre : Autres "]
["QUOTIDIEN DU MÉDECIN","Presse et média ","MYLAN SAS","24/11/2014","24/11/2014 - ","Autre : AUTRE : [ABONNEMENT] "]
["QUOTIDIEN DU MÉDECIN","Presse et média ","MYLAN SAS","24/11/2014","24/11/2014 - ","Autre : AUTRE : [ABONNEMENT] ",10200]
["SESC","Presse et média ","ALK-Abelló","27/11/2014","27/11/2014 - 27/11/2014 ","Edition ",10200]
["QUOTIDIEN DU MÉDECIN","Presse et média ","MYLAN SAS","28/11/2014","28/11/2014 - ","Autre : AUTRE : [ABONNEMENT] ",10800]
["QUOTIDIEN DU MÉDECIN","Presse et média ","MYLAN SAS","28/11/2014","28/11/2014 - ","Autre : AUTRE : [ABONNEMENT] ",250478]
["QUOTIDIEN DU MÉDECIN","Presse et média ","MYLAN SAS","28/11/2014","28/11/2014 - ","Autre : AUTRE : [ABONNEMENT] ",10200]
["QUOTIDIEN DU MÉDECIN","Presse et média ","MYLAN SAS","28/11/2014","28/11/2014 - ","Autre : AUTRE : [ABONNEMENT] ",19200]
["QUOTIDIEN DU MÉDECIN","Presse et média ","MYLAN SAS","28/11/2014","28/11/2014 - ","Autre : AUTRE : [ABONNEMENT] ",19200]
["QUOTIDIEN DU MÉDECIN","Presse et média ","MYLAN SAS","28/11/2014","28/11/2014 - ","Autre : AUTRE : [ABONNEMENT] ",250478]
["QUOTIDIEN DU MÉDECIN","Presse et média ","MYLAN SAS","28/11/2014","28/11/2014 - ","Autre : AUTRE : [ABONNEMENT] ",10200]
["QUOTIDIEN DU MÉDECIN","Presse et média ","MYLAN SAS","28/11/2014","28/11/2014 - ","Autre : AUTRE : [ABONNEMENT] ",10800]
["QUOTIDIEN DU MÉDECIN","Presse et média ","MYLAN SAS","30/11/2014","30/11/2014 - ","Autre : AUTRE : [ABONNEMENT] ",19200]
["QUOTIDIEN DU MÉDECIN","Presse et média ","MYLAN SAS","30/11/2014","30/11/2014 - ","Autre : AUTRE : [ABONNEMENT] ",19200]
["QUOTIDIEN DU MÉDECIN","Presse et média ","MYLAN SAS","30/11/2014","30/11/2014 - ","Autre : AUTRE : [ABONNEMENT] ",10800]
["QUOTIDIEN DU MÉDECIN","Presse et média ","MYLAN SAS","30/11/2014","30/11/2014 - ","Autre : AUTRE : [ABONNEMENT] ",10800]
["QUOTIDIEN DU PHARMACIEN","Presse et média ","GIBAUD","30/11/2014","30/11/2014 - ","Autre : Publicite "]
["DÉCISION & STRATÉGIE SANTÉ","Association professionnel de santé ","BOEHRINGER INGELHEIM FRANCE","02/12/2014","02/12/2014 - ","Autre : CONGRES / SYMPOSIUM "]
["QUOTIDIEN DU MÉDECIN","Presse et média ","MYLAN SAS","04/12/2014","04/12/2014 - ","Autre : AUTRE : [ABONNEMENT]",1134]
["QUOTIDIEN DU MÉDECIN","Presse et média ","ROCHE DIABETES CARE FRANCE","05/12/2014","18/12/2014 - ","Autre : PUBLICITE "]
["DÉCISION & STRATÉGIE SANTÉ","Presse et média ","GILEAD SCIENCES","18/12/2014","20/12/2014 - ","Autre : Autres "]
["DÉCISION & STRATÉGIE SANTÉ","Presse et média ","GILEAD SCIENCES","18/12/2014","20/12/2014 - ","Autre : Autres "]
["DÉCISION & STRATÉGIE SANTÉ","Académies, Fondation, sociétés savantes, organismes de conseils ","BRISTOL-MYERS SQUIBB","19/12/2014","19/12/2014 - ","Autre : Autre : [Prestation de service (société de conseil)] "]
["SESC","Presse et média ","LABORATOIRES JUVISE PHARMACEUTICALS","24/12/2014","24/12/2014 - ","Autre : PUBLICITE "]
["QUOTIDIEN DU MÉDECIN","Presse et média ","LES LABORATOIRES SERVIER","01/01/2015","01/01/2015 - ","Autre : Publicité "]
["QUOTIDIEN DU PHARMACIEN","Presse et média ","RANBAXY PHARMACIE GENERIQUES","01/01/2015","01/07/2015 - 31/12/2015 ","Autre : achat d'espace publicitaire01/ "]
["QUOTIDIEN DU PHARMACIEN","Presse et média ","RANBAXY PHARMACIE GENERIQUES","02/01/2015","02/01/2015 - 30/06/2015 ","Autre : Achats d'espaces publicitaires "]
["SESC","Presse et média ","BIOGARAN","05/01/2015","02/01/2015 - 31/12/2015 ","Autre : PUBLICITE "]
["QUOTIDIEN DU PHARMACIEN","Presse et média ","BIOCODEX","21/01/2015","21/01/2015 - 09/06/2015 ","Edition "]
["DÉCISION & STRATÉGIE SANTÉ","Personnes morales assurant la formation initiale ou continue des professionnels de santé ","JANSSEN-CILAG","28/01/2015","28/01/2015 - 28/01/2015 ","Edition "]
["DÉCISION & STRATÉGIE SANTÉ","Presse et média ","JANSSEN-CILAG","29/01/2015","29/01/2015 - 29/01/2015 ","Edition "]
["SESC","Personnes morales assurant la formation initiale ou continue des professionnels de santé ","PIERRE FABRE MEDICAMENT","01/02/2015","01/02/2015 - ","Autre : CONVENTION DE PARRAINAGE "]
["QUOTIDIEN DU PHARMACIEN","Presse et média ","MYLAN SAS","10/02/2015","10/02/2015 - ","Edition ",1800]
["QUOTIDIEN DU MÉDECIN","Presse et média ","Fresenius Medical Care France S.A.S.","17/02/2015","16/04/2015 - 16/04/2016 ","Autre : AUTRE: INSERTION PLEINE PAGE REVUE "]
["QUOTIDIEN DU PHARMACIEN","Presse et média ","HRA PHARMA FRANCE","07/03/2015","23/04/2015 - ","Autre : PUBLICITE "]
["QUOTIDIEN DU PHARMACIEN","Presse et média ","HRA PHARMA FRANCE","16/03/2015","31/03/2015 - ","Autre : AUTRE : MANIFESTATION "]
["QUOTIDIEN DU MÉDECIN","Presse et média ","MYLAN SAS","18/03/2015","18/03/2015 - ","Autre : ABONNEMENT ",72]
["DÉCISION & STRATÉGIE SANTÉ","Académies, Fondation, sociétés savantes, organismes de conseils ","BRISTOL-MYERS SQUIBB","20/03/2015","20/03/2015 - ","Autre : Autre : [Prestation de service (société de conseil)] "]
["QUOTIDIEN DU MÉDECIN","Presse et média ","MYLAN SAS","24/03/2015","24/03/2015 - ","Autre : ABONNEMENT",216]
["QUOTIDIEN DU MÉDECIN","Presse et média ","PHADIA SAS","26/03/2015","28/03/2015 - 28/03/2015 ","Edition "]
["QUOTIDIEN DU MÉDECIN","Presse et média ","MENARINI FRANCE","26/03/2015","26/03/2015 - ","Autre : PUBLICITE "]
["QUOTIDIEN DU MÉDECIN","Presse et média ","MENARINI FRANCE","26/03/2015","26/03/2015 - ","Autre : PUBLICITE "]
["QUOTIDIEN DU PHARMACIEN","Personnes morales assurant la formation initiale ou continue des professionnels de santé ","Reckitt Benckiser France","31/03/2015","13/03/2015 - ","Autre : MARKETING "]
["DÉCISION & STRATÉGIE SANTÉ","Presse et média ","ROCHE SAS","01/04/2015","01/04/2015 - 30/06/2015 ","Autre : AUTRE : PRESTATION DE SERVICE POUR ROCHE "]
["DÉCISION & STRATÉGIE SANTÉ","Académies, Fondation, sociétés savantes, organismes de conseils ","JANSSEN-CILAG","03/04/2015","03/04/2015 - ","Autre : AUTRE : PRESTATION DE SERVICE "]
["DÉCISION & STRATÉGIE SANTÉ","Académies, Fondation, sociétés savantes, organismes de conseils ","JANSSEN-CILAG","03/04/2015","03/04/2015 - ","Autre : AUTRE : PRESTATION DE SERVICE "]
["QUOTIDIEN DU MÉDECIN","Presse et média ","MYLAN SAS","05/04/2015","05/04/2015 - ","Autre : ABONNEMENT "]
["QUOTIDIEN DU MÉDECIN","Presse et média ","MYLAN SAS","05/04/2015","05/04/2015 - ","Autre : ABONNEMENT "]
["QUOTIDIEN DU MÉDECIN","Presse et média ","MYLAN SAS","07/04/2015","07/04/2015 - ","Autre : ABONNEMENT "]
["QUOTIDIEN DU MÉDECIN","Presse et média ","MYLAN SAS","07/04/2015","07/04/2015 - ","Autre : ABONNEMENT ",72]
["QUOTIDIEN DU MÉDECIN","Presse et média ","MYLAN SAS","07/04/2015","07/04/2015 - ","Autre : ABONNEMENT ",144]
["QUOTIDIEN DU MÉDECIN","Presse et média ","MYLAN MEDICAL SAS","14/04/2015","14/04/2015 - 31/12/2016 ","Autre : CONSEIL "]
["DÉCISION & STRATÉGIE SANTÉ","Presse et média ","GILEAD SCIENCES","21/04/2015","21/04/2015 - ","Autre : Autres "]
["QUOTIDIEN DU MÉDECIN","Presse et média ","ROCHE DIABETES CARE FRANCE","23/04/2015","29/10/2015 - ","Autre : PUBLICITE "]
["QUOTIDIEN DU MÉDECIN","Presse et média ","ROCHE DIABETES CARE FRANCE","23/04/2015","10/12/2015 - ","Autre : PUBLICITE "]
["QUOTIDIEN DU PHARMACIEN","Presse et média ","ROCHE DIABETES CARE FRANCE","23/04/2015","16/11/2015 - ","Autre : PUBLICITE "]
["QUOTIDIEN DU PHARMACIEN","Presse et média ","ROCHE DIABETES CARE FRANCE","23/04/2015","09/11/2015 - ","Autre : PUBLICITE "]
["QUOTIDIEN DU PHARMACIEN","Presse et média ","MYLAN SAS","24/04/2015","24/04/2015 - ","Autre : ABONNEMENT ",72]
["DÉCISION & STRATÉGIE SANTÉ","Personnes morales assurant la formation initiale ou continue des professionnels de santé ","JANSSEN-CILAG","30/04/2015","30/04/2015 - 30/04/2015 ","Autres prestations de services"]
["QUOTIDIEN DU MÉDECIN","Presse et média ","Laboratoires Grünenthal SAS","30/04/2015","30/04/2015 - ","Edition "]
["QUOTIDIEN DU MÉDECIN","Presse et média ","BIOCODEX","30/04/2015","30/04/2015 - 02/06/2015 ","Edition "]
["QUOTIDIEN DU PHARMACIEN","Presse et média ","MYLAN SAS","30/04/2015","30/04/2015 - ","Edition ",24000]
["DÉCISION & STRATÉGIE SANTÉ","Presse et média ","JANSSEN-CILAG","01/05/2015","01/05/2015 - 01/05/2015 ","Autre : AUTRE : PRESTATION DE SERVICE "]
["QUOTIDIEN DU MÉDECIN","Presse et média ","MYLAN SAS","04/05/2015","04/05/2015 - ","Edition "]
["QUOTIDIEN DU MÉDECIN","Presse et média ","MYLAN SAS","04/05/2015","04/05/2015 - ","Edition ",144]
["QUOTIDIEN DU PHARMACIEN","Presse et média ","BIOCODEX","05/05/2015","05/05/2015 - 05/05/2015 ","Autre : MARKETING ",72]
["QUOTIDIEN DU MÉDECIN","Presse et média ","Lilly France SAS","06/05/2015","03/06/2015 - 31/12/2015 ","Autre : AUTRE : [CONTRAT DE PARTENARIAT] "]
["QUOTIDIEN DU MÉDECIN","Presse et média ","MYLAN SAS","06/05/2015","06/05/2015 - ","Edition "]
["QUOTIDIEN DU MÉDECIN","Presse et média ","MYLAN SAS","06/05/2015","06/05/2015 - ","Edition "]
["QUOTIDIEN DU MÉDECIN","Presse et média ","BIOCODEX","13/05/2015","13/05/2015 - 13/05/2015 ","Autre : MARKETING "]
["QUOTIDIEN DU MÉDECIN","Personnes morales assurant la formation initiale ou continue des professionnels de santé ","Laboratoires Grünenthal SAS","18/05/2015","18/05/2015 - ","Autre : CONSEIL "]
["QUOTIDIEN DU PHARMACIEN","Presse et média ","MYLAN SAS","20/05/2015","20/05/2015 - ","Autre : ABONNEMENT ",72]
["QUOTIDIEN DU PHARMACIEN","Presse et média ","LABORATOIRES GENEVRIER","22/05/2015","22/05/2015 - ","Autre : AUTRE [PRESTATION SERVICE] "]
["QUOTIDIEN DU PHARMACIEN","Presse et média ","Laboratoire CCD","26/05/2015","29/06/2015 - 29/06/2015 ","Autre : PUBLICITE "]
["SESC","Presse et média ","AbbVie","26/05/2015","26/05/2015 - ","Autre : AUTRE : [PRESTATION DE SERVICE] "]
["SESC","Académies, Fondation, sociétés savantes, organismes de conseils ","LEO Pharma","02/06/2015","01/03/2015 - 31/12/2015 ","Edition "]
["SESC","Académies, Fondation, sociétés savantes, organismes de conseils ","LEO Pharma","02/06/2015","01/02/2015 - 31/12/2015 ","Edition "]
["SESC","Académies, Fondation, sociétés savantes, organismes de conseils ","LEO Pharma","02/06/2015","01/02/2015 - 31/12/2015 ","Edition "]
["QUOTIDIEN DU MÉDECIN","Presse et média ","MYLAN SAS","05/06/2015","05/06/2015 - ","Autre : ABONNEMENT"]
["QUOTIDIEN DU MÉDECIN","Presse et média ","MYLAN SAS","05/06/2015","05/06/2015 - ","Autre : ABONNEMENT "]
["DÉCISION & STRATÉGIE SANTÉ","Presse et média ","GILEAD SCIENCES","16/06/2015","30/09/2015 - ","Autre : Autres "]
["QUOTIDIEN DU PHARMACIEN","Presse et média ","MYLAN SAS","16/06/2015","16/06/2015 - ","Autre : ABONNEMENT ",288]
["QUOTIDIEN DU PHARMACIEN","Presse et média ","MYLAN SAS","16/06/2015","16/06/2015 - ","Autre : ABONNEMENT ",1800]
["SESC","Académies, Fondation, sociétés savantes, organismes de conseils ","LEO Pharma","17/06/2015","01/03/2015 - 31/12/2015 ","Edition "]
["SESC","Académies, Fondation, sociétés savantes, organismes de conseils ","LEO Pharma","17/06/2015","01/03/2015 - 31/12/2015 ","Edition "]
["QUOTIDIEN DU MÉDECIN","Presse et média ","MYLAN SAS","23/06/2015","23/06/2015 - ","Edition ",72]
["QUOTIDIEN DU PHARMACIEN","Presse et média ","MYLAN SAS","24/06/2015","24/06/2015 - ","Edition ",72]
["QUOTIDIEN DU PHARMACIEN","Presse et média ","MYLAN SAS","03/07/2015","03/07/2015 - ","Edition ",648]
["QUOTIDIEN DU PHARMACIEN","Presse et média ","MYLAN SAS","03/07/2015","03/07/2015 - ","Edition ",144]
["QUOTIDIEN DU MÉDECIN","Presse et média ","MENARINI FRANCE","06/07/2015","06/07/2015 - ","Autre : PUBLICITE "]
["SESC","Académies, Fondation, sociétés savantes, organismes de conseils ","LEO Pharma","06/07/2015","01/03/2015 - 31/12/2015 ","Edition "]
["SESC","Académies, Fondation, sociétés savantes, organismes de conseils ","LEO Pharma","06/07/2015","01/03/2015 - 31/12/2015 ","Edition "]
["QUOTIDIEN DU PHARMACIEN","Presse et média ","MYLAN SAS","07/07/2015","07/07/2015 - ","Formation ",420]
["QUOTIDIEN DU MÉDECIN","Presse et média ","MUNDIPHARMA","08/07/2015","01/06/2015 - 01/06/2016 ","Autre : AUTRE : COMMUNICATION "]
["QUOTIDIEN DU PHARMACIEN","Presse et média ","MYLAN SAS","17/07/2015","17/07/2015 - ","Edition ",72]
["QUOTIDIEN DU PHARMACIEN","Presse et média ","MYLAN SAS","17/07/2015","17/07/2015 - ","Edition ",72]
["QUOTIDIEN DU PHARMACIEN","Presse et média ","MYLAN SAS","17/07/2015","17/07/2015 - ","Edition ",288]
["QUOTIDIEN DU MÉDECIN","Presse et média ","MENARINI FRANCE","21/07/2015","21/07/2015 - ","Autre : PUBLICITE "]
["QUOTIDIEN DU PHARMACIEN","Presse et média ","MYLAN SAS","23/07/2015","23/07/2015 - ","Edition",216]
["QUOTIDIEN DU PHARMACIEN","Presse et média ","MYLAN SAS","01/09/2015","01/09/2015 - ","Edition ",72]
["QUOTIDIEN DU PHARMACIEN","Presse et média ","MYLAN SAS","02/09/2015","02/09/2015 - ","Edition ",72]
["QUOTIDIEN DU PHARMACIEN","Presse et média ","MYLAN SAS","07/09/2015","07/09/2015 - ","Edition ",72]
["QUOTIDIEN DU PHARMACIEN","Presse et média ","HRA PHARMA FRANCE","10/09/2015","06/10/2015 - 10/12/2015 ","Autre : AUTRE : PRESTATION DE SERVICE "]
["DÉCISION & STRATÉGIE SANTÉ","Presse et média ","MSD France","17/09/2015","17/09/2015 - ","Autre : CONFÉRENCE PRESSE "]
["DÉCISION & STRATÉGIE SANTÉ","Presse et média ","MSD France","17/09/2015","17/09/2015 - ","Autre : CONFÉRENCE PRESSE "]
["QUOTIDIEN DU MÉDECIN","Presse et média ","MSD France","17/09/2015","17/09/2015 - ","Autre : CONFÉRENCE PRESSE "]
["QUOTIDIEN DU PHARMACIEN","Presse et média ","MYLAN SAS","23/09/2015","23/09/2015 - ","Edition ",2309]
["QUOTIDIEN DU MÉDECIN","Presse et média ","BIOCODEX","24/09/2015","24/09/2015 - 24/09/2015 ","Edition "]
["QUOTIDIEN DU MÉDECIN","Presse et média ","BIOGARAN","21/10/2015","04/01/2016 - 31/12/2016 ","Autre : Publicité "]
["QUOTIDIEN DU MÉDECIN","Presse et média ","MYLAN SAS","21/10/2015","21/10/2015 - ","Edition "]
["QUOTIDIEN DU MÉDECIN","Presse et média ","MYLAN SAS","21/10/2015","21/10/2015 - ","Edition "]
["QUOTIDIEN DU PHARMACIEN","Presse et média ","BIOGARAN","21/10/2015","04/01/2016 - 31/12/2016 ","Autre : Publicité "]
["QUOTIDIEN DU PHARMACIEN","Presse et média ","MYLAN SAS","21/10/2015","21/10/2015 - ","Edition ",72]
["QUOTIDIEN DU PHARMACIEN","Presse et média ","MYLAN SAS","21/10/2015","21/10/2015 - ","Edition ",72]
["QUOTIDIEN DU PHARMACIEN","Presse et média ","MYLAN SAS","23/10/2015","23/10/2015 - ","Edition ",72]
["QUOTIDIEN DU PHARMACIEN","Presse et média ","MYLAN SAS","23/10/2015","23/10/2015 - ","Edition ",72]
["QUOTIDIEN DU PHARMACIEN","Presse et média ","MYLAN SAS","02/11/2015","02/11/2015 - ","Edition",648]
["QUOTIDIEN DU PHARMACIEN","Presse et média ","MYLAN SAS","02/11/2015","02/11/2015 - ","Edition ",864]
["QUOTIDIEN DU MÉDECIN","Presse et média ","BRISTOL-MYERS SQUIBB","05/11/2015","05/11/2015 - ","Autre : Autre : [Espace publicitaire] "]
["SESC","Presse et média ","LABORATOIRES JUVISE PHARMACEUTICALS","09/11/2015","09/11/2015 - ","Autre : PUBLICITE "]
["QUOTIDIEN DU MÉDECIN","Presse et média ","MSD France","10/11/2015","10/11/2015 - ","Autre : CONFÉRENCE PRESSE "]
["QUOTIDIEN DU MÉDECIN","Presse et média ","PHADIA SAS","19/11/2015","20/11/2015 - 20/11/2015 ","Autre : PUBLICITE "]
["QUOTIDIEN DU PHARMACIEN","Presse et média ","MYLAN SAS","20/11/2015","20/11/2015 - ","Edition ",72]
["QUOTIDIEN DU PHARMACIEN","Presse et média ","BIOCODEX","24/11/2015","24/11/2015 - 24/11/2015 ","Edition "]
["DÉCISION & STRATÉGIE SANTÉ","Académies, Fondation, sociétés savantes, organismes de conseils ","Bayer HealthCare SAS","25/11/2015","25/11/2015 - 16/12/2015 ","Autre : Autre : Prestation de services "]
["DÉCISION & STRATÉGIE SANTÉ","Académies, Fondation, sociétés savantes, organismes de conseils ","Bayer HealthCare SAS","30/11/2015","01/10/2015 - ","Autre : Autre : Partenariat "]
["QUOTIDIEN DU MÉDECIN","Presse et média ","Fresenius Medical Care France S.A.S.","30/11/2015","01/07/2016 - 01/07/2017 ","Autre : AUTRE : [INSERTION PLEINE PAGE REVUE GUIDE PHARMA SANTE] "]
["QUOTIDIEN DU PHARMACIEN","Presse et média ","MYLAN SAS","01/12/2015","01/12/2015 - ","Edition ",72]
["QUOTIDIEN DU MÉDECIN","Presse et média ","MSD France","03/12/2015","03/12/2015 - ","Autre : CONFÉRENCE PRESSE "]
["DÉCISION & STRATÉGIE SANTÉ","Académies, Fondation, sociétés savantes, organismes de conseils ","BRISTOL-MYERS SQUIBB","07/12/2015","07/12/2015 - ","Autre : Autre : [Partenariat / Collaboration scientifique] "]
["QUOTIDIEN DU PHARMACIEN","Presse et média ","NORDIC PHARMA SAS","09/12/2015","09/12/2015 - 31/12/2015 ","Autre : Autre : [ Prestation ] "]
["QUOTIDIEN DU PHARMACIEN","Presse et média ","NORDIC PHARMA SAS","09/12/2015","09/12/2015 - 31/12/2015 ","Autre : Autre : [ Prestation ] "]
["DÉCISION & STRATÉGIE SANTÉ","Presse et média ","MSD France","10/12/2015","10/12/2015 - ","Autre : CONFÉRENCE PRESSE "]
["QUOTIDIEN DU MÉDECIN","Presse et média ","MSD France","10/12/2015","10/12/2015 - ","Autre : CONFÉRENCE PRESSE "]
["QUOTIDIEN DU PHARMACIEN","Académies, Fondation, sociétés savantes, organismes de conseils ","AbbVie","10/12/2015","10/12/2015 - ","Autre : ACHAT/LOCATION DE STAND "]
["DÉCISION & STRATÉGIE SANTÉ","Personnes morales assurant la formation initiale ou continue des professionnels de santé ","EISAI SAS","12/12/2015","11/12/2015 - 11/12/2015 ","Autre : EDITION / INSERTION "]
["QUOTIDIEN DU MÉDECIN","Presse et média ","MYLAN SAS","15/12/2015","15/12/2015 - ","Edition",72]
["DÉCISION & STRATÉGIE SANTÉ","Presse et média ","MSD France","16/12/2015","16/12/2015 - ","Autre : CONFÉRENCE PRESSE "]
["QUOTIDIEN DU MÉDECIN","Presse et média ","MSD France","16/12/2015","16/12/2015 - ","Autre : CONFÉRENCE PRESSE "]
["QUOTIDIEN DU MÉDECIN","Presse et média ","PHADIA SAS","18/12/2015","21/12/2015 - 21/12/2015 ","Autre : PUBLICITE "]
["DÉCISION & STRATÉGIE SANTÉ","Académies, Fondation, sociétés savantes, organismes de conseils ","BRISTOL-MYERS SQUIBB","31/12/2015","31/12/2015 - ","Autre : Autre : [Prestation de service (société de conseil)] "]
["QUOTIDIEN DU MÉDECIN","Presse et média ","LES LABORATOIRES SERVIER","01/01/2016","01/01/2016 - ","Achat / location d'espace publicitaire "]
["QUOTIDIEN DU PHARMACIEN","Presse et média ","RANBAXY PHARMACIE GENERIQUES","01/01/2016","01/01/2016 - 31/12/2016 ","Autre : Achats d'espaces publicitaires "]
["SESC","Presse et média ","BIOGARAN","04/01/2016","04/01/2016 - 31/12/2016 ","Autre : Publicité "]
["SESC","Presse et média ","LABORATOIRES JUVISE PHARMACEUTICALS","08/01/2016","08/01/2016 - ","Autre : PUBLICITE "]
["QUOTIDIEN DU MÉDECIN","Presse et média ","MYLAN SAS","12/01/2016","12/01/2016 - ","Edition ",72]
["DÉCISION & STRATÉGIE SANTÉ","Académies, Fondation, sociétés savantes, organismes de conseils ","JANSSEN-CILAG","19/01/2016","02/04/2015 - 29/06/2016 ","Autres prestations de services ",6360]
["DÉCISION & STRATÉGIE SANTÉ","Etablissement de santé ","JANSSEN-CILAG","19/01/2016","02/04/2015 - 29/06/2016 ","Autres prestations de services "]
["QUOTIDIEN DU PHARMACIEN","Presse et média ","HRA PHARMA FRANCE","09/02/2016","15/02/2016 - 15/02/2016 ","Autre : AUTRE: prestation de service "]
["SESC","Presse et média ","LABORATOIRES JUVISE PHARMACEUTICALS","23/02/2016","07/04/2016 - ","Autre : PUBLICITE "]
["QUOTIDIEN DU MÉDECIN","Presse et média ","Lilly France SAS","07/03/2016","07/03/2016 - 31/12/2016 ","Autre : AUTRE : [CONTRAT DE PARTENARIAT] "]
["QUOTIDIEN DU MÉDECIN","Presse et média ","MSD France","10/03/2016","10/03/2016 - ","Autre : CONFÉRENCE PRESSE "]
["QUOTIDIEN DU MÉDECIN","Presse et média ","MSD France","15/03/2016","15/03/2016 - ","Autre : CONFÉRENCE PRESSE "]
["QUOTIDIEN DU MÉDECIN","Presse et média ","BIOCODEX","15/03/2016","15/03/2016 - 25/05/2016 ","Edition "]
["QUOTIDIEN DU MÉDECIN","Presse et média ","MSD France","15/03/2016","15/03/2016 - ","Autre : CONFÉRENCE PRESSE "]
["QUOTIDIEN DU MÉDECIN","Presse et média ","MSD France","15/03/2016","15/03/2016 - ","Autre : CONFÉRENCE PRESSE "]
["QUOTIDIEN DU MÉDECIN","Personnes morales assurant la formation initiale ou continue des professionnels de santé ","Reckitt Benckiser Healthcare France","30/03/2016","07/03/2016 - 31/03/2016 ","Autre : PUBLICITE"]
["QUOTIDIEN DU MÉDECIN","Presse et média ","Fresenius Medical Care France S.A.S.","30/03/2016","30/03/2016 - 31/12/2016 ","Autre : AUTRE : [INSERTION PRESSE DANS REVUE EDITION SPECIALE NEPHROLOGIE QUOTIDIEN DU MEDECIN] "]
["QUOTIDIEN DU PHARMACIEN","Personnes morales assurant la formation initiale ou continue des professionnels de santé ","Reckitt Benckiser Healthcare France","31/03/2016","10/03/2016 - ","Autre : PUBLICITE "]
["QUOTIDIEN DU MÉDECIN","Presse et média ","ROCHE DIABETES CARE FRANCE","06/04/2016","17/03/2016 - ","Autre : PUBLICITE "]
["QUOTIDIEN DU MÉDECIN","Presse et média ","ROCHE DIABETES CARE FRANCE","06/04/2016","18/04/2016 - ","Autre : PUBLICITE "]
["DÉCISION & STRATÉGIE SANTÉ","Presse et média ","MSD France","11/04/2016","11/04/2016 - ","Autre : CONFÉRENCE PRESSE "]
["QUOTIDIEN DU PHARMACIEN","Personnes morales assurant la formation initiale ou continue des professionnels de santé ","Reckitt Benckiser Healthcare France","30/04/2016","28/04/2016 - ","Autre : PUBLICITE "]
["QUOTIDIEN DU MÉDECIN","Presse et média ","Laboratoire CCD","02/05/2016","19/05/2016 - 05/09/2016 ","Autre : AUTRE : ACHATS D ESPACES "]
["QUOTIDIEN DU MÉDECIN","Presse et média ","MYLAN SAS","09/05/2016","09/05/2016 - ","Edition ",72]
["QUOTIDIEN DU MÉDECIN","Presse et média ","MYLAN SAS","13/05/2016","13/05/2016 - ","Edition ",95]
["SESC","Presse et média ","LUNDBECK SAS","17/05/2016","17/05/2016 - ","Autre : AUTRE :COMMUNICATION "]
["SESC","Presse et média ","LUNDBECK SAS","17/05/2016","17/05/2016 - ","Autre : AUTRE : [AUTRE]: COMMUNICATION "]
["SESC","Académies, Fondation, sociétés savantes, organismes de conseils ","LEO Pharma","18/05/2016","01/01/2016 - 31/12/2016 ","Edition "]
["DÉCISION & STRATÉGIE SANTÉ","Presse et média ","MSD France","20/05/2016","20/05/2016 - ","Autre : CONVENTION D’HOSPITALITÉ "]
["QUOTIDIEN DU MÉDECIN","Presse et média ","MSD France","20/05/2016","20/05/2016 - ","Autre : CONVENTION D’HOSPITALITÉ "]
["SESC","Académies, Fondation, sociétés savantes, organismes de conseils ","LEO Pharma","25/05/2016","01/02/2015 - 31/12/2016 ","Autre : CONSEIL "]
["QUOTIDIEN DU MÉDECIN","Presse et média ","MSD France","26/05/2016","26/05/2016 - ","Autre : CONFÉRENCE PRESSE "]
["QUOTIDIEN DU MÉDECIN","Presse et média ","Lilly France SAS","30/05/2016","07/03/2016 - 31/12/2016 ","Autre : AUTRE : [CONTRAT DE PARTENARIAT] "]
["QUOTIDIEN DU MÉDECIN","Presse et média ","MYLAN SAS","01/06/2016","01/06/2016 - ","Edition ",72]
["QUOTIDIEN DU MÉDECIN","Presse et média ","MYLAN SAS","01/06/2016","01/06/2016 - ","Edition ",144]
["QUOTIDIEN DU MÉDECIN","Presse et média ","MYLAN SAS","01/06/2016","01/06/2016 - ","Edition",792]
["QUOTIDIEN DU MÉDECIN","Presse et média ","MYLAN SAS","01/06/2016","01/06/2016 - ","Edition ",576]
["QUOTIDIEN DU MÉDECIN","Presse et média ","MYLAN SAS","01/06/2016","01/06/2016 - ","Edition ",288]
["QUOTIDIEN DU MÉDECIN","Presse et média ","MYLAN SAS","01/06/2016","01/06/2016 - ","Edition ",1728]
["QUOTIDIEN DU MÉDECIN","Presse et média ","MYLAN SAS","01/06/2016","01/06/2016 - ","Edition ",72]
["QUOTIDIEN DU MÉDECIN","Presse et média ","MYLAN SAS","15/06/2016","15/06/2016 - ","Edition ",72]
["QUOTIDIEN DU MÉDECIN","Presse et média ","MYLAN SAS","24/06/2016","24/06/2016 - ","Edition ",144]
["QUOTIDIEN DU MÉDECIN","Presse et média ","MYLAN SAS","24/06/2016","24/06/2016 - ","Edition ",72]
["SESC","Personnes morales assurant la formation initiale ou continue des professionnels de santé ","Laboratoire Kreussler pharma","24/06/2016","27/06/2016 - 27/06/2016 ","Autre : PUBLICITE "]
["QUOTIDIEN DU MÉDECIN","Presse et média ","Laboratoires Grünenthal SAS","27/06/2016","27/06/2016 - ","Edition "]
["QUOTIDIEN DU MÉDECIN","Presse et média ","MYLAN SAS","30/06/2016","30/06/2016 - ","Edition ",1110]
["QUOTIDIEN DU MÉDECIN","Presse et média ","BIOGARAN","01/07/2016","01/07/2016 - 31/12/2016 ","Autre : PUBLICITE "]
["QUOTIDIEN DU MÉDECIN","Presse et média ","MYLAN SAS","01/07/2016","01/07/2016 - ","Edition ",648]
["QUOTIDIEN DU PHARMACIEN","Presse et média ","BIOCODEX","01/07/2016","01/07/2016 - 16/12/2016 ","Edition "]
["QUOTIDIEN DU MÉDECIN","Presse et média ","MYLAN SAS","06/07/2016","06/07/2016 - ","Edition ",72]
["QUOTIDIEN DU MÉDECIN","Presse et média ","MYLAN SAS","06/07/2016","06/07/2016 - ","Edition ",72]
["QUOTIDIEN DU MÉDECIN","Presse et média ","MYLAN SAS","06/07/2016","06/07/2016 - ","Edition ",288]
["QUOTIDIEN DU MÉDECIN","Presse et média ","MYLAN SAS","13/07/2016","13/07/2016 - ","Edition ",216]
["QUOTIDIEN DU PHARMACIEN","Presse et média ","Laboratoire Kreussler pharma","18/07/2016","11/07/2016 - 11/07/2016 ","Autre : PUBLICITE "]
["QUOTIDIEN DU PHARMACIEN","Presse et média ","MYLAN SAS","20/07/2016","20/07/2016 - ","Edition ",144]
["QUOTIDIEN DU MÉDECIN","Presse et média ","LES LABORATOIRES SERVIER","21/07/2016","21/07/2016 - ","Achat / location d'espace publicitaire"]
["SESC","Presse et média ","Otsuka Pharmaceutical France SAS","13/09/2016","13/09/2016 - ","Autre : Autre:[Marketing] "]
["QUOTIDIEN DU MÉDECIN","Presse et média ","MYLAN SAS","20/09/2016","20/09/2016 - ","Edition ",288]
["DÉCISION & STRATÉGIE SANTÉ","Académies, Fondation, sociétés savantes, organismes de conseils ","Bayer HealthCare SAS","23/09/2016","23/09/2016 - 14/12/2016 ","Partenariat "]
["QUOTIDIEN DU MÉDECIN","Presse et média ","FUJIFILM Medical Systems France","27/09/2016","01/10/2016 - 31/10/2016 ","Autre : CONVENTION D'ACHAT : MARKETING / PUBLICITE / MEDIA "]
["QUOTIDIEN DU PHARMACIEN","Presse et média ","NORDIC PHARMA SAS","28/09/2016","29/09/2016 - 29/09/2016 ","Autre : Autre : [ Prestation ] "]
["QUOTIDIEN DU MÉDECIN","Presse et média ","MYLAN SAS","29/09/2016","29/09/2016 - ","Edition ",72]
["QUOTIDIEN DU MÉDECIN","Presse et média ","MYLAN SAS","29/09/2016","29/09/2016 - ","Edition ",72]
["QUOTIDIEN DU PHARMACIEN","Presse et média ","MYLAN SAS","07/10/2016","07/10/2016 - ","Edition ",144]
["SESC","Personnes morales assurant la formation initiale ou continue des professionnels de santé ","GILEAD SCIENCES","13/10/2016","01/11/2016 - ","Autre : Prestation de service "]
["QUOTIDIEN DU MÉDECIN","Presse et média ","MYLAN SAS","19/10/2016","19/10/2016 - ","Edition ",864]
["QUOTIDIEN DU MÉDECIN","Presse et média ","MYLAN SAS","19/10/2016","19/10/2016 - ","Edition ",576]
["DÉCISION & STRATÉGIE SANTÉ","Presse et média ","THERABEL LUCIEN PHARMA","20/10/2016","13/12/2016 - 14/12/2016 ","Autre : PUBLICITE "]
["QUOTIDIEN DU PHARMACIEN","Personnes morales assurant la formation initiale ou continue des professionnels de santé ","Reckitt Benckiser Healthcare France","31/10/2016","31/10/2016 - 31/10/2016 ","Achat / location d'espace publicitaire ",5670]
["QUOTIDIEN DU MÉDECIN","Presse et média ","MYLAN SAS","04/11/2016","04/11/2016 - ","Edition ",72]
["QUOTIDIEN DU MÉDECIN","Presse et média ","MYLAN SAS","04/11/2016","04/11/2016 - ","Edition ",72]
["SESC","Presse et média ","BIOGARAN","08/11/2016","08/11/2016 - 24/11/2016 ","Autre : Publicité "]
["SESC","Presse et média ","BIOGARAN","08/11/2016","08/11/2016 - 24/11/2016 ","Autre : Publicité "]
["QUOTIDIEN DU PHARMACIEN","Presse et média ","HRA PHARMA FRANCE","22/11/2016","15/12/2016 - 31/03/2017 ","Autre : AUTRE : PRESTATION "]
["QUOTIDIEN DU MÉDECIN","Presse et média ","MYLAN SAS","23/11/2016","23/11/2016 - ","Edition",792]
["QUOTIDIEN DU MÉDECIN","Presse et média ","BRISTOL-MYERS SQUIBB","23/11/2016","23/11/2016 - ","Autre : Autre : [Espace publicitaire] "]
["QUOTIDIEN DU MÉDECIN","Presse et média ","Lilly France SAS","05/12/2016","05/12/2016 - ","Contrat / expertise autre que scientifique ",4500]
["SESC","Académies, Fondation, sociétés savantes, organismes de conseils ","AbbVie","12/12/2016","12/12/2016 - ","Autre : PRESTATIONS DE SERVICES PRESTATAIRE DE SERVICE DANS LE SECTEUR PHARMACEUTIQUE "]
["QUOTIDIEN DU MÉDECIN","Presse et média ","Lilly France SAS","14/12/2016","14/12/2016 - ","Contrat / expertise autre que scientifique ",39600]
["QUOTIDIEN DU MÉDECIN","Académies, Fondation, sociétés savantes, organismes de conseils ","COOPERATION PHARMACEUTIQUE FRANCAISE","01/01/2017","01/01/2017 - 30/06/2017 ","Autre : MARKETING "]
["QUOTIDIEN DU MÉDECIN","Presse et média ","BIOGARAN","02/01/2017","02/01/2017 - 31/12/2017 ","Autre : PUBLICITE "]
["SESC","Presse et média ","BIOGARAN","05/01/2017","05/01/2017 - 31/12/2017 ","Autre : PUBLICITE "]
["QUOTIDIEN DU PHARMACIEN","Presse et média ","LABORATOIRES GENEVRIER","19/01/2017","20/01/2017 - 20/01/2017 ","Contrat / expertise autre que scientifique ",20450]
["QUOTIDIEN DU PHARMACIEN","Presse et média ","BIOCODEX","24/01/2017","24/01/2017 - 24/01/2017 ","Achat / location d'espace publicitaire ",1512]
["QUOTIDIEN DU MÉDECIN","Presse et média ","BIOCODEX","01/02/2017","01/02/2017 - 01/02/2017 ","Achat / location d'espace publicitaire ",12000]
["SESC","Presse et média ","BIOGARAN","27/02/2017","27/02/2017 - 31/12/2017 ","Achat / location d'espace publicitaire ",702]
["SESC","Presse et média ","BIOGARAN","06/03/2017","01/03/2017 - 31/03/2017 ","Achat / location d'espace publicitaire ",35260]
["QUOTIDIEN DU PHARMACIEN","Presse et média ","MYLAN SAS","20/03/2017","20/03/2017 - ","Achat de documentation scientifique ",72]
["QUOTIDIEN DU MÉDECIN","Presse et média ","Laboratoires THEA","23/03/2017","23/03/2017 - 23/03/2017 ","Achat / location d'espace publicitaire "]
["SESC","Presse et média ","LABORATOIRES JUVISE PHARMACEUTICALS","24/03/2017","10/04/2017 - 31/12/2017 ","Autre : PUBLICITE "]
["QUOTIDIEN DU MÉDECIN","Presse et média ","BIOGARAN","30/03/2017","01/05/2017 - 31/05/2017 ","Achat / location d'espace publicitaire ",12480]
["QUOTIDIEN DU MÉDECIN","Presse et média ","BIOCODEX","11/04/2017","11/04/2017 - 11/04/2017 ","Achat / location d'espace publicitaire ",6000]
["QUOTIDIEN DU MÉDECIN","Presse et média ","BIOCODEX","24/04/2017","24/04/2017 - 24/04/2017 ","Achat / location d'espace publicitaire ",20000]
["QUOTIDIEN DU MÉDECIN","Presse et média ","BIOCODEX","26/04/2017","26/04/2017 - 26/04/2017 ","Achat / location d'espace publicitaire ",6000]
["QUOTIDIEN DU MÉDECIN","Personnes morales assurant la formation initiale ou continue des professionnels de santé ","Laboratoires Leurquin Mediolanum","01/05/2017","01/05/2017 - 31/07/2017 ","Achat / location d'espace publicitaire "]
["SESC","Presse et média ","BIOGARAN","12/05/2017","18/05/2017 - 29/06/2017 ","Achat / location d'espace publicitaire",45961]
["QUOTIDIEN DU PHARMACIEN","Presse et média ","MYLAN SAS","17/05/2017","17/05/2017 - ","Autre : FRAIS DE RECEPTION ",149]
["QUOTIDIEN DU PHARMACIEN","Presse et média ","MYLAN SAS","17/05/2017","17/05/2017 - ","Autre : FRAIS DE RECEPTION ",75]
["QUOTIDIEN DU PHARMACIEN","Presse et média ","MYLAN SAS","17/05/2017","17/05/2017 - ","Autre : FRAIS DE RECEPTION ",149]
["QUOTIDIEN DU MÉDECIN","Presse et média ","Lilly France SAS","19/05/2017","19/05/2017 - ","Partenariat ",21840]
["QUOTIDIEN DU MÉDECIN","Presse et média ","Lilly France SAS","19/05/2017","19/05/2017 - ","Partenariat ",28000]
["QUOTIDIEN DU MÉDECIN","Presse et média ","Zambon France","23/05/2017","06/06/2017 - 06/06/2018 ","Autres prestations de services "]
["QUOTIDIEN DU PHARMACIEN","Presse et média ","MYLAN SAS","12/06/2017","12/06/2017 - ","Achat de documentation scientifique ",75]
["QUOTIDIEN DU PHARMACIEN","Presse et média ","MYLAN SAS","21/06/2017","21/06/2017 - ","Autre : FRAIS DE RECEPTION ",1714]
["QUOTIDIEN DU PHARMACIEN","Presse et média ","MYLAN SAS","21/06/2017","21/06/2017 - ","Autre : FRAIS DE RECEPTION ",75]
["QUOTIDIEN DU PHARMACIEN","Presse et média ","MYLAN SAS","21/06/2017","21/06/2017 - ","Autre : FRAIS DE RECEPTION ",298]
["SESC","Presse et média ","Laboratoire Kreussler pharma","23/06/2017","23/06/2017 - 23/06/2017 ","Achat / location d'espace publicitaire ",3600]
["SESC","Presse et média ","BIOGARAN","27/06/2017","01/07/2017 - 31/07/2017 ","Achat / location d'espace publicitaire ",33948]
["QUOTIDIEN DU MÉDECIN","Académies, Fondation, sociétés savantes, organismes de conseils ","COOPERATION PHARMACEUTIQUE FRANCAISE","01/07/2017","01/07/2017 - 31/12/2017 ","Autre : MARKETING "]
["SESC","Presse et média ","LEO Pharma","03/07/2017","03/07/2017 - 04/07/2017 ","Edition ",29363]
["SESC","Presse et média ","LEO Pharma","03/07/2017","03/07/2017 - 04/07/2017 ","Edition ",18610]
["SESC","Presse et média ","LEO Pharma","03/07/2017","03/07/2017 - 04/07/2017 ","Edition ",17012]
["SESC","Presse et média ","LEO Pharma","05/07/2017","05/07/2017 - 05/07/2017 ","Edition ",30880]
["SESC","Presse et média ","BIOGARAN","11/07/2017","11/07/2017 - 22/11/2017 ","Achat / location d'espaces dans le cadre d'événements scientifiques ",32000]
["QUOTIDIEN DU MÉDECIN","Presse et média ","BIOCODEX","25/07/2017","25/07/2017 - 25/07/2017 ","Edition ",30800]
["SESC","Presse et média ","BIOGARAN","25/07/2017","01/09/2017 - 30/09/2017 ","Achat / location d'espace publicitaire",40631]
["QUOTIDIEN DU MÉDECIN","Presse et média ","BIOCODEX","26/07/2017","26/07/2017 - 26/07/2017 ","Edition ",6600]
["SESC","Presse et média ","Bayer HealthCare SAS","02/08/2017","02/08/2017 - 31/01/2018 ","Autres prestations de services "]
["SESC","Presse et média ","LEO Pharma","24/08/2017","14/06/2017 - 14/06/2018 ","Autres prestations de services ",65286]
["QUOTIDIEN DU MÉDECIN","Presse et média ","Laboratoires THEA","05/09/2017","05/09/2017 - 05/09/2017 ","Achat / location d'espace publicitaire "]
["QUOTIDIEN DU MÉDECIN","Presse et média ","BIOCODEX","13/09/2017","13/09/2017 - 13/09/2017 ","Edition ",6000]
["QUOTIDIEN DU PHARMACIEN","Presse et média ","BIOCODEX","13/09/2017","13/09/2017 - 13/09/2017 ","Edition ",8715]
["QUOTIDIEN DU PHARMACIEN","Etablissement de santé ","IPSEN PHARMA","26/09/2017","01/06/2016 - 07/12/2016 ","Edition ",26036]
["QUOTIDIEN DU PHARMACIEN","Presse et média ","IPSEN PHARMA","26/09/2017","31/03/2017 - 25/04/2017 ","Edition ",4575]
["SESC","Presse et média ","BIOGARAN","04/10/2017","01/10/2017 - 31/10/2017 ","Achat / location d'espace publicitaire ",41546]
["SESC","Presse et média ","BIOGARAN","04/10/2017","02/10/2017 - 30/10/2017 ","Achat / location d'espace publicitaire ",6270]
["QUOTIDIEN DU PHARMACIEN","Presse et média ","MYLAN SAS","12/10/2017","12/10/2017 - ","Edition ",75]
["SESC","Presse et média ","MUNDIPHARMA","17/10/2017","01/10/2017 - 30/09/2018 ","Autres prestations de services "]
["QUOTIDIEN DU PHARMACIEN","Presse et média ","MYLAN SAS","18/10/2017","18/10/2017 - ","Edition ",948]
["SESC","Presse et média ","LEO Pharma","26/10/2017","26/10/2017 - 27/10/2017 ","Autres prestations de services ",6194]
["QUOTIDIEN DU PHARMACIEN","Presse et média ","Reckitt Benckiser Healthcare France","31/10/2017","16/10/2017 - ","Edition ",26060]
["QUOTIDIEN DU MÉDECIN","Presse et média ","BIOCODEX","06/11/2017","06/11/2017 - 06/11/2017 ","Edition ",20000]
["SESC","Presse et média ","BIOGARAN","10/11/2017","02/11/2017 - 30/11/2017 ","Achat / location d'espace publicitaire ",23083]
["QUOTIDIEN DU PHARMACIEN","Presse et média ","MYLAN SAS","15/11/2017","15/11/2017 - ","Edition ",75]
["QUOTIDIEN DU PHARMACIEN","Presse et média ","MYLAN SAS","15/11/2017","15/11/2017 - ","Edition ",522]
["QUOTIDIEN DU PHARMACIEN","Presse et média ","MYLAN SAS","15/11/2017","15/11/2017 - ","Edition",820]
["QUOTIDIEN DU PHARMACIEN","Presse et média ","MYLAN SAS","15/11/2017","15/11/2017 - ","Edition ",75]
["QUOTIDIEN DU PHARMACIEN","Presse et média ","MYLAN SAS","15/11/2017","15/11/2017 - ","Edition ",75]
["QUOTIDIEN DU MÉDECIN","Presse et média ","BIOCODEX","17/11/2017","17/11/2017 - 17/11/2017 ","Edition ",12000]
["SESC","Académies, Fondation, sociétés savantes, organismes de conseils ","Bayer HealthCare SAS","23/11/2017","21/11/2017 - 22/11/2017 ","Achat / location d'espaces dans le cadre d'événements scientifiques "]
["QUOTIDIEN DU PHARMACIEN","Presse et média ","BIOCODEX","28/11/2017","28/11/2017 - 28/11/2017 ","Edition ",4275]
["SESC","Presse et média ","BIOGARAN","28/11/2017","01/12/2017 - 31/12/2017 ","Achat / location d'espace publicitaire ",6847]
["QUOTIDIEN DU PHARMACIEN","Presse et média ","MYLAN SAS","29/11/2017","29/11/2017 - ","Edition ",75]
["QUOTIDIEN DU PHARMACIEN","Presse et média ","Reckitt Benckiser Healthcare France","30/11/2017","23/11/2017 - ","Edition ",13176]
["QUOTIDIEN DU PHARMACIEN","Presse et média ","MYLAN SAS","04/12/2017","04/12/2017 - ","Edition ",75]
["QUOTIDIEN DU PHARMACIEN","Presse et média ","SOCIETE D'ETUDES ET DE RECHERCHES PHARMACEUTIQUES","08/12/2017","08/12/2017 - ","Achat / location d'espace publicitaire ",4140]
["QUOTIDIEN DU PHARMACIEN","Presse et média ","MYLAN SAS","08/12/2017","08/12/2017 - ","Edition ",27930]
["QUOTIDIEN DU PHARMACIEN","Presse et média ","MYLAN SAS","08/12/2017","08/12/2017 - ","Edition ",7740]
["QUOTIDIEN DU MÉDECIN","Presse et média ","BIOCODEX","14/12/2017","14/12/2017 - 14/12/2017 ","Edition ",84999]
["QUOTIDIEN DU PHARMACIEN","Presse et média ","BIOCODEX","14/12/2017","14/12/2017 - 14/12/2017 ","Edition ",13505]
["QUOTIDIEN DU PHARMACIEN","Presse et média ","BIOCODEX","15/12/2017","15/12/2017 - 15/12/2017 ","Edition ",4389]
["SESC","Presse et média ","THERABEL LUCIEN PHARMA","18/12/2017","01/01/2018 - 28/02/2018 ","Enquête / Etude / Etude de marché (hors recherche) ",11640]
["QUOTIDIEN DU PHARMACIEN","Presse et média ","BIOCODEX","20/12/2017","20/12/2017 - 20/12/2017 ","Edition ",12303]
["QUOTIDIEN DU MÉDECIN","Presse et média ","Fresenius Medical Care France S.A.S.","27/12/2017","01/04/2018 - 30/04/2018 ","Achat / location d'espace publicitaire ",5410]
["QUOTIDIEN DU PHARMACIEN","Académies, Fondation, sociétés savantes, organismes de conseils ","COOPERATION PHARMACEUTIQUE FRANCAISE","01/01/2018","01/01/2018 - 30/06/2018 ","Autre : MARKETING "]
["SESC","Presse et média ","BIOGARAN","02/01/2018","02/01/2018 - 31/12/2018 ","Achat / location d'espace publicitaire",29255]
["QUOTIDIEN DU PHARMACIEN","Presse et média ","MYLAN SAS","10/01/2018","10/01/2018 - ","Edition ",6605]
["QUOTIDIEN DU PHARMACIEN","Presse et média ","MYLAN SAS","24/01/2018","24/01/2018 - ","Edition ",75]
["QUOTIDIEN DU PHARMACIEN","Presse et média ","Laboratoires AUVEX","26/01/2018","03/04/2018 - ","Edition "]
["SESC","Presse et média ","BIOGARAN","01/02/2018","02/01/2018 - 31/12/2018 ","Achat / location d'espace publicitaire ",19954]
["QUOTIDIEN DU MÉDECIN","Presse et média ","Laboratoire Kreussler pharma","19/02/2018","15/02/2018 - 15/02/2018 ","Autres prestations de services ",3120]
["QUOTIDIEN DU MÉDECIN","Presse et média ","DIASORIN SA","22/02/2018","22/05/2018 - 12/10/2018 ","Partenariat ",29600]
["QUOTIDIEN DU PHARMACIEN","Presse et média ","MYLAN SAS","26/02/2018","26/02/2018 - ","Edition ",298]
["QUOTIDIEN DU PHARMACIEN","Presse et média ","MYLAN SAS","26/02/2018","26/02/2018 - ","Edition ",75]
["SESC","Presse et média ","THERABEL LUCIEN PHARMA","26/02/2018","01/03/2018 - 31/03/2018 ","Enquête / Etude / Etude de marché (hors recherche) ",12480]
["SESC","Presse et média ","BIOGARAN","01/03/2018","02/01/2018 - 31/12/2018 ","Achat / location d'espace publicitaire ",15948]
["QUOTIDIEN DU MÉDECIN","Presse et média ","Laboratoire Kreussler pharma","05/03/2018","05/03/2018 - 05/03/2018 ","Achat / location d'espace publicitaire ",3120]
["QUOTIDIEN DU PHARMACIEN","Presse et média ","MYLAN SAS","07/03/2018","07/03/2018 - ","Edition ",75]
["QUOTIDIEN DU PHARMACIEN","Presse et média ","BIOCODEX","15/03/2018","15/03/2018 - 14/06/2018 ","Edition ",27515]
["SESC","Presse et média ","Laboratoire Kreussler pharma","16/03/2018","16/03/2018 - 16/03/2018 ","Achat / location d'espace publicitaire ",5586]
["QUOTIDIEN DU MÉDECIN","Presse et média ","LABORATOIRES GENEVRIER","22/03/2018","22/03/2018 - 22/03/2018 ","Contrat / expertise autre que scientifique ",7245]
["QUOTIDIEN DU PHARMACIEN","Presse et média ","MYLAN SAS","23/03/2018","23/03/2018 - ","Edition ",671]
["SESC","Presse et média ","Bayer HealthCare SAS","27/03/2018","27/03/2018 - 30/06/2018 ","Autres prestations de services "]
["SESC","Presse et média ","BIOGARAN","02/04/2018","02/01/2018 - 31/12/2018 ","Achat / location d'espace publicitaire ",12341]
["QUOTIDIEN DU PHARMACIEN","Presse et média ","MYLAN SAS","03/04/2018","03/04/2018 - ","Edition ",11880]
["QUOTIDIEN DU PHARMACIEN","Presse et média ","MYLAN SAS","04/04/2018","04/04/2018 - ","Edition",224]
["QUOTIDIEN DU PHARMACIEN","Presse et média ","LABORATOIRES GENEVRIER","08/04/2018","08/04/2018 - 18/07/2018 ","Contrat / expertise autre que scientifique ",38000]
["QUOTIDIEN DU MÉDECIN","Presse et média ","LABORATOIRES GENEVRIER","09/04/2018","08/04/2018 - 18/06/2018 ","Contrat / expertise autre que scientifique ",4050]
["QUOTIDIEN DU PHARMACIEN","Presse et média ","LABORATOIRES GENEVRIER","09/04/2018","08/04/2018 - 18/06/2018 ","Contrat / expertise autre que scientifique ",1370]
["QUOTIDIEN DU PHARMACIEN","Presse et média ","MYLAN SAS","17/04/2018","17/04/2018 - ","Edition ",149]
["QUOTIDIEN DU PHARMACIEN","Presse et média ","MYLAN SAS","17/04/2018","17/04/2018 - ","Edition ",75]
["QUOTIDIEN DU PHARMACIEN","Presse et média ","MYLAN SAS","17/04/2018","17/04/2018 - ","Edition ",522]
["QUOTIDIEN DU PHARMACIEN","Presse et média ","MYLAN SAS","17/04/2018","17/04/2018 - ","Edition ",1416]
["QUOTIDIEN DU PHARMACIEN","Presse et média ","MYLAN SAS","17/04/2018","17/04/2018 - ","Edition ",75]
["QUOTIDIEN DU PHARMACIEN","Presse et média ","MYLAN SAS","17/04/2018","17/04/2018 - ","Edition ",75]
["QUOTIDIEN DU PHARMACIEN","Presse et média ","MYLAN SAS","17/04/2018","17/04/2018 - ","Edition ",745]
["QUOTIDIEN DU PHARMACIEN","Presse et média ","MYLAN SAS","18/04/2018","18/04/2018 - ","Edition ",75]
["QUOTIDIEN DU PHARMACIEN","Presse et média ","MYLAN SAS","20/04/2018","20/04/2018 - ","Edition ",75]
["SESC","Presse et média ","Laboratoire Kreussler pharma","27/04/2018","27/04/2018 - 27/04/2018 ","Achat / location d'espace publicitaire ",5586]
["SESC","Presse et média ","Atlantic Therapeutics","17/05/2018","31/05/2018 - ","Achat / location d'espace publicitaire ",7182]
["SESC","Presse et média ","Atlantic Therapeutics","17/05/2018","15/06/2018 - ","Achat / location d'espace publicitaire ",3942]
["QUOTIDIEN DU MÉDECIN","Presse et média ","Laboratoire Kreussler pharma","31/05/2018","17/05/2018 - 17/05/2018 ","Achat / location d'espace publicitaire ",3120]
["SESC","Presse et média ","BIOGARAN","01/06/2018","02/01/2018 - 31/12/2018 ","Achat / location d'espace publicitaire ",11931]
["SESC","Académies, Fondation, sociétés savantes, organismes de conseils ","GILEAD SCIENCES","06/06/2018","26/06/2018 - ","Edition ",4235]
["QUOTIDIEN DU PHARMACIEN","Presse et média ","LABORATOIRES GENEVRIER","07/06/2018","07/06/2018 - 07/06/2018 ","Contrat / expertise autre que scientifique ",24450]
["QUOTIDIEN DU MÉDECIN","Presse et média ","Laboratoire Kreussler pharma","28/06/2018","28/06/2018 - 28/06/2018 ","Achat / location d'espace publicitaire ",3120]
["SESC","Presse et média ","Laboratoire Kreussler pharma","29/06/2018","29/06/2018 - 29/06/2018 ","Achat / location d'espace publicitaire",5586]
[]
[null,null,null,null,null,"Total",{"$f":"SUM(G2:G699)","v":2646825}]
[]
[null,null,null,null,null,"2ème semestre 2017",{"$f":"SUM(G$611:G$656)","v":650755}]
[null,null,null,null,null,"1er semestre 2018",{"$f":"SUM(G$657:G$699)","v":301846}]
[null,null,null,null,null,"12 derniers mois disponibles dans Transparence santé",{"$f":"SUM(G703:G704)","v":952601}]
[]
[]
[]
[null,null,null,null,null,"DÉCISION & STRATÉGIE SANTÉ",{"$f":"SUMIF(A$2:A$699,\"DÉCISION & STRATÉGIE SANTÉ\",G$2:G$699)","v":6360}]
[null,null,null,null,null,"QUOTIDIEN DU MÉDECIN",{"$f":"SUMIF(A$2:A$699,\"QUOTIDIEN DU MÉDECIN\",G$2:G$699)","v":1048753}]
[null,null,null,null,null,"QUOTIDIEN DU PHARMACIEN",{"$f":"SUMIF(A$2:A$699,\"QUOTIDIEN DU PHARMACIEN\",G$2:G$699)","v":998653}]
[null,null,null,null,null,"SESC",{"$f":"SUMIF(A$2:A$699,\"SESC\",G$2:G$699)","v":593059}]
[null,null,null,null,null,"Total GROUPE PROFESSION SANTE",{"$f":"SUM(G709:G712)","v":2646825}]
[null,null,null,null,null,null,null,"Nbre cvts"]
[null,null,null,null,null,"MYLAN SAS",{"$f":"SUMIF(C$2:C$699,\"MYLAN SAS\",G$2:G$699)","v":1441589},{"$f":"COUNTIF(C2:C699,\"MYLAN SAS\")","v":265}]
[null,null,null,null,null,"BIOCODEX",{"$f":"SUMIF(C$2:C$699,\"BIOCODEX\",G$2:G$699)","v":276685}]
[null,null,null,null,null,"BIOGARAN",{"$f":"SUMIF(C$2:C$699,\"BIOGARAN\",G$2:G$699)","v":368157},{"$f":"COUNTIF(C3:C700,\"BIOGARAN\")","v":26}]
[null,null,null,null,null,"LEO Pharma",{"$f":"SUMIF(C$2:C$699,\"LEO Pharma\",G$2:G$699)","v":167345},{"$f":"COUNTIF(C4:C701,\"LEO Pharma\")","v":17}]
[null,null,null,null,null,"LABORATOIRES GENEVRIER",{"$f":"SUMIF(C$2:C$699,\"LABORATOIRES GENEVRIER\",G$2:G$699)","v":95565},{"$f":"COUNTIF(C10:C707,\"JANSSEN-CILAG\")","v":15}]
[null,null,null,null,null,"Lilly France SAS",{"$f":"SUMIF(C$2:C$699,\"Lilly France SAS\",G$2:G$699)","v":93940},{"$f":"COUNTIF(C6:C703,\"GILEAD SCIENCES\")","v":13}]
[null,null,null,null,null,"IPSEN PHARMA",{"$f":"SUMIF(C$2:C$699,\"IPSEN PHARMA\",G$2:G$699)","v":30611}]
[null,null,null,null,null,"JANSSEN-CILAG",{"$f":"SUMIF(C$2:C$699,\"JANSSEN-CILAG\",G$2:G$699)","v":6360}]
[null,null,null,null,null,"GILEAD SCIENCES",{"$f":"SUMIF(C$2:C$699,\"GILEAD SCIENCES\",G$2:G$699)","v":4235},{"$f":"COUNTIF(C8:C705,\"IPSEN PHARMA\")","v":7}]
[null,null,null,null,null,"LUNDBECK SAS",{"$f":"SUMIF(C$2:C$699,\"LUNDBECK SAS\",G$2:G$699)","v":0},{"$f":"COUNTIF(C9:C706,\"LUNDBECK SASA\")","v":0}]
[null,null,null,null,null,"AbbVie",{"$f":"SUMIF(C$2:C$699,\"AbbVie\",G$2:G$699)","v":0},{"$f":"COUNTIF(C7:C704,\"AbbVie\")","v":127}]

{"sheet":"Rémunérations","index":2,"n_rows":117,"n_cols":7,"rows_kept":117,"cut":false,"hidden":false,"merged":[]}
["Entreprise","Type de bénéficiaire","Bénéficiaire","Date","Montant"]
["JANSSEN-CILAG","Académies, Fondation, sociétés savantes, organismes de conseils ","DÉCISION & STRATÉGIE SANTÉ","23/07/2016",6360]
["ROCHE DIABETES CARE FRANCE","Presse et média ","QUOTIDIEN DU MÉDECIN","23/01/2015",1170]
["MUNDIPHARMA","Presse et média ","QUOTIDIEN DU MÉDECIN","30/07/2015",18036]
["Lilly France SAS","Presse et média ","QUOTIDIEN DU MÉDECIN","20/01/2017",39600]
["JANSSEN-CILAG","Presse et média ","QUOTIDIEN DU MÉDECIN","2017-03-09",540]
["JANSSEN-CILAG","Presse et média ","QUOTIDIEN DU MÉDECIN","2017-03-09",11340]
["JANSSEN-CILAG","Presse et média ","QUOTIDIEN DU MÉDECIN","2017-03-09",10800]
["LES LABORATOIRES SERVIER","Presse et média ","QUOTIDIEN DU MÉDECIN","2017-06-05",19000]
["Lilly France SAS","Presse et média ","QUOTIDIEN DU MÉDECIN","2017-07-10",21840]
["Lilly France SAS","Presse et média ","QUOTIDIEN DU MÉDECIN","2017-07-10",11760]
["Zambon France","Presse et média ","QUOTIDIEN DU MÉDECIN","30/07/2017",199]
["Lilly France SAS","Presse et média ","QUOTIDIEN DU MÉDECIN","25/09/2017",5400]
["Lilly France SAS","Presse et média ","QUOTIDIEN DU MÉDECIN","2017-10-04",11760]
["BIOGARAN","Presse et média ","QUOTIDIEN DU MÉDECIN","15/11/2017",14976]
["LABORATOIRES GENEVRIER","Presse et média ","QUOTIDIEN DU MÉDECIN","22/03/2018",7245]
["Fresenius Medical Care France S.A.S.","Presse et média ","QUOTIDIEN DU MÉDECIN","29/03/2018",5410]
["LABORATOIRES GENEVRIER","Presse et média ","QUOTIDIEN DU MÉDECIN","2018-04-09",4050]
["DIASORIN SA","Presse et média ","QUOTIDIEN DU MÉDECIN","29/06/2018",17400]
["MYLAN SAS","Presse et média ","QUOTIDIEN DU PHARMACIEN","20/03/2017",72]
["MYLAN SAS","Presse et média ","QUOTIDIEN DU PHARMACIEN","17/05/2017",149]
["MYLAN SAS","Presse et média ","QUOTIDIEN DU PHARMACIEN","17/05/2017",149]
["MYLAN SAS","Presse et média ","QUOTIDIEN DU PHARMACIEN","17/05/2017",75]
["MYLAN SAS","Presse et média ","QUOTIDIEN DU PHARMACIEN","2017-06-12",75]
["MYLAN SAS","Presse et média ","QUOTIDIEN DU PHARMACIEN","21/06/2017",1714]
["MYLAN SAS","Presse et média ","QUOTIDIEN DU PHARMACIEN","21/06/2017",75]
["MYLAN SAS","Presse et média ","QUOTIDIEN DU PHARMACIEN","21/06/2017",75]
["MYLAN SAS","Presse et média ","QUOTIDIEN DU PHARMACIEN","2017-10-12",75]
["MYLAN SAS","Presse et média ","QUOTIDIEN DU PHARMACIEN","18/10/2017",948]
["MYLAN SAS","Presse et média ","QUOTIDIEN DU PHARMACIEN","15/11/2017",820]
["MYLAN SAS","Presse et média ","QUOTIDIEN DU PHARMACIEN","15/11/2017",522]
["MYLAN SAS","Presse et média ","QUOTIDIEN DU PHARMACIEN","15/11/2017",75]
["MYLAN SAS","Presse et média ","QUOTIDIEN DU PHARMACIEN","15/11/2017",75]
["MYLAN SAS","Presse et média ","QUOTIDIEN DU PHARMACIEN","15/11/2017",75]
["MYLAN SAS","Presse et média ","QUOTIDIEN DU PHARMACIEN","29/11/2017",75]
["MYLAN SAS","Presse et média ","QUOTIDIEN DU PHARMACIEN","2017-12-04",75]
["MYLAN SAS","Presse et média ","QUOTIDIEN DU PHARMACIEN","2017-12-08",7740]
["MYLAN SAS","Presse et média ","QUOTIDIEN DU PHARMACIEN","2017-12-08",27930]
["MYLAN SAS","Presse et média ","QUOTIDIEN DU PHARMACIEN","2018-01-10",6605]
["MYLAN SAS","Presse et média ","QUOTIDIEN DU PHARMACIEN","24/01/2018",75]
["MYLAN SAS","Presse et média ","QUOTIDIEN DU PHARMACIEN","26/02/2018",298]
["MYLAN SAS","Presse et média ","QUOTIDIEN DU PHARMACIEN","26/02/2018",75]
["MYLAN SAS","Presse et média ","QUOTIDIEN DU PHARMACIEN","2018-03-07",75]
["MYLAN SAS","Presse et média ","QUOTIDIEN DU PHARMACIEN","23/03/2018",671]
["MYLAN SAS","Presse et média ","QUOTIDIEN DU PHARMACIEN","2018-04-03",11880]
["MYLAN SAS","Presse et média ","QUOTIDIEN DU PHARMACIEN","2018-04-04",224]
["LABORATOIRES GENEVRIER","Presse et média ","QUOTIDIEN DU PHARMACIEN","2018-04-09",38000]
["LABORATOIRES GENEVRIER","Presse et média ","QUOTIDIEN DU PHARMACIEN","2018-04-09",1370]
["MYLAN SAS","Presse et média ","QUOTIDIEN DU PHARMACIEN","17/04/2018",149]
["MYLAN SAS","Presse et média ","QUOTIDIEN DU PHARMACIEN","17/04/2018",522]
["MYLAN SAS","Presse et média ","QUOTIDIEN DU PHARMACIEN","17/04/2018",1416]
["MYLAN SAS","Presse et média ","QUOTIDIEN DU PHARMACIEN","17/04/2018",745]
["MYLAN SAS","Presse et média ","QUOTIDIEN DU PHARMACIEN","17/04/2018",75]
["MYLAN SAS","Presse et média ","QUOTIDIEN DU PHARMACIEN","17/04/2018",75]
["MYLAN SAS","Presse et média ","QUOTIDIEN DU PHARMACIEN","17/04/2018",75]
["MYLAN SAS","Presse et média ","QUOTIDIEN DU PHARMACIEN","18/04/2018",75]
["MYLAN SAS","Presse et média ","QUOTIDIEN DU PHARMACIEN","20/04/2018",75]
["LABORATOIRES GENEVRIER","Presse et média ","QUOTIDIEN DU PHARMACIEN","2018-06-07",24450]
["LUNDBECK SAS","Presse et média ","SESC","20/05/2016",52000]
["AbbVie","Académies, Fondation, sociétés savantes, organismes de conseils ","SESC","27/06/2016",2960]
["AbbVie","Académies, Fondation, sociétés savantes, organismes de conseils ","SESC","27/06/2016",3529]
["AbbVie","Académies, Fondation, sociétés savantes, organismes de conseils ","SESC","2016-09-05",24415]
["Laboratoires THEA","Presse et média ","SESC","23/03/2017",2400]
["BIOGARAN","Presse et média ","SESC","2017-07-11",42312]
["BIOGARAN","Presse et média ","SESC","2017-08-01",6298]
["LEO Pharma","Presse et média ","SESC","18/08/2017",17012]
["LEO Pharma","Presse et média ","SESC","18/08/2017",6193]
["LEO Pharma","Presse et média ","SESC","18/08/2017",27974]
["BIOGARAN","Presse et média ","SESC","29/08/2017",2046]
["BIOGARAN","Presse et média ","SESC","2017-09-05",19828]
["BIOGARAN","Presse et média ","SESC","2017-09-12",12104]
["BIOGARAN","Presse et média ","SESC","25/10/2017",29028]
["BIOGARAN","Presse et média ","SESC","21/11/2017",41624]
["LEO Pharma","Presse et média ","SESC","27/11/2017",18610]
["LEO Pharma","Presse et média ","SESC","27/11/2017",30880]
["LEO Pharma","Presse et média ","SESC","2017-12-01",7034]
["BIOGARAN","Presse et média ","SESC","2017-12-04",40738]
["BIOGARAN","Presse et média ","SESC","22/12/2017",7524]
["Laboratoires THEA","Presse et média ","SESC","31/12/2017",5400]
[]
[null,null,"Total",null,{"$f":"SUM(E2:E79)","v":734519}]
[]
[]
[]
[]
[]
[null,null,"2ème semestre 2017",null,{"$f":"SUM(E64:E79)+SUM(E28:E38)+SUM(E10:E15)","v":418950}]
[null,null,"1er semestre 2018",null,{"$f":"SUM(E39:E58)+SUM(E16:E19)","v":121035}]
[null,null,"12 derniers mois disponibles",null,{"$f":"SUM(E87:E88)","v":539985}]
[]
[null,null,"2013"]
[null,null,"2014"]
[null,null,"2015"]
[null,null,"2016"]
[null,null,"2017"]
[null,null,"2018"]
[]
[]
[null,null,"DÉCISION & STRATÉGIE SANTÉ",null,{"$f":"SUMIF(C$2:C$79,\"DÉCISION & STRATÉGIE SANTÉ\",E$2:E$79)","v":6360}]
[null,null,"QUOTIDIEN DU MÉDECIN",null,{"$f":"SUMIF(C$2:C$79,\"QUOTIDIEN DU MÉDECIN\",E$2:E$79)","v":200526}]
[null,null,"QUOTIDIEN DU PHARMACIEN",null,{"$f":"SUMIF(C$2:C$79,\"QUOTIDIEN DU PHARMACIEN\",E$2:E$79)","v":127724}]
[null,null,"SESC",null,{"$f":"SUMIF(C$2:C$79,\"SESC\",E$2:E$79)","v":399909}]
[null,null,"TOTAL GROUPE PROFESSION SANTE",null,{"$f":"SUM(E99:E102)","v":734519}]
[null,null,null,null,null,"%","Cumul%"]
[null,null,"BIOGARAN",null,{"$f":"SUMIF(A$2:A$79,\"BIOGARAN\",E$2:E$79)","v":216478},{"$f":"E105/E$103","v":0.29472076283935472},{"$f":"F105","v":0.29472076283935472}]
[null,null,"LEO Pharma",null,{"$f":"SUMIF(A$2:A$79,\"LEO Pharma\",E$2:E$79)","v":107703},{"$f":"E106/E$103","v":0.14663065216828972},{"$f":"F106+G105","v":0.44135141500764441}]
[null,null,"Lilly France SAS",null,{"$f":"SUMIF(A$2:A$79,\"Lilly France SAS\",E$2:E$79)","v":90360},0.12301928200631979,{"$f":"F107+G106","v":0.56437069701396414}]
[null,null,"LABORATOIRES GENEVRIER",null,{"$f":"SUMIF(A$2:A$79,\"LABORATOIRES GENEVRIER\",E$2:E$79)","v":75115},0.10226420283205744,0.66663489984602153]
[null,null,"MYLAN SAS",null,{"$f":"SUMIF(A$2:A$79,\"MYLAN SAS\",E$2:E$79)","v":63904},8.7001153135589412E-2,0.75363605298161096]
[null,null,"LUNDBECK SAS",null,{"$f":"SUMIF(A$2:A$79,\"LUNDBECK SAS\",E$2:E$79)","v":52000},7.0794628865965339E-2,0.82443068184757629]
[null,null,"AbbVie",null,{"$f":"SUMIF(A$2:A$79,\"AbbVie\",E$2:E$79)","v":30904},4.2073792509111405E-2,0.86650447435668765]
[null,null,"JANSSEN-CILAG",null,{"$f":"SUMIF(A$2:A$79,\"JANSSEN-CILAG\",E$2:E$79)","v":29040},3.9536077351300644E-2,0.90604055170798825]
[null,null,"LES LABORATOIRES SERVIER",null,{"$f":"SUMIF(A$2:A$79,\"LES LABORATOIRES SERVIER\",E$2:E$79)","v":19000},2.5867268239487338E-2,0.93190781994747562]
[null,null,"IPSEN PHARMA",null,{"$f":"SUMIF(A$2:A$79,\"IPSEN PHARMA\",E$2:E$79)","v":0}]
[null,null,"BIOCODEX",null,{"$f":"SUMIF(A$2:A$79,\"BIOCODEXA\",E$2:E$79)","v":0}]
[]
[null,null,"GILEAD SCIENCES",null,{"$f":"SUMIF(A$2:A$79,\"GILEAD SCIENCES\",E$2:E$79)","v":0}]

{"sheet":"AVANTAGES","index":3,"n_rows":255,"n_cols":2,"rows_kept":255,"cut":false,"hidden":false,"merged":[]}
["TYPE_AVTG dans Transparence.sante.gouv.fr","TYPE_AVTG (libellé de regroupement)"]
["[Autre] : Participation Evenement Scientifique ","Congrès"]
["[Autre] inscription congrès ","Inscription"]
["[HEBERGEMENT] ","Hébergement"]
["[HOSPITALITE] ","Hospitalité"]
["[REPAS] ","Repas"]
["[TRANSPORT] ","Transport"]
["Acheminement ","Transport"]
["AUTRE ","Autre"]
["AUTRE (PRECISER) ","Autre"]
["AUTRE (PRECISER):[LOCATION DE MATERIEL] ","Autre"]
["Autre : [ Forfait journée d\u0092étude ] ","Autre"]
["Autre : [ Forfait journée d\u0092étude ou forfait congrès ] ","Congrès"]
["Autre : [ Forfait journée étude ] ","Autre"]
["Autre : [ Inscription ] ","Inscription"]
["AUTRE : [ACCOMPAGNEMENT] ","Autre"]
["AUTRE : [CONTRAT DE PARTENARIAT - LOCATION DE STAND] ","Congrès"]
["AUTRE : [COUTS PAR CENTRE] ","Autre"]
["AUTRE : [DEDOMMAGEMENT] ","Autre"]
["Autre : [DEJEUNER REUNION] ","Repas"]
["AUTRE : [DON EN NATURE] ","Autre"]
["Autre : [don] ","Autre"]
["AUTRE : [DONS] ","Autre"]
["Autre : [ECHANTILLON] ","Autre"]
["Autre : [Forfait] ","Autre"]
["Autre : [Formation] ","Autre"]
["Autre : [FRAIS D'INSCRIPTION] ","Inscription"]
["Autre : [HONORAIRE] ","Autre"]
["Autre : [Honoraires PdS] ","Autre"]
["Autre : [Honoraires] ","Repas"]
["Autre : [Hospitalité Evenement Scientifique] ","Hospitalité"]
["AUTRE : [HOSPITALITE] ","Hospitalité"]
["AUTRE : [INSCRIPTION CONGRÈS SCIENTIFIQUE] ","Inscription"]
["Autre : [Inscription Evenement Scientifique] ","Inscription"]
["Autre : [Inscription] ","Inscription"]
["Autre : [Location de stand] ","Congrès"]
["Autre : [note de frais] ","Autre"]
["Autre : [Notes de frais] ","Autre"]
["AUTRE : [PARTICIPATION EVENEMENT SCIENTIFIQUE] ","Congrès"]
["AUTRE : [PAUSE] ","Autre"]
["Autre : [Remboursement de frais] ","Autre"]
["AUTRE : [REMBOURSEMENT FRAIS LOGISTIQUE] ","Autre"]
["Autre : [Remis Publication scientifique] ","Autre"]
["Autre : [rémunération] ","Repas"]
["Autre : [Restauration] ","Repas"]
["Autre : [stand] ","Congrès"]
["Autre : cheque ","Autre"]
["AUTRE : CONGRES ","Autre"]
["AUTRE : DEJEUNER ","Repas"]
["AUTRE : DEUX PAUSES ","Repas"]
["AUTRE : DINER ","Repas"]
["AUTRE : DON DE MÉDICAMENT ","Autre"]
["autre : enquête internet ","Autre"]
["autre : enquête téléphonique ","Autre"]
["AUTRE : FORMATION MEDICALE CONTINUE ","Autre"]
["AUTRE : FRAIS DE RESTAURATION / RP ","Repas"]
["Autre : Frais d'inscription Congres ","Inscription"]
["Autre : Frais d'inscription Congrès ","Inscription"]
["AUTRE : HONORAIRE ","Autre"]
["AUTRE : HONORAIRE CONFERENCE TELEPHONIQUE ","Autre"]
["AUTRE : HONORAIRES ","Autre"]
["AUTRE : HONORAIRES CONFERENCE TELEPHONIQUE ","Autre"]
["AUTRE : HONORAIRES ETUDES ","Autre"]
["AUTRE : HONORAIRES REUNION ","Autre"]
["AUTRE : HOSPITALITE CONGRES ","Congrès"]
["AUTRE : HOSPITALITE STAFF ","Hospitalité"]
["Autre : Indemnite ","Autre"]
["Autre : Inscription ","Inscription"]
["Autre : LOCATION STAND ","Autre"]
["AUTRE : PRÊT ","Autre"]
["AUTRE : RELATIONS NORMALES DE TRAVAIL ","Autre"]
["AUTRE : REMBOURSEMENT DE FRAIS ","Autre"]
["AUTRE : REMUNERATION ","Autre"]
["AUTRE : REPAS PROFESSIONNEL ","Repas"]
["Autre : repas STAFF ","Repas"]
["AUTRE : REUNION ","Autre"]
["AUTRE : RNT ","Autre"]
["AUTRE : STAFF ","Repas"]
["AUTRE : STAND CONGRES ","Congrès"]
["Autre : Supports formation ","Autre"]
["Autre : surcoûts direction hospitalière ","Autre"]
["AUTRE :REMUNERATION ","Autre"]
["AUTRE [DINER REUNION] ","Repas"]
["AUTRE [DONS] ","Autre"]
["AUTRE [ENQUETE] ","Autre"]
["AUTRE [FRAIS D INSCRIPTION] ","Inscription"]
["AUTRE [INSCRIPTION] ","Inscription"]
["AUTRE [PAUSE] ","Autre"]
["AUTRE [RESTAURATION STAFF] ","Repas"]
["AUTRE: [DON] ","Autre"]
["AUTRE: [DONS] ","Autre"]
["Autre: [Enquête] ","Autre"]
["AUTRE: [HEBERGEMENT ET RESTAURATIONS] ","Hébergement"]
["AUTRE: [INSCRIPTION] ","Inscription"]
["AUTRE: [LIVRE A BUT PEDAGOGIQUE] ","Autre"]
["AUTRE: COLLATION ","Repas"]
["AUTRE: COLLATION/COLLATION ","Repas"]
["AUTRE: CONGRES/COCKTAIL ","Repas"]
["AUTRE: CONGRES/INSCRIPTION ","A définir"]
["AUTRE: DEJEUNER ","Repas"]
["AUTRE: DEJEUNER/DINER ","Repas"]
["AUTRE: DEJEUNER/RESTO ITALIEN BON ","Repas"]
["Autre: Don ","Autre"]
["AUTRE: HOSPITALITE ","Hospitalité"]
["AUTRE: INDEMNITE ","Autre"]
["AUTRE: INSCRIPTION ","Inscription"]
["Autre: Phone consult ","Autre"]
["AUTRE: SOIREE ","Hospitalité"]
["AUTRE: SOIREE/SOIREE ","Autre"]
["AUTRE: STAFF ","Repas"]
["AUTRE: VISITE/(2 X GO-ON 25MG) ","Autre"]
["AUTRE: VISITE/(3 X GO-ON 25MG) ","Autre"]
["AUTRE: VISITE/GO-ON 25MG ","Autre"]
["AUTRE:[FRAIS D'INSCRIPTION] ","Inscription"]
["AUTRE:[FRAIS FIXES CONVENTION] ","Autre"]
["Autre:[REMUNERATION] ","Autre"]
["AUTRE:[SURCOUTS HOSPITALIERS] ","Autre"]
["AUTRE:RECHERCHE ","Autre"]
["Autre[HONORAIRES] ","Autre"]
["Autre[inscription congrès] ","Congrès"]
["AUTRES ","Autre"]
["AUTRES : REMBOURSEMENT DE FRAIS ","Autre"]
["AUTRES: INSCRIPTION ","Inscription"]
["CADEAUX ","Autre"]
["COLLATION ","Repas"]
["COLLATION/COLLATION ","Repas"]
["CONGRES/ACHEMINEMENT (AVION) ","Transport"]
["CONGRES/DEJEUNERS / DINERS (4) ","Repas"]
["CONGRES/HEBERGEMENT ","Hébergement"]
["CONGRES/HEBERGEMENT (1 NUITEES) ","Hébergement"]
["CONGRES/HEBERGEMENT (2 NUITEES) ","Hébergement"]
["CONGRES/HEBERGEMENT 3 NUITS ","Hébergement"]
["CONGRES/INSCRIPTION ","Inscription"]
["CONGRES/REPAS 12.06.13 ","Repas"]
["CONGRES/REPAS 13.06.13 ","Repas"]
["CONGRES/REPAS 14.06.13 ","Repas"]
["CONGRES/REPAS X3 ","Repas"]
["conseil ","Autre"]
["Conseil - Intervention Ponctuelle ","Autre"]
["Dédommagement ","Autre"]
["DEJEUNER ","Repas"]
["déjeuner ","Repas"]
["DEJEUNER/DEJEUNER ","Repas"]
["DEJEUNER/REPAS ","Repas"]
["Déplacement ","Transport"]
["DINER ","Repas"]
["Dîner ","Repas"]
["DOCUMENTATION ","Autre"]
["Don ","Autre"]
["DON / SUBVENTION ","Autre"]
["DON DE MATERIEL POUR ETUDE CLINIQUE ","Autre"]
["DONS ","Autre"]
["Dons de fonctionnement ","Autre"]
["DONS DE FONCTIONNEMENT (RÉMUNÉRATION LIÉE À DES ACTIVITÉS DE RECHERCHE) ","Autre"]
["DONS DE FONCTIONNEMENT / RECHERCHE ","Autre"]
["DONS DE MATERIEL ","Autre"]
["Dons de matériel ","Autre"]
["Droits d'auteur pris en charge par UCB ","Autre"]
["Echantillon récipient de cryoconservation Nalgene Mister Frosty ","Autre"]
["enquête ","Autre"]
["EPU ","Repas"]
["EPU/DINER ","Repas"]
["EPU/EPU ","Congrès"]
["EPU/REPAS ","Repas"]
["FRAIS DE BOUCHE ","Repas"]
["Frais de dÃƒÂ©placement ","Transport"]
["FRAIS DE DEPLACEMENT ","Transport"]
["FRAIS DE RESTAURATION ","Repas"]
["FRAIS D'HOSPITALITÉ ","Hospitalité"]
["FRAIS D'INSCRIPTION ","Inscription"]
["Frais d'inscription à une réunion scientifique ","Inscription"]
["FRAIS RELATIFS A LA RECHERCHE IMPLIQUANT LA PERSONNE HUMAINE ","Autre"]
["Frais remboursés (transport) ","Transport"]
["H‚bergement ","Hébergement"]
["HÃ©bergement ","Hébergement"]
["HÃ‰BERGEMENT ","Hébergement"]
["HÃƒÂ©bergement ","Hébergement"]
["HE\u0090BERGEMENT ","Hospitalité"]
["HEBERGEMENT ","Hébergement"]
["Hébergement ","Hébergement"]
["Hébérgement ","Hébergement"]
["HEBERGEMENT SUR TOUTE LA DUREE DU CONGRES ","Hébergement"]
["Hébergement, restauration, transport ","Hospitalité"]
["Honoraire + hospitalité ","Hospitalité"]
["HONORAIRE HCP ","Autre"]
["HONORAIRES ","Autre"]
["Honoraires de consultant ","Autre"]
["HOSPITALITE ","Hospitalité"]
["HOSPITALITÉ ","Hospitalité"]
["HOSPITALITE - RELATIONS NORMALES DE TRAVAIL ","Hospitalité"]
["Hospitalité [ transport/repas/Hébergement] ","Hospitalité"]
["HOSPITALITE CONGRES ","Hospitalité"]
["Hospitalité Congrès Symposium ","Congrès"]
["HOSPITALITE REUNION PROFESSIONNELLE ","Hospitalité"]
["HOSPITALITE SITES PIERRE FABRE ","Hospitalité"]
["HOSPITALITE STAFF ","Hospitalité"]
["INCRIPTION ","Inscription"]
["INDEMNITE ","Autre"]
["INSCRIPTION ","Inscription"]
["Inscription à un congrès ","Congrès"]
["INSCRIPTION CONGRES ","Inscription"]
["Inscription congrès ","Congrès"]
["Inscription Evenement Scientifique ","Inscription"]
["INSCRIPTION_REPAS_TRANSPORT_HEBERGEMENT ","Hospitalité"]
["INVITATIONS ","Autre"]
["Logement ","Hébergement"]
["MISE A DISPOSITION DE MATERIEL POUR RECHERCHE CLINIQUE ","Autre"]
["MISE A DISPOSITION DE MATERIELS POUR RECHERCHES ","Autre"]
["OPPORTUNITE ","Autre"]
["Participation Evenement Scientifique ","Congrès"]
["PAUSE ","Autre"]
["PAUSE CAFE ","Repas"]
["PAUSES ","Autre"]
["Prestation en tant que formateur et orateur ","Autre"]
["PRESTATION SERVICE ","Autre"]
["RECHERCHE ","Autre"]
["RECHERCHE - MISE A DISPOSITION DE MATERIEL ","Autre"]
["REMUNERATION ","Autre"]
["REPAS","Repas"]
["Repas ","Repas"]
["répas ","Repas"]
["Repas & Voyage de Train ","Hospitalité"]
["REPAS CONGRES ","Repas"]
["REPAS ET TRANSPORT ","Autre"]
["REPAS FORMATION ","Repas"]
["REPAS IMPROMPTU ","Repas"]
["REPAS MANIFESTATION DE FORMATION ","Repas"]
["REPAS PROFESSIONNEL ","Repas"]
["REPAS RELATION NORMALE DE TRAVAIL ","Repas"]
["REPAS REUNION ","Repas"]
["REPAS REUNION HOSPITALIERE ","Repas"]
["REPAS RÉUNION HOSPITALIÈRE ","Repas"]
["REPAS REUNION SCIENTIFIQUE ","Repas"]
["REPAS RÉUNION SCIENTIFIQUE ","Repas"]
["REPAS SUR TOUTE LA DUREE DU CONGRES ","Repas"]
["Restauration ","Repas"]
["Restauration / Dïner ","Repas"]
["Restauration / Pauses ","Repas"]
["SOIREE ","Repas"]
["SOIREE/REPAS ","Repas"]
["SOIREE/RP ","Autre"]
["SOUTIEN A L EDUCATION THERAPEUTIQUE ","Autre"]
["STAFF ","Autre"]
["Taxonomie EFPIA ","Autre"]
["TRANBSPORT ","Transport"]
["TRANSFERT ","Transport"]
["TRANSFERT-REPAS(DINER) ","Repas"]
["Transport ","Transport"]
["TRANSPORT ALLER/RETOUR -REPAS(DINER-DEJEUNER-PAUSES)-HEBERGEMENT-TRANSFERT ","Hospitalité"]
["TRANSPORT ALLER/RETOUR -REPAS(DINERS-DEJEUNERS-PAUSES)-HEBERGEMENT-TRANSFERT ","Hospitalité"]
["Transport pris en charge par UCB ","Transport"]
["TRANSPORT taxi ","Transport"]
["VISITE/(2 X GO-ON 25MG) ","Autre"]
["VISITE/(3 X GO-ON 25MG) ","Autre"]
["VISITE/GO-ON 25MG ","Autre"]

{"sheet":"CONVENTIONS","index":4,"n_rows":945,"n_cols":2,"rows_kept":945,"cut":false,"hidden":false,"merged":[]}
["TYPE_CONVENTION dans Transparence.sante.gouv.fr","TYPE_CONVENTION (libellé de regroupement)"]
["[AUTRE] : [COLLABORATION SCIENTIFIQUE] ","Expert"]
["[AUTRE] : [CONVENTION HOSPITALITE]","Hospitalité"]
["[AUTRE] : [CONVENTION HOSPITALITE] ","Hospitalité"]
["[BOARD EXPERTS] ","Réunion de « Board »"]
["[FORMATION] ","Autre"]
["[MARKETING]","Etude de marché"]
["[MARKETING] ","Etude de marché"]
["[ORATEUR] ","Orateur"]
["[ORATEURS MODERATEURS]","Orateur"]
["[ORATEURS MODERATEURS] ","Orateur"]
["[REUNION INFORMATION MEDICALE] ","Réunion professionnelle"]
["26E CONGRES FRANÇAIS DE RHUMATOLOGIE ","Réunion professionnelle"]
["ACCORD DE COOPERATION ","Expert"]
["Achat / location d'espace publicitaire","Conseil"]
["Achat / location d'espace publicitaire ","Autre"]
["Achat / location d'espaces dans le cadre d'événements scientifiques","Autre"]
["Achat / location d'espaces dans le cadre d'événements scientifiques ","Autre"]
["Achat de documentation scientifique ","Conseil"]
["AMERICAN COLLEGE OF RHEUMATHOLOGY ACR/ARHP ANNUAL MEETING 2012 ","Réunion professionnelle"]
["ANNUAL EUROPEAN CONGRESS OF RHEUMATOLOGY ","Réunion professionnelle"]
["ASSISES BARCELONE ","Réunion professionnelle"]
["ATELIERS SIMS ","Réunion professionnelle"]
["AUTRE","Autre"]
["AUTRE ","Autre"]
["Autre : ","Autre"]
["Autre : \"CONTRAT D'ORATEUR\" ","Orateur"]
["Autre : [ Collaboration Scientifique ]","Expert"]
["Autre : [ Collaboration Scientifique ] ","Expert"]
["AUTRE : [ CONSEIL / EXPERTISE SCIENTIFIQUE ] ","Conseil"]
["Autre : [ EPU ]","Réunion professionnelle"]
["Autre : [ EPU ] ","Réunion professionnelle"]
["Autre : [ Expert ]","Expert"]
["Autre : [ Expert ] ","Expert"]
["AUTRE : [ HOSPITALITE ]","Hospitalité"]
["AUTRE : [ HOSPITALITE ] ","Hospitalité"]
["Autre : [ hospitalité ] ","Hospitalité"]
["Autre : [ hospitalité liée à une manifestation scientifique ]","Hospitalité"]
["Autre : [ hospitalité liée à une manifestation scientifique ] ","Hospitalité"]
["Autre : [ Manifestation professionnelle ]","Réunion professionnelle"]
["Autre : [ Manifestation professionnelle ] ","Réunion professionnelle"]
["Autre : [ Orateur / Intervenant ]","Orateur"]
["Autre : [ Orateur / Intervenant ] ","Orateur"]
["Autre : [ Orateur ] ","Orateur"]
["Autre : [ Partenariat ] ","Autre"]
["Autre : [ Prestation ] ","Conseil"]
["Autre : [ R‚union professionnelle ]","Réunion professionnelle"]
["Autre : [ R‚union professionnelle ] ","Réunion professionnelle"]
["Autre : [ R\u0082union professionnelle ]","Réunion professionnelle"]
["Autre : [ R\u0082union professionnelle ] ","Réunion professionnelle"]
["Autre : [ Reunion professionnelle ]","Réunion professionnelle"]
["Autre : [ Réunion professionnelle ]","Réunion professionnelle"]
["Autre : [ Reunion professionnelle ] ","Réunion professionnelle"]
["Autre : [ Réunion professionnelle ] ","Réunion professionnelle"]
["Autre : [AUTRE: PRESTATION DE SERVICES] ","Conseil"]
["Autre : [AUTRE] : [CONTRAT DE COLLABORATION] ","Autre"]
["Autre : [AUTRE] : [CONVENTION HOSPITALITE] ","Hospitalité"]
["Autre : [BOARD EXPERTS] ","Expert"]
["Autre : [collaboration scientifique] ","Expert"]
["Autre : [Communication scientifique]","Expert"]
["Autre : [Communication scientifique] ","Conseil"]
["Autre : [Consultant (HCP)]","Conseil"]
["Autre : [Consultant (HCP)] ","Conseil"]
["Autre : [Consultant] ","Conseil"]
["Autre : [Contrat autre]","Autre"]
["Autre : [Contrat autre] ","Autre"]
["AUTRE : [CONTRAT DE COLLABORATION SCIENTIFIQUE]","Expert"]
["AUTRE : [CONTRAT DE COLLABORATION SCIENTIFIQUE] ","Expert"]
["AUTRE : [CONTRAT DE CONSEIL & PRESTATION]","Conseil"]
["AUTRE : [CONTRAT DE CONSEIL & PRESTATION] ","Conseil"]
["Autre : [Contrat de consultant] ","Conseil"]
["AUTRE : [CONTRAT DE PARTENARIAT - LOCATION DE STAND]","Réunion professionnelle"]
["AUTRE : [CONTRAT DE PARTENARIAT - LOCATION DE STAND] ","Réunion professionnelle"]
["AUTRE : [CONTRAT DE PARTENARIAT] ","Autre"]
["AUTRE : [CONTRAT D'ORATEUR]","Orateur"]
["AUTRE : [CONTRAT D'ORATEUR] ","Orateur"]
["Autre : [CONTRAT ORATEUR] ","Orateur"]
["Autre : [CONTRAT_DE_PRESTATIONS_DE_SERVICES] ","Conseil"]
["AUTRE : [CONVENTION D HOSPITALITE]","Hospitalité"]
["AUTRE : [CONVENTION D HOSPITALITE] ","Hospitalité"]
["Autre : [Convention d’Hospitalité] ","Hospitalité"]
["Autre : [Convention de consultant] ","Conseil"]
["Autre : [CONVENTION D'HOSPITALITE]","Hospitalité"]
["Autre : [Convention d'Hospitalité]","Hospitalité"]
["Autre : [CONVENTION D'HOSPITALITE] ","Hospitalité"]
["Autre : [Convention d'hospitalité] ","Hospitalité"]
["AUTRE : [CONVENTION HOSPITALITE] ","Hospitalité"]
["Autre : [Convention Orateur] ","Orateur"]
["AUTRE : [CONVENTION SANS REMUNERATION]. ","Autre"]
["AUTRE : [DONS] ","Autre"]
["Autre : [entretien]","Etude de marché"]
["Autre : [entretien] ","Etude de marché"]
["Autre : [Espace publicitaire]","Autre"]
["Autre : [Espace publicitaire] ","Autre"]
["AUTRE : [ETUDE CLINIQUE] ","Recherche Clinique"]
["Autre : [ETUDE DE MARCHE] ","Etude de marché"]
["Autre : [EXPERT CONSULTANT] ","Expert"]
["Autre : [Expertise] ","Expert"]
["Autre : [Face face] ","Autre"]
["AUTRE : [HOSPITALITÉ EVENEMENT SCIENTIFIQUE] ","Hospitalité"]
["Autre : [Hospitalité Evenement]","Hospitalité"]
["AUTRE : [HOSPITALITE EVENEMENT] ","Hospitalité"]
["Autre : [Hospitalité Evenement] ","Hospitalité"]
["Autre : [Hospitalité Genzyme] ","Hospitalité"]
["Autre : [Hospitalité] ","Hospitalité"]
["AUTRE : [INTERVENANT]","A définir"]
["AUTRE : [INTERVENANT] ","Orateur"]
["Autre : [Invitation individuelle]","Autre"]
["Autre : [Invitation individuelle] ","Autre"]
["Autre : [Location de stand / Congrès / Autre] ","Réunion professionnelle"]
["Autre : [Marketing]","Etude de marché"]
["Autre : [Marketing] ","Etude de marché"]
["Autre : [Opération SA/Journée-Soirée] ","Autre"]
["Autre : [Opérations Genzyme] ","Autre"]
["Autre : [Orateur]","Orateur"]
["Autre : [Orateur] ","Orateur"]
["Autre : [ORATEURS MODERATEURS]","Orateur"]
["AUTRE : [PARTENARIAT] ","Autre"]
["AUTRE : [PARTICIPATION RÉUNION SCIENTIFIQUE]","Réunion professionnelle"]
["AUTRE : [PARTICIPATION RÉUNION SCIENTIFIQUE] ","Réunion professionnelle"]
["AUTRE : [PARTICIPATION R�ION SCIENTIFIQUE]","Réunion professionnelle"]
["AUTRE : [PARTICIPATION R�ION SCIENTIFIQUE] ","Réunion professionnelle"]
["AUTRE : [PRESTATION DE SERVICE] ","Conseil"]
["Autre : [Recherche biomédicale]","Recherche Clinique"]
["Autre : [Recherche biomédicale] ","Recherche Clinique"]
["Autre : [Recherche/Développement]","Recherche Clinique"]
["Autre : [Recherche/Développement] ","Recherche Clinique"]
["Autre : [RECHERCHE] ","Recherche Clinique"]
["Autre : [Rédaction d'articles scientifiques] ","Rédacteur"]
["Autre : [Repas] ","Hospitalité"]
["Autre : [Réunion]","Réunion professionnelle"]
["Autre : [Réunion] ","Réunion professionnelle"]
["Autre : [RP Prédéclarée Hospitalité] ","Hospitalité"]
["AUTRE : [RP Table ronde actu Rhumatologie] ","Réunion professionnelle"]
["AUTRE : [RP TFI] ","Orateur"]
["Autre : [STAFF]","Réunion professionnelle"]
["Autre : [STAFF] ","Réunion professionnelle"]
["AUTRE : [STAND/TABLE] ","Réunion professionnelle"]
["Autre : 11EMES BIENNALES MONEGASQUES ","Réunion professionnelle"]
["Autre : 3116001; site 101; ","Autre"]
["Autre : ABONNEMENT","Autre"]
["Autre : ABONNEMENT ","Autre"]
["Autre : ABONNEMENT PRESSE PROFESSIONNELLE ","Autre"]
["Autre : Accord d'Orateur","Orateur"]
["Autre : Accord d'Orateur ","Orateur"]
["Autre : ACHAT / LOCATION DE STAND ","Autre"]
["Autre : achat d'espace publicitaire01/ ","Conseil"]
["Autre : ACHAT/LOCATION DE STAND ","Autre"]
["Autre : Achats d'espaces publicitaires ","Conseil"]
["Autre : Auteur - rédacteur ","Rédacteur"]
["Autre : AUTRE","Autre"]
["Autre : AUTRE ","Autre"]
["Autre : AUTRE - PRECISER EN COLONNE AK ","Autre"]
["Autre : AUTRE / HOSPITALITES ","Hospitalité"]
["Autre : AUTRE / STAND","Réunion professionnelle"]
["Autre : AUTRE / STAND ","Autre"]
["Autre : Autre : ","Autre"]
["Autre : AUTRE : [ CONSEIL / EXPERTISE SCIENTIFIQUE ] ","Conseil"]
["Autre : Autre : [ CONVENTION_D_HOSPITALITÉ ] ","Hospitalité"]
["Autre : Autre : [ CONVENTION_DE_BOARD ] ","Réunion de « Board »"]
["Autre : Autre : [ EPU ] ","Réunion professionnelle"]
["Autre : Autre : [ Expert ]","Expert"]
["Autre : Autre : [ Expert ] ","Expert"]
["Autre : AUTRE : [ HOSPITALITE ] ","Hospitalité"]
["Autre : Autre : [ hospitalité liée à une manifestation scientifique ] ","Hospitalité"]
["Autre : Autre : [ Location de stand ] ","Réunion professionnelle"]
["Autre : Autre : [ Manifestation professionnelle ]","Réunion professionnelle"]
["Autre : Autre : [ Manifestation professionnelle ] ","Réunion professionnelle"]
["Autre : Autre : [ Orateur / Intervenant ]","Orateur"]
["Autre : Autre : [ Orateur / Intervenant ] ","Orateur"]
["Autre : Autre : [ Parrainage ] ","Autre"]
["Autre : Autre : [ Partenariat ] ","Autre"]
["Autre : Autre : [ Prestation ] ","Conseil"]
["Autre : AUTRE : [ RECHERCHE SCIENTIFIQUE ] ","Recherche Clinique"]
["Autre : Autre : [ Reunion professionnelle ]","Réunion professionnelle"]
["Autre : Autre : [ Réunion professionnelle ]","Réunion professionnelle"]
["Autre : Autre : [ Reunion professionnelle ] ","Réunion professionnelle"]
["Autre : Autre : [ Réunion professionnelle ] ","Réunion professionnelle"]
["Autre : AUTRE : [ABONNEMENT]","Autre"]
["Autre : AUTRE : [ABONNEMENT] ","Autre"]
["Autre : Autre : [Autre] ","Autre"]
["Autre : AUTRE : [AUTRE]: COMMUNICATION ","Conseil"]
["Autre : AUTRE : [AVENANT ENQUETE] ","Etude de marché"]
["Autre : Autre : [collaboration scientifique à titre gratuit] ","Expert"]
["Autre : Autre : [Collaboration Scientifique non remuneree] ","Expert"]
["Autre : AUTRE : [COLLABORATION SCIENTIFIQUE]","Expert"]
["Autre : Autre : [Collaboration Scientifique] ","Expert"]
["Autre : Autre : [Communication scientifique]","Expert"]
["Autre : Autre : [Communication scientifique] ","Expert"]
["Autre : Autre : [Conseil communication] ","Conseil"]
["Autre : Autre : [Consultant (HCP)]","Conseil"]
["Autre : Autre : [Consultant (HCP)] ","Conseil"]
["Autre : AUTRE : [CONSULTANT] ","Conseil"]
["Autre : Autre : [Contrat autre] ","Autre"]
["Autre : AUTRE : [CONTRAT DE COLLABORATION SCIENTIFIQUE] ","Expert"]
["Autre : AUTRE : [CONTRAT DE COLLABORATION] ","Expert"]
["Autre : Autre : [Contrat de conseil & prestation]","Conseil"]
["Autre : AUTRE : [CONTRAT DE CONSEIL & PRESTATION] ","Conseil"]
["Autre : Autre : [Contrat de conseilprestation] ","Conseil"]
["Autre : Autre : [CONTRAT DE CONSULTANT] ","Conseil"]
["Autre : AUTRE : [CONTRAT DE PARTENARIAT - LOCATION DE STAND] ","Réunion professionnelle"]
["Autre : AUTRE : [CONTRAT DE PARTENARIAT]","Autre"]
["Autre : AUTRE : [CONTRAT DE PARTENARIAT] ","Autre"]
["Autre : Autre : [Contrat de recherche] ","Recherche Clinique"]
["Autre : AUTRE : [CONTRAT D'ORATEUR] ","Orateur"]
["Autre : Autre : [CONTRAT_DE_PRESTATIONS_DE_SERVICES] ","Conseil"]
["Autre : Autre : [Convention d ’Hospitalite] ","Hospitalité"]
["Autre : AUTRE : [CONVENTION D HOSPITALITE] ","Hospitalité"]
["Autre : Autre : [Convention d’Hospitalite]","Hospitalité"]
["Autre : Autre : [Convention d’Hospitalite] ","Hospitalité"]
["Autre : Autre : [Convention d’Hospitalité] ","Hospitalité"]
["Autre : Autre : [Convention d\u0092Hospitalité] ","Hospitalité"]
["Autre : Autre : [Convention de consultant] ","Conseil"]
["Autre : Autre : [Convention de partenariat]","Autre"]
["Autre : Autre : [Convention de partenariat] ","Autre"]
["Autre : Autre : [CONVENTION D'HOSPITALITE] ","Hospitalité"]
["Autre : Autre : [Convention d'Hospitalité] ","Hospitalité"]
["Autre : AUTRE : [CONVENTION HOSPITALITE] ","Hospitalité"]
["Autre : Autre : [Convention mécénat]","Autre"]
["Autre : Autre : [Convention mécénat] ","Autre"]
["Autre : AUTRE : [CONVENTION PRESTATION DE SERVICE] ","Conseil"]
["Autre : Autre : [Conventiond'hospitalité] ","Hospitalité"]
["Autre : AUTRE : [DROIT A L IMAGE] ","Autre"]
["Autre : AUTRE : [ENQUETE] ","Etude de marché"]
["Autre : Autre : [entretien]","Etude de marché"]
["Autre : Autre : [entretien] ","Etude de marché"]
["Autre : Autre : [Espace publicitaire] ","Conseil"]
["Autre : AUTRE : [ETUDE CLINIQUE]","Recherche Clinique"]
["Autre : AUTRE : [ETUDE CLINIQUE] ","Recherche Clinique"]
["Autre : AUTRE : [ETUDE DE MARCHE] ","Etude de marché"]
["Autre : Autre : [EXPERT CONSULTANT] ","Expert"]
["Autre : Autre : [Expertise]","Expert"]
["Autre : Autre : [Expertise] ","Expert"]
["Autre : Autre : [HONORAIRES ou CONTRAT] ","Autre"]
["Autre : Autre : [HONORAIRES] ","Autre"]
["Autre : Autre : [Hospitalité Evenement Scientifique] ","Réunion professionnelle"]
["Autre : Autre : [Hospitalité Evenement]","Hospitalité"]
["Autre : AUTRE : [HOSPITALITE EVENEMENT] ","Hospitalité"]
["Autre : Autre : [Hospitalité Evenement] ","Hospitalité"]
["Autre : Autre : [HOSPITALITE] ","Hospitalité"]
["Autre : Autre : [Hospitalité] ","Hospitalité"]
["Autre : AUTRE : [INSERTION PLEINE PAGE REVUE GUIDE PHARMA SANTE] ","Conseil"]
["Autre : AUTRE : [INSERTION PRESSE DANS REVUE EDITION SPECIALE NEPHROLOGIE QUOTIDIEN DU MEDECIN] ","Conseil"]
["Autre : AUTRE : [INTERVENANT] ","Orateur"]
["Autre : Autre : [Lettre/mail Intervenant] ","Autre"]
["Autre : AUTRE : [LOCATION DE STAND]","Réunion professionnelle"]
["Autre : AUTRE : [LOCATION DE STAND] ","Réunion professionnelle"]
["Autre : AUTRE : [LOCATION ESPACE DE CONFERENCE]","Autre"]
["Autre : AUTRE : [LOCATION ESPACE DE CONFERENCE] ","Autre"]
["Autre : AUTRE : [LOCATION ESPACE STAND]","Réunion professionnelle"]
["Autre : AUTRE : [LOCATION ESPACE STAND] ","Réunion professionnelle"]
["Autre : AUTRE : [MANIFESTATION]","Réunion professionnelle"]
["Autre : AUTRE : [MANIFESTATION] ","Réunion professionnelle"]
["Autre : Autre : [Opération SA/Journée-Soirée] ","Hospitalité"]
["Autre : Autre : [Orateur]","Orateur"]
["Autre : Autre : [Orateur] ","Orateur"]
["Autre : Autre : [Partenariat / Collaboration scientifique]","Autre"]
["Autre : Autre : [Partenariat / Collaboration scientifique] ","Expert"]
["Autre : Autre : [Partenariat scientifique] ","Autre"]
["Autre : AUTRE : [PARTENARIAT/STAND] ","Réunion professionnelle"]
["Autre : Autre : [PARTENARIAT] ","Autre"]
["Autre : AUTRE : [PARTICIPATION RÉUNION SCIENTIFIQUE]","Réunion professionnelle"]
["Autre : AUTRE : [PARTICIPATION RÉUNION SCIENTIFIQUE] ","Réunion professionnelle"]
["Autre : AUTRE : [PARTICIPATION R�ION SCIENTIFIQUE]","Autre"]
["Autre : AUTRE : [PARTICIPATION R�ION SCIENTIFIQUE] ","Réunion professionnelle"]
["Autre : Autre : [Presse Scientifique] ","Conseil"]
["Autre : Autre : [Prestation de service (société de conseil)] ","Conseil"]
["Autre : AUTRE : [PRESTATION DE SERVICE] ","Conseil"]
["Autre : AUTRE : [PRESTATION DE SERVICES] ","Conseil"]
["Autre : AUTRE : [PRESTATIONS DE SERVICE] ","Conseil"]
["Autre : AUTRE : [PRESTATIONS DE SERVICES]","Conseil"]
["Autre : AUTRE : [PRESTATIONS DE SERVICES] ","Conseil"]
["Autre : AUTRE : [PROJET] ","Autre"]
["Autre : Autre : [Recherche biomédicale] ","Recherche Clinique"]
["Autre : Autre : [Recherche/Développement]","Recherche Clinique"]
["Autre : Autre : [Recherche/Développement] ","Recherche Clinique"]
["Autre : Autre : [Repas] ","Autre"]
["Autre : Autre : [Réunion] ","Réunion professionnelle"]
["Autre : Autre : [RP Prédéclarée Hospitalité] ","Hospitalité"]
["Autre : Autre : [RP VACCINER EN 2012 : Q/R] ","Autre"]
["Autre : Autre : [RP] ","Autre"]
["Autre : Autre : [Stand] ","Réunion professionnelle"]
["Autre : AUTRE : ACHATS D ESPACES ","Conseil"]
["Autre : AUTRE : ASSISTANCE ","Autre"]
["Autre : AUTRE : CANCER DU POUMON EGFR MUTE ","Expert"]
["Autre : AUTRE : COMMUNICATION ","Conseil"]
["Autre : AUTRE : CONSULTANT SCIENTIFIQUE ","Conseil"]
["Autre : Autre : Contrat consultant ","Conseil"]
["Autre : Autre : contrat de collaboration ","Autre"]
["Autre : AUTRE : CONTRAT DE PRESTATIONS DE SERVICES ","Conseil"]
["Autre : Autre : Contrat de Sponsoring Evènement Commercial ","Autre"]
["Autre : Autre : Contrat de Visites sur Site ","Autre"]
["Autre : AUTRE : CONVENTION DE RECHERCHE ","Recherche Clinique"]
["Autre : AUTRE : CONVENTION D'HOSPITALITE ","Hospitalité"]
["Autre : AUTRE : CONVENTION D'HOSPITALITE ET DE COLLABORATION SCIENTIFIQUE ","Expert"]
["Autre : AUTRE : CONVENTION FINANCIERE DE RECHERCHE 14861A","Recherche Clinique"]
["Autre : Autre : Dépôt Vente ","Autre"]
["Autre : autre : enquête téléphonique ","Etude de marché"]
["Autre : autre : enquête web ","Etude de marché"]
["Autre : Autre : Etude de marché","Etude de marché"]
["Autre : Autre : ETUDE DE MARCHE ","Etude de marché"]
["Autre : Autre : Etude de marché ","Etude de marché"]
["Autre : AUTRE : EXPERT INTERVENANT ","Orateur"]
["Autre : AUTRE : EXPERTISE PARTAGEE ","Expert"]
["Autre : Autre : HOSPITALITE RP ","Hospitalité"]
["Autre : Autre : Intervenant (Orateur/ ModÃ©rateur/ PrÃ©sident...) ","Orateur"]
["Autre : Autre : Intervenant (Orateur/ Modérateur/ Président...)","Orateur"]
["Autre : Autre : Intervenant (Orateur/ Modérateur/ Président...) ","Orateur"]
["Autre : autre : Interview ","Etude de marché"]
["Autre : AUTRE : LOCATION DE STAND ","Réunion professionnelle"]
["Autre : AUTRE : MANIFESTATION ","Réunion professionnelle"]
["Autre : AUTRE : MANIFESTATION DE PROMOTION ","Orateur"]
["Autre : Autre : Manifestation Scientifique","Réunion professionnelle"]
["Autre : Autre : Manifestation Scientifique ","Réunion professionnelle"]
["Autre : AUTRE : ORATEUR","Orateur"]
["Autre : AUTRE : ORATEUR ","Orateur"]
["Autre : Autre : Partenariat","Autre"]
["Autre : AUTRE : Partenariat ","Autre"]
["Autre : AUTRE : PARTICIPATION A MANIFESTATION SCIENTIFIQUE","Réunion professionnelle"]
["Autre : AUTRE : PARTICIPATION A MANIFESTATION SCIENTIFIQUE ","Réunion professionnelle"]
["Autre : AUTRE : PRESTATION ","Conseil"]
["Autre : Autre : Prestation de service ","Conseil"]
["Autre : AUTRE : PRESTATION DE SERVICE POUR ROCHE ","Conseil"]
["Autre : Autre : Prestation de services ","Conseil"]
["Autre : Autre : Prestations audiovisuelles ","Conseil"]
["Autre : AUTRE : PRÊT DE MATERIEL ","Autre"]
["Autre : AUTRE : REFLEXION DANS LE DOMAINE DU CANCER GASTRIQUE METASTASE HER2+ ","Expert"]
["Autre : AUTRE : REFLEXION SCIENTFIQUE AUTOUR DE L'IMMUNOTHERAPIE DANS LA PRISE EN CHARGE DU CANCER BRONCHIQUE ","Expert"]
["Autre : Autre : Réunion professionnelle ou scientifique","Réunion professionnelle"]
["Autre : Autre : Reunion professionnelle ou scientifique ","Réunion professionnelle"]
["Autre : Autre : Réunion professionnelle ou scientifique ","Réunion professionnelle"]
["Autre : Autre : Réunion scientifique ","Réunion professionnelle"]
["Autre : Autre : site de référence ","Autre"]
["Autre : Autre : Stand ","Réunion professionnelle"]
["Autre : Autre : Stand location ","Autre"]
["Autre : Autre :[Collaboration Scientifique] ","Expert"]
["Autre : AUTRE :COMMUNICATION ","Conseil"]
["Autre : Autre :Contrat de location de stand","Réunion professionnelle"]
["Autre : Autre :Contrat de location de stand ","Réunion professionnelle"]
["Autre : Autre :Contrat de prestation de service ","Conseil"]
["Autre : AUTRE :RECHERCHE BIOMEDICALE ","Recherche Clinique"]
["Autre : AUTRE [CONNEXION] ","Autre"]
["Autre : AUTRE [CONTRAT D ORATEUR]","Orateur"]
["Autre : AUTRE [CONTRAT D ORATEUR] ","Orateur"]
["Autre : AUTRE [CONTRAT DE CONSULTANT]","Conseil"]
["Autre : AUTRE [CONTRAT DE CONSULTANT] ","Conseil"]
["Autre : Autre [Contrat de prestation de service étude clinique n°CH/12RPC095/00] ","Recherche Clinique"]
["Autre : Autre [Contrat de prestation de service First Addendum to Clinical Trial Agreement] ","Recherche Clinique"]
["Autre : AUTRE [CONTRAT DE PRESTATION DE SERVICE] ","Conseil"]
["Autre : AUTRE [CONTRAT ORATEUR] ","Orateur"]
["Autre : AUTRE [CONVENTION D EXPERT] ","Expert"]
["Autre : AUTRE [CONVENTION D HOSPITALITE]","Hospitalité"]
["Autre : AUTRE [CONVENTION D HOSPITALITE] ","Hospitalité"]
["Autre : Autre [CONVENTION D ORATEUR] ","Orateur"]
["Autre : AUTRE [CONVENTION DE PARTENARIAT]","Autre"]
["Autre : AUTRE [CONVENTION DE PARTENARIAT] ","Autre"]
["Autre : AUTRE [CONVENTION HOSPITALITE] ","Hospitalité"]
["Autre : AUTRE [LOCATION DE STAND] ","Réunion professionnelle"]
["Autre : AUTRE [PRESTATION SERVICE] ","Conseil"]
["Autre : AUTRE [PRESTATIONS DE SERVICE]","Conseil"]
["Autre : AUTRE [PRESTATIONS DE SERVICE] ","Conseil"]
["Autre : AUTRE ETUDE DE MARCHE","Etude de marché"]
["Autre : AUTRE ETUDE DE MARCHE ","Etude de marché"]
["Autre : AUTRE: [CONTRAT DE COLLABORATION SCENTIFIQUE] ","Expert"]
["Autre : AUTRE: [CONTRAT DE COLLABORATION SCIENTIFIQUE]","Expert"]
["Autre : AUTRE: [CONTRAT DE COLLABORATION SCIENTIFIQUE] ","Expert"]
["Autre : AUTRE: [CONTRAT DE PRESTATIONS DE SERVICES] ","Conseil"]
["Autre : Autre: [Convention d'hospitalité] ","Hospitalité"]
["Autre : AUTRE: [CONVENTION HOSPITALIERE] ","Autre"]
["Autre : AUTRE: [CONVENTION HOSPITALITE]","Hospitalité"]
["Autre : AUTRE: [CONVENTION HOSPITALITE] ","Hospitalité"]
["Autre : Autre: [convention recherche clinique 3 hôpitaux : la Pitié, Georges Pompidou, henri Mondor Créteil ] ","Recherche Clinique"]
["Autre : AUTRE: [DONS] ","Autre"]
["Autre : AUTRE: [ETUDE DE MARCHE] ","Etude de marché"]
["Autre : AUTRE: [HOSPITALITE] ","Hospitalité"]
["Autre : Autre: [Prestation de service] ","Conseil"]
["Autre : Autre: Collaboration pour une Etude de Marché ","Etude de marché"]
["Autre : Autre: Convention Etablissement de Santé/Promoteur dans le cadre d'une recherche implqiuant la personne humaine ","Recherche Clinique"]
["Autre : AUTRE: E-MAILING MG ","Conseil"]
["Autre : Autre: Etude observationnelle ","Recherche Clinique"]
["Autre : AUTRE: ETUDES DE MARCHE SONDAGES","Etude de marché"]
["Autre : AUTRE: ETUDES DE MARCHE SONDAGES ","Etude de marché"]
["Autre : AUTRE: INSERTION DANS JOURNAL QUOTIDIEN DU MEDECIN NUMERO SPECIAL NEPHROLOGUES ","Conseil"]
["Autre : AUTRE: INSERTION PLEINE PAGE REVUE ","Conseil"]
["Autre : Autre: Intervenant ","Orateur"]
["Autre : Autre: Orateur ","Orateur"]
["Autre : Autre: Phone consult ","Autre"]
["Autre : AUTRE: prestation de service ","Conseil"]
["Autre : AUTRE: PROJET DE RECHERCHE CLINIQUE : ADSORPTION EXTRACORPORELLE DE SFLT1 POUR PERMETTRE LA NAISSANCE AU DELA DE 26 SEMAINE D'AMENORRHEE DES FŒTUS EXPOSES IN UTERO A UNE PREECLAMPSIE SEVERE ET PRECOCE. ","Recherche Clinique"]
["Autre : AUTRE: RECHERCHE ","Recherche Clinique"]
["Autre : AUTRE:[ETUDE CLINIQUE] ","Recherche Clinique"]
["Autre : AUTRE:[Frais fixes, surcoûts et facturation des prestations d'investigation (investigateur : Pr Labetoulle)] ","Recherche Clinique"]
["Autre : AUTRE:[FRAIS SUPPLEMENTAIRES SUITE A L'OUVERTURE DE 2 NOUVEAUX CENTRES] ","Autre"]
["Autre : AUTRE:[GRILLE DES SURCOUTS ET DETERMINATION HONORAIRES POUR INCLUSIONS DES PATIENTS] ","Recherche Clinique"]
["Autre : AUTRE:[INCLUSION DE PATIENTS ET VISITES DE SUIVI] ","Recherche Clinique"]
["Autre : Autre:[Marketing] ","Conseil"]
["Autre : AUTRE:[SURCOUTS] ","Autre"]
["Autre : Autres ","Autre"]
["Autre : AVENANT A CONVENTION DE PRESTATION DE SERVICES ","Conseil"]
["Autre : AVENANT A LA CONVENTION DE PRESTATION DE SERVICES ","Conseil"]
["Autre : Avenant à la convention de recherche ","Recherche Clinique"]
["Autre : Avenant CONV ref. MANUEL_17318; site #041 Dr Kiladjian ","Recherche Clinique"]
["Autre : Board","Réunion de « Board »"]
["Autre : Board ","Réunion de « Board »"]
["Autre : Bourse d'étude, de recherche ","Recherche Clinique"]
["Autre : Collaboration en matière de Recherche ","Recherche Clinique"]
["Autre : collaboration scientifique ","Expert"]
["Autre : Collaboration Scientifique - Conseil","Conseil"]
["Autre : Collaboration Scientifique - Conseil ","Conseil"]
["Autre : CONFÉRENCE PRESSE ","Autre"]
["Autre : Congr\u008as / Symposium","Réunion professionnelle"]
["Autre : Congr\u008as / Symposium ","Réunion professionnelle"]
["Autre : CONGRES ","Réunion professionnelle"]
["Autre : Congres / Symposium","Réunion professionnelle"]
["Autre : Congrés / Symposium","Réunion professionnelle"]
["Autre : Congrès / Symposium","Réunion professionnelle"]
["Autre : CONGRES / SYMPOSIUM ","Réunion professionnelle"]
["Autre : Congrés / Symposium ","Réunion professionnelle"]
["Autre : Congrès / Symposium ","Réunion professionnelle"]
["Autre : CONGRES / SYMPOSIUM / BOARD ","Réunion professionnelle"]
["Autre : CONGRES / SYMPOSIUM / RP ","Réunion professionnelle"]
["Autre : CONGRÈS / SYMPOSIUM/ RP ","Réunion professionnelle"]
["Autre : CONGRES SYMPOSIUM ","Réunion professionnelle"]
["Autre : CONGRES/ SYMPOSIUM ","Réunion professionnelle"]
["Autre : CONGRES/SYMPO ","Réunion professionnelle"]
["Autre : CONGRES/SYMPOSIUM","Réunion professionnelle"]
["Autre : congrès/symposium","Réunion professionnelle"]
["Autre : CONGRES/SYMPOSIUM ","Réunion professionnelle"]
["Autre : congrés/symposium ","Réunion professionnelle"]
["Autre : congrès/symposium ","Réunion professionnelle"]
["Autre : congrès/symposium3 ","Réunion professionnelle"]
["Autre : CONSEIL","Conseil"]
["Autre : CONSEIL ","Conseil"]
["Autre : CONSEIL - PRESTATIONS MULTIPLES ","Conseil"]
["Autre : CONSEIL / PARTENARIAT SCIENTIFIQUE ","Conseil"]
["Autre : CONSEIL / PRESTATION ","Conseil"]
["Autre : Conseil : Intervention réunion scientifique ","Orateur"]
["Autre : Conseil : Invitation Board ","Réunion de « Board »"]
["Autre : Conseil : Invitation Congrès ","Réunion professionnelle"]
["Autre : Conseil : Orateur Board ","Réunion de « Board »"]
["Autre : Conseil : Orateur RP ","Orateur"]
["Autre : Conseil en R&D ","Conseil"]
["Autre : CONSEIL ET COMMUNICATION MEDICO-SCIENTIFIQUE ","Conseil"]
["Autre : Conseil et Communication Médico-Scientifique ","Conseil"]
["Autre : conseil et interview ","Conseil"]
["Autre : conseil réunion scientifique ","Conseil"]
["Autre : CONSEIL SCIENTIFIQUE - BAYER USA ","Conseil"]
["Autre : Consultant ","Conseil"]
["Autre : Consultant (HCP) ","Conseil"]
["Autre : Contrat consultant","Conseil"]
["Autre : Contrat consultant ","Conseil"]
["AUTRE : CONTRAT DE COLLABORATION SCIENTIFIQUE ","Expert"]
["Autre : CONTRAT DE CONFIDENTIALITE ","Autre"]
["Autre : Contrat de conseil scientifique ","Conseil"]
["Autre : CONTRAT DE CONSULTANT ","Conseil"]
["Autre : contrat de consultant/expert/intervenant ","Orateur"]
["Autre : Contrat de Formation ","Autre"]
["Autre : CONTRAT DE LOCATION DE STAND ","Réunion professionnelle"]
["Autre : CONTRAT DE PARTENARIAT ","Autre"]
["Autre : CONTRAT DE PARTENARIAT - PRESTATION ","Conseil"]
["Autre : CONTRAT DE PRESTATION DE RECHERCHE ","Recherche Clinique"]
["Autre : CONTRAT DE PRESTATION DE SERVICE ","Conseil"]
["Autre : Contrat de prestations de service ","Conseil"]
["Autre : CONTRAT DE RECHERCHE ","Recherche Clinique"]
["Autre : Contrat de recherche interventionnelle et non-interventionnelle ","Recherche Clinique"]
["Autre : CONTRAT D'EXPERT SCIENTIFIQUE ","Expert"]
["Autre : Contrat intervenant","Orateur"]
["Autre : Contrat intervenant ","Orateur"]
["Autre : CONTRAT ORATEUR ","Orateur"]
["Autre : Contrat Parrainage Inauguration ","Autre"]
["Autre : Contrat relatif au protocole de recherche ","Recherche Clinique"]
["Autre : CONTRATS D'HOSPITALITE ","Hospitalité"]
["Autre : Convention assimilé à de la recherche ","Recherche Clinique"]
["Autre : Convention avec PDS ou prestataire intervenant dans domaine santé ","Conseil"]
["Autre : CONVENTION D HOSPITALITE","Hospitalité"]
["Autre : CONVENTION D HOSPITALITE ","Hospitalité"]
["Autre : CONVENTION D’HOSPITALITÉ","Hospitalité"]
["Autre : CONVENTION D’HOSPITALITE ","Hospitalité"]
["Autre : CONVENTION D’HOSPITALITÉ ","Hospitalité"]
["Autre : CONVENTION D'ACHAT : EVALUATION ","Autre"]
["Autre : CONVENTION D'ACHAT : FORMATION ","Autre"]
["Autre : CONVENTION D'ACHAT : MARKETING / PUBLICITE / MEDIA ","Conseil"]
["Autre : CONVENTION DE COLLABORATION","Expert"]
["Autre : CONVENTION DE COLLABORATION ","Expert"]
["AUTRE : CONVENTION DE COLLABORATION SCIENTIFIQUE ","Expert"]
["Autre : CONVENTION DE CONSULTANT ","Conseil"]
["Autre : Convention de contibution financière pour une recherche non interventionnelle ","Recherche Clinique"]
["Autre : CONVENTION DE DONS (SUBVENTIONS) ","Autre"]
["Autre : CONVENTION DE PARRAINAGE ","Conseil"]
["Autre : CONVENTION DE PARTENARIAT","Expert"]
["Autre : CONVENTION DE PARTENARIAT ","Autre"]
["Autre : CONVENTION DE PARTENRIAT ","Autre"]
["Autre : CONVENTION DE PRATIQUES CHIRURGICALES ET DE CENTRE D EDUCATION ","Autre"]
["Autre : Convention de prestation de service ","Conseil"]
["Autre : CONVENTION DE PRESTATION DE SERVICES","Conseil"]
["Autre : Convention de prestation de services ","Conseil"]
["Autre : CONVENTION DE RECHERCHE","Recherche Clinique"]
["Autre : CONVENTION DE RECHERCHE ","Recherche Clinique"]
["Autre : Convention de Recherche Biomédicale ","Recherche Clinique"]
["Autre : CONVENTION DE RECHERCHE BIOMEDICALE TRIPARTITE ","Recherche Clinique"]
["Autre : Convention de recherche biomédicale. ","Recherche Clinique"]
["Autre : Convention de recherche biomédicale/Annexe: roles et responsabilité des différentes parties impliquées ","Recherche Clinique"]
["Autre : CONVENTION D'HOSPITALITÃ‰ ","Hospitalité"]
["Autre : CONVENTION D'HOSPITALITE","Hospitalité"]
["Autre : Convention d'Hospitalité","Hospitalité"]
["AUTRE : CONVENTION D'HOSPITALITE ","Hospitalité"]
["Autre : Convention d'Hospitalité ","Hospitalité"]
["AUTRE : CONVENTION D'HOSPITALITE ET DE COLLABORATION SCIENTIFIQUE ","Expert"]
["Autre : CONVENTION FINANCIERE DE RECHERCHE 14861B ","Recherche Clinique"]
["Autre : CONVENTION HOSPITALITE ","Hospitalité"]
["Autre : CONVENTION ORATEUR ","Orateur"]
["Autre : Convention pour la participation à un comité de surveillance et de suivi d’une recherche clinique ","Autre"]
["Autre : CONVENTION RECHERCHE ","Recherche Clinique"]
["Autre : Convention unique Etablissement associé version septembre 2016 ","Autre"]
["Autre : CONVENTIONS DE RECHERCHE BIO MEDICALE","Recherche Clinique"]
["Autre : CONVENTIONS DE RECHERCHE BIO MEDICALE ","Recherche Clinique"]
["Autre : Crossborder ","Autre"]
["Autre : EDITION / INSERTION ","Rédacteur"]
["Autre : EDITION DE JOURNAUX ORGANISATION ET MEDIATISATION DE TABLES RONDES INTER PROFESSIONNELLES","Rédacteur"]
["Autre : ENGAGEMENT UNILATERAL","Autre"]
["Autre : ENGAGEMENT UNILATERAL ","Autre"]
["autre : enquête téléphonique","Etude de marché"]
["autre : enquête téléphonique ","Etude de marché"]
["autre : enquête téléphonique ","Etude de marché"]
["autre : enquête téléphonique ","Etude de marché"]
["autre : enquête web","Etude de marché"]
["autre : enquête web ","Etude de marché"]
["Autre : ESSAI CLINIQUE ","Recherche Clinique"]
["autre : ETUDE ","Etude de marché"]
["Autre : Etude clinique ","Recherche Clinique"]
["Autre : Etude clinique (Registre) ","Recherche Clinique"]
["Autre : ETUDE DE MARCHE","Etude de marché"]
["Autre : Etude de marché","Etude de marché"]
["Autre : ETUDE DE MARCHE ","Etude de marché"]
["Autre : Etude de marché ","Etude de marché"]
["Autre : étude non interventionnelle ","Recherche Clinique"]
["Autre : EXPERT","Expert"]
["Autre : EXPERT ","Expert"]
["AUTRE : EXPERT INTERVENANT","Orateur"]
["AUTRE : EXPERT INTERVENANT ","Expert"]
["AUTRE : EXPERTISE PARTAGEE ","Expert"]
["Autre : FRAIS DE RECEPTION ","Hospitalité"]
["Autre : HONORAIRES ","Expert"]
["Autre : Hospitalité Congrès Symposium ","Réunion professionnelle"]
["Autre : HOSPITALITE RP/CONGRES / SYMPO","Réunion professionnelle"]
["Autre : HOSPITALITE RP/CONGRES / SYMPO ","Hospitalité"]
["Autre : Intervenant (Orateur/ ModÃ©rateur/ PrÃ©sident...) ","Orateur"]
["Autre : Intervenant (Orateur/ Modérateur/ Président...) ","Orateur"]
["Autre : Interview","Expert"]
["Autre : Interview ","Expert"]
["Autre : INTERVIEW TELEPHONIQUE ","Etude de marché"]
["Autre : INVITATION ","Hospitalité"]
["Autre : LETTRE ACCORD ","Autre"]
["Autre : LOCATION DE STAND ","Réunion professionnelle"]
["Autre : LOCATION STAND ","Réunion professionnelle"]
["AUTRE : MANIFESTATION DE PROMOTION ","Autre"]
["Autre : Manifestation scientifique","Réunion professionnelle"]
["Autre : Manifestation scientifique ","Réunion professionnelle"]
["Autre : MARKETING","Conseil"]
["Autre : Marketing ","Etude de marché"]
["Autre : Marketing et Parrainage ","Autre"]
["Autre : Mise à disposition echographe ","Autre"]
["Autre : Orateur","Orateur"]
["Autre : Orateur ","Orateur"]
["Autre : ORATEUR INTERVENANT ","Orateur"]
["Autre : ORATEUR REUNION POST EULAR MONTPELLIER ","Orateur"]
["Autre : ORATEUR RP/CONGRES/SYMPO ","Orateur"]
["Autre : ORATEUR RP/CONGRES/SYMPOSIUM ","Orateur"]
["Autre : ORATEUR SOIREE EPU \"Actualités sur les Biothérapies\" ","Orateur"]
["Autre : ORATEUR SYMPOSIUM ARIAD SFH ","Orateur"]
["Autre : ORATEUR/MODERATEUR ","Orateur"]
["AUTRE : PARTENARIAT ","Autre"]
["Autre : Partenariat / Collaboration scientifique ","Autre"]
["Autre : PARTENARIAT MEDICAL ","Expert"]
["Autre : PARTENARIAT RECHERCHE ","Recherche Clinique"]
["AUTRE : PARTICIPATION A MANIFESTATION SCIENTIFIQUE","Réunion professionnelle"]
["AUTRE : PARTICIPATION A MANIFESTATION SCIENTIFIQUE ","Orateur"]
["Autre : Participation à une étude de marché","Etude de marché"]
["Autre : Participation à une étude de marché ","Etude de marché"]
["Autre : PARTICIPATION A UNE REUNION SCIENTIFIQUE","Réunion professionnelle"]
["Autre : PARTICIPATION REUNION SCIENTIFIQUE","Réunion professionnelle"]
["Autre : PARTICIPATION REUNION SCIENTIFIQUE ","Réunion professionnelle"]
["Autre : PRESTATION CONSEIL SCIENTIF/ PARTICIPATION BOARD ","Réunion de « Board »"]
["Autre : Prestation de service","Conseil"]
["Autre : Prestation de service ","Conseil"]
["Autre : Prestation de service (société de conseil) ","Conseil"]
["Autre : PRESTATION EVENEMENTIELLE (STAND, AUTRE) ","Réunion professionnelle"]
["Autre : PRESTATION SERVICE","Conseil"]
["Autre : PRESTATION SERVICE ","Conseil"]
["Autre : prestations de services ","Conseil"]
["Autre : PRESTATIONS DE SERVICES AVEC DES PERSONNES MORALES ","Conseil"]
["Autre : PRESTATIONS DE SERVICES PRESTATAIRE DE SERVICE DANS LE SECTEUR PHARMACEUTIQUE ","Conseil"]
["Autre : Pret d'un instrument ","Autre"]
["Autre : PUBLICITE","Conseil"]
["Autre : PUBLICITE ","Autre"]
["Autre : Publicité ","Conseil"]
["Autre : PUBLICITE STAND ","Réunion professionnelle"]
["Autre : RÃ©union scientifique ","Réunion professionnelle"]
["Autre : REALISATION D'UNE ENQUETE ","Etude de marché"]
["Autre : REALISATION D'UNE ENQUÊTE ","Etude de marché"]
["Autre : RECHERCHE ","Recherche Clinique"]
["Autre : Recherche - Dr. Bahi ","Recherche Clinique"]
["Autre : Recherche - Dr. Bourgeois ","Recherche Clinique"]
["Autre : Recherche - Dr. Nabbout ","Recherche Clinique"]
["Autre : RECHERCHE - ETUDE OBSERVATIONNELLE - OBSERVATEUR","Recherche Clinique"]
["Autre : RECHERCHE - ETUDE OBSERVATIONNELLE - OBSERVATEUR ","Etude de marché"]
["Autre : RECHERCHE - ETUDE SALT-II ","Recherche Clinique"]
["Autre : RECHERCHE AVENANT ","Recherche Clinique"]
["Autre : RECHERCHE BIOMEDICALE","Recherche Clinique"]
["Autre : RECHERCHE BIOMÉDICALE","Recherche Clinique"]
["Autre : RECHERCHE BIOMEDICALE ","Recherche Clinique"]
["Autre : recherche biomédicale ","Recherche Clinique"]
["Autre : RECHERCHE BIOMEDICALE - 11001 ","Recherche Clinique"]
["Autre : Recherche biomédicale - Avenant n° 1","Recherche Clinique"]
["Autre : Recherche biomédicale - Avenant n° 1 ","Recherche Clinique"]
["Autre : Recherche biomédicale - Avenant n° 2 ","Recherche Clinique"]
["Autre : Recherche biomédicale - convention prêt de matériel ","Recherche Clinique"]
["Autre : RECHERCHE BIOMEʄICALE ","Recherche Clinique"]
["Autre : Recherche CH/13HAP083/00 ","Recherche Clinique"]
["Autre : RECHERCHE CLINIQUE","Recherche Clinique"]
["Autre : Recherche Clinique ","Recherche Clinique"]
["Autre : RECHERCHE CLINIQUE POUR LE COMPTE DE PFIZER INC ","Recherche Clinique"]
["Autre : Recherche et Développement ","Recherche Clinique"]
["Autre : Recherche et Evaluation","Recherche Clinique"]
["Autre : Recherche et Evaluation ","Recherche Clinique"]
["Autre : recherche impliquant la personne humaine - surcoûts hospitaliers (étude LUM001-304) ","Recherche Clinique"]
["Autre : Recherche impliquant la personne humaine (Etude PA101-SM-02) ","Recherche Clinique"]
["Autre : Recherche impliquant la personne humaine (étude UX023-CL303) ","Recherche Clinique"]
["Autre : Recherche impliquant la personne humaine (étude UX023-CL304) ","Recherche Clinique"]
["Autre : Recherche impliquant la personne humaine (graspanc 2013-03)","Recherche Clinique"]
["Autre : Recherche impliquant la personne humaine (graspanc 2013-03) ","Recherche Clinique"]
["Autre : recherche impliquant la personne humaine (prestations de l'investigateur) - étude LUM304 ","Recherche Clinique"]
["Autre : recherche medicale ","Recherche Clinique"]
["Autre : RECHERCHE PRET ","Recherche Clinique"]
["Autre : RECHERCHE SCIENTIFIQUE ","Recherche Clinique"]
["Autre : Recherche/Développement ","Recherche Clinique"]
["Autre : RECHERCHE-ETUDE FUJI","Recherche Clinique"]
["Autre : RECHERCHE-ETUDE FUJI ","Recherche Clinique"]
["AUTRE : REFLEXION SCIENTFIQUE EVENEMENT INTERDISCIPLINAIRE ","Conseil"]
["Autre : REFLEXION SCIENTIFIQUE AUTOUR DE LA PRISE EN CHARGE DU CANCER DU REIN ","Expert"]
["Autre : Research agreement ","Recherche Clinique"]
["Autre : Reunion Medicale","Réunion professionnelle"]
["Autre : Reunion Medicale ","Réunion professionnelle"]
["Autre : Reunion professionnelle ou scientifique","Réunion professionnelle"]
["Autre : Réunion professionnelle ou scientifique","Réunion professionnelle"]
["Autre : Reunion professionnelle ou scientifique ","Réunion professionnelle"]
["Autre : Réunion professionnelle ou scientifique ","Réunion professionnelle"]
["Autre : Réunion scientifique","Réunion professionnelle"]
["Autre : REUNION SCIENTIFIQUE ","Réunion professionnelle"]
["Autre : Réunion scientifique ","Réunion professionnelle"]
["Autre : RP de type EPU (2007-01)","Réunion professionnelle"]
["Autre : RP de type EPU (2007-01)","Orateur"]
["Autre : RP de type EPU (2007-01) ","Réunion professionnelle"]
["Autre : soutien à la recherche biomédicale ","Recherche Clinique"]
["Autre : SUBVENTION ","Autre"]
["Autre : subventions","Autre"]
["Autre : subventions ","Autre"]
["Autre : surcout Loi Huriet ","Recherche Clinique"]
["Autre : SURCOUTS HOSPITALIERS ","Autre"]
["Autre : Surcoûts Recherche Biomédicale ","Recherche Clinique"]
["Autre : SUVENTIONS ","Autre"]
["Autre : VISITE USINE ","Autre"]
["AUTRE [CONNEXION]","Autre"]
["AUTRE [CONNEXION] ","Autre"]
["AUTRE [CONTRAT D ORATEUR]","Orateur"]
["AUTRE [CONTRAT D ORATEUR] ","Orateur"]
["AUTRE [CONTRAT DE CONSULTANT]","Conseil"]
["AUTRE [CONTRAT DE CONSULTANT] ","Conseil"]
["AUTRE [CONTRAT DE PRESTATION DE SERVICE] ","Conseil"]
["AUTRE [CONTRAT ORATEUR]","Orateur"]
["AUTRE [CONTRAT ORATEUR] ","Orateur"]
["AUTRE [CONVENTION D EXPERT]","Expert"]
["AUTRE [CONVENTION D EXPERT] ","Expert"]
["Autre [CONVENTION D HOSPITALITE]","Hospitalité"]
["AUTRE [CONVENTION D HOSPITALITE] ","Hospitalité"]
["AUTRE [CONVENTION D ORATEUR]","Orateur"]
["AUTRE [CONVENTION D ORATEUR] ","Orateur"]
["AUTRE [CONVENTION DE PARTENARIAT] ","Autre"]
["AUTRE [CONVENTION HOSPITALITE] ","Hospitalité"]
["AUTRE [EXPERT]","Expert"]
["AUTRE [EXPERT] ","Expert"]
["AUTRE [ORATEUR] ","Orateur"]
["AUTRE ETUDE DE MARCHE","Etude de marché"]
["AUTRE ETUDE DE MARCHE ","Etude de marché"]
["AUTRE: [CONTRAT DE COLLABORATION SCENTIFIQUE]","Expert"]
["AUTRE: [CONTRAT DE COLLABORATION SCENTIFIQUE] ","Expert"]
["AUTRE: [CONTRAT DE COLLABORATION SCIENTIFIQUE]","Expert"]
["AUTRE: [CONTRAT DE COLLABORATION SCIENTIFIQUE] ","Expert"]
["AUTRE: [CONTRAT DE PRESTATIONS DE SERVICES] ","Conseil"]
["AUTRE: [CONTRAT INVESTIGATEUR] ","Recherche Clinique"]
["Autre: [Convention d'hospitalité] ","Hospitalité"]
["AUTRE: [CONVENTION HOSPITALITE]","Hospitalité"]
["AUTRE: [CONVENTION HOSPITALITE] ","Hospitalité"]
["AUTRE: [CONVENTION] ","Autre"]
["AUTRE: [DONS] ","Autre"]
["AUTRE: [ETUDE DE MARCHE]","Etude de marché"]
["AUTRE: [ETUDE DE MARCHE] ","Etude de marché"]
["AUTRE: [HOSPITALITE] ","Hospitalité"]
["AUTRE: [PARTENARIAT] ","Autre"]
["AUTRE: 27EME JOURNEE SCIENTIFIQUE DU GRIO ","Réunion professionnelle"]
["Autre: Collaboration pour une Etude de Marché","Etude de marché"]
["Autre: Collaboration pour une Etude de Marché","Etude de marché"]
["AUTRE: COLLABORATION POUR UNE ETUDE DE MARCHÉ ","Etude de marché"]
["AUTRE: CONVENTION D'HOSPITALITE ","Hospitalité"]
["AUTRE: DON ","Autre"]
["autre: ETUDE ","Etude de marché"]
["AUTRE: ETUDES DE MARCHE SONDAGES ","Etude de marché"]
["Autre: Intervenant ","Orateur"]
["AUTRE: PARTENARIAT ","Autre"]
["AUTRE: PRESTATION ","Conseil"]
["autre: REDACTION D'ARTICLES ","Rédacteur"]
["AUTRE:[CONVENTION HOSPITALITE] ","Hospitalité"]
["Autre:[RP] ","Autre"]
["AUTRE[EXPERTISE] ","Expert"]
["Autre[INTERVENTION EPU LIMOGES 13/01/2015] ","Orateur"]
["Autre[INTERVENTION REUNION BEZIERS 21 MAI] ","Réunion professionnelle"]
["Autre[INTERVENTION REUNION BEZIERS 21 MAI] ","Orateur"]
["Autre[INTERVENTION REUNION P EULAR LIMOGES 8 OCTOBRE 15] ","Orateur"]
["Autre[INTERVENTION REUNION P EULAR LYON LE 2 JUILLET] ","Orateur"]
["Autre[ORATEUR REUNION POST EULAR AGEN] ","Orateur"]
["Autre[ORATEUR REUNION POST EULAR BORDEAUX] ","Orateur"]
["Autre[ORATEUR REUNION POST EULAR PARIS 94] ","Orateur"]
["Autre[ORATEUR REUNION POST EULAR PARIS] ","Orateur"]
["Autre[ORATEUR REUNION POST EULAR ROUEN] ","Orateur"]
["Autre[ORATEUR REUNION POST EULAR ST ETENNE 18 SEPTEMBRE 14] ","Orateur"]
["Autre[ORATEUR REUNION POST EULAR TOULOUSE] ","Orateur"]
["Autre[ORATEUR REUNION POST EULAR TOURS]","Orateur"]
["AUTRE_CONNEXION ","Autre"]
["Autre+A905:B934 : AUTRE : [PRESTATIONS DE SERVICES] ","Conseil"]
["Autres ","Autre"]
["Autres prestations de services","Conseil"]
["Autres prestations de services ","Conseil"]
["AVENANT 2 CONVENTION DE RECHERCHE ","Recherche Clinique"]
["Board ","Réunion de « Board »"]
["Collaboration Editions Scientifiques ","Rédacteur"]
["Collaboration Scientifique - Conseil ","Conseil"]
["COLLABORATION SCIENTIFIQUE ET PROFESSIONNELLE ","Expert"]
["Comite Echange scientifique ","Expert"]
["Comite Expert","Expert"]
["Comite Experts ","Expert"]
["COMITE SCIENTIFIQUE ","Expert"]
["COMITÉ SCIENTIFIQUE ","Expert"]
["CONFÉRENCE PRESSE ","Autre"]
["CONFÉRENCE PRESSE ","Orateur"]
["Congès / Symposium ","Réunion professionnelle"]
["Congr\u008as / Symposium","Réunion professionnelle"]
["Congr\u008as / Symposium ","Réunion professionnelle"]
["CongrÃ¨s / Symposium ","Réunion professionnelle"]
["CONGRES","Réunion professionnelle"]
["Congrès","Réunion professionnelle"]
["CONGRES ","Réunion professionnelle"]
["Congrès ","Réunion professionnelle"]
["CONGRES / SYMPOSIUM","Réunion professionnelle"]
["Congrès / symposium","Réunion professionnelle"]
["Congres / Symposium ","Réunion professionnelle"]
["Congrès / Symposium ","Réunion professionnelle"]
["CONGRES / SYMPOSIUM / BOARD ","Réunion de « Board »"]
["CONGRÈS / SYMPOSIUM/ RP ","Réunion professionnelle"]
["CONGRES REUNION SCIENTIFIQUE STRASBOURG ","Réunion professionnelle"]
["CONGRES SYMPOSIUM","Réunion professionnelle"]
["CONGRES SYMPOSIUM ","Réunion professionnelle"]
["CONGRES, SYMPOSIUM ","Réunion professionnelle"]
["CONGRES/SYMPO ","Réunion professionnelle"]
["CONGRES/SYMPOSIUM","Réunion professionnelle"]
["CONGRES/SYMPOSIUM ","Réunion professionnelle"]
["Congrès/symposium ","Réunion professionnelle"]
["congrès-symposium","Réunion professionnelle"]
["congrès-symposium ","Réunion professionnelle"]
["conseil","Conseil"]
["Conseil ","Conseil"]
["CONSEIL ","Conseil"]
["Conseil : Invitation Board ","Réunion de « Board »"]
["Conseil : Invitation Congrès ","Réunion professionnelle"]
["Conseil : Orateur Board ","Réunion de « Board »"]
["Conseil : Orateur RP ","Orateur"]
["Conseil et Communication Médico-Scientifique ","Conseil"]
["Conseil Relations professionnelles ","Conseil"]
["Conseil réunion d'experts ","Conseil"]
["CONSEIL SCIENTIFIQUE ","Expert"]
["Conseil, réunion d'experts ","Conseil"]
["Consultance ","Conseil"]
["Consultance (rhumatologie) ","Conseil"]
["CONSULTANT ","Conseil"]
["Consultation Scientifique ","Conseil"]
["Contrat / expertise autre que scientifique","Expert"]
["Contrat / expertise autre que scientifique ","Expert"]
["Contrat de conseil scientifique","Expert"]
["Contrat de conseil scientifique ","Expert"]
["CONTRAT DE CONSULTANT ","Conseil"]
["CONTRAT DE PARTENARIAT ","Autre"]
["CONTRAT DE PRESTATION DE SERVICE ","Conseil"]
["CONTRAT DE PRESTATION DE SERVICES ","Conseil"]
["Contrat de recherche interventionnelle et non-interventionnelle ","Recherche Clinique"]
["Contrat d'essai clinique ","Recherche Clinique"]
["Contrat d'expert scientifique, contrat dans le cadre d'une recherche, contrat de consultant","Conseil"]
["Contrat d'expert scientifique, contrat dans le cadre d'une recherche, contrat de consultant ","Conseil"]
["Contrat d'intervenant à une manifestation / orateur","Orateur"]
["Contrat d'intervenant à une manifestation / orateur ","Orateur"]
["Contrat d'interview","Expert"]
["Contrat d'interview ","Expert"]
["CONTRAT D'ORATEUR ","Orateur"]
["CONTRAT ORATEUR ","Orateur"]
["CONTRATS D'HOSPITALITE","Hospitalité"]
["CONTRATS D'HOSPITALITE ","Hospitalité"]
["Convention assimilé à de la recherche ","Recherche Clinique"]
["CONVENTION D HOSPITALITE","Hospitalité"]
["CONVENTION D HOSPITALITE ","Hospitalité"]
["CONVENTION D’HOSPITALITÉ","Hospitalité"]
["CONVENTION D’HOSPITALITE ","Hospitalité"]
["CONVENTION D’HOSPITALITÉ ","Hospitalité"]
["CONVENTION DE COLLABORATION","Expert"]
["CONVENTION DE COLLABORATION ","Expert"]
["CONVENTION DE CONSULTANT ","Conseil"]
["Convention de prestation de service ","Conseil"]
["CONVENTION DE PRESTATION DE SERVICES ","Conseil"]
["CONVENTION DE RECHERCHE","Recherche Clinique"]
["CONVENTION DE RECHERCHE ","Recherche Clinique"]
["Convention de recherche biomédicale /Annexe: Roles et responsabilites des differentes parties impliquees","Recherche Clinique"]
["Convention de recherche biomédicale /Annexe: Roles et responsabilites des differentes parties impliquees ","Recherche Clinique"]
["Convention de recherche biomédicale Investigateur-Coordinateur ","Recherche Clinique"]
["CONVENTION D'HOSPITALITE","Hospitalité"]
["CONVENTION D'HOSPITALITÉ","Hospitalité"]
["CONVENTION D'HOSPITALITE ","Hospitalité"]
["CONVENTION D'HOSPITALITÉ ","Hospitalité"]
["CONVENTION D'ORATEUR RÉUNION D'ÉCHANGES SCIENTIFIQUES ","Orateur"]
["CONVENTION D'ORATEUR RÉUNION PROFESSIONNELLE ","Orateur"]
["CONVENTION HOSPITALITE ","Hospitalité"]
["CONVENTION ORATEUR ","Orateur"]
["CONVENTION RECHERCHE","Recherche Clinique"]
["CONVENTION RECHERCHE ","Recherche Clinique"]
["CONVENTIONDE RECHERCHE ","Recherche Clinique"]
["CONVENTIONS CONSEIL","Conseil"]
["CONVENTIONS ORATEUR ","Orateur"]
["Don / Mécénat","Autre"]
["Don / Mécénat ","Autre"]
["ECCEO ","Réunion professionnelle"]
["Edition","Rédacteur"]
["EDITION ","Rédacteur"]
["EFIC ","Réunion professionnelle"]
["Enquête / Etude / Etude de marché (hors recherche)","Etude de marché"]
["Enquête / Etude / Etude de marché (hors recherche) ","Etude de marché"]
["EPU ","Réunion professionnelle"]
["ESCEO ","Autre"]
["ÉTUDE / INTERVIEW","Etude de marché"]
["ÉTUDE / INTERVIEW ","Etude de marché"]
["ETUDE DE MARCHE","Etude de marché"]
["ETUDE DE MARCHE","Etude de marché"]
["ETUDE DE MARCHE","Etude de marché"]
["ETUDE DE MARCHE ","Etude de marché"]
["Etudes","Etude de marché"]
["Etudes ","Autre"]
["EULAR ","Réunion professionnelle"]
["Evaluation ","Autre"]
["Evaluation produit cosmétique ","Autre"]
["EXPERT","Expert"]
["EXPERT ","Expert"]
["EXPERTISE ","Expert"]
["EXPERTISE SCIENTIFIQUE","Réunion professionnelle"]
["EXPERTISE SCIENTIFIQUE ","Expert"]
["FORMATION","Formateur"]
["FORMATION ","Formateur"]
["FORMATION CONTINUE ","Autre"]
["FORMATION PERSONNEL ","Autre"]
["Formation, Conseil et Congrès ","Conseil"]
["Hospitalité","Hospitalité"]
["Hospitalité ","Hospitalité"]
["HOSPITALITE RP/CONGRES / SYMPO","Hospitalité"]
["HOSPITALITE RP/CONGRES / SYMPO ","Hospitalité"]
["HOSPITALITE RP/CONGRES/SYMPO ","Hospitalité"]
["HOSPITALITE RP/CONGRES/SYMPOSIUM","Réunion professionnelle"]
["HOSPITALITE RP/CONGRES/SYMPOSIUM ","Réunion professionnelle"]
["Inscription congrès","Réunion professionnelle"]
["Inscription congrès ","Réunion professionnelle"]
["INTERNATIONAL SYMPOSIUM ON INTRA ARTICULAR TREATMENT ","Réunion professionnelle"]
["Interview ","Etude de marché"]
["INVITATION","Hospitalité"]
["INVITATION ","Hospitalité"]
["LETTRE ACCORD","Autre"]
["LETTRE ACCORD ","Autre"]
["Manifestation scientifique - congrès - table ronde - ... (A SUP. APRES FIX INDACFOBJCNV) ","Réunion professionnelle"]
["Marketing","Etude de marché"]
["Marketing","Etude de marché"]
["MARKETING ","Etude de marché"]
["ORATEUR","Orateur"]
["ORATEUR ","Orateur"]
["ORATEUR INTERVENANT ","Orateur"]
["ORATEUR RP/CONGRES/SYMPO","Orateur"]
["Orateur RP/Congres/Sympo ","Orateur"]
["ORATEUR RP/CONGRES/SYMPOSIUM","Orateur"]
["ORATEUR RP/CONGRES/SYMPOSIUM ","Orateur"]
["Orateur symposium","Orateur"]
["Parrainage","Autre"]
["Parrainage ","Autre"]
["Partenariat","Autre"]
["Partenariat ","Autre"]
["PARTENARIAT MEDICAL ","Autre"]
["PARTICIPATION À UN COMITÉ CONSULTATIF SCIENTIFIQUE SUR LA SPÉCIALITÉ CINRYZE À PARIS LE 02/07/2013 ","Expert"]
["Participation à une étude de marché","Etude de marché"]
["Participation à une étude de marché ","Etude de marché"]
["PHYSIOPATHOLOGIE DE L'ARTHROSE ","Autre"]
["PRESTATION","Conseil"]
["PRESTATION ","Conseil"]
["PRESTATION CONSEIL SCIENTIF/ PARTICIPATION BOARD ","Conseil"]
["PRESTATION DE SERVICES ","Conseil"]
["Prestation en tant que formateur et orateur ","Formateur"]
["PRESTATION ÉVÈNEMENTIELLE (STAND, AUTRE) ","Réunion professionnelle"]
["prestation scientifique ","Conseil"]
["PRESTATION SERVICE","Conseil"]
["PRESTATION SERVICE ","Conseil"]
["PRESTATION SERVICE ","Conseil"]
["Prêt de matériel ","Autre"]
["RACHIS AQUITANE CONGRES ","Réunion professionnelle"]
["Recherche","Recherche Clinique"]
["RECHERCHE ","Recherche Clinique"]
["RECHERCHE BIOMEDICALE","Recherche Clinique"]
["RECHERCHE BIOMÉDICALE","Recherche Clinique"]
["RECHERCHE BIOMEDICALE ","Recherche Clinique"]
["recherche biomédicale ","Recherche Clinique"]
["Recherche biomédicale - Avenant n° 1 ","Recherche Clinique"]
["Recherche biomédicale - Avenant n° 2 ","Recherche Clinique"]
["Recherche biomédicale - Avenant n° 3 ","Recherche Clinique"]
["RECHERCHE CLINIQUE","Recherche Clinique"]
["Recherche Clinique ","Recherche Clinique"]
["Recherche et Développement ","Recherche Clinique"]
["RECHERCHE MARKETING ","Etude de marché"]
["Recherche non interventionnelle ou observationnelle ","Etude de marché"]
["RECHERCHE PRET ","Autre"]
["Recherche scientifique","Recherche Clinique"]
["Recherche scientifique ","Recherche Clinique"]
["REDACTEUR SCIENTIFIQUE ","Rédacteur"]
["research ","Recherche Clinique"]
["Réunion de board ","Réunion de « Board »"]
["Reunion Medicale","Réunion professionnelle"]
["Reunion Medicale ","Réunion professionnelle"]
["Reunion Professionnelle ","Réunion professionnelle"]
["Réunion Professionnelle ","Réunion professionnelle"]
["REUNION SCIENTIFIQUE","Réunion professionnelle"]
["REUNION SCIENTIFIQUE ","Réunion professionnelle"]
["REUNION SCIENTIQUE ","Réunion professionnelle"]
["SFR","Réunion professionnelle"]
["SOCIETE FRANCAISE DE RHUMATOLOGIE ","Autre"]
["Subventions ","Autre"]
["SYMPOSIUM SFH ","Réunion professionnelle"]
["VIGGO PETERSEN ","Autre"]
["WCO-IOF-ESCEO ","Réunion professionnelle"]

{"sheet":"FIRMES","index":5,"n_rows":2774,"n_cols":2,"rows_kept":2774,"cut":false,"hidden":false,"merged":[]}
["FIRME dans Transparence.sante.gouv.fr","FIRME (libellé de regroupement)"]
["22 Juillet Conseil","22 Juillet Conseil"]
["2AMD","2AMD"]
["3-D Matrix Europe SAS","3-D Matrix Europe SAS"]
["3M Belgium bvba/sprl","3M"]
["3M Deutschland GmbH","3M"]
["3M France","3M"]
["3M MAROC","3M"]
["3M United Kingdom PLC","3M"]
["3S ASSISTANCE","3S ASSISTANCE"]
["3S ORTHO","3S ORTHO"]
["4 MED FRANCE","4 MED FRANCE"]
["42 market research","42 market research"]
["4SC AG","4SC AG"]
["4Tech Cardio Ltd","4Tech Cardio Ltd"]
["7 MED INDUSTRIE","7 MED INDUSTRIE"]
["A a Z SANTE","A a Z SANTE"]
["A DEC INTERNATIONAL INC","A DEC INTERNATIONAL INC"]
["A.I.R.","A.I.R."]
["A.L.A.I.R.","A.L.A.I.R."]
["A.MENARINI diagnostics","A.MENARINI diagnostics"]
["A.R.C. Pharma","A.R.C. Pharma"]
["A.V.D.","A.V.D."]
["A+A","A+A"]
["a2m rehateam","a2m rehateam"]
["AADAIRC","AADAIRC"]
["AB SCIENCE","AB SCIENCE"]
["ABBOTT FRANCE","ABBOTT"]
["ABBOTT HEALTHCARE SAS","ABBOTT"]
["ABBOTT MEDICAL FRANCE SAS","ABBOTT"]
["ABBOTT PRODUCTS SAS","ABBOTT"]
["AbbVie","AbbVie"]
["AbbVie AB","AbbVie"]
["AbbVie AG","AbbVie"]
["AbbVie Biopharmaceuticals","AbbVie"]
["AbbVie Biopharmaceuticals GmbH","AbbVie"]
["AbbVie Biopharmaceuticals GmbH Estonian branch","AbbVie"]
["AbbVie Deutschland GmbH & Co. KG","AbbVie"]
["AbbVie GK","AbbVie"]
["AbbVie GmbH","AbbVie"]
["AbbVie Inc. Headquarters","AbbVie"]
["AbbVie Limited","AbbVie"]
["AbbVie Ltd","AbbVie"]
["ABBVIE S.A.R.L.","AbbVie"]
["AbbVie SA/NV","AbbVie"]
["AbbVie Spain S.L.U.","AbbVie"]
["AbbVie SRL","AbbVie"]
["AbbVie, Lda","AbbVie"]
["ABENA-FRANTEX","ABENA-FRANTEX"]
["Abiomed GmbH","Abiomed GmbH"]
["ABIVAX","ABIVAX"]
["ABLATECH","ABLATECH"]
["Ablynx NV","Ablynx NV"]
["ABM","ABM"]
["abmedica","abmedica"]
["ABS-ALBYN MEDICAL","ABS-ALBYN MEDICAL"]
["ABS-Bolton Medical","ABS-Bolton Medical"]
["Acacia Pharma Ltd","Acacia Pharma Ltd"]
["ACCELERATE DIAGNOSTICS","ACCELERATE DIAGNOSTICS"]
["Accès Médical","Accès Médical"]
["accomed","accomed"]
["ACCORD HEALTHCARE FRANCE SAS","ACCORD HEALTHCARE FRANCE SAS"]
["ACCOVION SARL","ACCOVION SARL"]
["Accuray Europe","Accuray Europe"]
["ACIST Europe BV","ACIST Europe BV"]
["ACM","ACM"]
["Acorda Therapeutics, Inc.","Acorda Therapeutics, Inc."]
["ACOUSTIQUE MEDICAL DU LITTORAL","ACOUSTIQUE MEDICAL DU LITTORAL"]
["ACOUSTIQUE WERNERT","ACOUSTIQUE WERNERT"]
["ACS-Agence Conseil Santé","ACS-Agence Conseil Santé"]
["ACT+ Consulting","ACT+ Consulting"]
["ACTAVIS GROUP PTC EHF","ACTAVIS GROUP PTC EHF"]
["Actelion Pharmaceuticals France","Actelion"]
["Actelion Pharmaceuticals Ltd","Actelion"]
["ACTION D'ECLAT","ACTION D'ECLAT"]
["ACTION-COEUR","ACTION-COEUR"]
["Active Research","Active Research"]
["ACUITISFRANCE","ACUITISFRANCE"]
["Ad Scientiam","Ad Scientiam"]
["ADAIR","ADAIR"]
["adam sante","adam sante"]
["ADAPSIA","ADAPSIA"]
["Adaptimmune LTD","Adaptimmune LTD"]
["Adaptive Biotechnologies Inc","Adaptive Biotechnologies Inc"]
["ADARE PHARMACEUTICALS SAS","ADARE PHARMACEUTICALS SAS"]
["ADDMEDICA","ADDMEDICA"]
["ADEP ASSISTANCE","ADEP ASSISTANCE"]
["Adept Field Solutions","Adept Field Solutions"]
["ADIR ASSISTANCE","ADIR ASSISTANCE"]
["Adiral Assistance","Adiral Assistance"]
["ADIRAL Association d'Aide aux Traitements À Domicile","ADIRAL Association d'Aide aux Traitements À Domicile"]
["ADIRAL Association d'Aide aux Traitements Ã  Domicile","ADIRAL Association d'Aide aux Traitements Ã  Domicile"]
["ADLER ORTHO France","ADLER ORTHO France"]
["Adler Ortho srl","Adler Ortho srl"]
["ADMEDUS GmbH","ADMEDUS GmbH"]
["ADOUR SANTE","ADOUR SANTE"]
["ADS ALSACE","ADS ALSACE"]
["ADS CHAMPAGNE ARDENNE","ADS CHAMPAGNE ARDENNE"]
["ADS LORRAINE","ADS LORRAINE"]
["ADSM","ADSM"]
["ADVANCE SAS","ADVANCE SAS"]
["Advanced Accelerator Applications","Advanced Accelerator Applications"]
["Advanced Accelerator Applications International SA","Advanced Accelerator Applications International SA"]
["Advanced Accelerator Applications US","Advanced Accelerator Applications US"]
["ADVANCED BIONICS SARL","ADVANCED BIONICS SARL"]
["Advanced Medical Services, AMS GmbH","Advanced Medical Services, AMS GmbH"]
["ADVICENNE","ADVICENNE"]
["Aegerion Pharmaceuticals","Aegerion Pharmaceuticals"]
["Aepodia France SARL","Aepodia France SARL"]
["AERIS Medical SAS","AERIS Medical SAS"]
["AERIS SANTE","AERIS SANTE"]
["AEROGEN","AEROGEN"]
["AESCULAPE CRO BELGIUM BVBA","AESCULAPE CRO BELGIUM BVBA"]
["AFFINITES SANTE","AFFINITES SANTE"]
["Agence Conseil 3P","Agence Conseil 3P"]
["agence européenne informatique","agence européenne informatique"]
["Agence Profil Organisation","Agence Profil Organisation"]
["Agfa HealthCare France SA","Agfa HealthCare France SA"]
["AGFA Healthcare Imaging Agents France","AGFA Healthcare Imaging Agents France"]
["AGILENT TECHNOLOGIES FRANCE","AGILENT TECHNOLOGIES FRANCE"]
["AGIPHARM","AGIPHARM"]
["AGIR À dom Assistance","AGIR À dom Assistance"]
["AGIR Ã  dom Assistance","AGIR Ã  dom Assistance"]
["Aide aux Insuffisants Respiratoires de la Région Auvergne (A.I.R.R.A.)","Aide aux Insuffisants Respiratoires de la Région Auvergne (A.I.R.R.A.)"]
["AIR A DOMICILE","AIR A DOMICILE"]
["AIR DE BRETAGNE","AIR DE BRETAGNE"]
["AIR DOMICILE SANTE ALPES","AIR DOMICILE SANTE ALPES"]
["AIR DOMICILE VALLEE DU RHONE","AIR DOMICILE VALLEE DU RHONE"]
["Air Liquide European Homecare Operations Services","Air Liquide"]
["AIR LIQUIDE MEDICAL SYSTEMS","Air Liquide"]
["AIR LIQUIDE SANTE (INTERNATIONAL)","Air Liquide"]
["AIR LIQUIDE SANTE FRANCE","Air Liquide"]
["AIR PLUS","AIR PLUS"]
["air products","air products"]
["AIR SANTE","AIR SANTE"]
["AIRE","AIRE"]
["AIREL","AIREL"]
["AIRO2 SANTE","AIRO2 SANTE"]
["AIXIAL","AIXIAL"]
["AIXPER'F","AIXPER'F"]
["AJ4MED","AJ4MED"]
["AJR MEDICAL","AJR MEDICAL"]
["AKCEA THERAPEUTICS FRANCE","AKCEA THERAPEUTICS FRANCE"]
["AKCEA THERAPEUTICS INK","AKCEA THERAPEUTICS INK"]
["ALAIN AFFLELOU FRANCHISEUR","ALAIN AFFLELOU FRANCHISEUR"]
["ALAIR & AVD","ALAIR & AVD"]
["Albireo AB","Albireo AB"]
["Alcimed GmbH","Alcimed"]
["Alcimed Inc","Alcimed"]
["Alcimed SARL","Alcimed"]
["Alcimed SAS","Alcimed"]
["Alcimed Sprl","Alcimed"]
["Alcura France","Alcura France"]
["ALCYON FRANCE","ALCYON FRANCE"]
["ALERE E-SANTE SAS","ALERE E-SANTE SAS"]
["ALERE SAS","ALERE SAS"]
["Alexion Pharma France","Alexion Pharma France"]
["ALFA WASSERMANN PHARMA","ALFA WASSERMANN PHARMA"]
["ALFASIGMA FRANCE","ALFASIGMA FRANCE"]
["Align Technology SAS","Align Technology SAS"]
["Alimera Sciences France","Alimera Sciences France"]
["ALISEO","ALISEO"]
["Alizé Pharma SAS","Alizé Pharma SAS"]
["Alizé SantÃ©","Alizé Santé"]
["Alizé Santé","Alizé Santé"]
["ALK-AbellÃ³","ALK-AbellÃ³"]
["ALK-AbellÓ","ALK-AbellÓ"]
["ALKAPHARM","ALKAPHARM"]
["All Global","All Global"]
["ALLERGAN FRANCE","ALLERGAN"]
["ALLERGAN PHARMACEUTICALS INTERNATIONAL LIMITED","ALLERGAN"]
["alliance healthcare repartition","ALLIANCE"]
["ALLIANCE PHARMA FRANCE","ALLIANCE"]
["ALLIANCE'PERF","ALLIANCE"]
["ALLP MEDITEC","ALLP MEDITEC"]
["ALMIRALL SAS","ALMIRALL SAS"]
["ALMUS","ALMUS"]
["Alnylam France SAS","Alnylam France SAS"]
["Alnylam Pharmaceuticals International","Alnylam Pharmaceuticals International"]
["Alpha-Bio Tec","Alpha-Bio Tec"]
["ALPHATEC SPINE INC","ALPHATEC SPINE INC"]
["ALPHEGA","ALPHEGA"]
["ALPINE SCIENTIFIC","ALPINE SCIENTIFIC"]
["ALSANZA sarl","ALSANZA sarl"]
["ALTEOR","ALTEOR"]
["alveol'air","alveol'air"]
["ALVIMEDICA Medical Technologie France","ALVIMEDICA Medical Technologie France"]
["AM AUDITION","AM AUDITION"]
["AMADEUS SANTE","AMADEUS SANTE"]
["AMB-I SANTE PROVENCE","AMB-I SANTE PROVENCE"]
["AMC APPAREILLAGE ET MATERIEL DE CARDIOLOGIE","AMC APPAREILLAGE ET MATERIEL DE CARDIOLOGIE"]
["American Medical Systems France","American Medical Systems France"]
["American Orthodontics","American Orthodontics"]
["AMGEN SAS","Amgen"]
["AMICUS THERAPEUTICS INC.","AMICUS THERAPEUTICS"]
["AMICUS THERAPEUTICS SAS","AMICUS THERAPEUTICS"]
["AMICUS THERAPEUTICS UK LTD","AMICUS THERAPEUTICS"]
["AMO FRANCE SAS","AMO"]
["AMO Germany GmbH","AMO"]
["AMO INC USA","AMO"]
["AMOMED PHARMA","AMOMED PHARMA"]
["Amomed Pharma GmbH","AMOMED PHARMA"]
["Amplifon Groupe France","Amplifon Groupe France"]
["AMPLITUDE","AMPLITUDE"]
["Amryt Pharma","Amryt Pharma"]
["AMS 25","AMS 25"]
["AMS 70","AMS 70"]
["AMS 88","AMS 88"]
["ANERA","ANERA"]
["AngioDynamics, Inc.","AngioDynamics, Inc."]
["ANNAYAKE","ANNAYAKE"]
["ANTADIR","ANTADIR"]
["Antadir Assistance SAS","Antadir Assistance SAS"]
["Anteis SA","Anteis SA"]
["ANTHOGYR","ANTHOGYR"]
["ANTILLES AUDITION GUADELOUPE","ANTILLES AUDITION GUADELOUPE"]
["AOP Orphan Pharmaceuticals AG","AOP Orphan Pharmaceuticals AG"]
["AOTI Ltd","AOTI Ltd"]
["APARD","APARD"]
["APNEOLE","APNEOLE"]
["apol","apol"]
["APOLLO ENDOSURGERY UK LTD","APOLLO ENDOSURGERY UK LTD"]
["Applied Medical France","Applied Medical France"]
["APROVA","APROVA"]
["APTALIS PHARMA SAS","APTALIS PHARMA SAS"]
["APTITUDE Orthopedie","APTITUDE Orthopedie"]
["Aptiv Solutions","Aptiv Solutions"]
["Aptus Health Inc.","Aptus Health Inc."]
["AQUILAB","AQUILAB"]
["ARAIR Assistance","ARAIR Assistance"]
["ARAIR Assistance S.A.","ARAIR Assistance"]
["ARAIRCHAR","ARAIRCHAR"]
["arard","arard"]
["ARCADE DENTAIRE","ARCADE DENTAIRE"]
["ARCHIMEDES PHARMA France","ARCHIMEDES PHARMA France"]
["ARCOS","ARCOS"]
["ARGON MEDICAL DEVICES","ARGON MEDICAL DEVICES"]
["ARIAD Pharmaceuticals (France)","ARIAD Pharmaceuticals (France)"]
["ARJOHUNTLEIGH","ARJOHUNTLEIGH"]
["ARROW GENERIQUES SAS","ARROW GENERIQUES SAS"]
["ARSENAL-CDM","ARSENAL-CDM"]
["ART&COS","ART&COS"]
["Arterys Sarl","Arterys Sarl"]
["ARTHES","ARTHES"]
["Arthrex SAS","Arthrex SAS"]
["Arthritis Fondation Courtin","Arthritis Fondation Courtin"]
["ArthroCare France","ArthroCare France"]
["Artialis","Artialis"]
["ARX SAS","ARX SAS"]
["ASAHI INTECC CO., LTD.","ASAHI INTECC CO., LTD."]
["Ascensia Diabetes Care France","Ascensia Diabetes Care France"]
["Ascension Orthopedics, Inc.","Ascension Orthopedics, Inc."]
["ASDIA","ASDIA"]
["Asept InMed","Asept InMed"]
["ASIT BIOTECH","ASIT BIOTECH"]
["ASKLE SANTE","ASKLE SANTE"]
["ASPEN FRANCE","ASPEN FRANCE"]
["ASPIDE AESTHETIC","ASPIDE AESTHETIC"]
["ASPIDE MEDICAL","ASPIDE MEDICAL"]
["ASSISTANCE DU GRAND EST","ASSISTANCE DU GRAND EST"]
["ASSISTANCE SANTE A DOMICILE POITOU CHARENTES","ASSISTANCE SANTE A DOMICILE POITOU CHARENTES"]
["ASSISTANCE SANTE A DOMICILE RHONE ALPES","ASSISTANCE SANTE A DOMICILE RHONE ALPES"]
["ASSISTANCE SANTE A DOMICILE SUD OUEST","ASSISTANCE SANTE A DOMICILE SUD OUEST"]
["ASSISTANCES MEDICALES SPECIALISEES","ASSISTANCES MEDICALES SPECIALISEES"]
["ASSOCIATION ALAIN AFFLELOU","ASSOCIATION ALAIN AFFLELOU"]
["Association Françoise et Eugène MINKOWSKI pour la santé mentale des migrants","Association Françoise et Eugène MINKOWSKI pour la santé mentale des migrants"]
["Association Françoise et Eugène MINKOWSKI pour la santé mentale des migrants","Association Françoise et Eugène MINKOWSKI pour la santé mentale des migrants"]
["Association pour le Développement de lâ€™Enseignement et des Recherches auprès des universitÃ©s des centres de recherches et des entreprises dâ€™Aquitaine (ADERA)","Association pour le Développement de lâ€™Enseignement et des Recherches auprès des universités des centres de recherches et des entreprises dâ€™Aquitaine (ADERA)"]
["Association pour le Développement de l'Enseignement et des Recherches auprès des universités des centres de recherches et des entreprises d'Aquitaine (ADERA)","Association pour le Développement de l'Enseignement et des Recherches auprès des universités des centres de recherches et des entreprises d'Aquitaine (ADERA)"]
["ASTELLAS PHARMA","ASTELLAS PHARMA"]
["ASTELLAS PHARMA B.V.","ASTELLAS PHARMA"]
["Astellas Pharma d.o.o.","ASTELLAS PHARMA"]
["ASTELLAS PHARMA GLOBAL DEVELOPMENT","ASTELLAS PHARMA"]
["ASTELLAS PHARMA GmbH","ASTELLAS PHARMA"]
["ASTELLAS PHARMA Inc","ASTELLAS PHARMA"]
["ASTELLAS PHARMA Ltd","ASTELLAS PHARMA"]
["ASTELLAS PHARMA S.A.","ASTELLAS PHARMA"]
["Astellas Pharma Singapore Pte. Ltd.","ASTELLAS PHARMA"]
["ASTELLAS PHARMA SRL","ASTELLAS PHARMA"]
["ASTELLAS PHARMACEUTICALS AE","ASTELLAS PHARMA"]
["Astex Pharmaceuticals, Inc.","Astex Pharmaceuticals, Inc."]
["Astex Therapeutics Ltd","Astex Therapeutics Ltd"]
["ASTON MEDICAL Anciennement SOCIETE DE GENIE MEDICAL - S.G.M.","ASTON MEDICAL Anciennement SOCIETE DE GENIE MEDICAL - S.G.M."]
["ASTRAZENECA","AstraZeneca"]
["Athersys, Inc.","Athersys, Inc."]
["Atlantic Pharmacetuicals Ltd","Atlantic Pharmacetuicals Ltd"]
["ATLANTIC SURDITE","ATLANTIC SURDITE"]
["Atlantic Therapeutics","Atlantic Therapeutics"]
["ATLANTIS DIFFUSION","ATLANTIS DIFFUSION"]
["ATLANTIS DIFFUSION SAM","ATLANTIS DIFFUSION SAM"]
["ATLAS MEDICAL","ATLAS MEDICAL"]
["ATOS MEDICAL SAS","ATOS MEDICAL SAS"]
["ATOUTSOIN","ATOUTSOIN"]
["AtriCure, Inc.","AtriCure, Inc."]
["AUDARMOR","AUDARMOR"]
["AUDEVARD","AUDEVARD"]
["Audika Groupe SA","Audika Groupe SA"]
["audio acoustique sud","audio acoustique sud"]
["AUDIOCOM","AUDIOCOM"]
["AUDIOCONSULTING","AUDIOCONSULTING"]
["AUDIOELYSCAU","AUDIOELYSCAU"]
["AUDIOMEDI SAS","AUDIOMEDI SAS"]
["AudioNova France SAS","AudioNova France SAS"]
["AUDIOPTIC TRADE SERVICES","AUDIOPTIC TRADE SERVICES"]
["AUDITION 50","AUDITION 50"]
["AUDITION AQUITAINE CARBON BLANC","AUDITION AQUITAINE CARBON BLANC"]
["AUDITION B&H","AUDITION B&H"]
["AUDITION BOULEVARD MARIE","AUDITION BOULEVARD MARIE"]
["AUDITION CONSEIL FRANCE","AUDITION CONSEIL FRANCE"]
["Audition DEBRUILLE","Audition DEBRUILLE"]
["AUDITION DEBRUILLE BEZANNES","AUDITION DEBRUILLE BEZANNES"]
["AUDITION FISMES","AUDITION FISMES"]
["AUDITION GAMBETTA","AUDITION GAMBETTA"]
["AUDITION LYON EST","AUDITION LYON EST"]
["AUDITION MARIE SIRVEN","AUDITION MARIE SIRVEN"]
["Audition Martin","Audition Martin"]
["AUDITION OUTRE MER","AUDITION OUTRE MER"]
["AUDITION PARIS EST","AUDITION PARIS EST"]
["AUDITION REMI LAMOINE","AUDITION REMI LAMOINE"]
["AUDITION SANTE","AUDITION SANTE"]
["AUDITION TRIBUT MARGNY","AUDITION TRIBUT MARGNY"]
["AUDITION TRIBUT VERJUS","AUDITION TRIBUT VERJUS"]
["AUDITIONLAC","AUDITIONLAC"]
["AUXESIA","AUXESIA"]
["AVAD SAS","AVAD SAS"]
["Avadel Research","Avadel Research"]
["Avanir Pharmaceuticals, Inc","Avanir Pharmaceuticals, Inc"]
["AVANTEC","AVANTEC"]
["AX'AIR MEDICAL","AX'AIR MEDICAL"]
["AXAIR SANTE","AXAIR SANTE"]
["Axance","Axance"]
["AXDOM CARE","AXDOM CARE"]
["AXDOM LA REUNION","AXDOM LA REUNION"]
["AXDOM VAR","AXDOM VAR"]
["AXDOM'R","AXDOM'R"]
["Axess Research","Axess Research"]
["AXIENCE","AXIENCE"]
["AXIS biodental SA","AXIS biodental SA"]
["AXIS Dental Sarl","AXIS Dental Sarl"]
["AXIS Santé","AXIS Santé"]
["AXONAL","AXONAL"]
["Axonics Modulation Technologies, Inc.","Axonics Modulation Technologies, Inc."]
["AX'PERF MEDICAL","AX'PERF MEDICAL"]
["AX'S Consulting","AX'S Consulting"]
["AZ MEDICAL","AZ MEDICAL"]
["AZANTA Danmark A/S","AZANTA Danmark A/S"]
["AZUR OXYGENE","AZUR OXYGENE"]
["B. Braun Avitum France SAS","B. Braun Avitum France SAS"]
["B.BRAUN MEDICAL SAS","B.BRAUN MEDICAL SAS"]
["B.R.A. SAS","B.R.A. SAS"]
["B3TSI","B3TSI"]
["BAC OPTIQUE","BAC OPTIQUE"]
["BACK2MEDICAL","BACK2MEDICAL"]
["BALJO","BALJO"]
["BALT","BALT"]
["BALT EXTRUSION SAS","BALT EXTRUSION SAS"]
["BALT INTERNATIONAL","BALT INTERNATIONAL"]
["BARD FRANCE SAS","BARD FRANCE SAS"]
["Basilea Pharmaceutica International SA","Basilea Pharmaceutica International SA"]
["Bastide Le Confort Médical","Bastide Le Confort Médical"]
["BAUERFEIND FRANCE","BAUERFEIND FRANCE"]
["BAXALTA FRANCE SAS","BAXALTA FRANCE SAS"]
["Baxter SAS","Baxter SAS"]
["Bayer HealthCare SAS","Bayer HealthCare SAS"]
["BAYER SANTE FAMILIALE","BAYER SANTE FAMILIALE"]
["BBGR SAS","BBGR SAS"]
["BDS DENTAL DEPOT","BDS DENTAL DEPOT"]
["BEAUFOUR IPSEN INDUSTRIE","BEAUFOUR IPSEN INDUSTRIE"]
["BEAUTE PRESTIGE INTERNATIONAL","BEAUTE PRESTIGE INTERNATIONAL"]
["Beaver-Visitec Int'l Sales Ltd","Beaver-Visitec Int'l Sales Ltd"]
["BECKMAN COULTER FRANCE","BECKMAN COULTER FRANCE"]
["Becton Dickinson France SAS","Becton Dickinson France SAS"]
["Beiersdorf s.a.s","Beiersdorf s.a.s"]
["BELGIQUE","BELGIQUE"]
["BELLCO FRANCE","BELLCO FRANCE"]
["BEST OF OPTIMIZERS","BEST OF OPTIMIZERS"]
["BETTINA TOSI CONSEIL","BETTINA TOSI CONSEIL"]
["Bien-Air France","Bien-Air France"]
["BIO COMPOSANTS MEDICAUX","BIO COMPOSANTS MEDICAUX"]
["BIOBANK","BIOBANK"]
["BIOCODEX","BIOCODEX"]
["Biocompatibles UK Ltd","Biocompatibles UK Ltd"]
["BIOCORP PRODUCTION","BIOCORP PRODUCTION"]
["BioCryst Pharmaceuticals Inc.","BioCryst Pharmaceuticals Inc."]
["BIOCYTEX","BIOCYTEX"]
["BIODIMED Conseils","BIODIMED Conseils"]
["Biofortis SAS","Biofortis SAS"]
["BIOGARAN","BIOGARAN"]
["BIOGEN FRANCE SAS","BIOGEN"]
["Biogen Idec Research Limited","BIOGEN"]
["BioHorizons Iberica S.R.L.","BioHorizons Iberica S.R.L."]
["Biomarin Europe Ltd.","Biomarin"]
["BioMarin France SAS","Biomarin"]
["BioMarin Pharmaceutical Inc.","Biomarin"]
["BIOMATLANTE SA","BIOMATLANTE SA"]
["bioMérieux","bioMérieux"]
["BIOMET","BIOMET"]
["BIOMET 3i","BIOMET"]
["BIOMET BELGIUM BVBA","BIOMET"]
["BIOMET CHINA","BIOMET"]
["Biomet France","BIOMET"]
["BIOMET GLOBAL SUPPLY CHAIN CENTER B.V.","BIOMET"]
["Biomet Inc","BIOMET"]
["Biomet Japan, Inc.","BIOMET"]
["Biomet Manufacturing LLC","BIOMET"]
["Biomet Orthopaedics Sweeden","BIOMET"]
["Biomet Spain Orthopaedics S.L.","BIOMET"]
["Biomet Sports Medicine, LLC","BIOMET"]
["BIOMET UK Limited","BIOMET"]
["BIOM'UP","BIOM'UP"]
["Bioprojet","Bioprojet"]
["BIOPROJET PHARMA","BIOPROJET PHARMA"]
["BIOPROTEC","BIOPROTEC"]
["BIO-RAD","BIO-RAD"]
["BIO-RAD AbD Serotec Ltd","BIO-RAD"]
["BIO-RAD Europe GmbH","BIO-RAD"]
["BIO-RAD Innovations","BIO-RAD"]
["BIO-RAD Laboratories Inc.","BIO-RAD"]
["BIO-RAD Laboratories Limited","BIO-RAD"]
["BIO-RAD Laboratories S.A.S.","BIO-RAD"]
["BIO-RAD Medical Diagnostics GmbH","BIO-RAD"]
["BIO-RAD SERVICES FRANCE","BIO-RAD"]
["Biosensors Europe SA","Biosensors Europe SA"]
["Biosensors France SAS","Biosensors France SAS"]
["BIOSERENITY","BIOSERENITY"]
["Biosphere Medical, Inc.","Biosphere Medical"]
["Biosphere Medical, S.A.","Biosphere Medical"]
["BIOSPINE IMPLANTS","BIOSPINE IMPLANTS"]
["BIOSTATEM","BIOSTATEM"]
["BIOSYNEX","BIOSYNEX"]
["BIOTECH DENTAL","BIOTECH DENTAL"]
["BIOTECH ORTHO","BIOTECH ORTHO"]
["Biotechni","Biotechni"]
["BIOTEST AG","BIOTEST AG"]
["BIOTEST FRANCE SAS","BIOTEST FRANCE SAS"]
["BIOTEST HUNGARIA KFT.","BIOTEST HUNGARIA KFT."]
["BIOTONE TECHNOLOGIE","BIOTONE TECHNOLOGIE"]
["BIOTRIAL","BIOTRIAL"]
["BIOTRONIK AG","BIOTRONIK"]
["BIOTRONIK Belgium","BIOTRONIK"]
["BIOTRONIK FRANCE SAS","BIOTRONIK"]
["BIOTRONIK SE & Co. KG","BIOTRONIK"]
["BIOVENTUS","BIOVENTUS"]
["BIOXIS PHARMACEUTICALS","BIOXIS PHARMACEUTICALS"]
["Bisico","Bisico"]
["BLI-DBP","BLI-DBP"]
["BLOCKADE MEDICAL, LLC","BLOCKADE MEDICAL, LLC"]
["Blueprint Partnership","Blueprint Partnership"]
["BLUE-REG PHARMA CONSULT","BLUE-REG PHARMA CONSULT"]
["BLUESOM","BLUESOM"]
["BMS Canada Co.","Bristol -Myers Squibb"]
["Boehringer Ingelheim EspaÃ±a, S.A.","Boehringer Ingelheim"]
["BOEHRINGER INGELHEIM FRANCE","Boehringer Ingelheim"]
["Boehringer Ingelheim Middle East & North Africa LLC","Boehringer Ingelheim"]
["Boehringer Ingelheim Pharma GmbH & Co.KG","Boehringer Ingelheim"]
["Boehringer Ingelheim RCV GmbH & Co KG","Boehringer Ingelheim"]
["Boehringer Ingelheim Singapore Pte Ltd","Boehringer Ingelheim"]
["Boehringer Ingelheim, Promeco S.A. de C.V.","Boehringer Ingelheim"]
["BOIRON","BOIRON"]
["BOIRON CARAIBES","BOIRON CARAIBES"]
["BOIRON OCEAN INDIEN","BOIRON OCEAN INDIEN"]
["BOLTON MEDICAL","BOLTON MEDICAL"]
["BONE 3D","BONE 3D"]
["Bone Therapeutics","Bone Therapeutics"]
["BONNET SOUYRIS PROSPECTIVE","BONNET SOUYRIS PROSPECTIVE"]
["Boston Healthcare International","BOSTON"]
["BOSTON SCIENTIFIC SAS","BOSTON"]
["BRACCO DIAGNOSTICS INC","BRACCO"]
["BRACCO IMAGING FRANCE","BRACCO"]
["BRACCO IMAGING ITALIA SRL","BRACCO"]
["BRACCO IMAGING SPA","BRACCO"]
["BRACCO SUISSE SA","BRACCO"]
["BRAHMS FRANCE SAS","BRAHMS"]
["BRAHMS GmbH","BRAHMS"]
["Brain-ed Ucation","Brain-ed Ucation"]
["Brainlab","Brainlab"]
["Brand Institute","Brand Institute"]
["Branding Science (UK) Ltd","Branding Science (UK) Ltd"]
["Brandtrust","Brandtrust"]
["BREAS MEDICAL","BREAS MEDICAL"]
["Bristol -Myers Squibb GmbH & Co. KGaA","Bristol -Myers Squibb"]
["Bristol Myers Squibb Limited","Bristol -Myers Squibb"]
["BRISTOL-MYERS SQUIBB","Bristol -Myers Squibb"]
["Bristol-Myers Squibb Argentina SRL","Bristol -Myers Squibb"]
["Bristol-Myers Squibb Australia Pty Limited","Bristol -Myers Squibb"]
["Bristol-Myers Squibb Business Services Limited","Bristol -Myers Squibb"]
["BRISTOL-MYERS SQUIBB COMPANY","Bristol -Myers Squibb"]
["Bristol-Myers Squibb Corée","Bristol -Myers Squibb"]
["Bristol-Myers Squibb EMEA","Bristol -Myers Squibb"]
["Bristol-Myers Squibb Finlande Ab","Bristol -Myers Squibb"]
["Bristol-Myers Squibb Gesmbh","Bristol -Myers Squibb"]
["Bristol-Myers Squibb India","Bristol -Myers Squibb"]
["Bristol-Myers Squibb Israel","Bristol -Myers Squibb"]
["Bristol-Myers Squibb K.K","Bristol -Myers Squibb"]
["Bristol-Myers Squibb Marketing Services SRL","Bristol -Myers Squibb"]
["Bristol-Myers Squibb Middle East & Africa FZ-LLC","Bristol -Myers Squibb"]
["Bristol-Myers Squibb Pharma Hong Kong Limited","Bristol -Myers Squibb"]
["BRISTOL-MYERS SQUIBB PHARMACEUTICALS LTD","Bristol -Myers Squibb"]
["BRISTOL-MYERS SQUIBB S.r.l","Bristol -Myers Squibb"]
["BRISTOL-MYERS SQUIBB SA","Bristol -Myers Squibb"]
["Bristol-Myers Squibb Spol s r.o.","Bristol -Myers Squibb"]
["Bristol-Myers Squibb, S.A.U.","Bristol -Myers Squibb"]
["Bruker Daltonique","Bruker Daltonique"]
["BRUKER FRANCE SAS","BRUKER FRANCE SAS"]
["bruneau","bruneau"]
["BSN medical SAS","BSN medical SAS"]
["BSN-RADIANTE SAS","BSN-RADIANTE SAS"]
["Buhlmann France","Buhlmann France"]
["Bull's Eye Innovations","Bull's Eye Innovations"]
["BV","BV"]
["BVA","BVA"]
["BY AGENCY GROUP","BY AGENCY GROUP"]
["C.F.E.B. SISLEY","C.F.E.B. SISLEY"]
["C.MEDIC FRANCE","C.MEDIC FRANCE"]
["C@RDISTIM","C@RDISTIM"]
["C2F IMPLANTS","C2F IMPLANTS"]
["C2R SAS","C2R SAS"]
["CÃ´té Audition","CÃ´té Audition"]
["CAB","CAB"]
["CAIR LGL","CAIR LGL"]
["Callimedia","Callimedia"]
["CANAL 55 COMMUNICATION","CANAL 55 COMMUNICATION"]
["CANCERODIGEST","CANCERODIGEST"]
["CAPIDEL SANTE SARL","CAPIDEL SANTE SARL"]
["CAPRON PODOLOGIE","CAPRON PODOLOGIE"]
["CAPTIO TECH, S.L.","CAPTIO TECH, S.L."]
["carco","carco"]
["Cardiac Dimensions, Pty LTD","Cardiac Dimensions, Pty LTD"]
["Cardial SAS","Cardial SAS"]
["CardiAQ Valve Technologies, Inc.","CardiAQ Valve Technologies, Inc."]
["CARDIF ASSISTANCE","CARDIF ASSISTANCE"]
["Cardim@t","Cardim@t"]
["Cardinal Health Belgium 505 BVBA","Cardinal Health Belgium 505 BVBA"]
["CARDINAL HEALTH FRANCE 506 SAS","CARDINAL HEALTH FRANCE 506 SAS"]
["Cardinal Health Switzerland 515 GmbH","Cardinal Health Switzerland 515 GmbH"]
["CARDIOLOGS TECHNOLOGIES","CARDIOLOGS TECHNOLOGIES"]
["cardipulse","cardipulse"]
["CAREFUSION FRANCE 309 SAS","CAREFUSION"]
["CAREFUSION SWITZERLAND 317 SÃ rl","CAREFUSION"]
["CAREFUSION SWITZERLAND 317 SÀrl","CAREFUSION"]
["CARESTREAM HEALTH FRANCE","CARESTREAM HEALTH FRANCE"]
["CARL ZEISS MEDITEC AG","CARL ZEISS MEDITEC AG"]
["Carl Zeiss Meditec France","CARL ZEISS"]
["CARL ZEISS MEDITEC SAS","CARL ZEISS"]
["Carl Zeiss Vision France","CARL ZEISS"]
["CARMAT","CARMAT"]
["CAROLINE ROBIN AUDITION","CAROLINE ROBIN AUDITION"]
["CARPENTER SAS","CARPENTER SAS"]
["Carvadys S.A.S","Carvadys S.A.S"]
["Cascadian Therapeutics Inc.","Cascadian Therapeutics Inc."]
["CBPartners","CBPartners"]
["CDL OPTIQUE","CDL OPTIQUE"]
["CECS","CECS"]
["CEDH - CENTRE D'ENSEIGNEMENT ET DE DEVELOPPEMENT DE L'HOMEOPATHIE","CEDH - CENTRE D'ENSEIGNEMENT ET DE DEVELOPPEMENT DE L'HOMEOPATHIE"]
["CELGENE","CELGENE"]
["Celgene Corporation","Celgene Corporation"]
["CELGENE SAS","CELGENE SAS"]
["Celldex Therapeutics","Celldex Therapeutics"]
["CELLforCURE","CELLforCURE"]
["Cellnovo Group SA","Cellnovo Group SA"]
["CELONOVA BIOSCIENCES OF EUROPE B.V","CELONOVA BIOSCIENCES OF EUROPE B.V"]
["cemka","cemka"]
["CENDRES+METAUX FRANCE SAS","CENDRES+METAUX FRANCE SAS"]
["CENTRALE DES OPTICIENS","CENTRALE DES OPTICIENS"]
["CENTRALE DES PEELINGS","CENTRALE DES PEELINGS"]
["CENTRALE DES PHARMACIENS","CENTRALE DES PHARMACIENS"]
["Centravet","Centravet"]
["Centre d'Audition Bruant","Centre d'Audition Bruant"]
["CENTRE DE FORMATION EN HOMEOPATHIE - CDFH","CENTRE DE FORMATION EN HOMEOPATHIE - CDFH"]
["Centre de stomathérapie","Centre de stomathérapie"]
["Centre d'Etudes et de Recherches cosmétologiques CERCO","Centre d'Etudes et de Recherches cosmétologiques CERCO"]
["centre d'optique et d'audition","centre d'optique et d'audition"]
["Cepheid Europe SAS","Cepheid Europe SAS"]
["Ceramconcept France","Ceramconcept France"]
["CERC","CERC"]
["CERECARE","CERECARE"]
["CEREDAS","CEREDAS"]
["CEREPLAS","CEREPLAS"]
["CERI MEDICAL","CERI MEDICAL"]
["CERMAVEIN","CERMAVEIN"]
["CERP RHIN RHONE MEDITERRANEE","CERP RHIN RHONE MEDITERRANEE"]
["CERP ROUEN","CERP ROUEN"]
["Cerus Corporation","Cerus Corporation"]
["Cerus Europe B.V.","Cerus Europe B.V."]
["CEVA BIOVAC","CEVA BIOVAC"]
["Ceva Santé Animale","Ceva Santé Animale"]
["Cezanne","Cezanne"]
["CHEMO S.A. FRANCE","CHEMO S.A. FRANCE"]
["Cheplapharm France","Cheplapharm France"]
["CHIESI FARMACEUTICI S.p.A.","CHIESI FARMACEUTICI S.p.A."]
["CHIESI SAS","CHIESI SAS"]
["Chiltern International SARL","Chiltern International SARL"]
["CHOC","CHOC"]
["chris eyes","chris eyes"]
["CHRISTEYNS FRANCE","CHRISTEYNS FRANCE"]
["CHUGAI PHARMA FRANCE","CHUGAI"]
["CICADUM","CICADUM"]
["CICAPLUS","CICAPLUS"]
["CID","CID"]
["CIDELEC","CIDELEC"]
["Cido Research GmbH","Cido Research GmbH"]
["Circassia Limited","Circassia Limited"]
["Cirrina","Cirrina"]
["CIS BIO INTERNATIONAL","CIS BIO INTERNATIONAL"]
["Cisbio Bioassays","Cisbio Bioassays"]
["CIZETA MEDICALI France","CIZETA MEDICALI France"]
["CLAD SANTE","CLAD SANTE"]
["CLARIANCE","CLARIANCE"]
["CLARIANCE INC","CLARIANCE INC"]
["CLARIPHARM","CLARIPHARM"]
["CLCA consulting","CLCA consulting"]
["Cleanis SAS","Cleanis SAS"]
["CLERAD SAS","CLERAD SAS"]
["CLIN DATA MANAGEMENT","CLIN DATA MANAGEMENT"]
["CLINACT","CLINACT"]
["CLINHOSPI","CLINHOSPI"]
["Clinical Trial Consulting","Clinical Trial Consulting"]
["CLINICPROSPORT SAS","CLINICPROSPORT SAS"]
["CLINSEARCH","CLINSEARCH"]
["Clovis Oncology","Clovis Oncology"]
["CLS Paris","CLS Paris"]
["Cochlear France","Cochlear France"]
["Codexial Dermatologie","Codexial Dermatologie"]
["colgate palmolive","colgate palmolive"]
["COLGATE PALMOLIVE EUROPE SARL","COLGATE PALMOLIVE EUROPE SARL"]
["COLLIN","COLLIN"]
["COLOPLAST A/S","COLOPLAST"]
["Coloplast Manufacturing France","COLOPLAST"]
["COMM Santé","COMM Santé"]
["COMMUNICATION GLOBALE SANTE","COMMUNICATION GLOBALE SANTE"]
["Concept Infos","Concept Infos"]
["Conceptus SAS","Conceptus SAS"]
["Confiance Sante","Confiance Sante"]
["CONGRES COLLOQUES CONVENTIONS","CONGRES COLLOQUES CONVENTIONS"]
["CONMED France","CONMED France"]
["Consentio","Consentio"]
["ConsuMed Research","ConsuMed Research"]
["ContraFect Corporation","ContraFect Corporation"]
["CONVATEC Inc.","CONVATEC Inc."]
["Cook France SARL","Cook France SARL"]
["COOPERATION PHARMACEUTIQUE FRANCAISE","COOPER"]
["COOPERATIVE VETERINAIRE DE L'OUEST","COOPER"]
["COOPERVISION SAS","COOPERVISION SAS"]
["COORDIPERF 44","COORDIPERF 44"]
["CORDIS","CORDIS"]
["CORIN FRANCE","CORIN FRANCE"]
["CORMOVE","CORMOVE"]
["CORONA MEDICAL SAS","CORONA MEDICAL SAS"]
["CORREVIO","CORREVIO"]
["CORSE OXYGENE","CORSE OXYGENE"]
["CORSICA SANTE","CORSICA SANTE"]
["CORTEX VISION TECH","CORTEX VISION TECH"]
["Corvia Medical Inc.","Corvia Medical Inc."]
["COSMACT","COSMACT"]
["COSMETIQUE ACTIVE FRANCE","COSMETIQUE ACTIVE FRANCE"]
["COSMETIQUE ACTIVE INTERNATIONAL","COSMETIQUE ACTIVE INTERNATIONAL"]
["Côté Audition","Côté Audition"]
["COUSIN BIOSERV","COUSIN BIOSERV"]
["COUSIN BIOTECH","COUSIN BIOTECH"]
["COUSIN ENDOSURG","COUSIN ENDOSURG"]
["Covalia Interactive","Covalia Interactive"]
["Covance Clinical And Periapproval Services SARL","Covance Clinical And Periapproval Services SARL"]
["COVETO LIMOGES","COVETO LIMOGES"]
["Covidien AG","Covidien AG"]
["COVIDIEN FRANCE S.A.S.","COVIDIEN FRANCE S.A.S."]
["Craven","Craven"]
["CREAFIRST","CREAFIRST"]
["Creativ-Ceutical France","Creativ-Ceutical France"]
["CRISTALENS INDUSTRIE","CRISTALENS INDUSTRIE"]
["CRISTALENS SA","CRISTALENS SA"]
["CRISTERS","CRISTERS"]
["CROMA","CROMA"]
["CROMA FRANCE SASU","CROMA FRANCE SASU"]
["CRYOLIFE FRANCE","CRYOLIFE FRANCE"]
["CSA","CSA"]
["CSL BEHRING SA","CSL BEHRING SA"]
["CTI BioPharma Corp.","CTI BioPharma Corp."]
["CTI Clinical Trial and Consulting Services France SARL","CTI Clinical Trial and Consulting Services France SARL"]
["Cubist Pharmaceuticals France","Cubist Pharmaceuticals France"]
["CURETIS FRANCE SARL","CURETIS FRANCE SARL"]
["Cutting Edge","Cutting Edge"]
["CVRx Inc.","CVRx Inc."]
["Cyberonics BVBA","Cyberonics BVBA"]
["Cyberonics SA","Cyberonics SA"]
["Cyble Marketing","Cyble Marketing"]
["Cyclacel Limited","Cyclacel Limited"]
["CYTISCO","CYTISCO"]
["Cytori Therapeutics Inc.","Cytori Therapeutics Inc."]
["DÃ´mes Pharma","DÃ´mes Pharma"]
["Daiichi Sankyo Europe GmbH","Daiichi Sankyo"]
["DAIICHI SANKYO FRANCE SAS","Daiichi Sankyo"]
["Daiichi Sankyo Oncology Europe GmbH","Daiichi Sankyo"]
["DAIICHI SANKYO ONCOLOGY FRANCE","Daiichi Sankyo"]
["DAKO FRANCE SAS","DAKO FRANCE SAS"]
["Damos","Damos"]
["DÃœRR DENTAL FRANCE","DÃœRR DENTAL FRANCE"]
["Datamonitor Healthcare","Datamonitor Healthcare"]
["DATEXIM","DATEXIM"]
["DATIS NORD","DATIS NORD"]
["David Pruce","David Pruce"]
["DDB Health Paris","DDB Health Paris"]
["DDS Assistance","DDS Assistance"]
["DDSM SARL","DDSM SARL"]
["Debiopharm International SA","Debiopharm International SA"]
["DEBREGEAS ET ASSOCIES PHARMA","DEBREGEAS ET ASSOCIES PHARMA"]
["Dechra Veterinary Products SAS","Dechra Veterinary Products SAS"]
["DEDIENNE SANTE","DEDIENNE SANTE"]
["DEFI ORTHO","DEFI ORTHO"]
["Defymed","Defymed"]
["DELMONT IMAGING","DELMONT IMAGING"]
["DENTALINOV","DENTALINOV"]
["DENTAURUM FRANCE","DENTAURUM FRANCE"]
["DENTSPLY FRANCE","DENTSPLY"]
["Dentsply Gac Europe","DENTSPLY"]
["DENTSPLY IH AB","DENTSPLY"]
["DENTSPLY IH K.K.","DENTSPLY"]
["DENTSPLY IH SAS","DENTSPLY"]
["DENTSPLY Implants","DENTSPLY"]
["DENTSPLY Implants Manufacturing GmbH","DENTSPLY"]
["DENTSPLY SIRONA FRANCE","DENTSPLY"]
["DEPUY France","DEPUY France"]
["DEUXS","DEUXS"]
["Devicor Medical","Devicor Medical"]
["Dexter","Dexter"]
["DFine Europe GmbH","DFine Europe GmbH"]
["DFINE Inc","DFINE Inc"]
["DIABSANTE","DIABSANTE"]
["DIADOM SAS","DIADOM SAS"]
["DIAGAST","DIAGAST"]
["DIAGNOSTICA STAGO","DIAGNOSTICA STAGO"]
["Diamed France SA","Diamed"]
["Diamed GmbH","Diamed"]
["DIASORIN SA","DIASORIN SA"]
["DIAXONHIT","DIAXONHIT"]
["DIDACTIC","DIDACTIC"]
["DiMed Care","DiMed Care"]
["DINNO SANTE","DINNO SANTE"]
["Direct Medica","Direct Medica"]
["DIS PAR","DIS PAR"]
["DISMEDIS","DISMEDIS"]
["DISTRICLASS MEDICAL SA","DISTRICLASS MEDICAL SA"]
["DIURNAL Group PLC","DIURNAL Group PLC"]
["DIXI microtechniques","DIXI microtechniques"]
["DJO France SAS","DJO France SAS"]
["DMEDICA","DMEDICA"]
["DOM'AIR","DOM'AIR"]
["Dominique TATE","Dominique TATE"]
["DOMISANTE PROXIMED","DOMISANTE PROXIMED"]
["Dompé Farmaceutici S.p.A","Dompé"]
["Dompé France SAS","Dompé"]
["DON'ORTHO","DON'ORTHO"]
["DORC France","DORC France"]
["Dr VINKOV  Anton","Dr VINKOV  Anton"]
["DR WEIGERT FRANCE SAS","DR WEIGERT FRANCE SAS"]
["DRÃ„GER MEDICAL GmbH","DRAGER MEDICAL"]
["DrÃ¤ger France SAS","DRAGER MEDICAL"]
["DrÃ¤gerwerk AG & Co. KGaA","DRAGER MEDICAL"]
["Draeger Medical Canada","DRAGER MEDICAL"]
["Draeger Medical Systems, Inc","DRAGER MEDICAL"]
["DRÄGER MEDICAL GmbH","DRAGER MEDICAL"]
["DRAGER MEDICAL S.A.S.","DRAGER MEDICAL"]
["Drägerwerk AG & Co. KGaA","Drägerwerk AG & Co. KGaA"]
["DRAPER PHARMA","DRAPER PHARMA"]
["DUFLOT AUDITION","DUFLOT AUDITION"]
["DUFLOT SANTE","DUFLOT SANTE"]
["DUFOLOT D.T","DUFOLOT D.T"]
["DUNES MEDICAL","DUNES MEDICAL"]
["DUOTECH","DUOTECH"]
["DUX B.V.","DUX B.V."]
["Dynavie","Dynavie"]
["E Coach Cardio","E Coach Cardio"]
["E LEARNING SANTE EUROPE","E LEARNING SANTE EUROPE"]
["e(ye)BRAIN","e(ye)BRAIN"]
["Echosens","Echosens"]
["Eckert & Ziegler BEBIG","Eckert & Ziegler BEBIG"]
["ECM PROXIMED","ECM PROXIMED"]
["EDAP TMS France SAS","EDAP TMS France SAS"]
["EDIMARK","EDIMARK"]
["EDITION DE L'INTERLIGNE","EDITION DE L'INTERLIGNE"]
["EDUSANTE","EDUSANTE"]
["EDWARDS LIFESCIENCES","EDWARDS LIFESCIENCES"]
["EDWARDS LIFESCIENCES ALLEMAGNE","EDWARDS LIFESCIENCES"]
["EDWARDS LIFESCIENCES AUSTRALIE","EDWARDS LIFESCIENCES"]
["EDWARDS LIFESCIENCES AUTRICHE","EDWARDS LIFESCIENCES"]
["EDWARDS LIFESCIENCES BELGIQUE","EDWARDS LIFESCIENCES"]
["EDWARDS LIFESCIENCES BRESIL","EDWARDS LIFESCIENCES"]
["EDWARDS LIFESCIENCES CANADA","EDWARDS LIFESCIENCES"]
["EDWARDS LIFESCIENCES CHINA","EDWARDS LIFESCIENCES"]
["EDWARDS LIFESCIENCES COREE DU SUD","EDWARDS LIFESCIENCES"]
["Edwards Lifesciences Corp.","EDWARDS LIFESCIENCES"]
["EDWARDS LIFESCIENCES CORPORATION","EDWARDS LIFESCIENCES"]
["Edwards Lifesciences Danemark","EDWARDS LIFESCIENCES"]
["EDWARDS LIFESCIENCES ESPAGNE","EDWARDS LIFESCIENCES"]
["EDWARDS LIFESCIENCES GRECE","EDWARDS LIFESCIENCES"]
["EDWARDS LIFESCIENCES IRLANDE","EDWARDS LIFESCIENCES"]
["EDWARDS LIFESCIENCES ISRAEL","EDWARDS LIFESCIENCES"]
["EDWARDS LIFESCIENCES ITALIE","EDWARDS LIFESCIENCES"]
["EDWARDS LIFESCIENCES JAPON","EDWARDS LIFESCIENCES"]
["Edwards Lifesciences LLC","EDWARDS LIFESCIENCES"]
["EDWARDS LIFESCIENCES NORDIC/FINLAND","EDWARDS LIFESCIENCES"]
["EDWARDS LIFESCIENCES PAYS-BAS","EDWARDS LIFESCIENCES"]
["EDWARDS LIFESCIENCES PORTUGAL","EDWARDS LIFESCIENCES"]
["EDWARDS LIFESCIENCES REPUBLIQUE TCHEQUE","EDWARDS LIFESCIENCES"]
["EDWARDS LIFESCIENCES ROYAUME-UNI","EDWARDS LIFESCIENCES"]
["EDWARDS LIFESCIENCES RUSSIE","EDWARDS LIFESCIENCES"]
["Edwards Lifesciences SA","EDWARDS LIFESCIENCES"]
["EDWARDS LIFESCIENCES SUEDE","EDWARDS LIFESCIENCES"]
["EDWARDS LIFESCIENCES SUISSE","EDWARDS LIFESCIENCES"]
["EDWARDS LIFESCIENCES TAIWAN CORP","EDWARDS LIFESCIENCES"]
["Edwards Lifesciences Thailand","EDWARDS LIFESCIENCES"]
["EDWARDS LIFESCIENCES TURQUIE","EDWARDS LIFESCIENCES"]
["Edwards LS Poland Sp. z o.o.","EDWARDS LIFESCIENCES"]
["EFFICARE SARL","EFFICARE SARL"]
["EFFIK","EFFIK"]
["Efi'Science","Efi'Science"]
["EG LABO - LABORATOIRES EUROGENERICS","EG LABO - EUROGENERICS"]
["EISAI SAS","EISAI SAS"]
["Elanco France SAS","Elanco France SAS"]
["ELEKTA SAS","ELEKTA SAS"]
["ELEMENTS SANTÉ","ELEMENTS SANTÉ"]
["Eli Lilly and Company","Eli Lilly"]
["ELIA MEDICAL","ELIA MEDICAL"]
["ELIA MEDICAL MEDITERRANEE","ELIA MEDICAL"]
["ELIA MEDICAL OUEST","ELIA MEDICAL"]
["ELIA MEDICAL PARIS","ELIA MEDICAL"]
["ELIA MEDICAL PARIS OUEST","ELIA MEDICAL"]
["ELIA NORMANDIE","ELIA NORMANDIE"]
["ELIA PICARDIE","ELIA PICARDIE"]
["ELIA SUD OUEST","ELIA SUD OUEST"]
["ELIAMM SARL","ELIAMM SARL"]
["ELITech Clinical Systems SAS","ELITech Clinical Systems SAS"]
["ELITech France","ELITech France"]
["ELIVIE","ELIVIE"]
["Elixo SAS","Elixo SAS"]
["Elma Research srl","Elma Research srl"]
["ELOI MEDICAL","ELOI MEDICAL"]
["Eloi Pernet","Eloi Pernet"]
["ELPI SANTE","ELPI SANTE"]
["ElsaLys Biotech","ElsaLys Biotech"]
["ELSODENT","ELSODENT"]
["EM Services","EM Services"]
["EMA SARL","EMA SARL"]
["EMETROP'","EMETROP'"]
["EMS FRANCE SARL","EMS FRANCE SARL"]
["EMULSAR","EMULSAR"]
["ENDOCONTROL","ENDOCONTROL"]
["ENDODIAG","ENDODIAG"]
["ENDOLOGIX INTERNATIONAL BV","ENDOLOGIX INTERNATIONAL BV"]
["ENOV","ENOV"]
["ENTENDRE","ENTENDRE"]
["entendre chartres","entendre chartres"]
["Enterome SA","Enterome SA"]
["ENTRAD","ENTRAD"]
["EOLE MEDICAL","EOLE MEDICAL"]
["Eole santé","Eole santé"]
["EOLIS SANTE","EOLIS SANTE"]
["E-OPHTALMO","E-OPHTALMO"]
["Eos imaging","Eos imaging"]
["EPISKIN","EPISKIN"]
["EQINOX HEALTHCARE FRANCE","EQINOX HEALTHCARE FRANCE"]
["Erbe Medical","Erbe Medical"]
["ERYTECH Pharma","ERYTECH Pharma"]
["esanum GmbH","esanum GmbH"]
["ESAOTE Medical","ESAOTE Medical"]
["ESPACE MEDICAL BOURGES","ESPACE MEDICAL BOURGES"]
["espace medical medic centre","espace medical medic centre"]
["ESPACE MEDICAL MONTLUCON","ESPACE MEDICAL MONTLUCON"]
["ESPACE MEDICAL MOULINS","ESPACE MEDICAL MOULINS"]
["espace medical nevers","espace medical nevers"]
["espace medical vichy","espace medical vichy"]
["ESPACE OPTIQUE AUDITION","ESPACE OPTIQUE AUDITION"]
["esprimed","esprimed"]
["Essilor","Essilor"]
["ESSOR FRANCE","ESSOR FRANCE"]
["ESTOR S.p.A.","ESTOR S.p.A."]
["Et Si ?","Et Si ?"]
["ETHICAL MEDICAL IMPLANTS","ETHICAL MEDICAL IMPLANTS"]
["ETHICON","ETHICON"]
["ethimedix","ethimedix"]
["ETHYPHARM","ETHYPHARM"]
["EUMEDICA s.a.","EUMEDICA s.a."]
["EURAXI PHARMA","EURAXI PHARMA"]
["EURL Antoine Durouchez Audition","EURL Antoine Durouchez Audition"]
["EURL AUDITION CORINNE CARLOT","EURL AUDITION CORINNE CARLOT"]
["Eurl Chaudemanche","Eurl Chaudemanche"]
["eurl generale d'optique","eurl generale d'optique"]
["eurl lb sante","eurl lb sante"]
["Eurl Pharmacie Cantarelli","Eurl Pharmacie Cantarelli"]
["EUROBIO","EUROBIO"]
["Eurodep Exploitant","Eurodep Exploitant"]
["EUROFINS OPTIMED","EUROFINS OPTIMED"]
["EUROFINS OPTIMED LYON","EUROFINS OPTIMED LYON"]
["EUROMEDICA IMAGING","EUROMEDICA IMAGING"]
["EUROMEDS","EUROMEDS"]
["EUROPE BRIDGE","EUROPE BRIDGE"]
["European Market Maintenance Assessment","European Market Maintenance Assessment"]
["EUROPHTA","EUROPHTA"]
["EUROS SAS","EUROS SAS"]
["EUROSAFE","EUROSAFE"]
["EUROSILICONE SAS","EUROSILICONE SAS"]
["EUROSPINE SARL","EUROSPINE SARL"]
["EUROTEKNIKA","EUROTEKNIKA"]
["EUSA Pharma (France) SAS","EUSA Pharma (France) SAS"]
["EUSA Pharma (UK) Limited","EUSA Pharma (UK) Limited"]
["EUSA PHARMA SAS","EUSA PHARMA SAS"]
["EV3 EUROPE S.A.S.","EV3 EUROPE S.A.S."]
["EVADOM","EVADOM"]
["EVALYS SAS","EVALYS SAS"]
["EVANEMY DISTRIBUTION","EVANEMY DISTRIBUTION"]
["EVAUX Laboratoires","EVAUX Laboratoires"]
["EVER Pharma France","EVER Pharma France"]
["EVIC FRANCE","EVIC FRANCE"]
["EVIDENCE BASED COMMUNICATION","EVIDENCE BASED COMMUNICATION"]
["EVOLUTIS","EVOLUTIS"]
["EXACTECH FRANCE SAS","EXACTECH FRANCE SAS"]
["EXACTECH INTERNATIONAL OPERATION Ltd.","EXACTECH INTERNATIONAL OPERATION Ltd."]
["EXAFIELD","EXAFIELD"]
["EXCELLENCE PERF. A DOMICILE/STUDIOSANTE 39","EXCELLENCE PERF. A DOMICILE/STUDIOSANTE 39"]
["Excerpta Medica BV","Excerpta Medica BV"]
["EXETER PHARMA CONSULTANCY LLC","EXETER PHARMA CONSULTANCY LLC"]
["EXPERF AQUITAINE","EXPERF AQUITAINE"]
["EXPERF AUVERGNE","EXPERF AUVERGNE"]
["EXPERF COTE D'AZUR","EXPERF COTE D'AZUR"]
["EXPERF DROME","EXPERF DROME"]
["EXPERF ISERE","EXPERF ISERE"]
["EXPERF LANGUEDOC ROUSSILLON","EXPERF LANGUEDOC ROUSSILLON"]
["EXPERF LORRAINE","EXPERF LORRAINE"]
["EXPERF MIDI PYRENEES","EXPERF MIDI PYRENEES"]
["EXPERF NORD","EXPERF NORD"]
["EXPERF NORMANDIE","EXPERF NORMANDIE"]
["EXPERF PACA","EXPERF PACA"]
["EXPERF PYRENEES ORIENTALES","EXPERF PYRENEES ORIENTALES"]
["EXPERF RHONE ALPES","EXPERF RHONE ALPES"]
["EXPERF VAUCLUSE DROME","EXPERF VAUCLUSE DROME"]
["EXPERTISE RESEARCH","EXPERTISE RESEARCH"]
["EYETECHCARE","EYETECHCARE"]
["Fab'entech","Fab'entech"]
["FAGRON","FAGRON"]
["FARCODERM France","FARCODERM France"]
["FCI SAS","FCI SAS"]
["FeetMe","FeetMe"]
["FERRING SAS","FERRING SAS"]
["FFF AUDIO","FFF AUDIO"]
["FH ORTHOPEDICS","FH ORTHOPEDICS"]
["Field Scope Int Ltd","Field Scope Int Ltd"]
["Field Scope International","Field Scope International"]
["FII","FII"]
["FILAVIE","FILAVIE"]
["FIMED","FIMED"]
["FINANCIERE BATTEUR","FINANCIERE BATTEUR"]
["FINOX BIOTECH FRANCE SARL","FINOX BIOTECH FRANCE SARL"]
["Firme","Firme"]
["FISHER & PAYKEL HEALTHCARE SAS","FISHER & PAYKEL HEALTHCARE SAS"]
["FISHER SCIENTIFIC SAS","FISHER SCIENTIFIC SAS"]
["Five Prime Therapeutics, Inc.","Five Prime Therapeutics, Inc."]
["FLUM","FLUM"]
["FLUOPTICS","FLUOPTICS"]
["FMR GLOBAL HEALTH","FMR GLOBAL HEALTH"]
["Fondation Transplantation","Fondation Transplantation"]
["FOVEA PHARMACEUTICALS","FOVEA PHARMACEUTICALS"]
["France Oxygène","France Oxygène"]
["FRANCHIS OPTIQUE AUDITION DE LA SCELLERIE","FRANCHIS OPTIQUE AUDITION DE LA SCELLERIE"]
["FRANCOPIA","FRANCOPIA"]
["FRESENIUS KABI FRANCE","FRESENIUS"]
["Fresenius Medical Care France S.A.S.","FRESENIUS"]
["FRESENIUS VIAL","FRESENIUS"]
["FSK","FSK"]
["FUJIFILM Medical Systems France","FUJIFILM Medical Systems France"]
["Fujifilm Sonosite France SARL","Fujifilm Sonosite France SARL"]
["FUJIREBIO FRANCE SARL","FUJIREBIO FRANCE SARL"]
["FUKUDA DENSHI CO., LTD","FUKUDA DENSHI CO., LTD"]
["FUMOUZE DIAGNOSTICS - SOFIBEL","FUMOUZE DIAGNOSTICS - SOFIBEL"]
["Future Thinking France","Future Thinking France"]
["FV Clinical","FV Clinical"]
["FX SOLUTIONS","FX SOLUTIONS"]
["GACD","GACD"]
["galderma international","Galderma"]
["Galderma Research & Development","Galderma"]
["GaldermaQMed","Galderma"]
["GALLILEO BUSINESS CONSULTING","GALLILEO BUSINESS CONSULTING"]
["GAMAIN LEGROS","GAMAIN LEGROS"]
["GAMAMABS PHARMA","GAMAMABS PHARMA"]
["GAMBRO HOSPAL SAS","GAMBRO"]
["GAMBRO INDUSTRIES","GAMBRO"]
["GAMIDA","GAMIDA"]
["GC FRANCE SAS","GC FRANCE SAS"]
["GC Orthodonics Europe GmbH","GC Orthodonics Europe GmbH"]
["GC TECHNOLOGY","GC TECHNOLOGY"]
["GE HEALTHCARE SAS","GE HEALTHCARE SAS"]
["GE Medical Systems SCS","GE Medical Systems SCS"]
["GECEM","GECEM"]
["GEDEON RCHTER Plc","GEDEON RCHTER Plc"]
["GEDEON RICHTER France - Division Santé de la Femme","GEDEON RICHTER France - Division Santé de la Femme"]
["GEISTLICH PHARMA FRANCE","GEISTLICH PHARMA FRANCE"]
["GELSCOM","GELSCOM"]
["GemSeek","GemSeek"]
["Genactis SAS","Genactis SAS"]
["GENBIOTECH","GENBIOTECH"]
["Genen-Tech Inc","Genen-Tech Inc"]
["GENERIC IMPLANTS","GENERIC IMPLANTS"]
["generique international","generique international"]
["GENETHON","GENETHON"]
["GeNeuro","GeNeuro"]
["GeNeuro Innovation","GeNeuro Innovation"]
["GENEWAVE S.A.S","GENEWAVE S.A.S"]
["Genmab A/S","Genmab A/S"]
["GENOMIC HEALTH","GENOMIC HEALTH"]
["GENTICEL","GENTICEL"]
["Genzyme","GENZYME"]
["GENZYME POLYCLONALS","GENZYME"]
["GEP Santé","GEP Santé"]
["GEP SANTE SUD EST","GEP SANTE SUD EST"]
["GERS SAS","GERS SAS"]
["Gesellschaft fÃ¼r Konsumforschung (GfK SE)","Gesellschaft fÃ¼r Konsumforschung (GfK SE)"]
["Gesellschaft fÜr Konsumforschung (GfK SE)","Gesellschaft fÜr Konsumforschung (GfK SE)"]
["GETINGE France","GETINGE France"]
["GFK ISL CUSTOM RESEARCH FRANCE","GFK ISL CUSTOM RESEARCH FRANCE"]
["GfK Market Access","GfK Market Access"]
["GfK NOP","GfK NOP"]
["GIBAUD","GIBAUD"]
["GIE AUDILAB RESSOURCES","GIE AUDILAB RESSOURCES"]
["GIE DIALYSE SERVICES","GIE DIALYSE SERVICES"]
["GIFRER BARBEZAT","GIFRER BARBEZAT"]
["GILEAD SCIENCES","GILEAD SCIENCES"]
["GILEAD SCIENCES INTERNATIONAL","GILEAD SCIENCES"]
["GIM France","GIM France"]
["Gina","Gina"]
["GIVEN IMAGING","GIVEN IMAGING"]
["Glaukos Corporation","Glaukos Corporation"]
["Glaukos France SASU","Glaukos France SASU"]
["GlaxoSmithKline Biologicals","GLAXOSMITHKLINE"]
["GLAXOSMITHKLINE SANTE GRAND PUBLIC","GLAXOSMITHKLINE"]
["GLOBAL D","GLOBAL D"]
["Global Marketing Pharma","Global Marketing Pharma"]
["GLOBAL MEDIA SANTE","GLOBAL MEDIA SANTE"]
["GLOBAL S","GLOBAL S"]
["GlobalData","GlobalData"]
["Globe Life Sciences","Globe Life Sciences"]
["Glocal Mind","Glocal Mind"]
["GLocal Mind Inc","GLocal Mind Inc"]
["GLPTest","GLPTest"]
["gn hearing sas","gn hearing sas"]
["GN OTOMETRICS","GN OTOMETRICS"]
["GNB AUDIO 7","GNB AUDIO 7"]
["GNM Healthcare Consulting Ltd","GNM Healthcare Consulting Ltd"]
["GRAFTYS SA","GRAFTYS SA"]
["GRANDAUDITION","GRANDAUDITION"]
["Grandir Nature","Grandir Nature"]
["GRANDVISION FRANCE","GRANDVISION FRANCE"]
["Grayling","Grayling"]
["GREAT PROJECTS 66","GREAT PROJECTS 66"]
["GREATBATCH MEDICAL","GREATBATCH MEDICAL"]
["Grey Healthcare Paris","Grey Healthcare Paris"]
["GRIFOLS France","GRIFOLS France"]
["Groupe d'Etudes pour la Chirurgie Osseuse","Groupe d'Etudes pour la Chirurgie Osseuse"]
["GROUPE INTERACTION","GROUPE INTERACTION"]
["GROUPE LEPINE","GROUPE LEPINE"]
["GROUPE SEBBIN","GROUPE SEBBIN"]
["GROUPE SOBER","GROUPE SOBER"]
["GROUPE WELCOOP","GROUPE WELCOOP"]
["GT Urological, LLC","GT Urological, LLC"]
["GTO","GTO"]
["Guerbet","Guerbet"]
["GUERBET France","Guerbet"]
["GUILDE DES LUNETIERS","GUILDE DES LUNETIERS"]
["GW Research Limited","GW Research Limited"]
["GXEL MEDICAL SARL","GXEL MEDICAL SARL"]
["H.A.C.Pharma","H.A.C.Pharma"]
["H32","H32"]
["H4D","H4D"]
["HAEMONETICS CORPORATION","HAEMONETICS CORPORATION"]
["Haemonetics France","Haemonetics France"]
["HAEMONETICS S.A.","HAEMONETICS S.A."]
["HALIODX","HALIODX"]
["HALYARD France","HALYARD France"]
["HANDI PHARM ATLANTIQUE","HANDI PHARM ATLANTIQUE"]
["HANDI PHARM BRETAGNE","HANDI PHARM BRETAGNE"]
["HANDI PHARM CHARENTES","HANDI PHARM CHARENTES"]
["HANDI PHARM GROUPE","HANDI PHARM GROUPE"]
["HANDI PHARM LIMOUSIN","HANDI PHARM LIMOUSIN"]
["HANDI PHARM NORMANDIE","HANDI PHARM NORMANDIE"]
["HANDI PHARM OCEAN","HANDI PHARM OCEAN"]
["HANDI PHARM PERCHE","HANDI PHARM PERCHE"]
["HANDI PHARM POITOU","HANDI PHARM POITOU"]
["Hands Up","Hands Up"]
["HANSATON","HANSATON"]
["Hansen Medical, Inc.","Hansen Medical, Inc."]
["HARD CAB'","HARD CAB'"]
["HARMONIE MEDICAL SERVICE GRAND EST","HARMONIE MEDICAL SERVICE GRAND EST"]
["Harris Interactive","Harris Interactive"]
["HAVAS LIFE PARIS","HAVAS LIFE PARIS"]
["HD MEDICAL","HD MEDICAL"]
["Health Advances","Health Advances"]
["HEALTHCARE COMPLIANCE CONSULTING FRANCE SAS","HEALTHCARE COMPLIANCE CONSULTING FRANCE SAS"]
["HEALTHCAREGEN COMMUNICATION","HEALTHCAREGEN COMMUNICATION"]
["HEARTWARE FRANCE","HEARTWARE FRANCE"]
["HeartWare Inc.","HeartWare Inc."]
["HEARWEAR PROJECT","HEARWEAR PROJECT"]
["HELIOS CHIRURGIE","HELIOS CHIRURGIE"]
["HELLI SANTE","HELLI SANTE"]
["HELP ORTHO PRODUCTION","HELP ORTHO PRODUCTION"]
["Helsinn SA","Helsinn SA"]
["HEMA.T MEDICAL","HEMA.T MEDICAL"]
["HEMOCUE FRANCE","HEMOCUE FRANCE"]
["HEMODIA SAS","HEMODIA SAS"]
["HEMOTECH","HEMOTECH"]
["HENRY SCHEIN FRANCE SCA","HENRY SCHEIN FRANCE SCA"]
["HERAEUS","HERAEUS"]
["HERAEUS KULZER FRANCE","HERAEUS KULZER FRANCE"]
["HERINOMENJANAHARY ZAFITSARA","HERINOMENJANAHARY ZAFITSARA"]
["HEXACATH FRANCE","HEXACATH FRANCE"]
["HEXACATH SA","HEXACATH SA"]
["HEXAMEDICAL SAS","HEXAMEDICAL SAS"]
["HIGHLIFE","HIGHLIFE"]
["HILL-ROM S.A.S.","HILL-ROM S.A.S."]
["HIPPOCAMPE","HIPPOCAMPE"]
["HIPRA FRANCE","HIPRA FRANCE"]
["HITACHI MEDICAL SYSTEMS SAS","HITACHI MEDICAL SYSTEMS SAS"]
["Hogan Lovells International LLP","Hogan Lovells International LLP"]
["Holaira, Inc.","Holaira, Inc."]
["HOLLISTER FRANCE Incorporated","HOLLISTER FRANCE Incorporated"]
["HOLOGIC","HOLOGIC"]
["Hologic Deutschland GmbH","HOLOGIC"]
["Hologic Iberia, S.L.","HOLOGIC"]
["HOLOGIC N.V","HOLOGIC"]
["HOLOGIC NETHERLANDS B.V","HOLOGIC"]
["Hologic, Inc.","HOLOGIC"]
["HOME AIR","HOME AIR"]
["HOMEDIS SANTE","HOMEDIS SANTE"]
["Homeperf","Homeperf"]
["HOPSCOTCH CONGRES","HOPSCOTCH CONGRES"]
["HORAMA SA","HORAMA SA"]
["HORIBA ABX SAS","HORIBA ABX SAS"]
["Horizon Pharma plc","Horizon Pharma plc"]
["HORMETA FRANCE","HORMETA FRANCE"]
["horus pharma","horus pharma"]
["HOSPIDOM","HOSPIDOM"]
["HOSPIRA FRANCE","HOSPIRA"]
["HOYA LENS FRANCE SAS","HOYA LENS FRANCE SAS"]
["HOYA Surgical Optics GmbH","HOYA Surgical Optics GmbH"]
["HRA PHARMA FRANCE","HRA PHARMA FRANCE"]
["H-research Asia","H-research Asia"]
["HUERRE ALAIN FRANCOIS","HUERRE ALAIN FRANCOIS"]
["HUGON ACOUSTIQUE SARL","HUGON ACOUSTIQUE SARL"]
["HUMANAIR MEDICAL","HUMANAIR MEDICAL"]
["HYGIENE SANTE ENVIRONNEMENT","HYGIENE SANTE ENVIRONNEMENT"]
["HYPHEN BIOMED SAS","HYPHEN BIOMED SAS"]
["Hyprevention sas","Hyprevention sas"]
["I.CERAM","I.CERAM"]
["IASO2","IASO2"]
["ICARE","ICARE"]
["ICOMED","Icomed"]
["ICON Clinical Research Limited","ICON CLINICAL RESEARCH"]
["ICON CLINICAL RESEARCH SARL","ICON CLINICAL RESEARCH"]
["ICON CLINICAL RESEARCH UK LIMITED","ICON CLINICAL RESEARCH"]
["ICTA PROJECT MANAGEMENT","ICTA PROJECT MANAGEMENT"]
["Ideal Gourmet","Ideal Gourmet"]
["IDEC 56","IDEC 56"]
["Idée Ã  Suivre","Idée Ã  Suivre"]
["ID-NEST Medical","ID-NEST Medical"]
["Idorsia Pharmaceuticals Ltd.","Idorsia Pharmaceuticals Ltd."]
["idrm","idrm"]
["IFOP","IFOP"]
["Ignyta,Inc.","Ignyta,Inc."]
["IHEALTHLABS","IHEALTHLABS"]
["Illumina France","Illumina France"]
["IMACCESS","IMACCESS"]
["IMACTIS","IMACTIS"]
["IMAGENCE","IMAGENCE"]
["IMAGO RESEARCH","IMAGO RESEARCH"]
["Imaxio","Imaxio"]
["Immucor France","Immucor France"]
["ImmunoDiagnostic Systems SAS","ImmunoDiagnostic Systems SAS"]
["IMPACT MEDICOM","IMPACT MEDICOM"]
["Impatients N.V","Impatients N.V"]
["IMPETO MEDICAL","IMPETO MEDICAL"]
["IMPLANET SA","IMPLANET SA"]
["IMPLANTS SERVICE ORTHOPEDIE","IMPLANTS SERVICE ORTHOPEDIE"]
["Impulse Dynamics Germany GmbH","Impulse Dynamics Germany GmbH"]
["IMS Health Belgique","IMS HEALTH"]
["IMS Health Cambridge","IMS HEALTH"]
["IMS HEALTH SAS","IMS HEALTH"]
["IMS Medical Radar","IMS Medical Radar"]
["IMSWorld","IMSWorld"]
["IN LOG SAS","IN LOG SAS"]
["In2Bones","In2Bones"]
["INC RESEARCH, LLC","INC RESEARCH, LLC"]
["Incyte Biosciences France","Incyte Biosciences France"]
["Incyte Corporation","Incyte Corporation"]
["Incyte International","Incyte International"]
["INDERMA LABORATOIRE DERMATOLOGIQUE","INDERMA LABORATOIRE DERMATOLOGIQUE"]
["Indigo Medical","Indigo Medical"]
["INDIVIOR France","INDIVIOR France"]
["INFECO","INFECO"]
["INGEN","INGEN"]
["INIT","INIT"]
["INNATE PHARMA","INNATE PHARMA"]
["InnOpath sarl","InnOpath sarl"]
["INNOPSYS","INNOPSYS"]
["Innothera Chouzy","Innothera Chouzy"]
["Innothera Services","Innothera Services"]
["INOPHARM LIMITED","INOPHARM LIMITED"]
["INOVITALE","INOVITALE"]
["INRESA Sarl","INRESA Sarl"]
["Insight Research Group","Insight Research Group"]
["INSMED France SAS","INSMED France SAS"]
["INSMED INCORPORATED","INSMED INCORPORATED"]
["INSTITUT DE BIOTECHNOLOGIES J. BOY","INSTITUT DE BIOTECHNOLOGIES J. BOY"]
["INSTITUT GEORGES LOPEZ","INSTITUT GEORGES LOPEZ"]
["INSTITUT MERIEUX","INSTITUT MERIEUX"]
["Institut Roche","Institut Roche"]
["INSTITUT STERLING COOPER","INSTITUT STERLING COOPER"]
["INSULET FRANCE","INSULET FRANCE"]
["Integra LifeSciences Services (France)","Integra LifeSciences Services (France)"]
["Integra MicroFrance","Integra MicroFrance"]
["Integra NeuroSciences Implants (France)","Integra NeuroSciences Implants (France)"]
["INTEGRAL ORTHO","INTEGRAL ORTHO"]
["INTER ORTHO","INTER ORTHO"]
["Interactive Biosoftware","Interactive Biosoftware"]
["Intercept Pharma France SAS","Intercept Pharma France SAS"]
["Intercept Pharmaceuticals Inc.","Intercept Pharmaceuticals Inc."]
["InterMune France SAS","InterMune France SAS"]
["InterMune International AG","InterMune International AG"]
["International Health Management Association, Inc.","International Health Management Association, Inc."]
["INTERSURGICAL SARL","INTERSURGICAL SARL"]
["INTERVET","INTERVET"]
["Inter-View Partners France","Inter-View Partners France"]
["INTUITIVE SURGICAL DEUTSCHLAND GmbH","INTUITIVE SURGICAL"]
["INTUITIVE SURGICAL LIMITED","INTUITIVE SURGICAL"]
["INTUITIVE SURGICAL SARL","INTUITIVE SURGICAL"]
["INTUITIVE SURGICAL SAS","INTUITIVE SURGICAL"]
["INVACARE POIRIER SAS","INVACARE POIRIER SAS"]
["INVENTIVA","INVENTIVA"]
["Inventivhealthclinical","Inventivhealthclinical"]
["ION BEAM APPLICATIONS S.A.","ION BEAM APPLICATIONS S.A."]
["Ionis Pharmaceuticals, Inc.","Ionis Pharmaceuticals, Inc."]
["IOWA APPROACH INC","IOWA APPROACH INC"]
["IP Santé domicile","IP Santé domicile"]
["IPAD Médical","IPAD Médical"]
["Ipanema Healthcare Consulting","Ipanema Healthcare Consulting"]
["IPPMed GmbH","IPPMed GmbH"]
["IPSEN INNOVATION","IPSEN"]
["IPSEN PHARMA","IPSEN"]
["IPSEN PHARMA BIOTECH","IPSEN"]
["Ipsos (France)","Ipsos"]
["Ipsos Insight LLC","Ipsos"]
["Ipsos Mori UK Limited","Ipsos"]
["Ipsos Observer","Ipsos"]
["IQVIA","IQVIA"]
["IQVIA Information Solutions France","IQVIA"]
["IQVIA Medical Radar","IQVIA"]
["IQVIA Operations France","IQVIA"]
["IQVIA Solutions UK Ltd","IQVIA"]
["Iris Pharma","Iris Pharma"]
["IS","IS"]
["ISIS ADOUR","ISIS ADOUR"]
["ISIS ATLANTIQUE","ISIS ATLANTIQUE"]
["ISIS AVEYRON","ISIS AVEYRON"]
["ISIS BAYONNE","ISIS BAYONNE"]
["ISIS BOURGOGNE","ISIS BOURGOGNE"]
["ISIS CHAMPAGNE","ISIS CHAMPAGNE"]
["ISIS COTE D'AZUR","ISIS COTE D'AZUR"]
["ISIS DIABETE","ISIS DIABETE"]
["ISIS DIABETE EST","ISIS DIABETE EST"]
["ISIS DIABETE SERVICE","ISIS DIABETE SERVICE"]
["ISIS DIABETE SUD","ISIS DIABETE SUD"]
["ISIS EURE ET LOIR","ISIS EURE ET LOIR"]
["ISIS GUADELOUPE","ISIS GUADELOUPE"]
["ISIS LANGUEDOC ROUSSILLON","ISIS LANGUEDOC ROUSSILLON"]
["ISIS LORRAINE","ISIS LORRAINE"]
["ISIS MÉDICAL VAR","ISIS MÉDICAL VAR"]
["ISIS MARTINIQUE","ISIS MARTINIQUE"]
["ISIS MEDICAL AQUITAINE","ISIS MEDICAL AQUITAINE"]
["ISIS MÉDICAL VAR","ISIS MÉDICAL VAR"]
["Isis MéditerranÃ©e","Isis Méditerranée"]
["Isis Méditerranée","Isis Méditerranée"]
["ISIS MIDI PYRENEES","ISIS MIDI PYRENEES"]
["ISIS NORMANDIE","ISIS NORMANDIE"]
["ISIS PARIS EST","ISIS PARIS EST"]
["ISIS PARIS NORD","ISIS PARIS NORD"]
["ISIS PARIS NORMANDIE","ISIS PARIS NORMANDIE"]
["ISIS PARIS OUEST","ISIS PARIS OUEST"]
["ISIS PARIS SUD","ISIS PARIS SUD"]
["ISIS PAYS DE LA LOIRE","ISIS PAYS DE LA LOIRE"]
["ISIS PERFUSION","ISIS PERFUSION"]
["ISIS PERFUSION NORD","ISIS PERFUSION NORD"]
["ISIS RHONE ALPES","ISIS RHONE ALPES"]
["IsoTis International SÃ RL","IsoTis International SÃ RL"]
["IsoTis International SÀRL","IsoTis International SÀRL"]
["IST cardiology","IST cardiology"]
["ITEC SERVICES","ITEC SERVICES"]
["ITEM","ITEM"]
["ITENA CLINICAL","ITENA CLINICAL"]
["ITM Solucin GmbH","ITM Solucin GmbH"]
["Ivoclar Vivadent SAS","Ivoclar Vivadent SAS"]
["IVTEC (Iol Vision Technology)","IVTEC (Iol Vision Technology)"]
["IXAIR","IXAIR"]
["IXAIR ASSISTANCE","IXAIR ASSISTANCE"]
["IXXI","IXXI"]
["JAKE","JAKE"]
["JANSSEN HORIZON","JANSSEN HORIZON"]
["JANSSEN-CILAG","Janssen-Cilag"]
["JAZZ PHARMACEUTICALS FRANCE","JAZZ PHARMACEUTICALS FRANCE"]
["JAZZ Pharmaceuticals Ireland Limited","JAZZ Pharmaceuticals Ireland Limited"]
["Jean-Manuel Toussaint, IHMT","Jean-Manuel Toussaint, IHMT"]
["JLM MEDICAL","JLM MEDICAL"]
["Johnson & Johnson Diabetes Institute SAS","Johnson & Johnson"]
["Johnson & Johnson Medical SAS","Johnson & Johnson"]
["Johnson et Johnson Santé BeautÃ© France","Johnson & Johnson"]
["Johnson et Johnson Santé Beauté France","Johnson & Johnson"]
["JOTEC GmbH","JOTEC GmbH"]
["JULIE SOFTWARE","JULIE SOFTWARE"]
["JULIE SOLUTIONS","JULIE SOLUTIONS"]
["JULIUS CLINICAL RESEARCH B.V.","JULIUS CLINICAL RESEARCH B.V."]
["Julius Zorn GmbH","Julius Zorn GmbH"]
["Junicon","Junicon"]
["Junicon Europe SL","Junicon Europe SL"]
["K. PARTICULIER","K. PARTICULIER"]
["Kadence international","Kadence international"]
["Kantar Health","Kantar Health"]
["Kappa Santé","Kappa Santé"]
["KARL STORZ ENDOSCOPIE FRANCE SAS","KARL STORZ ENDOSCOPIE FRANCE SAS"]
["Karl Storz Gmbh and co KG","Karl Storz Gmbh and co KG"]
["KARUKERA AUDITION","KARUKERA AUDITION"]
["Karyopharm Therapeutics Inc.","Karyopharm Therapeutics Inc."]
["KASIOS","KASIOS"]
["Kavo Dental SAS","Kavo Dental SAS"]
["KCI EUROPE HOLDING B.V.","KCI EUROPE HOLDING B.V."]
["KCI KK JAPAN","KCI KK JAPAN"]
["KCI MEDICAL (CHINA) CO. LTD.","KCI MEDICAL (CHINA) CO. LTD."]
["KEBOMED","KEBOMED"]
["Kenes International Organisers of Congresses SA","Kenes International Organisers of Congresses SA"]
["KEOCYT","KEOCYT"]
["KEPHALIOS","KEPHALIOS"]
["KEPHREN","KEPHREN"]
["KERI MEDICAL FRANCE","KERI MEDICAL FRANCE"]
["KERI MEDICAL SA","KERI MEDICAL SA"]
["KeyQuest Health Ltd","KeyQuest Health Ltd"]
["KeyQuest Health Ltd.","KeyQuest Health Ltd"]
["KEYSTONE DENTAL SAS","KEYSTONE DENTAL SAS"]
["Kimberly-Clark SAS","Kimberly-Clark SAS"]
["KINETIC CONCEPTS, INC.","KINETIC CONCEPTS, INC."]
["KISCO International","KISCO International"]
["KOELIS","KOELIS"]
["KOMET FRANCE","KOMET FRANCE"]
["KPL","KPL"]
["KPMG LLP UK","KPMG LLP UK"]
["KRKA FRANCE EURL","KRKA FRANCE EURL"]
["Kuraray Europe France","Kuraray Europe France"]
["KYD ORTHOPEDIE","KYD ORTHOPEDIE"]
["Kynetec France","Kynetec France"]
["KYOWA KIRIN","KYOWA KIRIN"]
["KYOWA KIRIN SERVICES LTD","KYOWA KIRIN"]
["L&L Rsourcing","L&L Rsourcing"]
["L.M.D","L.M.D"]
["LA DIFFUSION TECHNIQUE FRANCAISE","LA DIFFUSION TECHNIQUE FRANCAISE"]
["LA FONDERIE","LA FONDERIE"]
["LA GENETTE OPTIQUE","LA GENETTE OPTIQUE"]
["LA REGIE PUBLIQUE","LA REGIE PUBLIQUE"]
["LA SOLUTION AUDITIVE","LA SOLUTION AUDITIVE"]
["Lab Marketing SL","Lab Marketing SL"]
["LABCATAL","LABCATAL"]
["LABODIAL","LABODIAL"]
["Laboratoier Innotech international","Laboratoier Innotech international"]
["LABORATOIR CLAYTONE-TERRAFOR","LABORATOIR CLAYTONE-TERRAFOR"]
["Laboratoire AGUETTANT, SociétÃ© par Actions SimplifiÃ©e","AGUETTANT"]
["Laboratoire AGUETTANT, Société par Actions Simplifiée","AGUETTANT"]
["LABORATOIRE ATO-ZIZINE","ATO-ZIZINE"]
["laboratoire audioprothèse lorrain","audioprothèse lorrain"]
["laboratoire BAUSCH&LOMB","BAUSCH&LOMB"]
["Laboratoire Bioderma","Bioderma"]
["LABORATOIRE BIODIM","BIODIM"]
["Laboratoire CAT","CAT"]
["Laboratoire CCD","CCD"]
["LABORATOIRE CEVIDRA","LABORATOIRE CEVIDRA"]
["LABORATOIRE CORRECTION AUDITIVE DRAGUIGNAN","CORRECTION AUDITIVE DRAGUIGNAN"]
["LABORATOIRE CORRECTION AUDITIVE ST RAPHAEL-FREJUS","CORRECTION AUDITIVE ST RAPHAEL-FREJUS"]
["LABORATOIRE COSMETIQUE DE LECOUSSE","COSMETIQUE DE LECOUSSE"]
["Laboratoire de correction auditive","de correction auditive"]
["Laboratoire de correction auditive d'Aix en Provence","de correction auditive d'Aix en Provence"]
["laboratoire de correction auditive d'Aubagne","de correction auditive d'Aubagne"]
["LABORATOIRE DE CORRECTION AUDITIVE D'AVIGNON SAINT ROCH","DE CORRECTION AUDITIVE D'AVIGNON SAINT ROCH"]
["LABORATOIRE DE CORRECTION AUDITIVE DE CAVAILLON","DE CORRECTION AUDITIVE DE CAVAILLON"]
["laboratoire de correction auditive de dijon","de correction auditive de dijon"]
["LABORATOIRE DE CORRECTION AUDITIVE DE ISTRES","DE CORRECTION AUDITIVE DE ISTRES"]
["Laboratoire de correction auditive de lambesc","de correction auditive de lambesc"]
["LABORATOIRE DE CORRECTION AUDITIVE DE MARSEILLE PRADO","LABORATOIRE DE CORRECTION AUDITIVE DE MARSEILLE PRADO"]
["LABORATOIRE DE CORRECTION AUDITIVE DE MARTIGUES","DE CORRECTION AUDITIVE DE MARTIGUES"]
["LABORATOIRE DE CORRECTION AUDITIVE DE TOULON","DE CORRECTION AUDITIVE DE TOULON"]
["Laboratoire de Correction Auditive de Villeneuve lez Avignon","de Correction Auditive de Villeneuve lez Avignon"]
["laboratoire de correction auditive Sylvain Chopinaud","de correction auditive Sylvain Chopinaud"]
["LABORATOIRE DE CORRECTION DE LA SURDITE","DE CORRECTION DE LA SURDITE"]
["laboratoire de correction de l'audition","de correction de l'audition"]
["Laboratoire de Dermocosmétique Active Docteur Pierre Ricaud","Dermocosmétique Active Docteur Pierre Ricaud"]
["LABORATOIRE DE DIFFUSION DE PRODUITS DE SANTE APPLIQUEE","DE DIFFUSION DE PRODUITS DE SANTE APPLIQUEE"]
["LABORATOIRE DE LA MER","DE LA MER"]
["LABORATOIRE DENSMORE","DENSMORE"]
["Laboratoire DERMSCAN","DERMSCAN"]
["LABORATOIRE DES GRANIONS","DES GRANIONS"]
["LABORATOIRE DISSOLVUROL","DISSOLVUROL"]
["Laboratoire du Dermophil Indien","Dermophil Indien"]
["Laboratoire du Gomenol","Laboratoire du Gomenol"]
["LABORATOIRE DU SOLVIREX","LABORATOIRE DU SOLVIREX"]
["Laboratoire Eneomey","Laboratoire Eneomey"]
["LABORATOIRE EREMPHARMA","EREMPHARMA"]
["LABORATOIRE FLORENCE VERJUS","FLORENCE VERJUS"]
["Laboratoire français du Fractionnement et des Biotechnologies","LFB"]
["Laboratoire français du Fractionnement et des Biotechnologies","LFB"]
["Laboratoire GANDHOUR","GANDHOUR"]
["LABORATOIRE GLAXOSMITHKLINE","GSK"]
["Laboratoire HEPATOUM","HEPATOUM"]
["LABORATOIRE HRA PHARMA","LABORATOIRE HRA PHARMA"]
["Laboratoire Innothera","Innothéra"]
["LABORATOIRE JALDES","JALDES"]
["LABORATOIRE KCI MEDICAL","KCI MEDICAL"]
["Laboratoire Kreussler pharma","Kreussler pharma"]
["LABORATOIRE L.C.V.","LABORATOIRE L.C.V."]
["laboratoire leblanc et associés","leblanc et associés"]
["LABORATOIRE MENE ET MOY","MENE ET MOY"]
["Laboratoire MSD Chibret","MSD France"]
["LABORATOIRE NOVEX PHARMA","NOVEX PHARMA"]
["LABORATOIRE NUXE","NUXE"]
["Laboratoire PEDIACT","PEDIACT"]
["Laboratoire PHARMASTRA","PHARMASTRA"]
["Laboratoire Protec'Som","Protec'Som"]
["LABORATOIRE RENAUDIN","RENAUDIN"]
["Laboratoire SCIENCEX","SCIENCEX"]
["LABORATOIRE SOBER","SOBER"]
["LABORATOIRE TETRA MEDICAL","TETRA MEDICAL"]
["Laboratoire TRADIPHAR","TRADIPHAR"]
["laboratoire TVM","laboratoire TVM"]
["LABORATOIRE UNITHER","UNITHER"]
["LABORATOIRE X.O","LABORATOIRE X.O"]
["LABORATOIRES ALCON","ALCON"]
["LABORATOIRES ALTER","ALTER"]
["LABORATOIRES ANIOS","LABORATOIRES ANIOS"]
["LABORATOIRES ARION","ARION"]
["Laboratoires ARKOPHARMA","ARKOPHARMA"]
["Laboratoires AUVEX","AUVEX"]
["Laboratoires Bailleul","Bailleul"]
["Laboratoires BESINS INTERNATIONAL","BESINS INTERNATIONAL"]
["LABORATOIRES BIOVE","LABORATOIRES BIOVE"]
["LABORATOIRES BOUCHARA - RECORDATI","BOUCHARA - RECORDATI"]
["LABORATOIRES BROTHIER","BROTHIER"]
["Laboratoires Carilène","Carilène"]
["LABORATOIRES CHAIX ET DU MARAIS","CHAIX ET DU MARAIS"]
["LABORATOIRES CLARINS","CLARINS"]
["LABORATOIRES COLOPLAST","COLOPLAST"]
["LABORATOIRES CONVATEC","CONVATEC"]
["Laboratoires Crinex","Crinex"]
["LABORATOIRES CTRS","CTRS"]
["Laboratoires CYCLOPHARMA","CYCLOPHARMA"]
["Laboratoires de Biologie Marine Daniel Jouvance","de Biologie Marine Daniel Jouvance"]
["Laboratoires de Biologie VégÃ©tale Yves Rocher","Laboratoires de Biologie Végétale Yves Rocher"]
["Laboratoires de Biologie Végétale Yves Rocher","Biologie Végétale Yves Rocher"]
["Laboratoires DELBERT","DELBERT"]
["laboratoires dermatologiques d'Uriage","dermatologiques d'Uriage"]
["Laboratoires des Réalisations ThÃ©rapeutiques ELERTE","Laboratoires des Réalisations Thérapeutiques ELERTE"]
["Laboratoires des Réalisations Thérapeutiques ELERTE","Réalisations Thérapeutiques ELERTE"]
["LABORATOIRES DIETETIQUE ET SANTE","LABORATOIRES DIETETIQUE ET SANTE"]
["Laboratoires Doliage","Doliage"]
["Laboratoires EONA","Laboratoires EONA"]
["LABORATOIRES ERSA","LABORATOIRES ERSA"]
["Laboratoires ETHYPHARM","ETHYPHARM"]
["Laboratoires Expanscience","Expanscience"]
["Laboratoires Filorga","Laboratoires Filorga"]
["LABORATOIRES GENEVRIER","GENEVRIER"]
["LABORATOIRES GERDA","GERDA"]
["LABORATOIRES GILBERT","GILBERT"]
["Laboratoires GrÃ¼nenthal SAS","Laboratoires GrÃ¼nenthal SAS"]
["LABORATOIRES GRIMBERG SA","GRIMBERG SA"]
["Laboratoires Grünenthal SAS","Grünenthal"]
["Laboratoires INELDEA","INELDEA"]
["Laboratoires inneov SNC","inneov SNC"]
["Laboratoires IPRAD PHARMA","IPRAD PHARMA"]
["LABORATOIRES JOLLY-JATEL","JOLLY-JATEL"]
["Laboratoires Juva Production","Juva Production"]
["Laboratoires Juva Santé","Juva Santé"]
["LABORATOIRES JUVISE PHARMACEUTICALS","JUVISE PHARMACEUTICALS"]
["LABORATOIRES LEHNING SAS","LEHNING SAS"]
["Laboratoires Leurquin Mediolanum","Leurquin Mediolanum"]
["LABORATOIRES LIERAC","LABORATOIRES LIERAC"]
["Laboratoires Lohmann & Rauscher","Lohmann & Rauscher"]
["LABORATOIRES M&L","M&L"]
["Laboratoires MAJORELLE","MAJORELLE"]
["LABORATOIRES MAYOLY SPINDLER","MAYOLY SPINDLER"]
["Laboratoires Moulin Royal Cosmetics","Moulin Royal Cosmetics"]
["Laboratoires NEGMA","NEGMA"]
["Laboratoires Nicox","Laboratoires Nicox"]
["LABORATOIRES NIGY","NIGY"]
["LABORATOIRES NOREVA LED","NOREVA LED"]
["LABORATOIRES OMEGA PHARMA FRANCE","OMEGA PHARMA FRANCE"]
["Laboratoires PHARMA 2000","PHARMA 2000"]
["LABORATOIRES PHARMACEUTIQUES DEXO","PHARMACEUTIQUES DEXO"]
["LABORATOIRES PHARMY II","PHARMY II"]
["Laboratoires PRED","PRED"]
["LABORATOIRES SUPER DIET","SUPER DIET"]
["Laboratoires SVR France","SVR France"]
["Laboratoires TERUMO S.A","TERUMO S.A"]
["Laboratoires THEA","THEA"]
["Laboratoires TONIPHARM SARL","TONIPHARM SARL"]
["LABORATOIRES URGO","URGO"]
["LABORATOIRES URGO HEALTHCARE","LABORATOIRES URGO HEALTHCARE"]
["Laboratoires URSAPHARM SAS","URSAPHARM SAS"]
["LABORATORY IMPLANT MEDICAL DEVICE - LIMMED","LABORATORY IMPLANT MEDICAL DEVICE - LIMMED"]
["Laborie Medical Technologies Europe Limited","Laborie Medical Technologies Europe Limited"]
["Labvoratoire CHAUVIN","Labvoratoire CHAUVIN"]
["LAC","LAC"]
["Lamidey Noury Medical","Lamidey Noury Medical"]
["larm-o-tec","larm-o-tec"]
["LARS","LARS"]
["LASER","LASER"]
["LASOL ROYAN","LASOL ROYAN"]
["LAUNCH Diagnostics France SAS","LAUNCH Diagnostics France SAS"]
["LAUVAL","LAUVAL"]
["LC ENTENDRE","LC ENTENDRE"]
["LCA S.A.","LCA S.A."]
["LDR Médical","LDR Médical"]
["LDSANTE","LDSANTE"]
["Leadership In Medicine","Leadership In Medicine"]
["Leadiant Biosciences SASU","Leadiant Biosciences SASU"]
["Leica Biosystems Nussloch GmbH","Leica Biosystems Nussloch GmbH"]
["Leica Microsystèmes SAS","Leica Microsystèmes SAS"]
["Leica Microsystems Inc.","Leica Microsystems Inc."]
["LeMaitre Vascular SAS","LeMaitre Vascular SAS"]
["LEN Médical","LEN Médical"]
["LENTILLES SAS","LENTILLES SAS"]
["L'Entreprise Médicale","L'Entreprise Médicale"]
["LEO Pharma","LEO Pharma"]
["LEO Pharma A/S","LEO Pharma"]
["LEO Pharma Algérie","LEO Pharma"]
["LES EDITIONS DU MEDECIN GENERALISTE","Le Généraliste"]
["LES LABORATOIRES OSTEAL MEDICAL","LES OSTEAL MEDICAL"]
["LES LABORATOIRES SERVIER","SERVIER"]
["LES SALONS DU PALAIS ROYAL SHISEIDO","LES SALONS DU PALAIS ROYAL SHISEIDO"]
["Leufen Medical France SARL","Leufen Medical France SARL"]
["LFB BIOMANUFACTURING","LFB"]
["LFB BIOMEDICAMENTS","LFB"]
["LFB BIOTECHNOLOGIES","LFB"]
["LG HOMEO","LG HOMEO"]
["LIFE PARTNERS EUROPE","LIFE PARTNERS EUROPE"]
["Life Technologies Corporation","Life Technologies Corporation"]
["LIFE TECHNOLOGIES SAS","LIFE TECHNOLOGIES SAS"]
["LifeCell EMEA Limited","LifeCell EMEA Limited"]
["Lifescan","Lifescan"]
["LILIAL","LILIAL"]
["Lilly France SAS","Lilly"]
["LIMA FRANCE","LIMA FRANCE"]
["LIMACORPORATE","LIMACORPORATE"]
["LINDE FRANCE","LINDE FRANCE"]
["LINDE HOMECARE FRANCE SAS","LINDE HOMECARE FRANCE SAS"]
["linkmedical","linkmedical"]
["Linvatec Europe bvba","Linvatec Europe bvba"]
["LION / SENECA FRANCE AUDIO","LION / SENECA FRANCE AUDIO"]
["Lipomed GmbH","Lipomed GmbH"]
["Listening Pharma","Listening Pharma"]
["LivaNova","LivaNova"]
["LivaNova Belgium NV","LivaNova Belgium NV"]
["LivaNova France SAS","LivaNova France SAS"]
["LivaNova SAS","LivaNova SAS"]
["LIVE ! BY GL EVENTS","LIVE ! BY GL EVENTS"]
["LJ CORPORATE","LJ CORPORATE"]
["LKN MEDICAL SARL","LKN MEDICAL SARL"]
["Lohmann & Rauscher International GmbH & Co KG","Lohmann & Rauscher International GmbH & Co KG"]
["Loire Assistance Sante","Loire Assistance Sante"]
["LOL PHARMA","LOL PHARMA"]
["LONGIMPEx","LONGIMPEx"]
["LONGUEUR D'ONDES","LONGUEUR D'ONDES"]
["L'OREAL S.A.","L'OREAL S.A."]
["LOURAPH","LOURAPH"]
["LPV","LPV"]
["LUCANE PHARMA","LUCANE PHARMA"]
["LUCAS MEYER COSMETICS","LUCAS MEYER COSMETICS"]
["Lumenis Ltd.","Lumenis Ltd."]
["LUNDBECK SAS","LUNDBECK SAS"]
["Luxottica France","Luxottica France"]
["LV2","LV2"]
["LVL MEDICAL CENTRE EST","LVL MEDICAL CENTRE EST"]
["LVL MEDICAL EST","LVL MEDICAL EST"]
["LVL MEDICAL GROUPE","LVL MEDICAL GROUPE"]
["LVL MEDICAL OUEST","LVL MEDICAL OUEST"]
["LVL MEDICAL PARIS ET NORD","LVL MEDICAL PARIS ET NORD"]
["LVL MEDICAL SUD","LVL MEDICAL SUD"]
["LVL MEDICAL SUD OUEST","LVL MEDICAL SUD OUEST"]
["LYON KLEBER SANTE","LYON KLEBER SANTE"]
["LYRA FRANCE","LYRA FRANCE"]
["Lysogene","Lysogene"]
["M3 Global Research Ltd","M3 Global Research Ltd"]
["MA SANTE A DOMICILE SAS","MA SANTE A DOMICILE SAS"]
["MaaT Pharma","MaaT Pharma"]
["MACO PHARMA","MACO PHARMA"]
["MACO PRODUCTIONS","MACO PRODUCTIONS"]
["MADE IN AGENCE","MADE IN AGENCE"]
["MALLINCKRODT FRANCE SARL","MALLINCKRODT FRANCE SARL"]
["MANTARAY","MANTARAY"]
["Mapi Life Science France SAS","Mapi Life Science France SAS"]
["MAPI SAS","MAPI SAS"]
["MAQUET SAS","MAQUET SAS"]
["MARGAUX ORANGE","MARGAUX ORANGE"]
["MARIE AMELIE LENOIR CONSULTING - VICTA CONSEIL","MARIE AMELIE LENOIR CONSULTING - VICTA CONSEIL"]
["MARINA","MARINA"]
["mark'ennovy SARL","mark'ennovy SARL"]
["Market iT","Market iT"]
["MARKET VISION","MARKET VISION"]
["MARQUAT GENIE BIOMEDICAL","MARQUAT GENIE BIOMEDICAL"]
["MARQUE VERTE WELCOOP SANTE","MARQUE VERTE WELCOOP SANTE"]
["MASIMO","MASIMO"]
["MAST DIAGNOSTIC","MAST DIAGNOSTIC"]
["MAST THERAPEUTICS","MAST THERAPEUTICS"]
["Mathys Orthopédie","Mathys Orthopédie"]
["Mauna Kea Technologies","Mauna Kea Technologies"]
["MAVALA FRANCE SA","MAVALA FRANCE SA"]
["MBAR ASSISTANCE RESPIRATOIRE","MBAR ASSISTANCE RESPIRATOIRE"]
["MCCANN HEALTHCARE","MCCANN HEALTHCARE"]
["MD HANDICAP ET SOINS","MD HANDICAP ET SOINS"]
["MD ORTHO","MD ORTHO"]
["MDC-Partners","MDC-Partners"]
["Mdoloris Medical Systems","Mdoloris Medical Systems"]
["MECCELLIS BIOTECH","MECCELLIS BIOTECH"]
["MED OUEST","MED OUEST"]
["MED PLANET","MED PLANET"]
["med&you","med&you"]
["MEDA PHARMA","MEDA PHARMA"]
["MEDAC SAS","MEDAC SAS"]
["MEDACTA FRANCE","MEDACTA FRANCE"]
["MEDARTIS SARL","MEDARTIS SARL"]
["MEDCARE","MEDCARE"]
["MedDay Pharmaceuticals","MedDay Pharmaceuticals"]
["medDigital","medDigital"]
["MED-EL Elektromedizinische Geraete Gesellschaft m.b.H","MED-EL Elektromedizinische Geraete Gesellschaft m.b.H"]
["Medela France Sarl","Medela France Sarl"]
["M-Eden","M-Eden"]
["MEDEX","MEDEX"]
["MEDEXACT","MEDEXACT"]
["medi","medi"]
["MEDI SYS","MEDI SYS"]
["Median Conseil","Median Conseil"]
["MEDIAN Technologies","MEDIAN Technologies"]
["MEDIATION CONSEIL SANTE","MEDIATION CONSEIL SANTE"]
["MEDIBOUM","MEDIBOUM"]
["MEDIC CENTRE EQUIPEMENT","MEDIC CENTRE EQUIPEMENT"]
["MEDIC CENTRE INDUSTRIE","MEDIC CENTRE INDUSTRIE"]
["MEDICAL AXÃˆS","MEDICAL AXÃˆS"]
["MEDICAL BEL AIR","MEDICAL BEL AIR"]
["Medical Education Global Solutions","Medical Education Global Solutions"]
["Medical Eye Tec","Medical Eye Tec"]
["MEDICAL IMPLANTS","MEDICAL IMPLANTS"]
["MEDICAL INNOVATION DEVELOPPEMENT","MEDICAL INNOVATION DEVELOPPEMENT"]
["MEDICAL SANTE GRAND NORD","MEDICAL SANTE GRAND NORD"]
["Medical Services Institute","Medical Services Institute"]
["Medicalo2","Medicalo2"]
["Medicals International (Off-Shore) SARL","Medicals International (Off-Shore) SARL"]
["Medicare_HTM","Medicare_HTM"]
["MEDICO FRANCE","MEDICO FRANCE"]
["Medicom Concept","Medicom Concept"]
["MEDICONSEIL","MEDICONSEIL"]
["MEDICONTUR FRANCE","MEDICONTUR FRANCE"]
["MEDICONTUR INTERNATIONAL SA","MEDICONTUR INTERNATIONAL SA"]
["MEDICORTHO","MEDICORTHO"]
["MEDICREA Europe Francophone","MEDICREA Europe Francophone"]
["MEDICREA INTERNATIONAL","MEDICREA INTERNATIONAL"]
["Medicys Limited","Medicys Limited"]
["Médi-Fav","Médi-Fav"]
["MEDIKEA","MEDIKEA"]
["MEDIMARK EUROPE SARL","MEDIMARK EUROPE SARL"]
["MEDIOUTREMER","MEDIOUTREMER"]
["MEDIPHA SANTE","MEDIPHA SANTE"]
["MEDIPREMA","MEDIPREMA"]
["MEDI-QUALITE OMEGA","MEDI-QUALITE OMEGA"]
["MEDISPORT","MEDISPORT"]
["MEDITEX","MEDITEX"]
["MEDITOR","MEDITOR"]
["MEDIVAL OUTRE-MER","MEDIVAL OUTRE-MER"]
["Mediwound Germany GmbH","Mediwound Germany GmbH"]
["Medline Assembly France SAS","Medline Assembly France SAS"]
["Medline International France SAS","Medline International France SAS"]
["Medlumics S.L.","Medlumics S.L."]
["MEDLUMICS SL","MEDLUMICS SL"]
["MED'OUEST SPINE","MED'OUEST SPINE"]
["MEDSOFT","MEDSOFT"]
["Medtech","Medtech"]
["MEDTRONIC France S.A.S","MEDTRONIC"]
["MEDTRONIC INTERNATIONAL TRADING SARL","MEDTRONIC"]
["MEDUSIMS","MEDUSIMS"]
["medwork France","medwork France"]
["MEGA DENTAL SAS","MEGA DENTAL SAS"]
["MELISANA","MELISANA"]
["melisana Pharma","melisana Pharma"]
["MELLITUS CARE","MELLITUS CARE"]
["MENARINI FRANCE","MENARINI"]
["MENETRIER NARD SAS","MENETRIER NARD SAS"]
["MENICON SAS","MENICON SAS"]
["MENIX GROUP","MENIX GROUP"]
["Merck Medication Familiale","Merck Medication Familiale"]
["MERCK SANTE","MERCK SANTE"]
["MERCK SERONO","MERCK SERONO"]
["MERIAL","MERIAL"]
["Mérieux UniversitÃ©","Mérieux Université"]
["Mérieux Université","Mérieux Université"]
["Merit Medical Asia Co., Ltd","Merit Medical Asia Co., Ltd"]
["Merit Medical France","Merit Medical France"]
["Merit Medical Netherlands","Merit Medical Netherlands"]
["Merit Medical Systems, Inc.","Merit Medical Systems, Inc."]
["Merz Argentina S.A.","Merz Argentina S.A."]
["Merz Asia Pacific PTE Ltd","Merz Asia Pacific PTE Ltd"]
["Merz Colombia SAS","Merz Colombia SAS"]
["Merz Middle East FZ LLC","Merz Middle East FZ LLC"]
["Merz North America LLC","Merz North America LLC"]
["Merz Pharma (Schweiz) AG","Merz Pharma (Schweiz) AG"]
["Merz Pharma Austria GmbH","Merz Pharma Austria GmbH"]
["Merz Pharma Benelux B.V.","Merz Pharma Benelux B.V."]
["Merz Pharma Canada, Ltd.","Merz Pharma Canada, Ltd."]
["Merz Pharma Espana S.L.","Merz Pharma Espana S.L."]
["MERZ PHARMA France","MERZ PHARMA France"]
["MERZ PHARMA FRANCE (VIA LA FONDERIE)","MERZ PHARMA FRANCE (VIA LA FONDERIE)"]
["Merz Pharma GmbH & Co. KGaA","Merz Pharma GmbH & Co. KGaA"]
["Merz Pharma Italia S.r.l.","Merz Pharma Italia S.r.l."]
["Merz Pharma LLC","Merz Pharma LLC"]
["Merz Pharma S.A. de C.V.","Merz Pharma S.A. de C.V."]
["Merz Pharma UK Ltd.","Merz Pharma UK Ltd."]
["MERZ PHARMACEUTICALS GmbH","MERZ PHARMACEUTICALS GmbH"]
["MESSER FRANCE","MESSER FRANCE"]
["METAPLAN - Michel Borcier SAS","METAPLAN - Michel Borcier SAS"]
["MG Pharma","MG Pharma"]
["Micrel Medical Devices SA","Micrel Medical Devices SA"]
["MICROGENICS GmbH","MICROGENICS GmbH"]
["MICROLINE FRANCE","MICROLINE FRANCE"]
["MICRO-MEGA","MICRO-MEGA"]
["MICROPORT ORTHOPEDICS","MICROPORT ORTHOPEDICS"]
["MICROVAL","MICROVAL"]
["MicroVention Europe","MicroVention Europe"]
["MicroVention Inc.","MicroVention Inc."]
["MIELE SAS","MIELE SAS"]
["MILLWARD BROWN","MILLWARD BROWN"]
["Mindfrog","Mindfrog"]
["MINMAXMEDICAL","MINMAXMEDICAL"]
["MINVASYS","MINVASYS"]
["MIS IMPLANTS TECHNOLOGIES FRANCE","MIS IMPLANTS TECHNOLOGIES FRANCE"]
["MITHRA PHARMACEUTICALS S.A.S","MITHRA PHARMACEUTICALS S.A.S"]
["MKO Global Partners","MKO Global Partners"]
["ML2S","ML2S"]
["Mobidiag Oy","Mobidiag Oy"]
["Modérateur Ministère de la SantÃ©","Modérateur Ministère de la Santé"]
["Modérateur Ministère de la Santé","Modérateur Ministère de la Santé"]
["Molnlycke Health Care","Molnlycke Health Care"]
["MONATH ELECTRONIC SARL","MONATH ELECTRONIC SARL"]
["MON-EVENT.COM","MON-EVENT.COM"]
["MONITORING FORCE FRANCE","MONITORING FORCE FRANCE"]
["MORIA LASE","MORIA LASE"]
["MORIA S.A.","MORIA S.A."]
["MorphoSys AG","MorphoSys AG"]
["MOVE-UP","MOVE-UP"]
["MP BIOMEDICALS","MP BIOMEDICALS"]
["MP MEDICAL","MP MEDICAL"]
["MSD ANIMAL HEALTH INNOVATION","MSD ANIMAL HEALTH INNOVATION"]
["MSD France","MSD France"]
["MSD VACCINS","MSD VACCINS"]
["MSDAVENIR","MSD France"]
["MSI","MSI"]
["MSM","MSM"]
["MULTALER & CIE","MULTALER & CIE"]
["MULTIPLICOM","MULTIPLICOM"]
["MUNDIPHARMA","MUNDIPHARMA"]
["MUTUALITE FRANCAISE VIENNE","MUTUALITE FRANCAISE VIENNE"]
["MV3 SAS","MV3 SAS"]
["MVRx, Inc.","MVRx, Inc."]
["MYLAN MEDICAL SAS","MYLAN"]
["MYLAN SAS","MYLAN"]
["MYR GmbH","MYR GmbH"]
["Myriad Genetics SAS","Myriad Genetics SAS"]
["NANOBIOTIX S.A.","NANOBIOTIX S.A."]
["Nanosonics Europe Limited","Nanosonics Europe Limited"]
["Nanosonics Limite","Nanosonics Limite"]
["Nanostring Technologies, Inc","Nanostring Technologies, Inc"]
["NAOS","NAOS"]
["NAOS FRANCE","NAOS FRANCE"]
["national market","national market"]
["NELLI MEDICAL","NELLI MEDICAL"]
["Neo Medical S.A.","Neo Medical S.A."]
["Neo Medical S.A.S.","Neo Medical S.A.S."]
["NeoMedLight SAS","NeoMedLight SAS"]
["NEOS","NEOS"]
["NEOSTEO","NEOSTEO"]
["Neotract, Inc.","Neotract, Inc."]
["NEOVACS","NEOVACS"]
["NEOVII PHARMACEUTICALS AG","NEOVII PHARMACEUTICALS AG"]
["Nestlé Clinical Nutrition","Nestlé Clinical Nutrition"]
["NESTLE HEALTH SCIENCE FRANCE","NESTLE HEALTH SCIENCE FRANCE"]
["NESTLE HOMECARE","NESTLE HOMECARE"]
["Nestle Skin Health","Nestle Skin Health"]
["Netika SA","Netika SA"]
["NEURAVI LIMITED","NEURAVI LIMITED"]
["NEURELEC","NEURELEC"]
["NEURELEC MAROC","NEURELEC MAROC"]
["NEURVANA MEDICAL LLC","NEURVANA MEDICAL LLC"]
["NEW CARD","NEW CARD"]
["newbone","newbone"]
["NEWCLIP INTERNATIONAL","NEWCLIP INTERNATIONAL"]
["NEWCLIP TECHNICS","NEWCLIP TECHNICS"]
["NEWCO","NEWCO"]
["Newdeal","Newdeal"]
["NEXMED PHARMA","NEXMED PHARMA"]
["NEXTEP","NEXTEP"]
["NG Biotech","NG Biotech"]
["NICHROMINOX","NICHROMINOX"]
["NICOX","NICOX"]
["NIDEK CO LTD","NIDEK CO LTD"]
["NIDEK SA","NIDEK SA"]
["NIHON KOHDEN","NIHON KOHDEN"]
["nile","nile"]
["Nippon Boehringer Ingelheim CO., LTD.","Nippon Boehringer Ingelheim CO., LTD."]
["NIPRO FRANCE","NIPRO FRANCE"]
["NOBEL BIOCARE FRANCE SAS","NOBEL BIOCARE FRANCE SAS"]
["NOBEL BIOCARE ITALIANA SRL","NOBEL BIOCARE ITALIANA SRL"]
["Nobel Biocare Russia LLC","Nobel Biocare Russia LLC"]
["Nobel Biocare Services AG","Nobel Biocare Services AG"]
["Nobel Biocare USA LLC","Nobel Biocare USA LLC"]
["NODEA MEDICAL","NODEA MEDICAL"]
["NORAKER","NORAKER"]
["NORD IMPLANT","NORD IMPLANT"]
["Nord Santé","Nord Santé"]
["Nordic Nanovector ASA","Nordic Nanovector ASA"]
["NORDIC PHARMA SAS","Nordic Pharma"]
["NordiMED ApS","NordiMED ApS"]
["NORGINE PHARMA","NORGINE PHARMA"]
["NORGINE SAS","NORGINE SAS"]
["NOROX","NOROX"]
["Nouveal","Nouveal"]
["NOVALLIANCE MEDICAL","NOVALLIANCE MEDICAL"]
["NOVARTIS PHARMA SAS","Novartis"]
["NOVARTIS SANTE FAMILIALE SAS","Novartis"]
["NOVARTIS VACCINES AND DIAGNOSTICS SAS","Novartis"]
["NOVASTEP","NOVASTEP"]
["NOVATECH SA","NOVATECH SA"]
["NOVATEST","NOVATEST"]
["NOVILOIRE","NOVILOIRE"]
["NOVO NORDISK","Novo Nordisk"]
["Novo Nordisk Production SAS","Novo Nordisk Production SAS"]
["NOVOMEDICS FRANCE","NOVOMEDICS FRANCE"]
["NPS PHARMA FRANCE","NPS PHARMA FRANCE"]
["NPS Pharma Holdings Limited","NPS Pharma Holdings Limited"]
["NPS Pharma UK Limited","NPS Pharma UK Limited"]
["nuaxia Limited","nuaxia Limited"]
["NUKLEUS","NUKLEUS"]
["NUTRICIA Nutrition Clinique","NUTRICIA Nutrition Clinique"]
["NUTRIMEDIA","NUTRIMEDIA"]
["NuVasive Netherlands B.V.","NuVasive Netherlands B.V."]
["NxStage Medical, Inc.","NxStage Medical, Inc."]
["O2 MEGA","O2 MEGA"]
["OBIONE","OBIONE"]
["OBJECTIF PHARMA","OBJECTIF PHARMA"]
["Objective Focus Limited","Objective Focus Limited"]
["OBL","OBL"]
["Observia SAS","Observia SAS"]
["Occurrence Healthcare","Occurrence Healthcare"]
["OCEAN TERRE BIOTECHNOLOGIE","OCEAN TERRE BIOTECHNOLOGIE"]
["Oceana Therapeutics, Ltd.","Oceana Therapeutics, Ltd."]
["Oceanide","Oceanide"]
["OCP REPARTITION","OCP REPARTITION"]
["Octapharma AG - Switzerland","Octapharma AG - Switzerland"]
["Octapharma France","Octapharma France"]
["ODONTEC","ODONTEC"]
["ODY-C","ODY-C"]
["OLEA MEDICAL S.A","OLEA MEDICAL S.A"]
["OLORTHO","OLORTHO"]
["Olympus Biotech International","Olympus Biotech International"]
["Olympus Biotech International Europe","Olympus Biotech International Europe"]
["OLYMPUS CORPORATION","OLYMPUS CORPORATION"]
["OLYMPUS EUROPA SE & CO. KG","OLYMPUS EUROPA SE & CO. KG"]
["OLYMPUS France SAS","OLYMPUS France SAS"]
["Olympus Keymed","Olympus Keymed"]
["OLYMPUS SVERIGE AB","OLYMPUS SVERIGE AB"]
["OLYMPUS WINTER & IBE GmbH","OLYMPUS WINTER & IBE GmbH"]
["OMD","OMD"]
["OMNIS MEDICA","OMNIS MEDICA"]
["OMR Globus","OMR Globus"]
["Omron Santé France","Omron Santé France"]
["ONCommit","ONCommit"]
["Oncopeptides AB","Oncopeptides AB"]
["ONIRIS","ONIRIS"]
["ONXEO","ONXEO"]
["OPHTACOM","OPHTACOM"]
["Ophta-France SA","Ophta-France SA"]
["Ophtalmic Compagnie","Ophtalmic Compagnie"]
["OPIA TECHNOLOGIES","OPIA TECHNOLOGIES"]
["OptiMed SARL","OptiMed SARL"]
["OPTIQUE E'CAUX","OPTIQUE E'CAUX"]
["OPTIQUE MENIVAL","OPTIQUE MENIVAL"]
["OPTIQUE PHILIPPE LAFONT","OPTIQUE PHILIPPE LAFONT"]
["optique sebastopol","optique sebastopol"]
["Optiswiss France SÃ rl","Optiswiss France SÃ rl"]
["OPUSLINE","OPUSLINE"]
["Orexigen Therapeutics Ireland Limited","Orexigen Therapeutics Ireland Limited"]
["Orexigen Therapeutics, Inc.","Orexigen Therapeutics, Inc."]
["ORGENTEC SAS","ORGENTEC SAS"]
["ORIGIO France","ORIGIO France"]
["Orion Corporation Orion Pharma","Orion Corporation Orion Pharma"]
["ORION Santé","ORION Santé"]
["ORLANE","ORLANE"]
["ORMCO FRANCE SAS","ORMCO FRANCE SAS"]
["ORMIHL DANET","ORMIHL DANET"]
["Orphan Europe","Orphan Europe"]
["Orphan Synergy Europe - Pharma","Orphan Synergy Europe - Pharma"]
["OrpheliPharm","OrpheliPharm"]
["ORTHO CLINICAL DIAGNOSTICS France","ORTHO CLINICAL DIAGNOSTICS France"]
["ORTHO CONCEPT","ORTHO CONCEPT"]
["ORTHO JET","ORTHO JET"]
["ortho medic","ortho medic"]
["Ortho Union","Ortho Union"]
["ORTHO.POUHAER","ORTHO.POUHAER"]
["Ortho-Clinical Diagnostics France","Ortho-Clinical Diagnostics France"]
["Orthofix S.r.l.","Orthofix S.r.l."]
["ORTHOFIX SA","ORTHOFIX SA"]
["ORTHOMED SAS","ORTHOMED SAS"]
["ORTHOPAEDIC & SPINE DEVELOPMENT (OSD)","ORTHOPAEDIC & SPINE DEVELOPMENT (OSD)"]
["ORTHOPLUS","ORTHOPLUS"]
["ORTHO-SPACE Ltd","ORTHO-SPACE Ltd"]
["ORTHOTAXY","ORTHOTAXY"]
["OrthoZ","OrthoZ"]
["ORTUS","ORTUS"]
["OSALIA","OSALIA"]
["OSE Immunotherapeutics","OSE Immunotherapeutics"]
["Oséus","Oséus"]
["Osprey Health Consulting","Osprey Health Consulting"]
["OST DEVELOPPEMENT","OST DEVELOPPEMENT"]
["OSTEOMED","OSTEOMED"]
["OsteoMed LLC","OsteoMed LLC"]
["OSTESYS","OSTESYS"]
["OTICON MEDICAL","OTICON MEDICAL"]
["OTR3","OTR3"]
["Otsuka America Pharmaceutical, Inc","Otsuka"]
["Otsuka Europe Development and Commercialisation Ltd.","Otsuka"]
["Otsuka Frankfurt Research Institute GmbH","Otsuka"]
["Otsuka Novel Products GmbH","Otsuka"]
["Otsuka Pharmaceutical Co., Ltd.","Otsuka"]
["Otsuka Pharmaceutical Development & Commercialization, Inc","Otsuka"]
["Otsuka Pharmaceutical Europe Ltd","Otsuka"]
["Otsuka Pharmaceutical France SAS","Otsuka"]
["Otsuka Pharmaceutical Italy S.r.l.","Otsuka"]
["Otsuka Pharmaceutical S.A.","Otsuka"]
["Otsuka Pharpaceutical (Suisse) Sarl","Otsuka"]
["OTTO BOCK FRANCE SNC","OTTO BOCK FRANCE SNC"]
["OuÃ¯e Fine","OuÃ¯e Fine"]
["Ouïe Fine","Ouïe Fine"]
["OVERCOME","OVERCOME"]
["OWEN MUMFORD","OWEN MUMFORD"]
["Oxford Immunotec Ltd","Oxford Immunotec Ltd"]
["OXOID","OXOID"]
["OXYLIS","OXYLIS"]
["OXYPHARM","OXYPHARM"]
["OXYVIE S.A.S","OXYVIE S.A.S"]
["P\\S\\L Group France S.A. R. L.","P\\S\\L Group France S.A. R. L."]
["P\\S\\L Group Services","P\\S\\L Group Services"]
["PÃ´le Cosmétique","PÃ´le Cosmétique"]
["PACKAGE","PACKAGE"]
["PALL FRANCE","PALL FRANCE"]
["PALLIEZ OPTIQUE","PALLIEZ OPTIQUE"]
["PALO ALTOURS","PALO ALTOURS"]
["PANPHARMA","PANPHARMA"]
["PANSEPLAIE","PANSEPLAIE"]
["Pa-pri-K","Pa-pri-K"]
["PAREXEL International","PAREXEL International"]
["PARI PULMOMED","PARI PULMOMED"]
["PARIS KLEBER SANTE","PARIS KLEBER SANTE"]
["PASCALEO","PASCALEO"]
["PASTEL AUDIOLOGIE","PASTEL AUDIOLOGIE"]
["PathoQuest SAS","PathoQuest SAS"]
["PATIENTYS","PATIENTYS"]
["PAUL HARTMANN SA","PAUL HARTMANN SA"]
["PCN","PCN"]
["PDL ORTHO","PDL ORTHO"]
["PECH CERCIAT","PECH CERCIAT"]
["PEGASE","PEGASE"]
["PENTAX MEDICAL","PENTAX MEDICAL"]
["Penumbra, Inc.","Penumbra, Inc."]
["PERF ASSISTANCE","PERF ASSISTANCE"]
["PERF DOM","PERF DOM"]
["PERF NUT ASSISTANCE ILE DE FRANCE","PERF NUT ASSISTANCE ILE DE FRANCE"]
["PERF NUT ASSISTANCE LANGUEDOC ROUSSILLON","PERF NUT ASSISTANCE LANGUEDOC ROUSSILLON"]
["PERF NUT ASSISTANCE MIDI PYRENEES","PERF NUT ASSISTANCE MIDI PYRENEES"]
["PERF NUT ASSISTANCE NORD","PERF NUT ASSISTANCE NORD"]
["PERF NUT ASSISTANCE SUD EST","PERF NUT ASSISTANCE SUD EST"]
["PERF.U.LOR GROUPE","PERF.U.LOR GROUPE"]
["PERFORMANCE COMMUNICATION PHARMA","PERFORMANCE COMMUNICATION PHARMA"]
["PERF-R","PERF-R"]
["PERFUDOM SAS","PERFUDOM SAS"]
["perkinElmer","perkinElmer"]
["PEROUSE MEDICAL","PEROUSE MEDICAL"]
["PEROUSE PLASTIE","PEROUSE PLASTIE"]
["PERRIER SURDITE ANNECY SAS","PERRIER SURDITE ANNECY SAS"]
["PETERS SURGICAL","PETERS SURGICAL"]
["PETNET Solutions SAS","PETNET Solutions SAS"]
["PFIZER INTERNATIONAL OPERATIONS","Pfizer"]
["PFIZER PFE FRANCE","Pfizer"]
["PFIZER SANTE FAMILIALE","Pfizer"]
["PFIZER SAS","Pfizer"]
["PFM MEDICAL FRANCE","PFM MEDICAL FRANCE"]
["PGRD","PGRD"]
["PHADIA GmbH","PHADIA GmbH"]
["PHADIA NV/SA","PHADIA NV/SA"]
["PHADIA SAS","PHADIA SAS"]
["PHARMA DOM","PHARMA DOM"]
["PHARMA MAR S.A.R.L.","PHARMA MAR S.A.R.L."]
["Pharma Services","Pharma Services"]
["Pharmacie du Tholon","Pharmacie du Tholon"]
["pharmacie ramberti","pharmacie ramberti"]
["Pharmacosmos","Pharmacosmos"]
["PHARMACTIV DISTRIBUTION","PHARMACTIV DISTRIBUTION"]
["Pharmacyclics LLC","Pharmacyclics LLC"]
["PHARMAGEST INTERACTIVE","PHARMAGEST INTERACTIVE"]
["pharmaouest industries","pharmaouest industries"]
["PHARMATHERA","PHARMATHERA"]
["PHARMING GROUP NV","PHARMING GROUP NV"]
["Pharm-Olam International (France)","Pharm-Olam International (France)"]
["Pharm-Olam International SPRL","Pharm-Olam International SPRL"]
["PHAROLY","PHAROLY"]
["PHASE 5 Editions médicales","PHASE 5 Editions médicales"]
["PHENIX CARDIOLOGIE","PHENIX CARDIOLOGIE"]
["Philippe Briere - Agent Commercial","Philippe Briere - Agent Commercial"]
["PHILIPS FRANCE","PHILIPS FRANCE"]
["Philips France Commercial","Philips France Commercial"]
["Philips Santé@Domicile","Philips Santé@Domicile"]
["PHOCEENNE D'ORTHOPEDIE","PHOCEENNE D'ORTHOPEDIE"]
["PHOENIX PHARMA","PHOENIX PHARMA"]
["PHONAK FRANCE","PHONAK FRANCE"]
["PhoneResearch","PhoneResearch"]
["PHR Lab","PHR Lab"]
["PHYDATA","PHYDATA"]
["PHYSIDIA","PHYSIDIA"]
["PHYSIO CONTROL FRANCE SARL","PHYSIO CONTROL FRANCE SARL"]
["PHYSIO-ASSIST","PHYSIO-ASSIST"]
["Physiol","Physiol"]
["PHYSIOL FRANCE","PHYSIOL FRANCE"]
["PHYSIOMED","PHYSIOMED"]
["PHYTOCOM","PHYTOCOM"]
["Pierre Fabre Dermo-Cosmétique","Pierre Fabre Dermo-Cosmétique"]
["PIERRE FABRE MEDICAMENT","Pierre Fabre Médicament"]
["PIERRE FABRE SA","PIERRE FABRE SA"]
["PILEJE","PILEJE"]
["Piramal Imaging GmbH","Piramal Imaging GmbH"]
["PIXEE MEDICAL","PIXEE MEDICAL"]
["Pixium Vision","Pixium Vision"]
["PLASMA SURGICAL SARL","PLASMA SURGICAL SARL"]
["PLUS PHARMACIE","PLUS PHARMACIE"]
["PM SANTE","PM SANTE"]
["PneumRx Ltd.","PneumRx Ltd."]
["POLARIS MANAGEMENT","POLARIS MANAGEMENT"]
["PolyNovo Biomaterials Pty Ltd","PolyNovo Biomaterials Pty Ltd"]
["Porte de l'audition","Porte de l'audition"]
["POURET MEDICAL","POURET MEDICAL"]
["PPD FRANCE SAS","PPD FRANCE SAS"]
["PPi Healthcare Consulting Ltd","PPi Healthcare Consulting Ltd"]
["PR EDITIONS SAS","PR EDITIONS SAS"]
["PRA","PRA"]
["Precilens","Precilens"]
["PRECIPHAR","PRECIPHAR"]
["PREGLEM","PREGLEM"]
["Premier Research","Premier Research"]
["PRESSE & PAPIERS","PRESSE & PAPIERS"]
["prevor","prevor"]
["Primax","Primax"]
["PRIORITIS","PRIORITIS"]
["PRIVIUM MEDICAL","PRIVIUM MEDICAL"]
["PROBACE MEDITEC","PROBACE MEDITEC"]
["PROBACE VAR","PROBACE VAR"]
["PROBIONOV","PROBIONOV"]
["PROCEPT BioRobotics Corporation","PROCEPT BioRobotics Corporation"]
["PROCLAIM","PROCLAIM"]
["PROCTER & GAMBLE FRANCE","PROCTER & GAMBLE FRANCE"]
["PROCTER & GAMBLE PHARMACEUTICALS FRANCE","PROCTER & GAMBLE PHARMACEUTICALS FRANCE"]
["PRODAREV","PRODAREV"]
["PRODIMED","PRODIMED"]
["PRODIS","PRODIS"]
["Prodition","Prodition"]
["PRODUITS DENTAIRES PIERRE ROLLAND","PRODUITS DENTAIRES PIERRE ROLLAND"]
["PROFIL ORTHOPEDIE","PROFIL ORTHOPEDIE"]
["PROMEGA FRANCE","PROMEGA FRANCE"]
["Promethera Biosciences SA","Promethera Biosciences SA"]
["PROMOGEN","PROMOGEN"]
["PROMONET PROMEDICAL","PROMONET PROMEDICAL"]
["PROSTEEL","PROSTEEL"]
["ProStrakan Pharma","ProStrakan Pharma"]
["PROTHEOS INDUSTRIE","PROTHEOS INDUSTRIE"]
["PROTHEOS OUEST","PROTHEOS OUEST"]
["PROTHEOS SA","PROTHEOS SA"]
["PROVEPHARM","PROVEPHARM"]
["Provepharm Life Solutions","Provepharm Life Solutions"]
["PROXILIO","PROXILIO"]
["PSI CRO AG","PSI CRO AG"]
["PSI CRO FRANCE","PSI CRO FRANCE"]
["PTC THERAPEUTICS  INTERNATIONAL LIMITED","PTC THERAPEUTICS  INTERNATIONAL LIMITED"]
["PTC Therapeutics France SAS","PTC Therapeutics France SAS"]
["Publicis Consultants France","Publicis Consultants France"]
["PUBLICIS LIFE BRANDS","PUBLICIS LIFE BRANDS"]
["Pulmonx International SÃ rl","Pulmonx International SÃ rl"]
["Pulmonx International SARL","Pulmonx International SARL"]
["Pulmonx International SÀrl","Pulmonx International SÀrl"]
["Puma Biotechnology","Puma Biotechnology"]
["PURESSENTIEL","PURESSENTIEL"]
["QALIAN","QALIAN"]
["Qiagen France SAS","Qiagen France SAS"]
["QIAGEN Marseille S.A","QIAGEN Marseille S.A"]
["QUALEES","QUALEES"]
["QUALIMEDIS","QUALIMEDIS"]
["Qualitative & Quantitative Fieldwork Services","Qualitative & Quantitative Fieldwork Services"]
["QualWorld","QualWorld"]
["QUANTA MEDCIAL","QUANTA MEDCIAL"]
["QUANTEL MEDICAL","QUANTEL MEDICAL"]
["QUERYO MEDICAL SAS","QUERYO MEDICAL SAS"]
["QUINTILES BENEFIT FRANCE SNC","QUINTILES BENEFIT FRANCE SNC"]
["RADENKOVIC SACHA","RADENKOVIC SACHA"]
["RADIANTE","RADIANTE"]
["RADIOMETER SAS","RADIOMETER SAS"]
["RAISON DE SANTE","RAISON DE SANTE"]
["RANBAXY PHARMACIE GENERIQUES","RANBAXY PHARMACIE GENERIQUES"]
["RAPTOR PHARMACEUTICALS FRANCE","RAPTOR PHARMACEUTICALS FRANCE"]
["RAPTOR PHARMACEUTICALS FRANCE SAS","RAPTOR PHARMACEUTICALS FRANCE SAS"]
["RB Pharmaceuticals France","RB Pharmaceuticals France"]
["rc - research & consulting GmbH","rc - research & consulting GmbH"]
["Reckitt Benckiser France","Reckitt Benckiser France"]
["Reckitt Benckiser Healthcare France","Reckitt Benckiser Healthcare France"]
["Reckitt Benckiser SLOUGH","Reckitt Benckiser SLOUGH"]
["ReCor Medical Inc","ReCor Medical Inc"]
["Reddy Pharma SAS","Reddy Pharma SAS"]
["Regeneron Pharmaceuticals, Inc.","Regeneron Pharma"]
["REGULUS THERAPEUTICS INC.","#N/A"]
["RE-IMAGINE Health Agency","RE-IMAGINE Health Agency"]
["Renbel Travel Srl","Renbel Travel Srl"]
["Renishaw Mayfield","Renishaw Mayfield"]
["RESAL","RESAL"]
["RESEARCH NOW SAS","RESEARCH NOW SAS"]
["RESMED SAS","RESMED SAS"]
["RESPIO2","RESPIO2"]
["RESPI'SANTE","RESPI'SANTE"]
["RESULTIME","RESULTIME"]
["Retrophin Europe Limited","Retrophin Europe Limited"]
["Retrophin, Inc","Retrophin, Inc"]
["ReVision Optics","ReVision Optics"]
["REVOL-BUISSON","REVOL-BUISSON"]
["Rhythm Pharmaceuticals, Inc.","Rhythm Pharmaceuticals, Inc."]
["RICHARD FRERES","RICHARD FRERES"]
["Richard SIMON","Richard SIMON"]
["RICHARD WOLF FRANCE","RICHARD WOLF FRANCE"]
["RIVORTHO","RIVORTHO"]
["RJM Group LLC","RJM Group LLC"]
["RMO EUROPE","RMO EUROPE"]
["RNP SANTE","RNP SANTE"]
["ROBOCATH","ROBOCATH"]
["Roche Algérie","Roche Algérie"]
["ROCHE ALLEMAGNE","ROCHE ALLEMAGNE"]
["ROCHE ARABIE SAOUDITE","ROCHE ARABIE SAOUDITE"]
["ROCHE ARGENTINE","ROCHE ARGENTINE"]
["ROCHE AUTRICHE","ROCHE AUTRICHE"]
["ROCHE BRESIL","ROCHE BRESIL"]
["ROCHE CANADA","ROCHE CANADA"]
["ROCHE CHINE","ROCHE CHINE"]
["ROCHE COTE D'IVOIRE","ROCHE COTE D'IVOIRE"]
["ROCHE DANEMARK","ROCHE DANEMARK"]
["ROCHE DIABETES CARE FRANCE","ROCHE DIABETES CARE FRANCE"]
["Roche Diagnostics Belgium","Roche Diagnostics Belgium"]
["ROCHE DIAGNOSTICS FRANCE","ROCHE DIAGNOSTICS FRANCE"]
["Roche Diagnostics GmbH","Roche Diagnostics GmbH"]
["Roche Diagnostics International Ltd","Roche Diagnostics International Ltd"]
["Roche Diagnostics Operations, Inc.","Roche Diagnostics Operations, Inc."]
["ROCHE Emirats Arabes Unis","ROCHE Emirats Arabes Unis"]
["ROCHE ESPAGNE","ROCHE ESPAGNE"]
["ROCHE ETATS-UNIS","ROCHE ETATS-UNIS"]
["ROCHE ETATS-UNIS TCRC","ROCHE ETATS-UNIS TCRC"]
["ROCHE GRECE","ROCHE GRECE"]
["ROCHE HONG KONG","ROCHE HONG KONG"]
["ROCHE IRLANDE","ROCHE IRLANDE"]
["ROCHE ISRAEL","ROCHE ISRAEL"]
["Roche Lebanon SARL","Roche Lebanon SARL"]
["ROCHE LITUANIE","ROCHE LITUANIE"]
["ROCHE MACEDOINE","ROCHE MACEDOINE"]
["ROCHE MAROC","ROCHE MAROC"]
["ROCHE MEXIQUE","ROCHE MEXIQUE"]
["ROCHE MONTENEGRO","ROCHE MONTENEGRO"]
["ROCHE PAYS-BAS","ROCHE PAYS-BAS"]
["ROCHE POLOGNE","ROCHE POLOGNE"]
["ROCHE PORTUGAL","ROCHE PORTUGAL"]
["Roche Products (Pty) Ltd South Africa","Roche Products (Pty) Ltd South Africa"]
["ROCHE REPUBLIQUE TCHEQUE","ROCHE REPUBLIQUE TCHEQUE"]
["ROCHE ROUMANIE","ROCHE ROUMANIE"]
["ROCHE ROYAUME-UNI","ROCHE ROYAUME-UNI"]
["ROCHE RUSSIE","ROCHE RUSSIE"]
["ROCHE SAS","Roche SAS"]
["Roche Sistemas de DiagnÃ³sticos, Lda.","Roche Sistemas de DiagnÃ³sticos, Lda."]
["ROCHE SUEDE","ROCHE SUEDE"]
["ROCHE SUISSE","ROCHE SUISSE"]
["ROCHE TAIWAN","ROCHE TAIWAN"]
["ROCHE TUNISIE","ROCHE TUNISIE"]
["Rodenstock France","Rodenstock France"]
["RONIN Corporation","RONIN Corporation"]
["RONIN International Ltd","RONIN International Ltd"]
["ROTTAPHARM SAS","ROTTAPHARM"]
["R-Squared Services and Solutions, Inc.","R-Squared Services and Solutions, Inc."]
["R'SUD MEDICAL","R'SUD MEDICAL"]
["R'SUD PERFUSION","R'SUD PERFUSION"]
["RTI SURGICAL","RTI SURGICAL"]
["RUNESCENCE","RUNESCENCE"]
["S R P","S R P"]
["S.A.M. SERELYS PHARMA","S.A.M. SERELYS PHARMA"]
["S.O.S M.A.D","S.O.S M.A.D"]
["S.O.S OXYGENE ILE DE France","S.O.S OXYGENE ILE DE France"]
["S.O.S OXYGENE SUD","S.O.S OXYGENE SUD"]
["S.O.S. OXYGENE ATLANTIQUE","S.O.S. OXYGENE ATLANTIQUE"]
["S.O.S. OXYGENE BRETAGNE","S.O.S. OXYGENE BRETAGNE"]
["S.O.S. OXYGENE GARONNE","S.O.S. OXYGENE GARONNE"]
["S.O.S. OXYGENE GRAND OUEST","S.O.S. OXYGENE GRAND OUEST"]
["S.O.S. OXYGENE GRAND OUEST 2","S.O.S. OXYGENE GRAND OUEST 2"]
["S.O.S. OXYGENE NORMANDIE","S.O.S. OXYGENE NORMANDIE"]
["S.O.S. OXYGENE SUD","S.O.S. OXYGENE SUD"]
["S2A SANTE ILE DE FRANCE","S2A SANTE ILE DE FRANCE"]
["SA","SA"]
["SA Bristol-Myers Squibb Belgium","SA Bristol-Myers Squibb Belgium"]
["SA CERP BRETAGNE ATLANTIQUE","SA CERP BRETAGNE ATLANTIQUE"]
["SA GOODLIFE PHARMA","SA GOODLIFE PHARMA"]
["SA J & B FRANCOIS","SA J & B FRANCOIS"]
["SA LANDANGER","SA LANDANGER"]
["SA MEDICOSCOP","SA MEDICOSCOP"]
["SADIR ASSISTANCE","SADIR ASSISTANCE"]
["SAFE ORTHOPAEDICS","SAFE ORTHOPAEDICS"]
["SAFILO FRANCE","SAFILO FRANCE"]
["SAFIR DENTAIRE","SAFIR DENTAIRE"]
["Sage Products LLC","Sage Products LLC"]
["SALESWAY","SALESWAY"]
["Salix Pharmaceuticals, Inc.","Salix Pharmaceuticals, Inc."]
["SAM TECHNI-PHARMA","SAM TECHNI-PHARMA"]
["Samsung Bioepis","Samsung Bioepis"]
["SAMSUNG ELECTRONICS FRANCE","SAMSUNG ELECTRONICS FRANCE"]
["SANDOZ","SANDOZ"]
["SANETIS","SANETIS"]
["SANOFI AVENTIS FRANCE","Sanofi Aventis"]
["SANOFI CHIMIE","Sanofi Aventis"]
["SANOFI PASTEUR","Sanofi Aventis"]
["Sanofi Pasteur Europe","Sanofi Pasteur Europe"]
["SANOFI PASTEUR MSD SNC","Sanofi Aventis"]
["SANOFI WINTHROP INDUSTRIE","Sanofi Aventis"]
["SANOFI-AVENTIS GROUPE","Sanofi Aventis"]
["SANOFI-AVENTIS RECHERCHE & DEVELOPPEMENT","Sanofi Aventis"]
["SANOTEK","SANOTEK"]
["SANTE PLUS","SANTE PLUS"]
["SANTEADOM SAS","SANTEADOM SAS"]
["Santelynes","Santelynes"]
["SANTELYS ASSOCIATION","SANTELYS ASSOCIATION"]
["SANTEN","SANTEN"]
["SANTEO","SANTEO"]
["Santhera (Netherlands) B.V","Santhera (Netherlands) B.V"]
["Santor edition","Santor edition"]
["Sarepta International France","Sarepta International France"]
["SARL ACIO","SARL ACIO"]
["SARL ACOUSTIQUE ALBIGEOISE","SARL ACOUSTIQUE ALBIGEOISE"]
["SARL ADAGIO","SARL ADAGIO"]
["SARL ALLIANCESOINS","SARL ALLIANCESOINS"]
["SARL AMBELIO","SARL AMBELIO"]
["SARL ASTRIAD","SARL ASTRIAD"]
["sarl ATLANTIQUE PERFUSION","sarl ATLANTIQUE PERFUSION"]
["SARL AUDIO EISENHOWER","SARL AUDIO EISENHOWER"]
["sarl audio prothèse Geny","sarl audio prothèse Geny"]
["SARL AUDIO.V","SARL AUDIO.V"]
["Sarl Audioptique Conseil","Sarl Audioptique Conseil"]
["SARL AUDIOSON","SARL AUDIOSON"]
["SARL AUDITION AQUITAINE","SARL AUDITION AQUITAINE"]
["SARL AUDITION JUTIER PIRON","SARL AUDITION JUTIER PIRON"]
["SARL AUNIS AUDITION","SARL AUNIS AUDITION"]
["SARL AURISSIMANS","SARL AURISSIMANS"]
["SARL AURISSIMO","SARL AURISSIMO"]
["SARL BALLAN AUDITION","SARL BALLAN AUDITION"]
["SARL BRIVE AUDITION","SARL BRIVE AUDITION"]
["SARL CENTRE DE L AUDITION","SARL CENTRE DE L AUDITION"]
["SARL Centre Val de Loire Audition","SARL Centre Val de Loire Audition"]
["SARL CLAUDE EMARD","SARL CLAUDE EMARD"]
["sarl conseil medico technique","sarl conseil medico technique"]
["SARL DIAPERF","SARL DIAPERF"]
["SARL DLMEDICAL","SARL DLMEDICAL"]
["SARL DOMORTHO","SARL DOMORTHO"]
["SARL d'un état membre de la CEE","SARL d'un état membre de la CEE"]
["SARL ETS M GRANDET","SARL ETS M GRANDET"]
["SARL GHAMA","SARL GHAMA"]
["SARL GROUSEAU","SARL GROUSEAU"]
["SARL INFINY","SARL INFINY"]
["SARL LA CRAU AUDITION","SARL LA CRAU AUDITION"]
["SARL LABORATOIRE DUPONT","SARL DUPONT"]
["SARL LABORATOIRE LEMOINE AUDITION","SARL LEMOINE AUDITION"]
["SARL LABORATOIRE MICHAEL BERTOUX","SARL MICHAEL BERTOUX"]
["SARL LASOL AYTRE","SARL LASOL AYTRE"]
["SARL LASOL ROCHEFORT","SARL LASOL ROCHEFORT"]
["SARL LAUBEN","SARL LAUBEN"]
["SARL LE STRAT","SARL LE STRAT"]
["SARL LES MOUETTES OPTIQUE","SARL LES MOUETTES OPTIQUE"]
["SARL LOMACO","SARL LOMACO"]
["SARL L'OREILLETTE DU MANS","SARL L'OREILLETTE DU MANS"]
["SARL LUNODIA","SARL LUNODIA"]
["SARL MAP","SARL MAP"]
["sarl msdcp","sarl msdcp"]
["SARL NIVOLET AUDITION","SARL NIVOLET AUDITION"]
["SARL OPTAC","SARL OPTAC"]
["sarl optique audioprotheses roussarie","sarl optique audioprotheses roussarie"]
["sarl optique mesnard","sarl optique mesnard"]
["sarl optique mesnard auchy","sarl optique mesnard auchy"]
["SARL ORLEANS AUDIOPROTHESE","SARL ORLEANS AUDIOPROTHESE"]
["SARL ORTHO SANTE","SARL ORTHO SANTE"]
["SARL OXY-PERF","SARL OXY-PERF"]
["SARL PACIMED","SARL PACIMED"]
["Sarl Parapharm France","Sarl Parapharm France"]
["SARL PEFD","SARL PEFD"]
["SARL PROTHYS","SARL PROTHYS"]
["SARL RR CONSEIL","SARL RR CONSEIL"]
["SARL SOPHILMED","SARL SOPHILMED"]
["SARL SOPHILMED LENS","SARL SOPHILMED LENS"]
["SARL SPRINGBOARD","SARL SPRINGBOARD"]
["SAS ALLIANCE MEDICALE SERVICES","SAS ALLIANCE MEDICALE SERVICES"]
["SAS AUDITION EXPERT","SAS AUDITION EXPERT"]
["SAS BIMEDA FRANCE","SAS BIMEDA FRANCE"]
["SAS BIOVAS","SAS BIOVAS"]
["sas db audio","sas db audio"]
["SAS Esprit d'Ethique","SAS Esprit d'Ethique"]
["SAS IOVIE","SAS IOVIE"]
["SAS Kyomed","SAS Kyomed"]
["SAS LABORATOIRES VIVACY","SAS VIVACY"]
["SAS OPINIONWAY","SAS OPINIONWAY"]
["SAS OPTIQUE SURDITE DESNOUES","SAS OPTIQUE SURDITE DESNOUES"]
["SAS ORTHO OUEST","SAS ORTHO OUEST"]
["SAS TROUBAT","SAS TROUBAT"]
["SASU Blandine LANNEE","SASU Blandine LANNEE"]
["SATELEC SAS","SATELEC SAS"]
["SBM","SBM"]
["SCA HYGIENE PRODUCTS","SCA HYGIENE PRODUCTS"]
["SCAR","SCAR"]
["Schering-Plough","Schering-Plough"]
["SCHEU DENTAL FRANCE","SCHEU DENTAL FRANCE"]
["Schulke France SARL","Schulke France SARL"]
["SCHWA-MEDICO FRANCE","SCHWA-MEDICO FRANCE"]
["SCIENCE ET MEDECINE","SCIENCE ET MEDECINE"]
["SCIENT'X SAS","SCIENT'X SAS"]
["Scope International France","Scope International France"]
["SCORPION","SCORPION"]
["SDC SOCIETE DES CENDRES","SDC SOCIETE DES CENDRES"]
["SDI Dental Limited","SDI Dental Limited"]
["SEBAC","SEBAC"]
["Sebia","Sebia"]
["Second Sight Medical Products Switzerland (sarl)","Second Sight Medical Products Switzerland (sarl)"]
["Second Stage Pharma","Second Stage Pharma"]
["SEDOMA","SEDOMA"]
["SEFAM","SEFAM"]
["Segmedica","Segmedica"]
["SEIKO OPTICAL FRANCE","SEIKO OPTICAL FRANCE"]
["Selarl Pharmacie Panonnaise","Selarl Pharmacie Panonnaise"]
["SELAS PHARMACIE DE LA REPUBLIQUE","SELAS PHARMACIE DE LA REPUBLIQUE"]
["Semantics MR LTD","Semantics MR LTD"]
["SEMES","SEMES"]
["SENDAL FRANCE","SENDAL FRANCE"]
["SENSORION","SENSORION"]
["SEPRODOM ANTILLES","SEPRODOM ANTILLES"]
["SEPRODOM REUNION","SEPRODOM REUNION"]
["SEPROPHARM INTERNATIONAL","SEPROPHARM INTERNATIONAL"]
["SEPTODONT SAS","SEPTODONT SAS"]
["Sequent Medical GmbH","Sequent Medical GmbH"]
["Sequent Medical Inc.","Sequent Medical Inc."]
["SERB","SERB"]
["SERENITY MEDICAL SERVICES SARL","SERENITY MEDICAL SERVICES SARL"]
["SERF","SERF"]
["SERF EXTREMITY","SERF EXTREMITY"]
["Serial Creative","Serial Creative"]
["SESC","SESC"]
["SETMI","SETMI"]
["Seven Dreamers Europe","Seven Dreamers Europe"]
["seven dreamers laboratories","seven dreamers laboratories"]
["SGP AUDIO","SGP AUDIO"]
["SHAMIR FRANCE SARL","SHAMIR FRANCE SARL"]
["SHC Universal","SHC Universal"]
["Shionogi Inc.","Shionogi Inc."]
["Shire Deutschland GmbH","Shire Deutschland GmbH"]
["SHIRE France S.A.","SHIRE France S.A."]
["SHIRE INTERNATIONAL","SHIRE INTERNATIONAL"]
["Shire Pharmaceuticals Limited","Shire Pharmaceuticals Limited"]
["SHISEIDO INTERNATIONAL FRANCE SIF","SHISEIDO INTERNATIONAL FRANCE SIF"]
["SHOCKWAVE MEDICAL INC.","SHOCKWAVE MEDICAL INC."]
["SI-BONE srl","SI-BONE srl"]
["SIEMENS AUDIOLOGIE","SIEMENS AUDIOLOGIE"]
["Siemens Healthcare Diagnostics SAS","Siemens Healthcare Diagnostics SAS"]
["SIEMENS HEALTHCARE SAS","SIEMENS HEALTHCARE SAS"]
["SIEMENS SAS","SIEMENS SAS"]
["Sigma-tau France","Sigma-tau France"]
["SIGVARIS","SIGVARIS"]
["SILHOUETTE FRANCE","SILHOUETTE FRANCE"]
["SIMARATO","SIMARATO"]
["Simon-Kucher & Partners","Simon-Kucher & Partners"]
["Simpson Carpenter","Simpson Carpenter"]
["SINCLAIR PHARMA","SINCLAIR PHARMA"]
["Sinclair pharmaceuticals limited french branch","Sinclair pharmaceuticals limited french branch"]
["SIRONA DENTAL SYSTEMS SAS","SIRONA DENTAL SYSTEMS SAS"]
["Sirtex Medical Europe GmbH","Sirtex Medical Europe GmbH"]
["SIVANTOS","SIVANTOS"]
["SKY CONSULTING","SKY CONSULTING"]
["SLC SANTE","SLC SANTE"]
["SM EUROPE","SM EUROPE"]
["Small Bone Innovations International SAS","Small Bone Innovations International SAS"]
["Small Heath Medical practice","Small Heath Medical practice"]
["Small Heath pactice","Small Heath pactice"]
["Small Heath Practice","Small Heath Practice"]
["Smartsanté Gestion","Smartsanté Gestion"]
["Smith & Nephew FZE","Smith & Nephew FZE"]
["Smith & Nephew Inc.","Smith & Nephew Inc."]
["Smith & Nephew Orthopaedics AG","Smith & Nephew Orthopaedics AG"]
["Smith & Nephew Orthopaedics France SAS","Smith & Nephew Orthopaedics France SAS"]
["Smith & Nephew S.A.S.","Smith & Nephew S.A.S."]
["Smith & Nephew UK Limited","Smith & Nephew UK Limited"]
["Smith & Nephew US - Ortho","Smith & Nephew US - Ortho"]
["Smith & Nephew, Inc. Recon","Smith & Nephew, Inc. Recon"]
["SMITHS MEDICAL FRANCE","SMITHS MEDICAL FRANCE"]
["SNC LCA de NICE","SNC LCA de NICE"]
["Sociable Data Ltd","Sociable Data Ltd"]
["SociétÃ© des gaz industriels de la Guadeloupe","Société des gaz industriels de la Guadeloupe"]
["SociétÃ© Française de Cardiologie","Société Française de Cardiologie"]
["SociétÃ© Française de Recherche et MÃ©decine du Sommeil","Société Française de Recherche et Médecine du Sommeil"]
["SociétÃ© Guyanaise de l'Air Liquide","Société Guyanaise de l'Air Liquide"]
["SociétÃ© Martiniquaise de l'Air Liquide","Société Martiniquaise de l'Air Liquide"]
["SociétÃ©s Ã©trangères du groupe Novartis","Sociétés étrangères du groupe Novartis"]
["SOCIETE CARIBEENNE DE L'AUDITION","SOCIETE CARIBEENNE DE L'AUDITION"]
["SOCIETE DE DIFFUSION DE MATERIEL OPTIQUE QUINIOU","SOCIETE DE DIFFUSION DE MATERIEL OPTIQUE QUINIOU"]
["Société des gaz industriels de la Guadeloupe","Société des gaz industriels de la Guadeloupe"]
["SOCIETE D'ETUDES ET DE RECHERCHES PHARMACEUTIQUES","SOCIETE D'ETUDES ET DE RECHERCHES PHARMACEUTIQUES"]
["SOCIETE D'EXPLOITATION DE MOLECULES ORIGINALES","SOCIETE D'EXPLOITATION DE MOLECULES ORIGINALES"]
["Société Française de Cardiologie","Société Française de Cardiologie"]
["SOCIETE FRANCAISE D'ORTHOPEDIE","SOCIETE FRANCAISE D'ORTHOPEDIE"]
["Société Guyanaise de l'Air Liquide","Société Guyanaise de l'Air Liquide"]
["Société Martiniquaise de l'Air Liquide","Société Martiniquaise de l'Air Liquide"]
["SOCIETES DU GROUPE SANDOZ HORS FRANCE","SOCIETES DU GROUPE SANDOZ HORS FRANCE"]
["SOCIETES DU GROUPE TEVA HORS FRANCE","SOCIETES DU GROUPE TEVA HORS FRANCE"]
["SODIMED","SODIMED"]
["SOFIBEL","SOFIBEL"]
["SOFIBEL Laboratoires Fumouze","SOFIBEL Fumouze"]
["SOFRADIM PRODUCTION","SOFRADIM PRODUCTION"]
["Solutions Finances","Solutions Finances"]
["SOMNIPLANET","SOMNIPLANET"]
["SOMNOCARE","SOMNOCARE"]
["SomnoMed France","SomnoMed France"]
["SONATINE","SONATINE"]
["SONY EUROPE LIMITED","SONY EUROPE LIMITED"]
["Sophia Genetics SAS","Sophia Genetics SAS"]
["Sophysa","Sophysa"]
["SOPRO ACTEON Group","SOPRO ACTEON Group"]
["Sorin CRM SAS","Sorin CRM SAS"]
["SORIN GROUP FRANCE","SORIN GROUP FRANCE"]
["SORIN GROUP Italia S.r.l.","SORIN GROUP Italia S.r.l."]
["SORIN GROUP USA, Inc.","SORIN GROUP USA, Inc."]
["SOS MEDICAL","SOS MEDICAL"]
["SOS OXYGENE","SOS OXYGENE"]
["SOS OXYGENE ALSACE","SOS OXYGENE ALSACE"]
["SOS OXYGENE ANTILLES","SOS OXYGENE ANTILLES"]
["SOS OXYGENE ATLANTIQUE CENTRE","SOS OXYGENE ATLANTIQUE CENTRE"]
["SOS OXYGENE AUVERGNE","SOS OXYGENE AUVERGNE"]
["SOS OXYGENE BASSIN PARISIEN NORD","SOS OXYGENE BASSIN PARISIEN NORD"]
["SOS OXYGENE BASSIN PARISIEN NORD Les Mureaux","SOS OXYGENE BASSIN PARISIEN NORD Les Mureaux"]
["SOS OXYGENE BASSIN PARISIEN SUD","SOS OXYGENE BASSIN PARISIEN SUD"]
["SOS OXYGENE CENTRE","SOS OXYGENE CENTRE"]
["SOS OXYGENE CENTRE EST","SOS OXYGENE CENTRE EST"]
["SOS OXYGENE CENTRE OUEST","SOS OXYGENE CENTRE OUEST"]
["SOS OXYGENE CHAMPAGNE ARDENNES","SOS OXYGENE CHAMPAGNE ARDENNES"]
["SOS OXYGENE FRANCHE COMTE","SOS OXYGENE FRANCHE COMTE"]
["SOS OXYGENE GARONNE","SOS OXYGENE GARONNE"]
["SOS OXYGENE GRAND EST","SOS OXYGENE GRAND EST"]
["SOS OXYGENE GRAND PERIGORD","SOS OXYGENE GRAND PERIGORD"]
["SOS OXYGENE GRAND SUD","SOS OXYGENE GRAND SUD"]
["SOS OXYGENE ILE DE France EST","SOS OXYGENE ILE DE France EST"]
["SOS OXYGENE ILE DE FRANCE EST Vierzon 1","SOS OXYGENE ILE DE FRANCE EST Vierzon 1"]
["SOS OXYGENE ILE DE FRANCE EST Vierzon 2","SOS OXYGENE ILE DE FRANCE EST Vierzon 2"]
["SOS OXYGENE ILE DE France NORD","SOS OXYGENE ILE DE France NORD"]
["SOS OXYGENE ILE DE FRANCE NORD- Gennevilliers","SOS OXYGENE ILE DE FRANCE NORD- Gennevilliers"]
["SOS OXYGENE ILE E FRANCE EST","SOS OXYGENE ILE E FRANCE EST"]
["SOS OXYGENE LOIRE HAUTE LOIRE","SOS OXYGENE LOIRE HAUTE LOIRE"]
["SOS OXYGENE LORRAINE","SOS OXYGENE LORRAINE"]
["SOS OXYGENE MEDITERRANEE","SOS OXYGENE MEDITERRANEE"]
["SOS OXYGENE MEDITERRANEE- Vendres","SOS OXYGENE MEDITERRANEE- Vendres"]
["SOS OXYGENE MOR-BIHAN / PENN AR BEDÂ Â","SOS OXYGENE MOR-BIHAN / PENN AR BEDÂ Â"]
["SOS OXYGENE MOR-BIHAN / PENN AR BEDÂ Â ","SOS OXYGENE MOR-BIHAN / PENN AR BEDÂ Â "]
["SOS OXYGENE NORD JOLY MEDICAL","SOS OXYGENE NORD JOLY MEDICAL"]
["SOS OXYGENE NORD OUEST","SOS OXYGENE NORD OUEST"]
["SOS OXYGENE NORMANDIE","SOS OXYGENE NORMANDIE"]
["SOS OXYGENE PARTICIPATIONS","SOS OXYGENE PARTICIPATIONS"]
["SOS OXYGENE PAYS DE LOIRE","SOS OXYGENE PAYS DE LOIRE"]
["SOS OXYGENE PAYS DE LOIRE NORD","SOS OXYGENE PAYS DE LOIRE NORD"]
["SOS OXYGENE PROVENCE","SOS OXYGENE PROVENCE"]
["SOS OXYGENE PYRENEES CENTRE","SOS OXYGENE PYRENEES CENTRE"]
["SOS OXYGENE REUNION","SOS OXYGENE REUNION"]
["SOS OXYGENE REUNION St Leu","SOS OXYGENE REUNION St Leu"]
["SOS OXYGENE REUNION St Paul","SOS OXYGENE REUNION St Paul"]
["SOS OXYGENE RHONE ALPES","SOS OXYGENE RHONE ALPES"]
["SOS OXYGENE RHONE ALPES Vaulx","SOS OXYGENE RHONE ALPES Vaulx"]
["SOS OXYGENE SUD ALSACE","SOS OXYGENE SUD ALSACE"]
["SOS OXYGENE SUD LOIRE","SOS OXYGENE SUD LOIRE"]
["SOS OXYGENE VAR","SOS OXYGENE VAR"]
["SOSECAT","SOSECAT"]
["SOTHYS PARIS","SOTHYS PARIS"]
["SOUN","SOUN"]
["SOUTHERN IMPLANTS FRANCE","SOUTHERN IMPLANTS FRANCE"]
["sowadio","sowadio"]
["Spark Therapeutics","Spark Therapeutics"]
["Spector Consulting","Spector Consulting"]
["SPECTRANETICS FRANCE SARL","SPECTRANETICS FRANCE SARL"]
["SPECTRANETICS INTERNATIONAL B.V.","SPECTRANETICS INTERNATIONAL B.V."]
["Spectrum Dynamics Medical SA","Spectrum Dynamics Medical SA"]
["SPINEART SA","SPINEART SA"]
["SPINEGUARD","SPINEGUARD"]
["SPINEVISION","SPINEVISION"]
["SPINEWAY","SPINEWAY"]
["Springer Science+Business Media France","Springer Science+Business Media France"]
["SSL HEALTHCARE ITALIA","SSL HEALTHCARE ITALIA"]
["ST AUDITION","ST AUDITION"]
["St Jude Medical France SAS","St Jude Medical France SAS"]
["STALLERGENES","STALLERGENES"]
["STALLERGENES SA","STALLERGENES SA"]
["Stanhome International","Stanhome International"]
["STARKEY FRANCE","STARKEY FRANCE"]
["STATESIA","STATESIA"]
["STENTYS S.A","STENTYS S.A"]
["STEPHANIX","STEPHANIX"]
["Stephenson Etudes","Stephenson Etudes"]
["sterience","sterience"]
["STERIS","STERIS"]
["STERLING COOPER","STERLING COOPER"]
["STETHOS","STETHOS"]
["STETHOS INTERNATIONAL","STETHOS INTERNATIONAL"]
["stève consultants","stève consultants"]
["Stragen France","Stragen France"]
["STRATEGIQUE SANTE","STRATEGIQUE SANTE"]
["StratLab81","StratLab81"]
["STRAUB MEDICAL (France)","STRAUB MEDICAL (France)"]
["Straumann France","Straumann France"]
["STRYKER FRANCE SAS","STRYKER FRANCE SAS"]
["Stryker Trauma GmbH","Stryker Trauma GmbH"]
["STUDIOSANTE","STUDIOSANTE"]
["STUDIOSANTE24","STUDIOSANTE24"]
["Studiosante67","Studiosante67"]
["suazio nv","suazio nv"]
["SUBLIMED","SUBLIMED"]
["SUBSTIPHARM DEVELOPPEMENT","SUBSTIPHARM DEVELOPPEMENT"]
["SUBSTRATHOMME","SUBSTRATHOMME"]
["SUD OUEST ORTHOPEDIE","SUD OUEST ORTHOPEDIE"]
["SUN PHARMACEUTICALS FRANCE","SUN PHARMACEUTICALS FRANCE"]
["Sunesis Pharmaceuticals","Sunesis Pharmaceuticals"]
["Sunnikan Consulting","Sunnikan Consulting"]
["SUNSTAR FRANCE","SUNSTAR FRANCE"]
["SuperSonic Imagine","SuperSonic Imagine"]
["surdioptic","surdioptic"]
["SURGIVIEW SAS","SURGIVIEW SAS"]
["SURGIVISIO","SURGIVISIO"]
["SURICOG","SURICOG"]
["SWEDISH ORPHAN BIOVITRUM","SWEDISH ORPHAN BIOVITRUM"]
["SWEDISH ORPHAN BIOVITRUM AB (publ)","SWEDISH ORPHAN BIOVITRUM AB (publ)"]
["SWING TECHNOLOGIES","SWING TECHNOLOGIES"]
["SYLVESTRE AUDITION","SYLVESTRE AUDITION"]
["SYMATESE","SYMATESE"]
["SYMATESE AESTHETICS","SYMATESE AESTHETICS"]
["Symbios Orthopédie SA","Symbios Orthopédie SA"]
["symbios sas","symbios sas"]
["Synageva BioPharma SAS","Synageva BioPharma SAS"]
["Synakene","Synakene"]
["SYNAPSE SANTE","SYNAPSE SANTE"]
["SYNEIKA","SYNEIKA"]
["SynteractHCR France S.A.S.","SynteractHCR France S.A.S."]
["SYNTHES","SYNTHES"]
["SYSMED ASSISTANCE","SYSMED ASSISTANCE"]
["SYSMED PAS DE CALAIS","SYSMED PAS DE CALAIS"]
["SYSMEX FRANCE","SYSMEX FRANCE"]
["SYSTAGENIX WOUND MANAGEMENT FRANCE","SYSTAGENIX WOUND MANAGEMENT FRANCE"]
["System Analytic","System Analytic"]
["System Assistance Medical","System Assistance Medical"]
["Taiho Oncology","Taiho Oncology"]
["Taiho Oncology, Inc","Taiho Oncology, Inc"]
["Takeda Belgium","Takeda Belgium"]
["Takeda China Holdings co","Takeda China Holdings co"]
["Takeda Emerging Market Business Unit","Takeda Emerging Market Business Unit"]
["Takeda Europe & Canada Business Unit","Takeda Europe & Canada Business Unit"]
["Takeda France","Takeda France"]
["Takeda International - UK Branch","Takeda International - UK Branch"]
["Takeda Norway","Takeda Norway"]
["Takeda Pharma AB","Takeda Pharma AB"]
["Takeda Pharmaceutical FZCO, Bureau de liaison Alger","Takeda Pharmaceutical FZCO, Bureau de liaison Alger"]
["Takeda Pharmaceutical Portugal","Takeda Pharmaceutical Portugal"]
["Takeda Pharmaceuticals FZCO","Takeda Pharmaceuticals FZCO"]
["Takeda Pharmaceuticals International Co.","Takeda Pharmaceuticals International Co."]
["Takeda Pharmaceuticals U.S.A.","Takeda Pharmaceuticals U.S.A."]
["Takeda Pharmaceutilcal Compagny Ltd","Takeda Pharmaceutilcal Compagny Ltd"]
["Takeda Russia-CIS","Takeda Russia-CIS"]
["TAMING HEALTHCARE","TAMING HEALTHCARE"]
["TARA SANTE","TARA SANTE"]
["TBF GENIE TISSULAIRE","TBF GENIE TISSULAIRE"]
["TBWA\\ADELPHI","TBWA\\ADELPHI"]
["TECHNATURE","TECHNATURE"]
["TEKNIMED","TEKNIMED"]
["TELEFLEX MEDICAL SAS","TELEFLEX MEDICAL SAS"]
["TEM-France","TEM-France"]
["TEOXANE","TEOXANE"]
["TEOXANE FRANCE","TEOXANE FRANCE"]
["TEOXANE SA","TEOXANE SA"]
["TERALI","TERALI"]
["TERRA FIRMA","TERRA FIRMA"]
["TERRE NEUVE","TERRE NEUVE"]
["Terumo BCT Europe SA","Terumo BCT Europe SA"]
["TERUMO EUROPE NV","TERUMO EUROPE NV"]
["TERUMO FRANCE SAS","TERUMO FRANCE SAS"]
["Tesaro Bio France SAS","Tesaro Bio France SAS"]
["Test","Test"]
["TEVA SANTE SAS","TEVA SANTE SAS"]
["TEXTILE HI-TEC","TEXTILE HI-TEC"]
["TFS TRIAL FORM SUPPORT SASU","TFS TRIAL FORM SUPPORT SASU"]
["THE BINDING SITE GROUP LTD","THE BINDING SITE GROUP LTD"]
["The KOL Connection","The KOL Connection"]
["The MarkeTech Group SARL","The MarkeTech Group SARL"]
["The Medicines Company France SAS","The Medicines Company France SAS"]
["The Research Partnership","The Research Partnership"]
["The Spectranetics Corporation","The Spectranetics Corporation"]
["THEA PHARMA","THEA PHARMA"]
["Theorem Clinical Research SARL","Theorem Clinical Research SARL"]
["THERABEL LUCIEN PHARMA","THERABEL LUCIEN PHARMA"]
["THERACLION","THERACLION"]
["THERADIAG SA","THERADIAG SA"]
["THERADIAL SAS","THERADIAL SAS"]
["THERAKOS UK Ltd","THERAKOS UK Ltd"]
["Theravance, Inc.","Theravance, Inc."]
["THERMO ELECTRON LED SAS","THERMO ELECTRON LED SAS"]
["THERMO ELECTRON SAS","THERMO ELECTRON SAS"]
["THERMO FISHER DIAGNOSTICS","THERMO FISHER DIAGNOSTICS"]
["THIERRY DAMBREVILLE","THIERRY DAMBREVILLE"]
["Think Tuvalu","Think Tuvalu"]
["THOMMEN MEDICAL","THOMMEN MEDICAL"]
["THORATEC EUROPE LTD","THORATEC EUROPE LTD"]
["THUASNE","THUASNE"]
["TILLOTTS PHARMA AG","TILLOTTS PHARMA AG"]
["Tillotts Pharma France SAS","Tillotts Pharma France SAS"]
["Time Research","Time Research"]
["TIME RESEARCH LIMITED","TIME RESEARCH LIMITED"]
["TIME TO BE (Time2B Consulting)","TIME TO BE (Time2B Consulting)"]
["Tips tank","Tips tank"]
["TLM DERMATO","TLM DERMATO"]
["to the heart ltd","to the heart ltd"]
["Tools4Patient S.A.","Tools4Patient S.A."]
["Topcon SARL","Topcon SARL"]
["TOP-Service fÃ¼r Lingualtechnik GmbH","TOP-Service fÃ¼r Lingualtechnik GmbH"]
["TOP-Service für Lingualtechnik GmbH","TOP-Service für Lingualtechnik GmbH"]
["Toray Industries, Inc.","Toray Industries, Inc."]
["TORNIER","TORNIER"]
["TOSHIBA MEDICAL FRANCE","TOSHIBA MEDICAL FRANCE"]
["TOSOH EUROPE NV","TOSOH EUROPE NV"]
["TOURS CERAM","TOURS CERAM"]
["Trame Way","Trame Way"]
["TransEnterix Inc.","TransEnterix Inc."]
["Transgene SA","Transgene SA"]
["Transystème - JMT IMPLANTS","Transystème - JMT IMPLANTS"]
["TRANSYSTEME SN","TRANSYSTEME SN"]
["TRB CHEMEDICA","TRB CHEMEDICA"]
["TROIS PRIME","TROIS PRIME"]
["TROPHOS","TROPHOS"]
["TSP","TSP"]
["Tungsten-Software","Tungsten-Software"]
["Tutogen Médical France","Tutogen Médical France"]
["TxCell","TxCell"]
["UBC Late Stage (UK) Limited","UBC Late Stage (UK) Limited"]
["UCB Pharma SA","UCB Pharma"]
["Ugam Solutions","Ugam Solutions"]
["Ultradent Products GmbH","Ultradent Products GmbH"]
["Ultragenyx France","Ultragenyx France"]
["ULTRAGENYX PHARMACEUTICAL INC.","ULTRAGENYX PHARMACEUTICAL INC."]
["ULURU SANTE / VIGIE Pharma","ULURU SANTE / VIGIE Pharma"]
["UNILEVER FRANCE","UNILEVER FRANCE"]
["UNION NATIONALE DE FORMATION CONTINUE ET D'EVALUATION EN MEDECINE CARDIOVASCULAIRE","UNION NATIONALE DE FORMATION CONTINUE ET D'EVALUATION EN MEDECINE CARDIOVASCULAIRE"]
["United Orthopedic Corporation (France)","United Orthopedic Corporation (France)"]
["United Therapeutics Corporation","United Therapeutics Corporation"]
["UNITHER DEVELOPPEMENT BORDEAUX","UNITHER DEVELOPPEMENT BORDEAUX"]
["UNITHER INDUSTRIES","UNITHER INDUSTRIES"]
["UNITHER LIQUID MANUFACTURING","UNITHER LIQUID MANUFACTURING"]
["UNITHER PHARMACEUTICALS","UNITHER PHARMACEUTICALS"]
["UNIVERSAL MEDICA","UNIVERSAL MEDICA"]
["Update France Terrain d'Etudes","Update France Terrain d'Etudes"]
["UPSA SAS","UPSA SAS"]
["URGO RECHERCHE INNOVATION ET DEVELOPPEMENT","URGO RECHERCHE INNOVATION ET DEVELOPPEMENT"]
["Use-Lab GmbH","Use-Lab GmbH"]
["V2L","V2L"]
["VALBIOTIS","VALBIOTIS"]
["Valtech Cardio Ltd","Valtech Cardio Ltd"]
["VALUA SARL","VALUA SARL"]
["Varian Medical Systems France Sarl","Varian Medical Systems France Sarl"]
["Vascular Solutions, Inc.","Vascular Solutions, Inc."]
["VASCUTEK FRANCE","VASCUTEK FRANCE"]
["vasopharm","vasopharm"]
["Vatech France","Vatech France"]
["VECTEC","VECTEC"]
["VENIPHARM","VENIPHARM"]
["Veniti, Inc.","Veniti, Inc."]
["Ventana Medical Systems, Inc.","Ventana Medical Systems, Inc."]
["Ventiléa","Ventiléa"]
["VENTIL'HOME","VENTIL'HOME"]
["VENTIL'O2","VENTIL'O2"]
["VEODIS","VEODIS"]
["VERBAL","VERBAL"]
["Vertex Pharmaceuticals Incorporated","Vertex Pharmaceuticals Incorporated"]
["VETO PHARMA","VETO PHARMA"]
["vetoquinol","vetoquinol"]
["VEXIM SA","VEXIM SA"]
["Vibrant Med-El","Vibrant Med-El"]
["Vical Incorporated","Vical Incorporated"]
["VIFOR FRANCE SA","VIFOR FRANCE SA"]
["VIFOR FRESENIUS MEDICAL CARE RENAL PHARMA","VIFOR FRESENIUS MEDICAL CARE RENAL PHARMA"]
["ViiV HEALTHCARE SAS","ViiV HEALTHCARE SAS"]
["VIRBAC","VIRBAC"]
["VIRBAC FRANCE","VIRBAC FRANCE"]
["VIRBAC NUTRITION","VIRBAC NUTRITION"]
["Viroa Conseil","Viroa Conseil"]
["VIROPHARMA","VIROPHARMA"]
["VIROPHARMA SPRL","VIROPHARMA SPRL"]
["Visiomed Group","Visiomed Group"]
["VISION OUTRE MER","VISION OUTRE MER"]
["VISUfarma","VISUfarma"]
["Vital Images France Sarl","Vital Images France Sarl"]
["VITALAIRE","VITALAIRE"]
["VITALEA MEDICAL","VITALEA MEDICAL"]
["VITALITEC INTERNATIONAL","VITALITEC INTERNATIONAL"]
["VIVACTIS MEDICAL EDUCATION","VIVACTIS MEDICAL EDUCATION"]
["Vivactis-M2Research","Vivactis-M2Research"]
["VIVISOL France","VIVISOL France"]
["VKMED","VKMED"]
["VO Medica","VO Medica"]
["VOISIN CONSULTING","VOISIN CONSULTING"]
["VOLCANO EUROPE BVBA/SPRL","VOLCANO EUROPE BVBA/SPRL"]
["VOLUNTIS","VOLUNTIS"]
["Vyaire Medical SAS","Vyaire Medical SAS"]
["VYGON","VYGON"]
["W L GORE & ASSOCIES","W L GORE & ASSOCIES"]
["W&H FRANCE","W&H FRANCE"]
["WAM","WAM"]
["Warner Chilcott France SAS","Warner Chilcott France SAS"]
["WEINMANN EMERGENCY FRANCE","WEINMANN EMERGENCY FRANCE"]
["WEINMANN SAS","WEINMANN SAS"]
["Weleda S.A.","Weleda S.A."]
["WELLSPECT HEALTHCARE","WELLSPECT HEALTHCARE"]
["WELLSPECT HEALTHCARE/DENTSPLY IH AB","WELLSPECT HEALTHCARE/DENTSPLY IH AB"]
["WERFEN","WERFEN"]
["Wickenstones Ltd","Wickenstones Ltd"]
["WIDEX","WIDEX"]
["WINNCARE FRANCE","WINNCARE FRANCE"]
["WOO YOUNG MEDICAL FRANCE","WOO YOUNG MEDICAL FRANCE"]
["WorldOne Group B.V.","WorldOne Group B.V."]
["Worldone Research Limited d/b/a SERMO","Worldone Research Limited d/b/a SERMO"]
["WR CONSEIL","WR CONSEIL"]
["WRIGHT MEDICAL FRANCE","WRIGHT MEDICAL FRANCE"]
["X4 Pharmaceuticals, Inc.","X4 Pharmaceuticals, Inc."]
["XENIOS","XENIOS"]
["XNOV","XNOV"]
["XNOV Distribution","XNOV Distribution"]
["YPSOMED SAS","YPSOMED SAS"]
["YSSUP RESEARCH","YSSUP RESEARCH"]
["Zambon France","Zambon France"]
["ZB-ORTHO","ZB-ORTHO"]
["ZEBRA SANTE","ZEBRA SANTE"]
["ZEPHYR MEDICAL","ZEPHYR MEDICAL"]
["Zeste Research","Zeste Research"]
["Zimmer Biomet BVBA","Zimmer Biomet BVBA"]
["Zimmer Biomet France SAS","Zimmer Biomet France SAS"]
["Zimmer BVBA","Zimmer BVBA"]
["Zimmer Dental SAS","Zimmer Dental SAS"]
["Zimmer France SAS","Zimmer France SAS"]
["Zimmer GmbH","Zimmer GmbH"]
["Zimmer Inc.","Zimmer Inc."]
["Zimmer Pte Ltd","Zimmer Pte Ltd"]
["Zimmer Spine SAS","Zimmer Spine SAS"]
["Zoetis France","Zoetis France"]
["Zogenix International Limited","Zogenix International Limited"]
["ZOLL Médical France","ZOLL Médical France"]
["ZS Associates","ZS Associates"]
["ZS Associates International, Inc.","ZS Associates International, Inc."]
["ZYDUS FRANCE","ZYDUS FRANCE"]

{"sheet":"Conception","index":6,"n_rows":18,"n_cols":4,"rows_kept":18,"cut":false,"hidden":false,"merged":[[6,3,10,8],[19,3,19,14],[20,3,20,14],[21,3,21,14],[22,3,22,14],[23,3,23,14],[17,1,17,14],[13,3,13,5],[16,3,16,14],[18,3,18,14]]}
[]
[null,"Concepteur :"]
[]
[null,null,null,"François PESTY"]
[null,null,null,"Pharmacien, Ancien Interne des Hôpitaux de Paris, Institut Supérieur de Gestion,"]
[null,null,null,"Consultant indépendant, "]
[null,null,null,"Expert-Conseil en organisation et informatisation du circuit du médicament / Optimisation des approvisionnements et des stocks pharmaceutiques / Pilotage \n« médico-économique » des médicaments et dispositifs médicaux / Campagne \n« pilotes » de visites médicalisées des délégués de l’assurance maladie sur le médicament / Pertinence des traitements médicamenteux"]
[]
[]
[]
[]
[null,null,null,"2, square Gay Lussac"]
[null,null,null,"78330 Fontenay le Fleury"]
[null,null,null,"Francois.PESTY@Wanadoo.fr"]
[null,null,null,"01 30 45 03 59 / 06 88 89 53 51"]
[]
[]
[null,"François PESTY est membre de l'association FORMINDEP, "]

{"sheet":"Déplacements","index":7,"n_rows":2,"n_cols":6,"rows_kept":2,"cut":false,"hidden":false,"merged":[]}
[]
["Début","Fin ","Signature","Congrès","Lieux","Firme"]

{"sheet":"Tableaux de synthèse","index":8,"n_rows":29,"n_cols":96,"rows_kept":29,"cut":false,"hidden":false,"merged":[[2,41,2,95],[2,2,2,4],[2,6,2,13],[2,14,2,24],[2,25,2,32],[2,33,2,40]]}
[]
[]
[null,null,"Synthèse",null,null,null,"Avantages perçus",null,null,null,null,null,null,null,"Conventions signées",null,null,null,null,null,null,null,null,null,null,"Montants des avantages versés par les entreprises - Montants des avantages versés par les entreprises - Montants des avantages versés par les entreprises - Montants des avantages versés ",null,null,null,null,null,null,null,"Nombres d'avantages versés par les entreprises - Nombres d'avantages versés par les entreprises - Nombres d'avantages versés par les entreprises - Nombres d'avantages versés par les entreprises - Nombres d'avantages versés par les entreprises - ",null,null,null,null,null,null,null,"Nombres de conventions signées avec les entreprises - Nombres de conventions signées avec les entreprises - Nombres de conventions signées avec les entreprises - Nombres de conventions signées avec les entreprises - Nombres de conventions signées avec les entreprises - "]
[null,"Bénéficiaire","Total avantages perçus (€)","Nombre d'avantages perçus","Nombre de conventions signées","Rémunérations\n+ montants de conventions","Transport","Hébergement","Repas","Hospitalité","Inscription","Conseil","Congrès","Autre","Hospitalité","Orateur","Réunion professionnelle","Expert","Conseil","Recherche Clinique","Etude de marché","Formateur","Rédacteur","Réunion de « Board »","Autre","MSD France","EDITION DE L'INTERLIGNE","SESC","ARCHIMEDES PHARMA France","Bayer HealthCare SAS","LUNDBECK SAS","GSK","Cyberonics BVBA","EDITION DE L'INTERLIGNE","SESC","MSD France","Bayer HealthCare SAS","GSK","ARCHIMEDES PHARMA France","Cyberonics BVBA","LUNDBECK SAS","MYLAN","AbbVie","BIOCODEX","BIOGARAN","MSD France","LEO Pharma","Janssen-Cilag","GILEAD SCIENCES","JUVISE PHARMACEUTICALS","GENEVRIER","Kreussler pharma","ROCHE DIABETES CARE FRANCE","ROCHE DIAGNOSTICS FRANCE","IPSEN","MENARINI","Lilly","RANBAXY PHARMACIE GENERIQUES","Bristol -Myers Squibb","Bayer HealthCare SAS","PHADIA SAS","Reckitt Benckiser Healthcare France","Roche SAS","SERVIER","FRESENIUS","HRA PHARMA FRANCE","EISAI SAS","Boehringer Ingelheim","SANDOZ","Grünenthal","MUNDIPHARMA","COOPER","Pierre Fabre Médicament","Nordic Pharma","RB Pharmaceuticals France","BAYER SANTE FAMILIALE","CCD","THEA","ALK-AbellÓ","LUNDBECK SAS","Atlantic Therapeutics","B.BRAUN MEDICAL SAS","GE Medical Systems SCS","Amgen","Smith & Nephew S.A.S.","Sanofi Aventis","FUJIFILM Medical Systems France","Leurquin Mediolanum","DIASORIN SA","Bailleul","JALDES","GIBAUD","Reckitt Benckiser France","SOCIETE D'ETUDES ET DE RECHERCHES PHARMACEUTIQUES","AUVEX","Otsuka"]
[null,"DÉCISION & STRATÉGIE SANTÉ",{"$f":"SUMPRODUCT(('Avantages perçus'!$A$2:$A$30000=B5)*('Avantages perçus'!$F$2:$F$30000))","v":7445},{"$f":"COUNTIFS('Avantages perçus'!$A$2:$A$30000,B5,'Avantages perçus'!$F$2:$F$30000,\">0\")","v":86},{"$f":"COUNTIFS('Conventions signées'!$A$2:$A$15000,B5,'Conventions signées'!$A$2:$A$15000,\"*\")","v":48},{"$f":"'Conventions signées'!G709+Rémunérations!E99","v":12720},0,0,398,4647,0,0,0,2400,1,0,2,1,20,0,0,0,6,0,18,42,3046,1440,2400,471,0,46,0,55,24,3,1,2,1,0,0,0,0,0,0,6,1,11,12,0,0,0,0,0,0,0,0,0,4,3,0,0,3,0,0,0,3,2,0,0,0,0,0,0,0,0,0,0,0,0,0,1,1,1,0,0,0,0,0,0,0,0,0,0,0,0]
[null,"QUOTIDIEN DU MÉDECIN",{"$f":"SUMPRODUCT(('Avantages perçus'!$A$2:$A$30000=B6)*('Avantages perçus'!$F$2:$F$30000))","v":32732},{"$f":"COUNTIFS('Avantages perçus'!$A$2:$A$30000,B6,'Avantages perçus'!$F$2:$F$30000,\">0\")","v":31},{"$f":"COUNTIFS('Conventions signées'!$A$2:$A$15000,B6,'Conventions signées'!$A$2:$A$15000,\"*\")","v":400},{"$f":"'Conventions signées'!G710+Rémunérations!E100","v":1249279},1610,207,517,2528,0,0,0,27870,2,0,121,4,25,0,5,0,125,0,118,30184,0,600,0,1928,0,0,20,0,10,17,3,0,0,1,0,162,122,20,4,13,0,4,0,0,3,4,7,3,2,8,8,0,2,0,6,1,2,5,5,0,0,1,1,3,2,2,0,0,1,1,1,2,0,0,0,0,0,0,1,1,1,1,1,0,0,0,0,0,0,0]
[null,"QUOTIDIEN DU PHARMACIEN",{"$f":"SUMPRODUCT(('Avantages perçus'!$A$2:$A$30000=B7)*('Avantages perçus'!$F$2:$F$30000))","v":0},{"$f":"COUNTIFS('Avantages perçus'!$A$2:$A$30000,B7,'Avantages perçus'!$F$2:$F$30000,\">0\")","v":0},{"$f":"COUNTIFS('Conventions signées'!$A$2:$A$15000,B7,'Conventions signées'!$A$2:$A$15000,\"*\")","v":168},{"$f":"'Conventions signées'!G711+Rémunérations!E101","v":1126377},0,0,0,0,0,0,0,0,6,0,1,4,17,0,7,1,111,0,21,0,0,0,0,0,0,0,0,0,0,0,0,0,0,0,0,103,1,13,1,0,0,0,0,0,7,1,2,0,6,0,0,7,0,0,0,5,0,0,0,5,0,0,2,0,0,1,2,3,1,1,1,0,0,0,0,0,0,0,0,0,0,0,0,1,1,1,1,1,1,0]
[null,"SESC",{"$f":"SUMPRODUCT(('Avantages perçus'!$A$2:$A$30000=B8)*('Avantages perçus'!$F$2:$F$30000))","v":151488},{"$f":"COUNTIFS('Avantages perçus'!$A$2:$A$30000,B8,'Avantages perçus'!$F$2:$F$30000,\">0\")","v":13},{"$f":"COUNTIFS('Conventions signées'!$A$2:$A$15000,B8,'Conventions signées'!$A$2:$A$15000,\"*\")","v":82},{"$f":"'Conventions signées'!G712+Rémunérations!E102","v":992968},0,0,0,720,0,0,0,150768,0,0,0,0,24,0,2,0,17,0,39,0,0,720,0,0,150768,0,0,0,12,0,0,0,0,0,1,1,5,0,23,0,16,0,2,11,0,5,0,6,0,0,0,0,0,3,0,0,0,0,0,0,1,0,0,0,1,0,1,0,0,0,0,0,2,2,2,0,0,0,0,0,0,0,0,0,0,0,0,0,0,1]
[null,"TOTAUX",191665,130,698,{"$f":"SUM(F5:F8)","v":3381344},1610,207,915,7895,0,0,0,181038,9,0,124,9,86,0,14,1,259,0,196,30226,3046,2760,2400,2399,150768,46,20,55,46,20,4,2,1,1,1,266,128,33,28,19,17,15,14,11,10,10,9,9,8,8,8,7,6,6,6,6,5,5,5,5,4,3,3,3,3,3,3,3,2,2,2,2,2,2,2,1,1,1,1,1,1,1,1,1,1,1,1,1,1,1]
[]
[]
[null,"Période d'étude","   1er semestre 2013 - 1er semestre 2018, soient 5 années et demi"]
[null,"Début de l'analyse","   06/10/2018 18:25:33"]
[null,"Fin de l'analyse","   06/10/2018 18:25:43"]
[]
[null,null,"Total Montants"]
[null,"2ème semestre 2017",{"$f":"'Avantages perçus'!F135+'Conventions signées'!G703+Rémunérations!E87","v":1069705}]
[null,"1er semestre 2018",{"$f":"'Avantages perçus'!F136+'Conventions signées'!G704+Rémunérations!E88","v":422881}]
[null,"12 derniers mois disponibles",{"$f":"SUM(C17:C18)","v":1492586}]
[]
[null,"Extrapolation sur la période",{"$f":"(C19/2)*5.5","v":4104611.5}]
[null,null,null,"%","Cumul%"]
[null,"MYLAN SAS",{"$f":"'Conventions signées'!G715+Rémunérations!E109","v":1505493},{"$f":"C23/(C$9+F$9)","v":0.42135158349727081},{"$f":"D23","v":0.42135158349727081}]
[null,"BIOGARAN",{"$f":"'Conventions signées'!G717+Rémunérations!E105","v":584635},{"$f":"C24/(C$9+F$9)","v":0.16362539249131475},{"$f":"D24+E23","v":0.58497697598858556}]
[null,"BIOCODEX",{"$f":"'Conventions signées'!G716","v":276685},7.7437532343187496E-2,{"$f":"D25+E24","v":0.66241450833177307}]
[null,"LEO Pharma",{"$f":"'Conventions signées'!G718+Rémunérations!E106","v":275048},7.697937508693653E-2,0.7393938834187096]
[null,"LUNDBECK SAS",{"$f":"'Avantages perçus'!F142+Rémunérations!E110","v":202768},5.6749927022294096E-2,0.79614381044100369]
[null,"Lilly France SAS",{"$f":"'Conventions signées'!G720+Rémunérations!E107","v":184300},5.1581174298749317E-2,0.847724984739753]
[null,"LABORATOIRES GENEVRIER",{"$f":"'Conventions signées'!G719+Rémunérations!E108","v":170680},4.7769261146557426E-2,{"$f":"D29+E28","v":0.89549424588631044}]